Workbook

Sheet INICIO

Sheet LÍNEA 1
B3: ALCALDÍA DE BUCARAMANGA
B4: PLAN DE DESARROLLO 2016 - 2019 "GOBIERNO DE LAS CIUDADANAS Y LOS CIUDADANOS"
B5: LÍNEA ESTRATÉGICA 1: GOBERNANZA DEMOCRÁTICA
B8: POND | C8: LÍNEA ESTRATÉGICA | D8: POND | E8: COMPONENTE | F8: META DE RESULTADO | G8: LÍNEA BASE | H8: RESULTADO CUATRIENIO | J8: META POR VIGENCIA | V8: LOGRO POR VIGENCIA | AD8: PORCENTAJE DE CUMPLIMIENTO | AO8: POND | AP8: PROGRAMA | AQ8: META DE PRODUCTO | AR8: RUBRO PPTAL | AS8: INDICADOR DE PRODUCTO | BD8: LOGRO POR VIGENCIA | BH8: PORCENTAJE DE CUMPLIMIENTO | BS8: RECURSOS POR FUENTE DE FINANCIACIÓN PARA CADA VIGENCIA (Cifras en Miles de Pesos) | CR8: ODS | CS8: SECTOR
BS9: 2016 | BX9: 2017 | CC9: 2018 | CH9: 2019 | CM9: 2016 - 2019
J10: 2016 | M10: 2017 | P10: 2018 | S10: 2019 | V10: 2016 | X10: 2017 | Z10: 2018 | AB10: 2019 | AD10: 2016 | AF10: 2017 | AH10: 2018 | AJ10: 2019 | AL10: 2016 - 2019 | AS10: NOMBRE INDICADOR | AT10: LÍNEA BASE | AU10: ESPERADO CUATRIENIO | AV10: 2016 | AX10: 2017 | AZ10: 2018 | BB10: 2019 | BD10: 2016 | BE10: 2017 | BF10: 2018 | BG10: 2019 | BH10: 2016 | BJ10: 2017 | BL10: 2018 | BN10: 2019 | BP10: 2016 - 2019 | BS10: RECURSOS PROGRAMADOS | BT10: RECURSOS EJECUTADOS | BU10: RECURSOS GESTIONADOS | BV10: PORCENTAJE EJECUCIÓN | BW10: NIVEL DE GESTIÓN | BX10: RECURSOS PROGRAMADOS | BY10: RECURSOS EJECUTADOS | BZ10: RECURSOS GESTIONADOS | CA10: PORCENTAJE EJECUCIÓN | CB10: NIVEL DE GESTIÓN | CC10: RECURSOS PROGRAMADOS | CD10: RECURSOS EJECUTADOS | CE10: RECURSOS GESTIONADOS | CF10: PORCENTAJE EJECUCIÓN | CG10: NIVEL DE GESTIÓN | CH10: RECURSOS PROGRAMADOS | CI10: RECURSOS EJECUTADOS | CJ10: RECURSOS GESTIONADOS | CK10: PORCENTAJE EJECUCIÓN | CL10: NIVEL DE GESTIÓN | CM10: RECURSOS PROGRAMADOS | CN10: RECURSOS EJECUTADOS | CO10: RECURSOS GESTIONADOS | CP10: PORCENTAJE EJECUCIÓN | CQ10: NIVEL DE GESTIÓN | CT10: RESPONSABLE
B11: =+RESUMEN!J8 -> 0.8209926365 | C11: 1 - GOBERNANZA DEMOCRÁTICA | D11: =+RESUMEN!J9 -> 0.8653227734 | E11: GOBIERNO PARTICIPATIVO Y ABIERTO | F11: Lograr una calificación de 85 sobre 100 en el componente visibilidad en el Índice de Transparencia de las Entidades Públicas - ITEP. | G11: 69.8 | H11: 85 | I11: =+H11-G11 -> 15.2 | J11: 69.8 | K11: =+J11-G11 -> 0 | M11: 85 | N11: =+M11-J11 -> 15.2 | P11: 85 | Q11: =+P11-M11 -> 0 | S11: 85 | T11: =+S11-P11 -> 0 | V11: 65.5 | W11: =+IF(V11=0,0,V11-G11) -> -4.3 | X11: 65.5 | Y11: =+IF(X11=0,0,X11-V11) -> 0 | Z11: 65.5 | AA11: =+IF(Z11=0,0,Z11-X11) -> 0 | AC11: =+IF(AB11=0,0,AB11-Z11) -> 0 | AD11: =+IF(K11=0," -",W11/K11) -> - | AE11: =+IF(K11=0," -",IF(AD11>100%,100%,AD11)) -> - | AF11: =+IF(N11=0," -",Y11/N11) -> 0 | AG11: =+IF(N11=0," -",IF(AF11>100%,100%,AF11)) -> 0 | AH11: =+IF(Q11=0," -",AA11/Q11) -> - | AI11: =+IF(Q11=0," -",IF(AH11>100%,100%,AH11)) -> - | AJ11: =+IF(T11=0," -",AC11/T11) -> - | AK11: =+IF(T11=0," -",IF(AJ11>100%,100%,AJ11)) -> - | AL11: =+SUM(AC11,AA11,Y11,W11)/I11 -> -0.2828947368 | AM11: =+IF(AL11>100%,100%,IF(AL11<0%,0%,AL11)) -> 0 | AO11: =+RESUMEN!J10 -> 0.980952381 | AP11: NUEVOS LIDERAZGOS | AQ11: Implementar y mantener la estrategia de casas para nuevos liderazgos. | AR11: 2210980 | AS11: Número de estrategias de casas para nuevos liderazgos implementadas y mantenidas. | AT11: 0 | AU11: 1 | AV11: 1 | AW11: 0.25 | AX11: 1 | AY11: 0.25 | AZ11: 1 | BA11: 0.25 | BB11: 1 | BC11: 0.25 | BD11: 1 | BE11: 1 | BF11: 1 | BG11: 1 | BH11: =IF(AV11=0," -",BD11/AV11) -> 1 | BI11: =IF(AV11=0," -",IF(BH11>100%,100%,BH11)) -> 1 | BJ11: =IF(AX11=0," -",BE11/AX11) -> 1 | BK11: =IF(AX11=0," -",IF(BJ11>100%,100%,BJ11)) -> 1 | BL11: =IF(AZ11=0," -",BF11/AZ11) -> 1 | BM11: =IF(AZ11=0," -",IF(BL11>100%,100%,BL11)) -> 1 | BN11: =IF(BB11=0," -",BG11/BB11) -> 1 | BO11: =IF(BB11=0," -",IF(BN11>100%,100%,BN11)) -> 1 | BP11: =+AVERAGE(BD11:BG11)/AU11 -> 1 | BQ11: =+IF(BP11>100%,100%,BP11) -> 1 | BR11: =+BQ11 -> 1 | BS11: 100000 | BT11: 65333 | BU11: 0 | BV11: =IF(BS11=0," -",BT11/BS11) -> 0.65333 | BW11: =IF(BU11=0," -",IF(BT11=0,100%,BU11/BT11)) -> - | BX11: 167836 | BY11: 167003 | BZ11: 0 | CA11: =IF(BX11=0," -",BY11/BX11) -> 0.9950368217 | CB11: =IF(BZ11=0," -",IF(BY11=0,100%,BZ11/BY11)) -> - | CC11: 142550 | CD11: 130825 | CE11: 0 | CF11: =IF(CC11=0," -",CD11/CC11) -> 0.9177481585 | CG11: =IF(CE11=0," -",IF(CD11=0,100%,CE11/CD11)) -> - | CH11: 222000 | CI11: 222000 | CJ11: 0 | CK11: =IF(CH11=0," -",CI11/CH11) -> 1 | CL11: =IF(CJ11=0," -",IF(CI11=0,100%,CJ11/CI11)) -> - | CM11: =+BS11+BX11+CC11+CH11 -> 632386 | CN11: 585161 | CO11: 0 | CP11: =IF(CM11=0," -",CN11/CM11) -> 0.9253225087 | CQ11: =IF(CO11=0," -",IF(CN11=0,100%,CO11/CN11)) -> - | CR11: 16. Paz, justicia e instituciones sólidas | CS11: Promoción del Desarrollo | CT11: Sec. Interior
AQ12: Implementar y mantener la estrategia escuela de liderazgo para mujeres las Mil Manuelas. | AR12: 2210708 | AS12: Número de estrategias escuela de liderazgo para mujeres las Mil Manuelas implementadas y mantenidas. | AT12: 0 | AU12: 1 | AV12: 0 | AW12: =+AV12/AU12 -> 0 | AX12: 1 | AY12: 0.33 | AZ12: 1 | BA12: 0.33 | BB12: 1 | BC12: 0.34 | BD12: 0 | BE12: 1 | BF12: 1 | BG12: 1 | BH12: =IF(AV12=0," -",BD12/AV12) -> - | BI12: =IF(AV12=0," -",IF(BH12>100%,100%,BH12)) -> - | BJ12: =IF(AX12=0," -",BE12/AX12) -> 1 | BK12: =IF(AX12=0," -",IF(BJ12>100%,100%,BJ12)) -> 1 | BL12: =IF(AZ12=0," -",BF12/AZ12) -> 1 | BM12: =IF(AZ12=0," -",IF(BL12>100%,100%,BL12)) -> 1 | BN12: =IF(BB12=0," -",BG12/BB12) -> 1 | BO12: =IF(BB12=0," -",IF(BN12>100%,100%,BN12)) -> 1 | BP12: =+AVERAGE(BE12:BG12)/AU12 -> 1 | BQ12: =+IF(BP12>100%,100%,BP12) -> 1 | BR12: =+BQ12 -> 1 | BS12: 0 | BT12: 0 | BU12: 0 | BV12: =IF(BS12=0," -",BT12/BS12) -> - | BW12: =IF(BU12=0," -",IF(BT12=0,100%,BU12/BT12)) -> - | BX12: 6320 | BY12: 1820 | BZ12: 0 | CA12: =IF(BX12=0," -",BY12/BX12) -> 0.2879746835 | CB12: =IF(BZ12=0," -",IF(BY12=0,100%,BZ12/BY12)) -> - | CC12: 32000 | CD12: 32000 | CE12: 0 | CF12: =IF(CC12=0," -",CD12/CC12) -> 1 | CG12: =IF(CE12=0," -",IF(CD12=0,100%,CE12/CD12)) -> - | CH12: 33000 | CI12: 32997 | CJ12: 0 | CK12: =IF(CH12=0," -",CI12/CH12) -> 0.9999090909 | CL12: =IF(CJ12=0," -",IF(CI12=0,100%,CJ12/CI12)) -> - | CM12: 71320 | CN12: 66817 | CO12: 0 | CP12: =IF(CM12=0," -",CN12/CM12) -> 0.9368620303 | CQ12: =IF(CO12=0," -",IF(CN12=0,100%,CO12/CN12)) -> - | CR12: 10. Reducción de las desigualdades | CS12: Promoción del Desarrollo | CT12: Sec. Desarrollo Social
AQ13: Realizar 35 actividades o iniciativas para promover, visibilizar y empoderar el gobierno escolar en las instituciones educativas oficiales. | AR13: 0 | AS13: Número de actividades o iniciativas realizadas para promover, visibilizar y empoderar el gobierno escolar en las instituciones educativas oficiales. | AT13: 0 | AU13: 35 | AV13: 3 | AW13: =+AV13/AU13 -> 0.08571428571 | AX13: 12 | AY13: =+AX13/AU13 -> 0.3428571429 | AZ13: 10 | BA13: =+AZ13/AU13 -> 0.2857142857 | BB13: 10 | BC13: =+BB13/AU13 -> 0.2857142857 | BD13: 3 | BE13: 12 | BF13: 11 | BG13: 7 | BH13: 1 | BI13: 1 | BJ13: 1 | BK13: 1 | BL13: 1.1 | BM13: 1 | BN13: 0.7 | BO13: 0.7 | BP13: =+SUM(BD13:BG13)/AU13 -> 0.9428571429 | BQ13: 0.9428571429 | BR13: 0.9428571429 | BS13: 0 | BT13: 0 | BU13: 0 | BV13: =IF(BS13=0," -",BT13/BS13) -> - | BW13: =IF(BU13=0," -",IF(BT13=0,100%,BU13/BT13)) -> - | BX13: 0 | BY13: 0 | BZ13: 0 | CA13: =IF(BX13=0," -",BY13/BX13) -> - | CB13: =IF(BZ13=0," -",IF(BY13=0,100%,BZ13/BY13)) -> - | CC13: 0 | CD13: 0 | CE13: 0 | CF13: =IF(CC13=0," -",CD13/CC13) -> - | CG13: =IF(CE13=0," -",IF(CD13=0,100%,CE13/CD13)) -> - | CH13: 0 | CI13: 0 | CJ13: 0 | CK13: =IF(CH13=0," -",CI13/CH13) -> - | CL13: =IF(CJ13=0," -",IF(CI13=0,100%,CJ13/CI13)) -> - | CM13: =+BS13+BX13+CC13+CH13 -> 0 | CN13: =+BT13+BY13+CD13+CI13 -> 0 | CO13: =+BU13+BZ13+CE13+CJ13 -> 0 | CP13: =IF(CM13=0," -",CN13/CM13) -> - | CQ13: =IF(CO13=0," -",IF(CN13=0,100%,CO13/CN13)) -> - | CR13: 16. Paz, justicia e instituciones sólidas | CS13: Educación | CT13: Sec. Educación
AO14: =+RESUMEN!J11 -> 0.8629901961 | AP14: PRESUPUESTOS INCLUYENTES | AQ14: Crear y mantener 1 sección web en línea para que la ciudadanía pueda consultar el presupuesto y vigilar su aprobación y ejecución. | AR14: - | AS14: Número de secciones web en línea creadas y mantenidas para que la ciudadanía pueda consultar el presupuesto y vigilar su aprobación y ejecución. | AT14: 0 | AU14: 1 | AV14: 1 | AW14: 0.25 | AX14: 1 | AY14: 0.25 | AZ14: 1 | BA14: 0.25 | BB14: 1 | BC14: 0.25 | BD14: 1 | BE14: 1 | BF14: 1 | BG14: 1 | BH14: 1 | BI14: 1 | BJ14: 1 | BK14: 1 | BL14: 1 | BM14: 1 | BN14: 1 | BO14: 1 | BP14: =+AVERAGE(BD14:BG14)/AU14 -> 1 | BQ14: 1 | BR14: 1 | BS14: 0 | BT14: 0 | BU14: 0 | BV14: - | BW14: - | BX14: 0 | BY14: 0 | BZ14: 0 | CA14: - | CB14: - | CC14: 0 | CD14: 0 | CE14: 0 | CF14: - | CG14: - | CH14: 0 | CI14: 0 | CJ14: 0 | CK14: - | CL14: - | CM14: 0 | CN14: 0 | CO14: 0 | CP14: - | CQ14: - | CR14: 16. Paz, justicia e instituciones sólidas | CS14: Fortalecimiento Institucional | CT14: Sec. Hacienda
AQ15: Ejecutar 4 planes de socialización del proyecto de acuerdo del presupuesto municipal previa presentación al Concejo. | AR15: - | AS15: Número de planes de socialización ejecutados del proyecto de acuerdo del presupuesto municipal previa presentación al Concejo. | AT15: 0 | AU15: 4 | AV15: 1 | AW15: 0.25 | AX15: 1 | AY15: 0.25 | AZ15: 1 | BA15: 0.25 | BB15: 1 | BC15: 0.25 | BD15: 1 | BE15: 1 | BF15: 1 | BG15: 0 | BH15: 1 | BI15: 1 | BJ15: 1 | BK15: 1 | BL15: 1 | BM15: 1 | BN15: 0 | BO15: 0 | BP15: =+SUM(BD15:BG15)/AU15 -> 0.75 | BQ15: 0.75 | BR15: 0.75 | BS15: 0 | BT15: 0 | BU15: 0 | BV15: - | BW15: - | BX15: 0 | BY15: 0 | BZ15: 0 | CA15: - | CB15: - | CC15: 0 | CD15: 0 | CE15: 0 | CF15: - | CG15: - | CH15: 0 | CI15: 0 | CJ15: 0 | CK15: - | CL15: - | CM15: 0 | CN15: 0 | CO15: 0 | CP15: - | CQ15: - | CR15: 16. Paz, justicia e instituciones sólidas | CS15: Fortalecimiento Institucional | CT15: Sec. Hacienda
AQ16: Celebrar 4 cabildos ciudadanos para asignar presupuesto a obras comunitarias y discutir otros asuntos del presupuesto. | AR16: - | AS16: Número de cabildos ciudadanos celebrados para asignar presupuesto a obras comunitarias y discutir otros asuntos del presupuesto. | AT16: 0 | AU16: 4 | AV16: 1 | AW16: 0.25 | AX16: 1 | AY16: 0.25 | AZ16: 1 | BA16: 0.25 | BB16: 1 | BC16: 0.25 | BD16: 1 | BE16: 1 | BF16: 1 | BG16: 0.3 | BH16: 1 | BI16: 1 | BJ16: 1 | BK16: 1 | BL16: 1 | BM16: 1 | BN16: 0.3 | BO16: 0.3 | BP16: =+SUM(BD16:BG16)/AU16 -> 0.825 | BQ16: 0.825 | BR16: 0.825 | BS16: 0 | BT16: 0 | BU16: 0 | BV16: - | BW16: - | BX16: 0 | BY16: 0 | BZ16: 0 | CA16: - | CB16: - | CC16: 0 | CD16: 0 | CE16: 0 | CF16: - | CG16: - | CH16: 0 | CI16: 0 | CJ16: 0 | CK16: - | CL16: - | CM16: 0 | CN16: 0 | CO16: 0 | CP16: - | CQ16: - | CR16: 16. Paz, justicia e instituciones sólidas | CS16: Fortalecimiento Institucional | CT16: Sec. Hacienda
AQ17: Implementar y mantener 1 estrategia de implementación del acuerdo de presupuestos participativos y del decreto reglamentario. | AR17: 2210289 | AS17: Número de estrategias de implementación del acuerdo de presupuestos participativos y del decreto reglamentario implementadas y mantenidas. | AT17: 1 | AU17: 1 | AV17: 1 | AW17: 0.25 | AX17: 1 | AY17: 0.25 | AZ17: 1 | BA17: 0.25 | BB17: 1 | BC17: 0.25 | BD17: 1 | BE17: 1 | BF17: 1 | BG17: 1 | BH17: 1 | BI17: 1 | BJ17: 1 | BK17: 1 | BL17: 1 | BM17: 1 | BN17: 1 | BO17: 1 | BP17: 1 | BQ17: 1 | BR17: 1 | BS17: 0 | BT17: 0 | BU17: 0 | BV17: - | BW17: - | BX17: 0 | BY17: 0 | BZ17: 0 | CA17: - | CB17: - | CC17: 29750 | CD17: 29750 | CE17: 0 | CF17: 1 | CG17: - | CH17: 29750 | CI17: 29750 | CJ17: 0 | CK17: 1 | CL17: - | CM17: 59500 | CN17: 59500 | CO17: 0 | CP17: 1 | CQ17: - | CR17: 16. Paz, justicia e instituciones sólidas | CS17: Fortalecimiento Institucional | CT17: Sec. Planeación
AQ18: Implementar 1 estrategia para la formación y capacitación técnica en planeación participativa para los ciudadanos bumangueses. | AR18: 2210230 | AS18: Número de estrategias implementadas para la formación y capacitación técnica en planeación participativa para los ciudadanos bumangueses. | AT18: 0 | AU18: 1 | AV18: 1 | AW18: 0.25 | AX18: 1 | AY18: 0.25 | AZ18: 1 | BA18: 0.25 | BB18: 1 | BC18: 0.25 | BD18: 1 | BE18: 1 | BF18: 1 | BG18: 1 | BH18: 1 | BI18: 1 | BJ18: 1 | BK18: 1 | BL18: 1 | BM18: 1 | BN18: 1 | BO18: 1 | BP18: 1 | BQ18: 1 | BR18: 1 | BS18: 35000 | BT18: 15000 | BU18: 0 | BV18: 0.4285714286 | BW18: - | BX18: 0 | BY18: 0 | BZ18: 0 | CA18: - | CB18: - | CC18: 0 | CD18: 0 | CE18: 0 | CF18: - | CG18: - | CH18: 0 | CI18: 0 | CJ18: 0 | CK18: - | CL18: - | CM18: 35000 | CN18: 15000 | CO18: 0 | CP18: 0.4285714286 | CQ18: - | CR18: 16. Paz, justicia e instituciones sólidas | CS18: Fortalecimiento Institucional | CT18: Sec. Desarrollo Social
AQ19: Ejecutar obras comunitarias con presupuestos participatios en las 17 comunas. | AR19: 2210219 | AS19: Número de comunas con obras comunitarias ejecutadas con presupuesto participativo. | AT19: 0 | AU19: 17 | AV19: 17 | AW19: 0.25 | AX19: 17 | AY19: 0.25 | AZ19: 17 | BA19: 0.25 | BB19: 17 | BC19: 0.25 | BD19: 0 | BE19: 7 | BF19: 17 | BG19: 17 | BH19: 0 | BI19: 0 | BJ19: 0.4117647059 | BK19: 0.4117647059 | BL19: 1 | BM19: 1 | BN19: 1 | BO19: 1 | BP19: 0.6029411765 | BQ19: 0.6029411765 | BR19: 0.6029411765 | BS19: 0 | BT19: 0 | BU19: 0 | BV19: - | BW19: - | BX19: 755144 | BY19: 755144 | BZ19: 0 | CA19: 1 | CB19: - | CC19: 6975188 | CD19: 6432681 | CE19: 0 | CF19: 0.922223315 | CG19: - | CH19: 6937298 | CI19: 3433825 | CJ19: 0 | CK19: 0.4949801782 | CL19: - | CM19: 14667630 | CN19: 10621650 | CO19: 0 | CP19: 0.7241558452 | CQ19: - | CR19: 16. Paz, justicia e instituciones sólidas | CS19: Fortalecimiento Institucional | CT19: Sec. Infraestructura
AO20: =+RESUMEN!J12 -> 0.7495 | AP20: CIUDADANÍA EMPODERADA Y DEBATE PÚBLICO | AQ20: Implementar y mantener 1 estrategia de comunicaciones para difundir las iniciativas de la Administración Municipal y promover el debate público sobre temas de gobierno y de ciudad. | AR20: 0 | AS20: Número de estrategias de comunicación implementadas y mantenidas para difundir las iniciativas de la Administración Municipal y promover el debate público sobre temas de gobierno y de ciudad. | AT20: 0 | AU20: 1 | AV20: 1 | AW20: 0.25 | AX20: 1 | AY20: 0.25 | AZ20: 1 | BA20: 0.25 | BB20: 1 | BC20: 0.25 | BD20: 1 | BE20: 1 | BF20: 1 | BG20: 1 | BH20: 1 | BI20: 1 | BJ20: 1 | BK20: 1 | BL20: 1 | BM20: 1 | BN20: 1 | BO20: 1 | BP20: 1 | BQ20: 1 | BR20: 1 | BS20: 1190000 | BT20: 213597 | BU20: 0 | BV20: 0.1794932773 | BW20: - | BX20: 270000 | BY20: 179476 | BZ20: 0 | CA20: 0.6647259259 | CB20: - | CC20: 174554 | CD20: 151070.98 | CE20: 0 | CF20: 0.865468451 | CG20: - | CH20: 194554 | CI20: 133303.9 | CJ20: 0 | CK20: 0.6851768661 | CL20: - | CM20: 1829108 | CN20: 677447.88 | CO20: 0 | CP20: 0.3703706287 | CQ20: - | CR20: 16. Paz, justicia e instituciones sólidas | CS20: Fortalecimiento Institucional | CT20: Ofc. Prensa
AQ21: Implementar y mantener 1 Plan de medios para informar a la ciudadanía sobre las políticas e iniciativas del gobierno. | AR21: - | AS21: Número de Planes de medios implementados y mantenidos para informar a la ciudadanía las políticas e iniciativas del gobierno. | AT21: 0 | AU21: 1 | AV21: 1 | AW21: 0.25 | AX21: 1 | AY21: 0.25 | AZ21: 1 | BA21: 0.25 | BB21: 1 | BC21: 0.25 | BD21: 1 | BE21: 1 | BF21: 1 | BG21: 1 | BH21: 1 | BI21: 1 | BJ21: 1 | BK21: 1 | BL21: 1 | BM21: 1 | BN21: 1 | BO21: 1 | BP21: 1 | BQ21: 1 | BR21: 1 | BS21: 600000 | BT21: 213597 | BU21: 0 | BV21: 0.355995 | BW21: - | BX21: 653331 | BY21: 616621 | BZ21: 0 | CA21: 0.9438110238 | CB21: - | CC21: 601786 | CD21: 366196.854 | CE21: 0 | CF21: 0.6085167385 | CG21: - | CH21: 531786 | CI21: 318188.561 | CJ21: 0 | CK21: 0.5983394843 | CL21: - | CM21: 2386903 | CN21: 1514603.415 | CO21: 0 | CP21: 0.634547535 | CQ21: - | CR21: 16. Paz, justicia e instituciones sólidas | CS21: Fortalecimiento Institucional | CT21: Ofc. Prensa
AQ22: Implementar y mantener 1 estrategia de comunicaciones para difundir las acciones de la Administración Municipal y promover el debate público sobre temas de gobierno y de ciudad en la emisora cultural. | AR22: 0 | AS22: Número de estrategias de comunicación implementadas y mantenidas para difundir las acciones de la Administración Municipal y promover el debate público sobre temas de gobierno y de ciudad en la emisora cultural. | AT22: 0 | AU22: 1 | AV22: 1 | AW22: 0.25 | AX22: 1 | AY22: 0.25 | AZ22: 1 | BA22: 0.25 | BB22: 1 | BC22: 0.25 | BD22: 1 | BE22: 1 | BF22: 1 | BG22: 1 | BH22: 1 | BI22: 1 | BJ22: 1 | BK22: 1 | BL22: 1 | BM22: 1 | BN22: 1 | BO22: 1 | BP22: 1 | BQ22: 1 | BR22: 1 | BS22: 100000 | BT22: 0 | BU22: 0 | BV22: 0 | BW22: - | BX22: 0 | BY22: 0 | BZ22: 0 | CA22: - | CB22: - | CC22: 0 | CD22: 0 | CE22: 0 | CF22: - | CG22: - | CH22: 0 | CI22: 0 | CJ22: 0 | CK22: - | CL22: - | CM22: 100000 | CN22: 0 | CO22: 0 | CP22: 0 | CQ22: - | CR22: 16. Paz, justicia e instituciones sólidas | CS22: Fortalecimiento Institucional | CT22: Ofc. Prensa
AQ23: Convocar y realizar 40 ruedas de prensa por el despacho del Alcalde. | AR23: - | AS23: Número de ruedas de prensa convocadas y realizadas por el despacho del Alcalde. | AT23: 0 | AU23: 40 | AV23: 6 | AW23: 0.15 | AX23: 12 | AY23: 0.3 | AZ23: 12 | BA23: 0.3 | BB23: 10 | BC23: 0.25 | BD23: 31 | BE23: 45 | BF23: 36 | BG23: 22 | BH23: 5.166666667 | BI23: 1 | BJ23: 3.75 | BK23: 1 | BL23: 3 | BM23: 1 | BN23: 2.2 | BO23: 1 | BP23: =+SUM(BD23:BG23)/AU23 -> 3.35 | BQ23: 1 | BR23: 1 | BS23: 0 | BT23: 0 | BU23: 0 | BV23: - | BW23: - | BX23: 0 | BY23: 0 | BZ23: 0 | CA23: - | CB23: - | CC23: 0 | CD23: 0 | CE23: 0 | CF23: - | CG23: - | CH23: 0 | CI23: 0 | CJ23: 0 | CK23: - | CL23: - | CM23: 0 | CN23: 0 | CO23: 0 | CP23: - | CQ23: - | CR23: 16. Paz, justicia e instituciones sólidas | CS23: Fortalecimiento Institucional | CT23: Ofc. Prensa
AQ24: Implementar y mantener 1 estrategia de comunicación para promover la participación ciudadana sobre asuntos de interés públicos. | AR24: 0 | AS24: Número de estrategias de comunicación implementadas y mantenidas para promover la participación ciudadana sobre asuntos de interés públicos. | AT24: 0 | AU24: 1 | AV24: 1 | AW24: 0.25 | AX24: 1 | AY24: 0.25 | AZ24: 1 | BA24: 0.25 | BB24: 1 | BC24: 0.25 | BD24: 1 | BE24: 1 | BF24: 1 | BG24: 1 | BH24: 1 | BI24: 1 | BJ24: 1 | BK24: 1 | BL24: 1 | BM24: 1 | BN24: 1 | BO24: 1 | BP24: 1 | BQ24: 1 | BR24: 1 | BS24: 0 | BT24: 0 | BU24: 0 | BV24: - | BW24: - | BX24: 281600 | BY24: 281600 | BZ24: 0 | CA24: 1 | CB24: - | CC24: 74554 | CD24: 125771.52 | CE24: 0 | CF24: 1.686985541 | CG24: - | CH24: 124554 | CI24: 74554 | CJ24: 0 | CK24: 0.5985676895 | CL24: - | CM24: 480708 | CN24: 481925.52 | CO24: 0 | CP24: 1.002532764 | CQ24: - | CR24: 16. Paz, justicia e instituciones sólidas | CS24: Fortalecimiento Institucional | CT24: Ofc. Prensa
F25: Lograr una calificación de 80 sobre 100 en el componente de control y sanción en el Índice de Transparencia de las Entidades Públicas - ITEP. | G25: 62.4 | H25: 80 | I25: =+H25-G25 -> 17.6 | J25: 62.4 | K25: =+J25-G25 -> 0 | M25: 80 | N25: =+M25-J25 -> 17.6 | P25: 80 | Q25: =+P25-M25 -> 0 | S25: 80 | T25: =+S25-P25 -> 0 | V25: 65.1 | W25: =+IF(V25=0,0,V25-G25) -> 2.7 | X25: 65.1 | Y25: =+IF(X25=0,0,X25-V25) -> 0 | Z25: 65.1 | AA25: =+IF(Z25=0,0,Z25-X25) -> 0 | AC25: =+IF(AB25=0,0,AB25-Z25) -> 0 | AD25: =+IF(K25=0," -",W25/K25) -> - | AE25: =+IF(K25=0," -",IF(AD25>100%,100%,AD25)) -> - | AF25: =+IF(N25=0," -",Y25/N25) -> 0 | AG25: =+IF(N25=0," -",IF(AF25>100%,100%,AF25)) -> 0 | AH25: =+IF(Q25=0," -",AA25/Q25) -> - | AI25: =+IF(Q25=0," -",IF(AH25>100%,100%,AH25)) -> - | AJ25: =+IF(T25=0," -",AC25/T25) -> - | AK25: =+IF(T25=0," -",IF(AJ25>100%,100%,AJ25)) -> - | AL25: =+SUM(AC25,AA25,Y25,W25)/I25 -> 0.1534090909 | AM25: =+IF(AL25>100%,100%,IF(AL25<0%,0%,AL25)) -> 0.1534090909 | AQ25: Implementar y mantener 1 estrategia para la creación y promoción del Consejo Municipal de participación ciudadana. | AR25: 0 | AS25: Número de estrategias implementadas y mantenidas para la creación y promoción del Consejo Municipal de participación ciudadana. | AT25: 0 | AU25: 1 | AV25: 1 | AW25: 0.25 | AX25: 1 | AY25: 0.25 | AZ25: 1 | BA25: 0.25 | BB25: 1 | BC25: 0.25 | BD25: 0 | BE25: 1 | BF25: 1 | BG25: 1 | BH25: 0 | BI25: 0 | BJ25: 1 | BK25: 1 | BL25: 1 | BM25: 1 | BN25: 1 | BO25: 1 | BP25: 0.75 | BQ25: 0.75 | BR25: 0.75 | BS25: 0 | BT25: 0 | BU25: 0 | BV25: - | BW25: - | BX25: 0 | BY25: 0 | BZ25: 0 | CA25: - | CB25: - | CC25: 0 | CD25: 0 | CE25: 0 | CF25: - | CG25: - | CH25: 0 | CI25: 0 | CJ25: 0 | CK25: - | CL25: - | CM25: 0 | CN25: 0 | CO25: 0 | CP25: - | CQ25: - | CR25: 16. Paz, justicia e instituciones sólidas | CS25: Fortalecimiento Institucional | CT25: Sec. Desarrollo Social
AQ26: Implementar y mantener 1 estrategia para difundir la ley 1757 de 2015 y promover la apropiación por parte de la ciudadanía de los mecanismos allí establecidos. | AR26: 0 | AS26: Número de estrategias implementadas y mantenidas para difundir la ley 1757 de 2015 y promover la apropiación por parte de la ciudadanía de los mecanismos allí establecidos. | AT26: 0 | AU26: 1 | AV26: 1 | AW26: 0.25 | AX26: 1 | AY26: 0.25 | AZ26: 1 | BA26: 0.25 | BB26: 1 | BC26: 0.25 | BD26: 0 | BE26: 0.67 | BF26: 1 | BG26: 1 | BH26: 0 | BI26: 0 | BJ26: 0.67 | BK26: 0.67 | BL26: 1 | BM26: 1 | BN26: 1 | BO26: 1 | BP26: 0.6675 | BQ26: 0.6675 | BR26: 0.6675 | BS26: 0 | BT26: 0 | BU26: 0 | BV26: - | BW26: - | BX26: 0 | BY26: 0 | BZ26: 0 | CA26: - | CB26: - | CC26: 0 | CD26: 0 | CE26: 0 | CF26: - | CG26: - | CH26: 15000 | CI26: 10000 | CJ26: 0 | CK26: 0.6666666667 | CL26: - | CM26: 15000 | CN26: 10000 | CO26: 0 | CP26: 0.6666666667 | CQ26: - | CR26: 16. Paz, justicia e instituciones sólidas | CS26: Fortalecimiento Institucional | CT26: Sec. Desarrollo Social
AQ27: Implementar y mantener 1 estrategia de gobierno para la aplicación cabal de la ley 1757 de 2015 de participación ciudadana. | AR27: - | AS27: Número de estrategias de gobierno implementadas y mantenidas para la aplicación cabal de la ley 1757 de 2015 de participación ciudadana. | AT27: 0 | AU27: 1 | AV27: 1 | AW27: 0.25 | AX27: 1 | AY27: 0.25 | AZ27: 1 | BA27: 0.25 | BB27: 1 | BC27: 0.25 | BD27: 0 | BE27: 1 | BF27: 0.8 | BG27: 1 | BH27: 0 | BI27: 0 | BJ27: 1 | BK27: 1 | BL27: 0.8 | BM27: 0.8 | BN27: 1 | BO27: 1 | BP27: 0.7 | BQ27: 0.7 | BR27: 0.7 | BS27: 0 | BT27: 0 | BU27: 0 | BV27: - | BW27: - | BX27: 0 | BY27: 0 | BZ27: 0 | CA27: - | CB27: - | CC27: 0 | CD27: 0 | CE27: 0 | CF27: - | CG27: - | CH27: 15000 | CI27: 10000 | CJ27: 0 | CK27: 0.6666666667 | CL27: - | CM27: 15000 | CN27: 10000 | CO27: 0 | CP27: 0.6666666667 | CQ27: - | CR27: 16. Paz, justicia e instituciones sólidas | CS27: Fortalecimiento Institucional | CT27: Sec. Desarrollo Social
AQ28: Implementar y mantener 1 estrategia para la promoción y el fortalecimiento de las veedurías. | AR28: 0 | AS28: Número de estrategias implementadas y mantenidas para la promoción y el fortalecimiento de las veedurías. | AT28: 0 | AU28: 1 | AV28: 1 | AW28: 0.25 | AX28: 1 | AY28: 0.25 | AZ28: 1 | BA28: 0.25 | BB28: 1 | BC28: 0.25 | BD28: 0 | BE28: 0.5 | BF28: 1 | BG28: 1 | BH28: 0 | BI28: 0 | BJ28: 0.5 | BK28: 0.5 | BL28: 1 | BM28: 1 | BN28: 1 | BO28: 1 | BP28: 0.625 | BQ28: 0.625 | BR28: 0.625 | BS28: 0 | BT28: 0 | BU28: 0 | BV28: - | BW28: - | BX28: 0 | BY28: 0 | BZ28: 0 | CA28: - | CB28: - | CC28: 0 | CD28: 0 | CE28: 0 | CF28: - | CG28: - | CH28: 10000 | CI28: 10000 | CJ28: 0 | CK28: 1 | CL28: - | CM28: 10000 | CN28: 10000 | CO28: 0 | CP28: 1 | CQ28: - | CR28: 16. Paz, justicia e instituciones sólidas | CS28: Fortalecimiento Institucional | CT28: Sec. Desarrollo Social
AQ29: Implementar y mantener 1 estrategia para el fortalecimiento del Consejo Municipal de Desarrollo Rural. | AR29: 0 | AS29: Número de estrategias implementadas y mantenidas para el fortalecimiento del Consejo Municipal de Desarrollo Rural. | AT29: 1 | AU29: 1 | AV29: 1 | AW29: 0.25 | AX29: 1 | AY29: 0.25 | AZ29: 1 | BA29: 0.25 | BB29: 1 | BC29: 0.25 | BD29: 1 | BE29: 0.5 | BF29: 0 | BG29: 1 | BH29: 1 | BI29: 1 | BJ29: 0.5 | BK29: 0.5 | BL29: 0 | BM29: 0 | BN29: 1 | BO29: 1 | BP29: 0.625 | BQ29: 0.625 | BR29: 0.625 | BS29: 0 | BT29: 0 | BU29: 0 | BV29: - | BW29: - | BX29: 0 | BY29: 0 | BZ29: 0 | CA29: - | CB29: - | CC29: 0 | CD29: 0 | CE29: 0 | CF29: - | CG29: - | CH29: 0 | CI29: 0 | CJ29: 0 | CK29: - | CL29: - | CM29: 0 | CN29: 0 | CO29: 0 | CP29: - | CQ29: - | CR29: 16. Paz, justicia e instituciones sólidas | CS29: Fortalecimiento Institucional | CT29: Sec. Desarrollo Social
AQ30: Crear 1 cargo del nivel directivo o asesor para que la coordinación de los asuntos de prensa y comunicaciones (Jefe de Prensa). | AR30: - | AS30: Número de cargos creados para la coordinación de los asuntos de prensa y comunicaciones (Jefe de prensa) | AT30: 0 | AU30: 1 | AV30: 0 | AW30: 0 | AX30: 1 | AY30: 1 | AZ30: 0 | BA30: 0 | BB30: 0 | BC30: 0 | BD30: 0 | BE30: 0 | BF30: 0 | BG30: 0 | BH30: - | BI30: - | BJ30: 0 | BK30: 0 | BL30: - | BM30: - | BN30: - | BO30: - | BP30: =+SUM(BD30:BG30)/AU30 -> 0 | BQ30: 0 | BR30: 0 | BS30: 0 | BT30: 0 | BU30: 0 | BV30: - | BW30: - | BX30: 0 | BY30: 0 | BZ30: 0 | CA30: - | CB30: - | CC30: 0 | CD30: 0 | CE30: 0 | CF30: - | CG30: - | CH30: 0 | CI30: 0 | CJ30: 0 | CK30: - | CL30: - | CM30: 0 | CN30: 0 | CO30: 0 | CP30: - | CQ30: - | CR30: 16. Paz, justicia e instituciones sólidas | CS30: Fortalecimiento Institucional | CT30: Sec. Administrativa
AQ31: Crear 1 cargo del nivel directivo y/o asesor adscrito al despacho del Alcalde como encargado de asuntos de participación ciudadana. | AR31: - | AS31: Número de cargos del nivel directivo y/o asesor adscritos al despacho del Alcalde como encargado de asuntos de participación ciudadana. | AT31: 0 | AU31: 1 | AV31: 0 | AW31: 0 | AX31: 1 | AY31: 1 | AZ31: 0 | BA31: 0 | BB31: 0 | BC31: 0 | BD31: 0 | BE31: 0 | BF31: 0 | BG31: 0 | BH31: - | BI31: - | BJ31: 0 | BK31: 0 | BL31: - | BM31: - | BN31: - | BO31: - | BP31: =+SUM(BD31:BG31)/AU31 -> 0 | BQ31: 0 | BR31: 0 | BS31: 0 | BT31: 0 | BU31: 0 | BV31: - | BW31: - | BX31: 0 | BY31: 0 | BZ31: 0 | CA31: - | CB31: - | CC31: 0 | CD31: 0 | CE31: 0 | CF31: - | CG31: - | CH31: 0 | CI31: 0 | CJ31: 0 | CK31: - | CL31: - | CM31: 0 | CN31: 0 | CO31: 0 | CP31: - | CQ31: - | CR31: 16. Paz, justicia e instituciones sólidas | CS31: Fortalecimiento Institucional | CT31: Sec. Administrativa
AQ32: Convocar y realizar 48 conversatorios con organizaciones sociales, organizaciones políticas, periodísticas o grupos de líderes de opinión para discutir asuntos del gobierno y la ciudad. | AR32: 2210289 | AS32: Número de conversatorios convocados y realizados con organizaciones sociales, organizaciones políticas, periodísticas o grupos de líderes de opinión para discutir asuntos del gobierno y la ciudad. | AT32: 0 | AU32: 48 | AV32: 4 | AW32: 0.08333333333 | AX32: 15 | AY32: 0.3125 | AZ32: 14 | BA32: 0.2916666667 | BB32: 15 | BC32: 0.3125 | BD32: 3 | BE32: 19 | BF32: 20 | BG32: 45 | BH32: 0.75 | BI32: 0.75 | BJ32: 1.266666667 | BK32: 1 | BL32: 1.428571429 | BM32: 1 | BN32: 3 | BO32: 1 | BP32: =+SUM(BD32:BG32)/AU32 -> 1.8125 | BQ32: 1 | BR32: 1 | BS32: 0 | BT32: 0 | BU32: 0 | BV32: - | BW32: - | BX32: 0 | BY32: 0 | BZ32: 0 | CA32: - | CB32: - | CC32: 46500 | CD32: 46500 | CE32: 0 | CF32: 1 | CG32: - | CH32: 4200 | CI32: 4200 | CJ32: 0 | CK32: 1 | CL32: - | CM32: 50700 | CN32: 50700 | CO32: 0 | CP32: 1 | CQ32: - | CR32: 16. Paz, justicia e instituciones sólidas | CS32: Fortalecimiento Institucional | CT32: Sec. Interior
AQ33: Implementar y mantener 1 sección en la página web institucional para informar sobre los debates, las relaciones y los acuerdos con el Concejo e interactuar con la ciudadanía. | AR33: - | AS33: Número de secciones implementadas y mantenidas en la página web institucional para informar sobre los debates, las relaciones y los acuerdos con el Concejo e interactuar con la ciudadanía. | AT33: 0 | AU33: 1 | AV33: 0 | AW33: 0 | AX33: 1 | AY33: 0.33 | AZ33: 1 | BA33: 0.33 | BB33: 1 | BC33: 0.34 | BD33: 0.33 | BE33: 1 | BF33: 1 | BG33: 1 | BH33: - | BI33: - | BJ33: 1 | BK33: 1 | BL33: 1 | BM33: 1 | BN33: 1 | BO33: 1 | BP33: =+AVERAGE(BE33:BG33)/AU33 -> 1 | BQ33: 1 | BR33: 1 | BS33: 0 | BT33: 0 | BU33: 0 | BV33: - | BW33: - | BX33: 0 | BY33: 0 | BZ33: 0 | CA33: - | CB33: - | CC33: 0 | CD33: 0 | CE33: 0 | CF33: - | CG33: - | CH33: 0 | CI33: 0 | CJ33: 0 | CK33: - | CL33: - | CM33: 0 | CN33: 0 | CO33: 0 | CP33: - | CQ33: - | CR33: 16. Paz, justicia e instituciones sólidas | CS33: Fortalecimiento Institucional | CT33: Asesor TIC
AQ34: Implementar y mantener 1 sección en la página web institucional para que la ciudadanía pueda compartir textos, imágenes, audios y videos sobre condiciones y problemas de la ciudad o propuestas de política. | AR34: - | AS34: Número de secciones implementadas y mantenidas en la página web institucional para que la ciudadanía pueda compartir textos, imágenes, audios y videos sobre condiciones y problemas de la ciudad o propuestas de política. | AT34: 0 | AU34: 1 | AV34: 0 | AW34: 0 | AX34: 1 | AY34: 0.33 | AZ34: 1 | BA34: 0.33 | BB34: 1 | BC34: 0.34 | BD34: 0.5 | BE34: 1 | BF34: 1 | BG34: 1 | BH34: - | BI34: - | BJ34: 1 | BK34: 1 | BL34: 1 | BM34: 1 | BN34: 1 | BO34: 1 | BP34: 0.875 | BQ34: 0.875 | BR34: 0.875 | BS34: 0 | BT34: 0 | BU34: 0 | BV34: - | BW34: - | BX34: 0 | BY34: 0 | BZ34: 0 | CA34: - | CB34: - | CC34: 0 | CD34: 0 | CE34: 0 | CF34: - | CG34: - | CH34: 0 | CI34: 0 | CJ34: 0 | CK34: - | CL34: - | CM34: 0 | CN34: 0 | CO34: 0 | CP34: - | CQ34: - | CR34: 16. Paz, justicia e instituciones sólidas | CS34: Fortalecimiento Institucional | CT34: Asesor TIC
AO35: =+RESUMEN!J13 -> 0.9225 | AP35: INSTITUCIONES DEMOCRÁTICAS DE BASE FORTALECIDAS E INCLUYENTES | AQ35: Beneficiar al 100% de los ediles con pago de EPS, Pensión, ARL y póliza de vida. | AR35: 2210216 | AS35: Porcentaje de ediles beneficiados con pago de EPS, Pensión, ARL y póliza de vida. | AT35: 1 | AU35: 1 | AV35: 1 | AW35: 0.25 | AX35: 1 | AY35: 0.25 | AZ35: 1 | BA35: 0.25 | BB35: 1 | BC35: 0.25 | BD35: 1 | BE35: 1 | BF35: 1 | BG35: 1 | BH35: 1 | BI35: 1 | BJ35: 1 | BK35: 1 | BL35: 1 | BM35: 1 | BN35: 1 | BO35: 1 | BP35: 1 | BQ35: 1 | BR35: 1 | BS35: 500000 | BT35: 483730 | BU35: 0 | BV35: 0.96746 | BW35: - | BX35: 497805 | BY35: 496218 | BZ35: 0 | CA35: 0.9968120047 | CB35: - | CC35: 752481 | CD35: 752489 | CE35: 0 | CF35: 1.000010631 | CG35: - | CH35: 404392 | CI35: 341427 | CJ35: 0 | CK35: 0.8442971176 | CL35: - | CM35: 2154678 | CN35: 2073864 | CO35: 0 | CP35: 0.9624936998 | CQ35: - | CR35: 16. Paz, justicia e instituciones sólidas | CS35: Fortalecimiento Institucional | CT35: Sec. Desarrollo Social
AQ36: Implementar y mantener 1 estrategia para fortalecer la Unidad de Desarrollo Comunitario - UNDECO. | AR36: 2210706 | AS36: Número de estrategias implementadas y mantenidas para fortalecer la Unidad de Desarrollo Comunitario - UNDECO. | AT36: 1 | AU36: 1 | AV36: 1 | AW36: 0.25 | AX36: 1 | AY36: 0.25 | AZ36: 1 | BA36: 0.25 | BB36: 1 | BC36: 0.25 | BD36: 1 | BE36: 1 | BF36: 1 | BG36: 1 | BH36: 1 | BI36: 1 | BJ36: 1 | BK36: 1 | BL36: 1 | BM36: 1 | BN36: 1 | BO36: 1 | BP36: 1 | BQ36: 1 | BR36: 1 | BS36: 300000 | BT36: 246783 | BU36: 0 | BV36: 0.82261 | BW36: - | BX36: 494004 | BY36: 479089 | BZ36: 0 | CA36: 0.9698079368 | CB36: - | CC36: 2259200 | CD36: 2232872 | CE36: 0 | CF36: 0.9883463173 | CG36: - | CH36: 1885404 | CI36: 1671852 | CJ36: 0 | CK36: 0.8867340899 | CL36: - | CM36: 4938608 | CN36: 4630596 | CO36: 0 | CP36: 0.9376318185 | CQ36: - | CR36: 16. Paz, justicia e instituciones sólidas | CS36: Desarrollo Comunitario | CT36: Sec. Desarrollo Social
AQ37: Realizar ejercicios de participación y construcción del territorio con 100 Juntas de Acción Comunal - JAC. | AR37: 2210706 | AS37: Número de Juntas de Acción Comunal - JAC que participan en ejercicios de construcción del territorio. | AT37: 0 | AU37: 100 | AV37: 25 | AW37: 0.25 | AX37: 25 | AY37: 0.25 | AZ37: 25 | BA37: 0.25 | BB37: 25 | BC37: 0.25 | BD37: 55 | BE37: 35 | BF37: 25 | BG37: 58 | BH37: 2.2 | BI37: 1 | BJ37: 1.4 | BK37: 1 | BL37: 1 | BM37: 1 | BN37: 2.32 | BO37: 1 | BP37: =+SUM(BD37:BG37)/AU37 -> 1.73 | BQ37: 1 | BR37: 1 | BS37: 35000 | BT37: 15000 | BU37: 0 | BV37: 0.4285714286 | BW37: - | BX37: 0 | BY37: 0 | BZ37: 0 | CA37: - | CB37: - | CC37: 0 | CD37: 0 | CE37: 0 | CF37: - | CG37: - | CH37: 322456 | CI37: 322456 | CJ37: 0 | CK37: 1 | CL37: - | CM37: 357456 | CN37: 337456 | CO37: 0 | CP37: 0.9440490578 | CQ37: - | CR37: 16. Paz, justicia e instituciones sólidas | CS37: Desarrollo Comunitario | CT37: Sec. Desarrollo Social
F38: Lograr que el 60% de los ciudadanos confíe en la gestión del Alcalde/Gobierno Municipal de acuerdo a la encuesta Cómo Vamos. | G38: 0.3 | H38: 0.6 | I38: =+H38-G38 -> 0.3 | J38: 0.4 | K38: =+J38-G38 -> 0.1 | M38: 0.5 | N38: =+M38-J38 -> 0.1 | P38: 0.6 | Q38: =+P38-M38 -> 0.1 | S38: 0.6 | T38: =+S38-P38 -> 0 | V38: 0.3 | W38: =+IF(V38=0,0,V38-G38) -> 0 | X38: 0.66 | Y38: =+IF(X38=0,0,X38-V38) -> 0.36 | Z38: 0.55 | AA38: =+IF(Z38=0,0,Z38-X38) -> -0.11 | AC38: =+IF(AB38=0,0,AB38-Z38) -> 0 | AD38: =+IF(K38=0," -",W38/K38) -> 0 | AE38: =+IF(K38=0," -",IF(AD38>100%,100%,AD38)) -> 0 | AF38: =+IF(N38=0," -",Y38/N38) -> 3.6 | AG38: =+IF(N38=0," -",IF(AF38>100%,100%,AF38)) -> 1 | AH38: =+IF(Q38=0," -",AA38/Q38) -> -1.1 | AI38: =+IF(Q38=0," -",IF(AH38>100%,100%,AH38)) -> -1.1 | AJ38: =+IF(T38=0," -",AC38/T38) -> - | AK38: =+IF(T38=0," -",IF(AJ38>100%,100%,AJ38)) -> - | AL38: =+SUM(AC38,AA38,Y38,W38)/I38 -> 0.8333333333 | AM38: =+IF(AL38>100%,100%,IF(AL38<0%,0%,AL38)) -> 0.8333333333 | AQ38: Implementar y mantener la estrategia "Voces de los comuneros". | AR38: - | AS38: Número de estrategias "Voces de los comuneros" implementadas y mantenidas. | AT38: 0 | AU38: 1 | AV38: 1 | AW38: 0.25 | AX38: 1 | AY38: 0.25 | AZ38: 1 | BA38: 0.25 | BB38: 1 | BC38: 0.25 | BD38: 1 | BE38: 1 | BF38: 1 | BG38: 1 | BH38: 1 | BI38: 1 | BJ38: 1 | BK38: 1 | BL38: 1 | BM38: 1 | BN38: 1 | BO38: 1 | BP38: 1 | BQ38: 1 | BR38: 1 | BS38: 0 | BT38: 0 | BU38: 0 | BV38: - | BW38: - | BX38: 0 | BY38: 0 | BZ38: 0 | CA38: - | CB38: - | CC38: 0 | CD38: 0 | CE38: 0 | CF38: - | CG38: - | CH38: 21400 | CI38: 15000 | CJ38: 0 | CK38: 0.7009345794 | CL38: - | CM38: 21400 | CN38: 15000 | CO38: 0 | CP38: 0.7009345794 | CQ38: - | CR38: 16. Paz, justicia e instituciones sólidas | CS38: Justicia y Seguridad | CT38: Sec. Desarrollo Social
AQ39: Realizar 2 actividades de dotación para ediles con el fin de apoyar su ejercicio democrático. | AR39: 2210706 | AS39: Número de actividades de dotación realizadas para ediles con el fin de apoyar su ejercicio democrático. | AT39: 1 | AU39: 2 | AV39: 0 | AW39: 0 | AX39: 1 | AY39: 0.5 | AZ39: 1 | BA39: 0.5 | BB39: 0 | BC39: 0 | BD39: 0 | BE39: 3 | BF39: 0 | BG39: 0 | BH39: - | BI39: - | BJ39: 3 | BK39: 1 | BL39: 0 | BM39: 0 | BN39: - | BO39: - | BP39: =+SUM(BD39:BG39)/AU39 -> 1.5 | BQ39: 1 | BR39: 1 | BS39: 0 | BT39: 0 | BU39: 0 | BV39: - | BW39: - | BX39: 30940 | BY39: 9638 | BZ39: 0 | CA39: 0.3115061409 | CB39: - | CC39: 0 | CD39: 0 | CE39: 0 | CF39: - | CG39: - | CH39: 0 | CI39: 0 | CJ39: 0 | CK39: - | CL39: - | CM39: 30940 | CN39: 9638 | CO39: 0 | CP39: 0.3115061409 | CQ39: - | CR39: 16. Paz, justicia e instituciones sólidas | CS39: Desarrollo Comunitario | CT39: Sec. Desarrollo Social
AQ40: Realizar 4 concursos "embellece tu barrio". | AR40: 2210706 | AS40: Número de concursos "embellece tu barrio" realizados. | AT40: 0 | AU40: 4 | AV40: 0 | AW40: 0 | AX40: 1 | AY40: 0.25 | AZ40: 1 | BA40: 0.25 | BB40: 2 | BC40: 0.5 | BD40: 0 | BE40: 0 | BF40: 0 | BG40: 2 | BH40: - | BI40: - | BJ40: 0 | BK40: 0 | BL40: 0 | BM40: 0 | BN40: 1 | BO40: 1 | BP40: =+SUM(BD40:BG40)/AU40 -> 0.5 | BQ40: 0.5 | BR40: 0.5 | BS40: 30000 | BT40: 0 | BU40: 0 | BV40: 0 | BW40: - | BX40: 0 | BY40: 0 | BZ40: 0 | CA40: - | CB40: - | CC40: 0 | CD40: 0 | CE40: 0 | CF40: - | CG40: - | CH40: 0 | CI40: 0 | CJ40: 0 | CK40: - | CL40: - | CM40: 30000 | CN40: 0 | CO40: 0 | CP40: 0 | CQ40: - | CR40: 13. Acción por el clima | CS40: Ambiental | CT40: Sec. Desarrollo Social
AQ41: Brindar 10.000 entradas gratuitas a ediles, dignatarios y afiliados de las JAL y JAC a espacios de recreación y cultura. | AR41: 2210706 | AS41: Número de entradas gratuitas brindadas a ediles, dignatarios y afiliados de las JAL y JAC a espacios de recreación y cultura. | AT41: 0 | AU41: 10000 | AV41: 2500 | AW41: 0.25 | AX41: 2500 | AY41: 0.25 | AZ41: 2500 | BA41: 0.25 | BB41: 2500 | BC41: 0.25 | BD41: 4200 | BE41: 6500 | BF41: 25800 | BG41: 25974 | BH41: 1.68 | BI41: 1 | BJ41: 2.6 | BK41: 1 | BL41: 10.32 | BM41: 1 | BN41: 10.3896 | BO41: 1 | BP41: 6.2474 | BQ41: 1 | BR41: 1 | BS41: 21000 | BT41: 21000 | BU41: 6300 | BV41: 1 | BW41: 0.3 | BX41: 30000 | BY41: 30000 | BZ41: 0 | CA41: 1 | CB41: - | CC41: 40000 | CD41: 39996 | CE41: 17141 | CF41: 0.9999 | CG41: 0.4285678568 | CH41: 140000 | CI41: 140000 | CJ41: 60000 | CK41: 1 | CL41: 0.4285714286 | CM41: 231000 | CN41: 230996 | CO41: 83441 | CP41: 0.999982684 | CQ41: 0.3612227052 | CR41: 16. Paz, justicia e instituciones sólidas | CS41: Desarrollo Comunitario | CT41: Sec. Desarrollo Social
AQ42: Realizar 80 reuniones en el territorio con Juntas Administradoras Locales - JAL para discutir política pública y problemas de la comunidad. | AR42: 2210706 | AS42: Número de reuniones realizadas en el territorio con Juntas Administradoras Locales - JAL para discutir política pública y problemas de la comunidad. | AT42: 0 | AU42: 80 | AV42: 20 | AW42: 0.25 | AX42: 20 | AY42: 0.25 | AZ42: 20 | BA42: 0.25 | BB42: 20 | BC42: 0.25 | BD42: 20 | BE42: 19 | BF42: 4 | BG42: 13 | BH42: 1 | BI42: 1 | BJ42: 0.95 | BK42: 0.95 | BL42: 0.2 | BM42: 0.2 | BN42: 0.65 | BO42: 0.65 | BP42: 0.7 | BQ42: 0.7 | BR42: 0.7 | BS42: 20000 | BT42: 0 | BU42: 0 | BV42: 0 | BW42: - | BX42: 0 | BY42: 0 | BZ42: 0 | CA42: - | CB42: - | CC42: 0 | CD42: 0 | CE42: 0 | CF42: - | CG42: - | CH42: 20000 | CI42: 20000 | CJ42: 0 | CK42: 1 | CL42: - | CM42: 40000 | CN42: 20000 | CO42: 0 | CP42: 0.5 | CQ42: - | CR42: 16. Paz, justicia e instituciones sólidas | CS42: Desarrollo Comunitario | CT42: Sec. Desarrollo Social
AQ43: Desarrollar 1 estrategia para la formación de los conciliadores de las JAC que promuevan una cultura de trasformación de los conflictos cotidianos en la comunidad para disminuir los índices de violencia por intolerancia social. | AR43: - | AS43: Número de estrategias desarrolladas para la formación de los conciliadores de las JAC que promuevan una cultura de trasformación de los conflictos cotidianos en la comunidad para disminuir los índices de violencia por intolerancia social. | AT43: 0 | AU43: 1 | AV43: 0 | AW43: 0 | AX43: 1 | AY43: 1 | AZ43: 0 | BA43: 0 | BB43: 0 | BC43: 0 | BD43: 1 | BE43: 1 | BF43: 5 | BG43: 5 | BH43: - | BI43: - | BJ43: 1 | BK43: 1 | BL43: - | BM43: - | BN43: - | BO43: - | BP43: 12 | BQ43: 1 | BR43: 1 | BS43: 0 | BT43: 0 | BU43: 0 | BV43: - | BW43: - | BX43: 0 | BY43: 0 | BZ43: 0 | CA43: - | CB43: - | CC43: 0 | CD43: 0 | CE43: 0 | CF43: - | CG43: - | CH43: 0 | CI43: 0 | CJ43: 0 | CK43: - | CL43: - | CM43: 0 | CN43: 0 | CO43: 0 | CP43: - | CQ43: - | CR43: 16. Paz, justicia e instituciones sólidas | CS43: Desarrollo Comunitario | CT43: Sec. Desarrollo Social
AQ44: Realizar 8 actividades para el fortalecimiento del Consejo Territorial de Planeación. | AR44: 2210842 | AS44: Número de actividades realizadas para el fortalecimiento del Consejo Territorial de Planeación. | AT44: 0 | AU44: 8 | AV44: 1 | AW44: 0.125 | AX44: 3 | AY44: 0.375 | AZ44: 2 | BA44: 0.25 | BB44: 2 | BC44: 0.25 | BD44: 1 | BE44: 3 | BF44: 2 | BG44: 1 | BH44: 1 | BI44: 1 | BJ44: 1 | BK44: 1 | BL44: 1 | BM44: 1 | BN44: 0.5 | BO44: 0.5 | BP44: 0.875 | BQ44: 0.875 | BR44: 0.875 | BS44: 33500 | BT44: 23650 | BU44: 0 | BV44: 0.7059701493 | BW44: - | BX44: 169800 | BY44: 169800 | BZ44: 270000 | CA44: 1 | CB44: 1.590106007 | CC44: 17000 | CD44: 17000 | CE44: 0 | CF44: 1 | CG44: - | CH44: 28000 | CI44: 17000 | CJ44: 0 | CK44: 0.6071428571 | CL44: - | CM44: 248300 | CN44: 227450 | CO44: 270000 | CP44: 0.9160289972 | CQ44: 1.187074082 | CR44: 16. Paz, justicia e instituciones sólidas | CS44: Desarrollo Comunitario | CT44: Sec. Planeación
AQ45: Construir o adecuar 1 espacio de trabajo con equipamiento para ediles. | AR45: - | AS45: Número de espacios de trabajo construidos o adecuados con equipamiento para ediles. | AT45: 0 | AU45: 1 | AV45: 0 | AW45: 0 | AX45: 1 | AY45: 1 | AZ45: 0 | BA45: 0 | BB45: 0 | BC45: 0 | BD45: 0 | BE45: 1 | BF45: 0 | BG45: 0 | BH45: - | BI45: - | BJ45: 1 | BK45: 1 | BL45: - | BM45: - | BN45: - | BO45: - | BP45: 1 | BQ45: 1 | BR45: 1 | BS45: 0 | BT45: 0 | BU45: 0 | BV45: - | BW45: - | BX45: 39156 | BY45: 39156 | BZ45: 0 | CA45: 1 | CB45: - | CC45: 0 | CD45: 0 | CE45: 0 | CF45: - | CG45: - | CH45: 0 | CI45: 0 | CJ45: 0 | CK45: - | CL45: - | CM45: 39156 | CN45: 39156 | CO45: 0 | CP45: 1 | CQ45: - | CR45: 16. Paz, justicia e instituciones sólidas | CS45: Desarrollo Comunitario | CT45: Sec. Desarrollo Social
AQ46: Implementar y mantener 1 plataforma de interacción, registro de información y visibilización en línea para Juntas de Acción Comunal, Juntas Administradoras Locales y comités de desarrollo y control social. | AR46: - | AS46: Número de plataformas de interacción, registro de información y visibilización en línea implementadas y mantenidas para Juntas de Acción Comunal, Juntas Administradoras Locales y comités de desarrollo y control social. | AT46: 0 | AU46: 1 | AV46: 1 | AW46: 0.25 | AX46: 1 | AY46: 0.25 | AZ46: 1 | BA46: 0.25 | BB46: 1 | BC46: 0.25 | BD46: 1 | BE46: 1 | BF46: 1 | BG46: 1 | BH46: 1 | BI46: 1 | BJ46: 1 | BK46: 1 | BL46: 1 | BM46: 1 | BN46: 1 | BO46: 1 | BP46: 1 | BQ46: 1 | BR46: 1 | BS46: 0 | BT46: 0 | BU46: 0 | BV46: - | BW46: - | BX46: 0 | BY46: 0 | BZ46: 0 | CA46: - | CB46: - | CC46: 0 | CD46: 0 | CE46: 0 | CF46: - | CG46: - | CH46: 0 | CI46: 0 | CJ46: 0 | CK46: - | CL46: - | CM46: 0 | CN46: 0 | CO46: 0 | CP46: - | CQ46: - | CR46: 16. Paz, justicia e instituciones sólidas | CS46: Desarrollo Comunitario | CT46: Asesor TIC
AQ47: Mantener el acompañamiento y/o asesoría al 100% de los comites de desarrollo y control social que lo requieran. | AR47: - | AS47: Porcentaje de comités de desarrollo y control social con el acompañamiento según lo requerido. | AT47: 1 | AU47: 1 | AV47: 1 | AW47: 0.25 | AX47: 1 | AY47: 0.25 | AZ47: 1 | BA47: 0.25 | BB47: 1 | BC47: 0.25 | BD47: 1 | BE47: 1 | BF47: 1 | BG47: 0.67 | BH47: 1 | BI47: 1 | BJ47: 1 | BK47: 1 | BL47: 1 | BM47: 1 | BN47: 0.67 | BO47: 0.67 | BP47: 0.9175 | BQ47: 0.9175 | BR47: 0.9175 | BS47: 0 | BT47: 0 | BU47: 0 | BV47: - | BW47: - | BX47: 0 | BY47: 0 | BZ47: 0 | CA47: - | CB47: - | CC47: 0 | CD47: 0 | CE47: 0 | CF47: - | CG47: - | CH47: 0 | CI47: 0 | CJ47: 0 | CK47: - | CL47: - | CM47: 0 | CN47: 0 | CO47: 0 | CP47: - | CQ47: - | CR47: 16. Paz, justicia e instituciones sólidas | CS47: Fortalecimiento Institucional | CT47: UTSP
AO48: =+RESUMEN!J14 -> 0.9285714286 | AP48: RENDICIÓN DE CUENTAS PERMANENTE E INTERACTIVA | AQ48: Mantener 1 sección en línea y actualizada sobre los planes anti-corrupción y su cumplimiento. | AR48: - | AS48: Número de secciones mantenidas en línea y actualizada sobre los planes anti-corrupción y su cumplimiento. | AT48: 1 | AU48: 1 | AV48: 1 | AW48: 0.25 | AX48: 1 | AY48: 0.25 | AZ48: 1 | BA48: 0.25 | BB48: 1 | BC48: 0.25 | BD48: 1 | BE48: 1 | BF48: 1 | BG48: 1 | BH48: 1 | BI48: 1 | BJ48: 1 | BK48: 1 | BL48: 1 | BM48: 1 | BN48: 1 | BO48: 1 | BP48: 1 | BQ48: 1 | BR48: 1 | BS48: 0 | BT48: 0 | BU48: 0 | BV48: - | BW48: - | BX48: 0 | BY48: 0 | BZ48: 0 | CA48: - | CB48: - | CC48: 0 | CD48: 0 | CE48: 0 | CF48: - | CG48: - | CH48: 0 | CI48: 0 | CJ48: 0 | CK48: - | CL48: - | CM48: 0 | CN48: 0 | CO48: 0 | CP48: - | CQ48: - | CR48: 16. Paz, justicia e instituciones sólidas | CS48: Fortalecimiento Institucional | CT48: Asesor TIC
AQ49: Implementar y mantener 1 sección en línea y actualizada de los planes de compras y adquisiciones y su ejecución. | AR49: - | AS49: Número de secciones implementadas y mantenidas en línea y actualizada de los planes de compras y adquisiciones y su ejecución. | AT49: 1 | AU49: 1 | AV49: 1 | AW49: 0.25 | AX49: 1 | AY49: 0.25 | AZ49: 1 | BA49: 0.25 | BB49: 1 | BC49: 0.25 | BD49: 1 | BE49: 1 | BF49: 1 | BG49: 1 | BH49: 1 | BI49: 1 | BJ49: 1 | BK49: 1 | BL49: 1 | BM49: 1 | BN49: 1 | BO49: 1 | BP49: 1 | BQ49: 1 | BR49: 1 | BS49: 0 | BT49: 0 | BU49: 0 | BV49: - | BW49: - | BX49: 0 | BY49: 0 | BZ49: 0 | CA49: - | CB49: - | CC49: 0 | CD49: 0 | CE49: 0 | CF49: - | CG49: - | CH49: 0 | CI49: 0 | CJ49: 0 | CK49: - | CL49: - | CM49: 0 | CN49: 0 | CO49: 0 | CP49: - | CQ49: - | CR49: 16. Paz, justicia e instituciones sólidas | CS49: Fortalecimiento Institucional | CT49: Asesor TIC
AQ50: Mantener 1 sección en línea y actualizada sobre el Plan de Desarrollo y su ejecución. | AR50: - | AS50: Número de secciones mantenidas en línea y actualizada sobre el Plan de Desarrollo y su ejecución. | AT50: 1 | AU50: 1 | AV50: 1 | AW50: 0.25 | AX50: 1 | AY50: 0.25 | AZ50: 1 | BA50: 0.25 | BB50: 1 | BC50: 0.25 | BD50: 1 | BE50: 1 | BF50: 1 | BG50: 1 | BH50: 1 | BI50: 1 | BJ50: 1 | BK50: 1 | BL50: 1 | BM50: 1 | BN50: 1 | BO50: 1 | BP50: 1 | BQ50: 1 | BR50: 1 | BS50: 0 | BT50: 0 | BU50: 0 | BV50: - | BW50: - | BX50: 0 | BY50: 0 | BZ50: 0 | CA50: - | CB50: - | CC50: 0 | CD50: 0 | CE50: 0 | CF50: - | CG50: - | CH50: 0 | CI50: 0 | CJ50: 0 | CK50: - | CL50: - | CM50: 0 | CN50: 0 | CO50: 0 | CP50: - | CQ50: - | CR50: 16. Paz, justicia e instituciones sólidas | CS50: Fortalecimiento Institucional | CT50: Asesor TIC
F51: Lograr que el 60% de los ciudadanos considere que la Alcaldía es transparente en sus actividades de acuerdo a encuesta Cómo Vamos. | G51: 0.14 | H51: 0.6 | I51: =+H51-G51 -> 0.46 | J51: 0.3 | K51: =+J51-G51 -> 0.16 | M51: 0.4 | N51: =+M51-J51 -> 0.1 | P51: 0.5 | Q51: =+P51-M51 -> 0.1 | S51: 0.6 | T51: =+S51-P51 -> 0.1 | V51: 0.37 | W51: =+IF(V51=0,0,V51-G51) -> 0.23 | X51: 0.37 | Y51: =+IF(X51=0,0,X51-V51) -> 0 | Z51: 0.37 | AA51: =+IF(Z51=0,0,Z51-X51) -> 0 | AC51: =+IF(AB51=0,0,AB51-Z51) -> 0 | AD51: =+IF(K51=0," -",W51/K51) -> 1.4375 | AE51: =+IF(K51=0," -",IF(AD51>100%,100%,AD51)) -> 1 | AF51: =+IF(N51=0," -",Y51/N51) -> 0 | AG51: =+IF(N51=0," -",IF(AF51>100%,100%,AF51)) -> 0 | AH51: =+IF(Q51=0," -",AA51/Q51) -> 0 | AI51: =+IF(Q51=0," -",IF(AH51>100%,100%,AH51)) -> 0 | AJ51: =+IF(T51=0," -",AC51/T51) -> 0 | AK51: =+IF(T51=0," -",IF(AJ51>100%,100%,AJ51)) -> 0 | AL51: =+SUM(AC51,AA51,Y51,W51)/I51 -> 0.5 | AM51: =+IF(AL51>100%,100%,IF(AL51<0%,0%,AL51)) -> 0.5 | AQ51: Implementar y mantener 1 sección en línea y actualizada para que la ciudadanía pueda seguir la ejecución y los costos de las obras de infraestructura. | AR51: - | AS51: Número de secciones implementadas y mantenidas en línea y actualizada para que la ciudadanía pueda seguir la ejecución y los costos de las obras de infraestructura. | AT51: 0 | AU51: 1 | AV51: 0 | AW51: 0 | AX51: 1 | AY51: 0.33 | AZ51: 1 | BA51: 0.33 | BB51: 1 | BC51: 0.34 | BD51: 0 | BE51: 1 | BF51: 1 | BG51: 1 | BH51: - | BI51: - | BJ51: 1 | BK51: 1 | BL51: 1 | BM51: 1 | BN51: 1 | BO51: 1 | BP51: =+AVERAGE(BE51:BG51)/AU51 -> 1 | BQ51: 1 | BR51: 1 | BS51: 0 | BT51: 0 | BU51: 0 | BV51: - | BW51: - | BX51: 0 | BY51: 0 | BZ51: 0 | CA51: - | CB51: - | CC51: 0 | CD51: 0 | CE51: 0 | CF51: - | CG51: - | CH51: 0 | CI51: 0 | CJ51: 0 | CK51: - | CL51: - | CM51: 0 | CN51: 0 | CO51: 0 | CP51: - | CQ51: - | CR51: 16. Paz, justicia e instituciones sólidas | CS51: Fortalecimiento Institucional | CT51: Asesor TIC
AQ52: Implementar y mantener 1 sección en línea y actualizada sobre los contratos de prestación de servicios celebrados por la Administración Central. | AR52: - | AS52: Número de secciones implementadas y mantenidas en línea y actualizada sobre los contratos de prestación de servicios celebrados por la Administración Central. | AT52: 0 | AU52: 1 | AV52: 1 | AW52: 0.25 | AX52: 1 | AY52: 0.25 | AZ52: 1 | BA52: 0.25 | BB52: 1 | BC52: 0.25 | BD52: 1 | BE52: 1 | BF52: 1 | BG52: 1 | BH52: 1 | BI52: 1 | BJ52: 1 | BK52: 1 | BL52: 1 | BM52: 1 | BN52: 1 | BO52: 1 | BP52: 1 | BQ52: 1 | BR52: 1 | BS52: 0 | BT52: 0 | BU52: 0 | BV52: - | BW52: - | BX52: 0 | BY52: 0 | BZ52: 0 | CA52: - | CB52: - | CC52: 0 | CD52: 0 | CE52: 0 | CF52: - | CG52: - | CH52: 0 | CI52: 0 | CJ52: 0 | CK52: - | CL52: - | CM52: 0 | CN52: 0 | CO52: 0 | CP52: - | CQ52: - | CR52: 16. Paz, justicia e instituciones sólidas | CS52: Fortalecimiento Institucional | CT52: Asesor TIC
AQ53: Implementar y mantener 1 sección en línea y actualizada sobre la ejecución de los proyectos estratégicos. | AR53: - | AS53: Número de secciones implementadas y mantenidas en línea y actualizada sobre la ejecución de los proyectos estratégicos. | AT53: 0 | AU53: 1 | AV53: 1 | AW53: 0.25 | AX53: 1 | AY53: 0.25 | AZ53: 1 | BA53: 0.25 | BB53: 1 | BC53: 0.25 | BD53: 1 | BE53: 1 | BF53: 1 | BG53: 1 | BH53: 1 | BI53: 1 | BJ53: 1 | BK53: 1 | BL53: 1 | BM53: 1 | BN53: 1 | BO53: 1 | BP53: 1 | BQ53: 1 | BR53: 1 | BS53: 0 | BT53: 0 | BU53: 0 | BV53: - | BW53: - | BX53: 0 | BY53: 0 | BZ53: 0 | CA53: - | CB53: - | CC53: 0 | CD53: 0 | CE53: 0 | CF53: - | CG53: - | CH53: 0 | CI53: 0 | CJ53: 0 | CK53: - | CL53: - | CM53: 0 | CN53: 0 | CO53: 0 | CP53: - | CQ53: - | CR53: 16. Paz, justicia e instituciones sólidas | CS53: Fortalecimiento Institucional | CT53: Asesor TIC
AQ54: Implementar y mantener 1 sección en línea y actualizada sobre los gastos de funcionamiento de la Administración Central. | AR54: - | AS54: Número de secciones implementadas y mantenidas en línea y actualizada sobre los gastos de funcionamiento de la Administración Central. | AT54: 1 | AU54: 1 | AV54: 1 | AW54: 0.25 | AX54: 1 | AY54: 0.25 | AZ54: 1 | BA54: 0.25 | BB54: 1 | BC54: 0.25 | BD54: 1 | BE54: 1 | BF54: 1 | BG54: 1 | BH54: 1 | BI54: 1 | BJ54: 1 | BK54: 1 | BL54: 1 | BM54: 1 | BN54: 1 | BO54: 1 | BP54: 1 | BQ54: 1 | BR54: 1 | BS54: 0 | BT54: 0 | BU54: 0 | BV54: - | BW54: - | BX54: 0 | BY54: 0 | BZ54: 0 | CA54: - | CB54: - | CC54: 0 | CD54: 0 | CE54: 0 | CF54: - | CG54: - | CH54: 0 | CI54: 0 | CJ54: 0 | CK54: - | CL54: - | CM54: 0 | CN54: 0 | CO54: 0 | CP54: - | CQ54: - | CR54: 16. Paz, justicia e instituciones sólidas | CS54: Fortalecimiento Institucional | CT54: Asesor TIC
AQ55: Celebrar 7 reuniones populares para rendir cuentas de la ejecución del Plan de Desarrollo y la ejecución del presupuesto. | AR55: 0 | AS55: Número de reuniones populares celebradas para rendir cuentas de la ejecución del Plan de Desarrollo y la ejecución del presupuesto. | AT55: 0 | AU55: 7 | AV55: 1 | AW55: 0.1428571429 | AX55: 2 | AY55: 0.2857142857 | AZ55: 2 | BA55: 0.2857142857 | BB55: 2 | BC55: 0.2857142857 | BD55: 1 | BE55: 2 | BF55: 2 | BG55: 1 | BH55: 1 | BI55: 1 | BJ55: 1 | BK55: 1 | BL55: 1 | BM55: 1 | BN55: 0.5 | BO55: 0.5 | BP55: =+SUM(BD55:BG55)/AU55 -> 0.8571428571 | BQ55: 0.8571428571 | BR55: 0.8571428571 | BS55: 0 | BT55: 0 | BU55: 0 | BV55: - | BW55: - | BX55: 0 | BY55: 0 | BZ55: 0 | CA55: - | CB55: - | CC55: 0 | CD55: 0 | CE55: 0 | CF55: - | CG55: - | CH55: 0 | CI55: 0 | CJ55: 0 | CK55: - | CL55: - | CM55: 0 | CN55: 0 | CO55: 0 | CP55: - | CQ55: - | CR55: 16. Paz, justicia e instituciones sólidas | CS55: Fortalecimiento Institucional | CT55: Sec. Hacienda
AQ56: Implementar y mantener 1 estrategia para el informe anual de rendición de cuentas en cultura. | AR56: - | AS56: Número de estrategias para el informe anual de rendición de cuentas en cultura implementadas y mantenidas | AT56: 0 | AU56: 1 | AV56: 1 | AW56: 0.25 | AX56: 1 | AY56: 0.25 | AZ56: 1 | BA56: 0.25 | BB56: 1 | BC56: 0.25 | BD56: 0 | BE56: 1 | BF56: 1 | BG56: 0 | BH56: 0 | BI56: 0 | BJ56: 1 | BK56: 1 | BL56: 1 | BM56: 1 | BN56: 0 | BO56: 0 | BP56: 0.5 | BQ56: 0.5 | BR56: 0.5 | BS56: 0 | BT56: 0 | BU56: 0 | BV56: - | BW56: - | BX56: 0 | BY56: 0 | BZ56: 0 | CA56: - | CB56: - | CC56: 0 | CD56: 0 | CE56: 0 | CF56: - | CG56: - | CH56: 0 | CI56: 0 | CJ56: 0 | CK56: - | CL56: - | CM56: 0 | CN56: 0 | CO56: 0 | CP56: - | CQ56: - | CR56: 16. Paz, justicia e instituciones sólidas | CS56: Cultura | CT56: IMCT
AO57: =+RESUMEN!J15 -> 0.63125 | AP57: CULTURA METROPOLITANA Y CIUDAD REGIÓN: PARTICIPACIÓN QUE ATRAVIESA FRONTERAS | AQ57: Realizar 4 audiencias de participación metropolitana en conjunto con la Alcaldía de Floridablanca. | AR57: - | AS57: Número de audiencias de participación metropolitana realizadas en conjunto con la Alcaldía de Floridablanca. | AT57: 0 | AU57: 4 | AV57: 0 | AW57: 0 | AX57: 1 | AY57: 0.25 | AZ57: 2 | BA57: 0.5 | BB57: 1 | BC57: 0.25 | BD57: 0 | BE57: 1 | BF57: 0 | BG57: 1 | BH57: - | BI57: - | BJ57: 1 | BK57: 1 | BL57: 0 | BM57: 0 | BN57: 1 | BO57: 1 | BP57: =+SUM(BD57:BG57)/AU57 -> 0.5 | BQ57: 0.5 | BR57: 0.5 | BS57: 0 | BT57: 0 | BU57: 0 | BV57: - | BW57: - | BX57: 4000 | BY57: 4000 | BZ57: 0 | CA57: 1 | CB57: - | CC57: 0 | CD57: 0 | CE57: 0 | CF57: - | CG57: - | CH57: 0 | CI57: 0 | CJ57: 0 | CK57: - | CL57: - | CM57: 4000 | CN57: 4000 | CO57: 0 | CP57: 1 | CQ57: - | CR57: 16. Paz, justicia e instituciones sólidas | CS57: Fortalecimiento Institucional | CT57: AMB
AQ58: Realizar 4 audiencias de participación metropolitana en conjunto con la Alcaldía de Piedecuesta. | AR58: - | AS58: Número de audiencias de participación metropolitana realizadas en conjunto con la Alcaldía de Piedecuesta. | AT58: 0 | AU58: 4 | AV58: 0 | AW58: 0 | AX58: 2 | AY58: 0.5 | AZ58: 1 | BA58: 0.25 | BB58: 1 | BC58: 0.25 | BD58: 0 | BE58: 1.5 | BF58: 4 | BG58: 1 | BH58: - | BI58: - | BJ58: 0.75 | BK58: 0.75 | BL58: 4 | BM58: 1 | BN58: 1 | BO58: 1 | BP58: 1.625 | BQ58: 1 | BR58: 1 | BS58: 0 | BT58: 0 | BU58: 0 | BV58: - | BW58: - | BX58: 8000 | BY58: 4333 | BZ58: 0 | CA58: 0.541625 | CB58: - | CC58: 0 | CD58: 0 | CE58: 0 | CF58: - | CG58: - | CH58: 0 | CI58: 0 | CJ58: 0 | CK58: - | CL58: - | CM58: 8000 | CN58: 4333 | CO58: 0 | CP58: 0.541625 | CQ58: - | CR58: 16. Paz, justicia e instituciones sólidas | CS58: Fortalecimiento Institucional | CT58: AMB
AQ59: Realizar 4 audiencias de participación metropolitana en conjunto con la Alcaldía de Girón. | AR59: - | AS59: Número de audiencias de participación metropolitana realizadas en conjunto con la Alcaldía de Girón. | AT59: 0 | AU59: 4 | AV59: 0 | AW59: 0 | AX59: 1 | AY59: 0.25 | AZ59: 1 | BA59: 0.25 | BB59: 2 | BC59: 0.5 | BD59: 0 | BE59: 1 | BF59: 4 | BG59: 2 | BH59: - | BI59: - | BJ59: 1 | BK59: 1 | BL59: 4 | BM59: 1 | BN59: 1 | BO59: 1 | BP59: 1.75 | BQ59: 1 | BR59: 1 | BS59: 0 | BT59: 0 | BU59: 0 | BV59: - | BW59: - | BX59: 4000 | BY59: 4000 | BZ59: 0 | CA59: 1 | CB59: - | CC59: 0 | CD59: 0 | CE59: 0 | CF59: - | CG59: - | CH59: 0 | CI59: 0 | CJ59: 0 | CK59: - | CL59: - | CM59: 4000 | CN59: 4000 | CO59: 0 | CP59: 1 | CQ59: - | CR59: 16. Paz, justicia e instituciones sólidas | CS59: Fortalecimiento Institucional | CT59: AMB
AQ60: Realizar 8 juntas abiertas del Área Metropolitana de Bucaramanga con presencia de los integrantes de la junta metropolitana y participación de la comunidad para una discusión pública sobre asuntos metropolitanos. | AR60: - | AS60: Número de juntas abiertas del Área Metropolitana de Bucaramanga realizadas con presencia de los integrantes de la junta metropolitana y participación de la comunidad para una discusión pública sobre asuntos metropolitanos. | AT60: 0 | AU60: 8 | AV60: 0 | AW60: 0 | AX60: 2 | AY60: 0.25 | AZ60: 3 | BA60: 0.375 | BB60: 3 | BC60: 0.375 | BD60: 0 | BE60: 0.2 | BF60: 0 | BG60: 0 | BH60: - | BI60: - | BJ60: 0.1 | BK60: 0.1 | BL60: 0 | BM60: 0 | BN60: 0 | BO60: 0 | BP60: 0.025 | BQ60: 0.025 | BR60: 0.025 | BS60: 0 | BT60: 0 | BU60: 0 | BV60: - | BW60: - | BX60: 5000 | BY60: 667 | BZ60: 0 | CA60: 0.1334 | CB60: - | CC60: 0 | CD60: 0 | CE60: 0 | CF60: - | CG60: - | CH60: 0 | CI60: 0 | CJ60: 0 | CK60: - | CL60: - | CM60: 5000 | CN60: 667 | CO60: 0 | CP60: 0.1334 | CQ60: - | CR60: 16. Paz, justicia e instituciones sólidas | CS60: Desarrollo Comunitario | CT60: AMB
AO61: =+RESUMEN!J16 -> 0.8818181818 | AP61: GOBIERNO TRANSPARENTE | AQ61: Formular e implementar 1 estrategia de comunicación para difundir los procesos de contratación pública de selección abierta y promover la participación de oferentes así como el control social ciudadano. | AR61: 0 | AS61: Número de estrategias de comunicaciones formuladas e implementadas para difundir los procesos de contratación pública de selección abierta y promover la participación de oferentes así como el control social ciudadano. | AT61: 0 | AU61: 1 | AV61: 1 | AW61: 0.25 | AX61: 1 | AY61: 0.25 | AZ61: 1 | BA61: 0.25 | BB61: 1 | BC61: 0.25 | BD61: 1 | BE61: 1 | BF61: 1 | BG61: 1 | BH61: 1 | BI61: 1 | BJ61: 1 | BK61: 1 | BL61: 1 | BM61: 1 | BN61: 1 | BO61: 1 | BP61: 1 | BQ61: 1 | BR61: 1 | BS61: 0 | BT61: 0 | BU61: 0 | BV61: - | BW61: - | BX61: 0 | BY61: 0 | BZ61: 0 | CA61: - | CB61: - | CC61: 74554 | CD61: 74554 | CE61: 0 | CF61: 1 | CG61: - | CH61: 74554 | CI61: 74554 | CJ61: 0 | CK61: 1 | CL61: - | CM61: 149108 | CN61: 149108 | CO61: 0 | CP61: 1 | CQ61: - | CR61: 16. Paz, justicia e instituciones sólidas | CS61: Fortalecimiento Institucional | CT61: Ofc. Prensa
AQ62: Elaborar y difundir 16 informes de contratación pública. | AR62: - | AS62: Número de informes de contratación pública elaboras y difundidas. | AT62: 0 | AU62: 16 | AV62: 4 | AW62: 0.25 | AX62: 4 | AY62: 0.25 | AZ62: 4 | BA62: 0.25 | BB62: 4 | BC62: 0.25 | BD62: 3 | BE62: 4 | BF62: 4 | BG62: 3 | BH62: 0.75 | BI62: 0.75 | BJ62: 1 | BK62: 1 | BL62: 1 | BM62: 1 | BN62: 0.75 | BO62: 0.75 | BP62: =+SUM(BD62:BG62)/AU62 -> 0.875 | BQ62: 0.875 | BR62: 0.875 | BS62: 0 | BT62: 0 | BU62: 0 | BV62: - | BW62: - | BX62: 0 | BY62: 0 | BZ62: 0 | CA62: - | CB62: - | CC62: 17200 | CD62: 17200 | CE62: 0 | CF62: 1 | CG62: - | CH62: 17400 | CI62: 15750 | CJ62: 0 | CK62: 0.9051724138 | CL62: - | CM62: 34600 | CN62: 32950 | CO62: 0 | CP62: 0.9523121387 | CQ62: - | CR62: 16. Paz, justicia e instituciones sólidas | CS62: Fortalecimiento Institucional | CT62: Sec. Jurídica
AQ63: Implementar y mantener actualizado en línea 1 registro de intereses privados de los secretarios y sub-secretarios así como de los asesores del despacho del alcalde. | AR63: - | AS63: Número registros implementados y mantenidos actualizados en línea de intereses privados de los secretarios y sub-secretarios así como de los asesores del despacho del alcalde. | AT63: 0 | AU63: 1 | AV63: 1 | AW63: 0.25 | AX63: 1 | AY63: 0.25 | AZ63: 1 | BA63: 0.25 | BB63: 1 | BC63: 0.25 | BD63: 1 | BE63: 1 | BF63: 1 | BG63: 0.8 | BH63: 1 | BI63: 1 | BJ63: 1 | BK63: 1 | BL63: 1 | BM63: 1 | BN63: 0.8 | BO63: 0.8 | BP63: 0.95 | BQ63: 0.95 | BR63: 0.95 | BS63: 0 | BT63: 0 | BU63: 0 | BV63: - | BW63: - | BX63: 0 | BY63: 0 | BZ63: 0 | CA63: - | CB63: - | CC63: 17200 | CD63: 17200 | CE63: 0 | CF63: 1 | CG63: - | CH63: 17400 | CI63: 15750 | CJ63: 0 | CK63: 0.9051724138 | CL63: - | CM63: 34600 | CN63: 32950 | CO63: 0 | CP63: 0.9523121387 | CQ63: - | CR63: 16. Paz, justicia e instituciones sólidas | CS63: Fortalecimiento Institucional | CT63: Sec. Jurídica
F64: Lograr una calificación de 90 en el componente exposición de la información del IGA. | G64: 79.4 | H64: 90 | I64: =+H64-G64 -> 10.6 | J64: 79.4 | K64: =+J64-G64 -> 0 | M64: 90 | N64: =+M64-J64 -> 10.6 | P64: 90 | Q64: =+P64-M64 -> 0 | S64: 90 | T64: =+S64-P64 -> 0 | V64: 82.4 | W64: =+IF(V64=0,0,V64-G64) -> 3 | X64: 85.6 | Y64: =+IF(X64=0,0,X64-V64) -> 3.2 | Z64: 85.6 | AA64: =+IF(Z64=0,0,Z64-X64) -> 0 | AC64: =+IF(AB64=0,0,AB64-Z64) -> 0 | AD64: =+IF(K64=0," -",W64/K64) -> - | AE64: =+IF(K64=0," -",IF(AD64>100%,100%,AD64)) -> - | AF64: =+IF(N64=0," -",Y64/N64) -> 0.3018867925 | AG64: =+IF(N64=0," -",IF(AF64>100%,100%,AF64)) -> 0.3018867925 | AH64: =+IF(Q64=0," -",AA64/Q64) -> - | AI64: =+IF(Q64=0," -",IF(AH64>100%,100%,AH64)) -> - | AJ64: =+IF(T64=0," -",AC64/T64) -> - | AK64: =+IF(T64=0," -",IF(AJ64>100%,100%,AJ64)) -> - | AL64: =+SUM(AC64,AA64,Y64,W64)/I64 -> 0.5849056604 | AM64: =+IF(AL64>100%,100%,IF(AL64<0%,0%,AL64)) -> 0.5849056604 | AQ64: Formular e implementar 1 plan de la excelencia por la transparencia enfocado al mejoramiento continuo del índice ITEP en todas sus dimensiones. | AR64: 0 | AS64: Número de planes de la excelencia formulados e implementados por la transparencia enfocado al mejoramiento continuo del índice ITEP en todas sus dimensiones. | AT64: 0 | AU64: 1 | AV64: 0 | AW64: 0 | AX64: 1 | AY64: 0.33 | AZ64: 1 | BA64: 0.33 | BB64: 1 | BC64: 0.34 | BD64: 0 | BE64: 1 | BF64: 1 | BG64: 0.7 | BH64: - | BI64: - | BJ64: 1 | BK64: 1 | BL64: 1 | BM64: 1 | BN64: 0.7 | BO64: 0.7 | BP64: =+AVERAGE(BE64:BG64)/AU64 -> 0.9 | BQ64: 0.9 | BR64: 0.9 | BS64: 0 | BT64: 0 | BU64: 0 | BV64: - | BW64: - | BX64: 106190 | BY64: 102190 | BZ64: 0 | CA64: 0.9623316696 | CB64: - | CC64: 17200 | CD64: 17200 | CE64: 0 | CF64: 1 | CG64: - | CH64: 17400 | CI64: 15750 | CJ64: 0 | CK64: 0.9051724138 | CL64: - | CM64: 140790 | CN64: 135140 | CO64: 0 | CP64: 0.9598693089 | CQ64: - | CR64: 16. Paz, justicia e instituciones sólidas | CS64: Fortalecimiento Institucional | CT64: Sec. Jurídica
AQ65: Actualizar la estrategia integral de gobierno para la aplicación cabal de los postulados y mandatos de la ley 1712 de 2014 de transparencia y del derecho al acceso a la información pública. | AR65: - | AS65: Número de estrategias integrales de gobierno actualizadas para la aplicación cabal de los postulados y mandatos de la ley 1712 de 2014 de transparencia y del derecho al acceso a la información pública. | AT65: 1 | AU65: 1 | AV65: 1 | AW65: 0.25 | AX65: 1 | AY65: 0.25 | AZ65: 1 | BA65: 0.25 | BB65: 1 | BC65: 0.25 | BD65: 1 | BE65: 1 | BF65: 1 | BG65: 0.9 | BH65: 1 | BI65: 1 | BJ65: 1 | BK65: 1 | BL65: 1 | BM65: 1 | BN65: 0.9 | BO65: 0.9 | BP65: 0.975 | BQ65: 0.975 | BR65: 0.975 | BS65: 250000 | BT65: 14250 | BU65: 0 | BV65: 0.057 | BW65: - | BX65: 0 | BY65: 0 | BZ65: 0 | CA65: - | CB65: - | CC65: 17200 | CD65: 17200 | CE65: 0 | CF65: 1 | CG65: - | CH65: 17400 | CI65: 15750 | CJ65: 0 | CK65: 0.9051724138 | CL65: - | CM65: 284600 | CN65: 47200 | CO65: 0 | CP65: 0.1658468025 | CQ65: - | CR65: 16. Paz, justicia e instituciones sólidas | CS65: Fortalecimiento Institucional | CT65: Sec. Jurídica
AQ66: Actualizar el manual de contratación. | AR66: - | AS66: Número de manuales de contratación actualizados. | AT66: 1 | AU66: 1 | AV66: 1 | AW66: 1 | AX66: 0 | AY66: 0 | AZ66: 0 | BA66: 0 | BB66: 0 | BC66: 0 | BD66: 1 | BE66: 0 | BF66: 0 | BG66: 0 | BH66: 1 | BI66: 1 | BJ66: - | BK66: - | BL66: - | BM66: - | BN66: - | BO66: - | BP66: =+SUM(BD66:BG66)/AU66 -> 1 | BQ66: 1 | BR66: 1 | BS66: 0 | BT66: 0 | BU66: 0 | BV66: - | BW66: - | BX66: 0 | BY66: 0 | BZ66: 0 | CA66: - | CB66: - | CC66: 0 | CD66: 0 | CE66: 0 | CF66: - | CG66: - | CH66: 0 | CI66: 0 | CJ66: 0 | CK66: - | CL66: - | CM66: 0 | CN66: 0 | CO66: 0 | CP66: - | CQ66: - | CR66: 16. Paz, justicia e instituciones sólidas | CS66: Fortalecimiento Institucional | CT66: Sec. Jurídica
AQ67: Crear 1 cargo del nivel directivo y/o asesor adscrito al despacho del Alcalde como encargado de asuntos de transparencia en la gestión pública. | AR67: - | AS67: Número de cargos creados del nivel directivo y/o asesor adscritos al despacho del Alcalde como encargado de asuntos de transparencia en la gestión pública | AT67: 1 | AU67: 1 | AV67: 0 | AW67: 0 | AX67: 1 | AY67: 1 | AZ67: 0 | BA67: 0 | BB67: 0 | BC67: 0 | BD67: 0 | BE67: 0 | BF67: 0 | BG67: 0 | BH67: - | BI67: - | BJ67: 0 | BK67: 0 | BL67: - | BM67: - | BN67: - | BO67: - | BP67: 0 | BQ67: 0 | BR67: 0 | BS67: 0 | BT67: 0 | BU67: 0 | BV67: - | BW67: - | BX67: 0 | BY67: 0 | BZ67: 0 | CA67: - | CB67: - | CC67: 0 | CD67: 0 | CE67: 0 | CF67: - | CG67: - | CH67: 0 | CI67: 0 | CJ67: 0 | CK67: - | CL67: - | CM67: 0 | CN67: 0 | CO67: 0 | CP67: - | CQ67: - | CR67: 16. Paz, justicia e instituciones sólidas | CS67: Fortalecimiento Institucional | CT67: Sec. Administrativa
AQ68: Implementar y mantener 1 estrategia para publicar en línea necesidades de trabajo o de provisión de servicios del municipio y recopilar hojas de vida o propuestas (Tu Talento es lo que Vale). | AR68: - | AS68: Número de estrategias implementadas y mantenidas para publicar en línea necesidades de trabajo o de provisión de servicios del municipio y recopilar hojas de vida o propuestas (Tu Talento es lo que Vale). | AT68: 0 | AU68: 1 | AV68: 1 | AW68: 0.25 | AX68: 1 | AY68: 0.25 | AZ68: 1 | BA68: 0.25 | BB68: 1 | BC68: 0.25 | BD68: 1 | BE68: 1 | BF68: 1 | BG68: 1 | BH68: 1 | BI68: 1 | BJ68: 1 | BK68: 1 | BL68: 1 | BM68: 1 | BN68: 1 | BO68: 1 | BP68: =+AVERAGE(BD68:BG68)/AU68 -> 1 | BQ68: 1 | BR68: 1 | BS68: 0 | BT68: 0 | BU68: 0 | BV68: - | BW68: - | BX68: 0 | BY68: 0 | BZ68: 0 | CA68: - | CB68: - | CC68: 0 | CD68: 0 | CE68: 0 | CF68: - | CG68: - | CH68: 0 | CI68: 0 | CJ68: 0 | CK68: - | CL68: - | CM68: 0 | CN68: 0 | CO68: 0 | CP68: - | CQ68: - | CR68: 16. Paz, justicia e instituciones sólidas | CS68: Fortalecimiento Institucional | CT68: Sec. Administrativa
AQ69: Implementar y mantener 1 sección en línea y actualizada dentro de la página web institucional para consultar todos los procesos de contratación pública. | AR69: - | AS69: Número de secciones implementadas y mantenidas en línea y actualizada dentro de la página web institucional para consultar todos los procesos de contratación pública. | AT69: 0 | AU69: 1 | AV69: 1 | AW69: 0.25 | AX69: 1 | AY69: 0.25 | AZ69: 1 | BA69: 0.25 | BB69: 1 | BC69: 0.25 | BD69: 1 | BE69: 1 | BF69: 1 | BG69: 1 | BH69: 1 | BI69: 1 | BJ69: 1 | BK69: 1 | BL69: 1 | BM69: 1 | BN69: 1 | BO69: 1 | BP69: 1 | BQ69: 1 | BR69: 1 | BS69: 0 | BT69: 0 | BU69: 0 | BV69: - | BW69: - | BX69: 0 | BY69: 0 | BZ69: 0 | CA69: - | CB69: - | CC69: 0 | CD69: 0 | CE69: 0 | CF69: - | CG69: - | CH69: 0 | CI69: 0 | CJ69: 0 | CK69: - | CL69: - | CM69: 0 | CN69: 0 | CO69: 0 | CP69: - | CQ69: - | CR69: 16. Paz, justicia e instituciones sólidas | CS69: Fortalecimiento Institucional | CT69: Asesor TIC
AQ70: Mantener 1 sección en línea dentro de la página web institucional con información actualizada sobre decretos y resolución de la Administración así como de proyectos de acuerdo y acuerdos municipales. | AR70: - | AS70: Número de secciones mantenidas en línea dentro de la página web institucional con información actualizada sobre decretos y resolución de la Administración así como de proyectos de acuerdo y acuerdos municipales. | AT70: 1 | AU70: 1 | AV70: 1 | AW70: 0.25 | AX70: 1 | AY70: 0.25 | AZ70: 1 | BA70: 0.25 | BB70: 1 | BC70: 0.25 | BD70: 1 | BE70: 1 | BF70: 1 | BG70: 1 | BH70: 1 | BI70: 1 | BJ70: 1 | BK70: 1 | BL70: 1 | BM70: 1 | BN70: 1 | BO70: 1 | BP70: 1 | BQ70: 1 | BR70: 1 | BS70: 0 | BT70: 0 | BU70: 0 | BV70: - | BW70: - | BX70: 0 | BY70: 0 | BZ70: 0 | CA70: - | CB70: - | CC70: 0 | CD70: 0 | CE70: 0 | CF70: - | CG70: - | CH70: 0 | CI70: 0 | CJ70: 0 | CK70: - | CL70: - | CM70: 0 | CN70: 0 | CO70: 0 | CP70: - | CQ70: - | CR70: 16. Paz, justicia e instituciones sólidas | CS70: Fortalecimiento Institucional | CT70: Asesor TIC
AQ71: Implementar y mantener 1 estrategia para la socialización del plan anti-corrupción y atención al ciudadano. | AR71: 2210289 | AS71: Número de estrategias implementadas y mantenidas para la socialización del plan anti-corrupción y atención al ciudadano. | AT71: 0 | AU71: 1 | AV71: 1 | AW71: 0.25 | AX71: 1 | AY71: 0.25 | AZ71: 1 | BA71: 0.25 | BB71: 1 | BC71: 0.25 | BD71: 1 | BE71: 1 | BF71: 1 | BG71: 1 | BH71: 1 | BI71: 1 | BJ71: 1 | BK71: 1 | BL71: 1 | BM71: 1 | BN71: 1 | BO71: 1 | BP71: 1 | BQ71: 1 | BR71: 1 | BS71: 0 | BT71: 0 | BU71: 0 | BV71: - | BW71: - | BX71: 762900 | BY71: 728851 | BZ71: 0 | CA71: 0.9553689868 | CB71: - | CC71: 573243 | CD71: 563959.9 | CE71: 0 | CF71: 0.983805995 | CG71: - | CH71: 572500 | CI71: 541000 | CJ71: 0 | CK71: 0.9449781659 | CL71: - | CM71: 1908643 | CN71: 1833810.9 | CO71: 0 | CP71: 0.9607930346 | CQ71: - | CR71: 16. Paz, justicia e instituciones sólidas | CS71: Fortalecimiento Institucional | CT71: Sec. Planeación
AO72: =+RESUMEN!J17 -> 0.965 | AP72: GOBIERNO COMPRENSIBLE Y ACCESIBLE | AQ72: Publicar mantener en línea el 100% de la información sobre la estructura orgánica, las funciones y los deberes de las dependencias así como los medios de contacto y/o servicios de estas. | AR72: - | AS72: Porcentaje de información publicados y mantenidos en línea sobre la estructura orgánica, las funciones y los deberes de las dependencias así como los medios de contacto y/o servicios de estas. | AT72: 0.5 | AU72: 1 | AV72: 1 | AW72: 0.25 | AX72: 1 | AY72: 0.25 | AZ72: 1 | BA72: 0.25 | BB72: 1 | BC72: 0.25 | BD72: 1 | BE72: 0.8 | BF72: 1 | BG72: 1 | BH72: 1 | BI72: 1 | BJ72: 0.8 | BK72: 0.8 | BL72: 1 | BM72: 1 | BN72: 1 | BO72: 1 | BP72: 0.95 | BQ72: 0.95 | BR72: 0.95 | BS72: 0 | BT72: 0 | BU72: 0 | BV72: - | BW72: - | BX72: 0 | BY72: 0 | BZ72: 0 | CA72: - | CB72: - | CC72: 0 | CD72: 0 | CE72: 0 | CF72: - | CG72: - | CH72: 0 | CI72: 0 | CJ72: 0 | CK72: - | CL72: - | CM72: 0 | CN72: 0 | CO72: 0 | CP72: - | CQ72: - | CR72: 16. Paz, justicia e instituciones sólidas | CS72: Fortalecimiento Institucional | CT72: Asesor TIC
AQ73: Publicar y mantener actualizado en línea el directorio de servidores públicos. | AR73: - | AS73: Número de directorios de servidores públicos publicados y mantenidos en línea. | AT73: 1 | AU73: 1 | AV73: 1 | AW73: 0.25 | AX73: 1 | AY73: 0.25 | AZ73: 1 | BA73: 0.25 | BB73: 1 | BC73: 0.25 | BD73: 1 | BE73: 0.5 | BF73: 1 | BG73: 1 | BH73: 1 | BI73: 1 | BJ73: 0.5 | BK73: 0.5 | BL73: 1 | BM73: 1 | BN73: 1 | BO73: 1 | BP73: 0.875 | BQ73: 0.875 | BR73: 0.875 | BS73: 0 | BT73: 0 | BU73: 0 | BV73: - | BW73: - | BX73: 0 | BY73: 0 | BZ73: 0 | CA73: - | CB73: - | CC73: 0 | CD73: 0 | CE73: 0 | CF73: - | CG73: - | CH73: 0 | CI73: 0 | CJ73: 0 | CK73: - | CL73: - | CM73: 0 | CN73: 0 | CO73: 0 | CP73: - | CQ73: - | CR73: 16. Paz, justicia e instituciones sólidas | CS73: Fortalecimiento Institucional | CT73: Asesor TIC
AQ74: Publicar y mantener actualizado en línea el manual de funciones de la Administración Central. | AR74: - | AS74: Número de directorios de manuales de funciones de la Administración Central publicados y mantenidos en línea. | AT74: 1 | AU74: 1 | AV74: 1 | AW74: 0.25 | AX74: 1 | AY74: 0.25 | AZ74: 1 | BA74: 0.25 | BB74: 1 | BC74: 0.25 | BD74: 1 | BE74: 1 | BF74: 1 | BG74: 1 | BH74: 1 | BI74: 1 | BJ74: 1 | BK74: 1 | BL74: 1 | BM74: 1 | BN74: 1 | BO74: 1 | BP74: 1 | BQ74: 1 | BR74: 1 | BS74: 0 | BT74: 0 | BU74: 0 | BV74: - | BW74: - | BX74: 0 | BY74: 0 | BZ74: 0 | CA74: - | CB74: - | CC74: 0 | CD74: 0 | CE74: 0 | CF74: - | CG74: - | CH74: 0 | CI74: 0 | CJ74: 0 | CK74: - | CL74: - | CM74: 0 | CN74: 0 | CO74: 0 | CP74: - | CQ74: - | CR74: 16. Paz, justicia e instituciones sólidas | CS74: Fortalecimiento Institucional | CT74: Asesor TIC
AQ75: Realizar 1 caracterización de las personas que requieren trámites y servicios administrativos del gobierno municipal. | AR75: - | AS75: Número de caracterizaciones de las personas que requieren trámites y servicios administrativos del gobierno municipal realizadas. | AT75: 0 | AU75: 1 | AV75: 0 | AW75: 0 | AX75: 1 | AY75: 1 | AZ75: 0 | BA75: 0 | BB75: 0 | BC75: 0 | BD75: 0 | BE75: 1 | BF75: 0 | BG75: 0 | BH75: - | BI75: - | BJ75: 1 | BK75: 1 | BL75: - | BM75: - | BN75: - | BO75: - | BP75: =+SUM(BD75:BG75)/AU75 -> 1 | BQ75: 1 | BR75: 1 | BS75: 0 | BT75: 0 | BU75: 0 | BV75: - | BW75: - | BX75: 0 | BY75: 0 | BZ75: 0 | CA75: - | CB75: - | CC75: 0 | CD75: 0 | CE75: 0 | CF75: - | CG75: - | CH75: 0 | CI75: 0 | CJ75: 0 | CK75: - | CL75: - | CM75: 0 | CN75: 0 | CO75: 0 | CP75: - | CQ75: - | CR75: 16. Paz, justicia e instituciones sólidas | CS75: Fortalecimiento Institucional | CT75: Sec. Administrativa
AQ76: Implementar y mantener 1 estrategia de comunicaciones para difundir y promover la oferta institucional así como de sus funciones, deberes y/u obligaciones legales dirigida a la población con enfoque diferencial. | AR76: 0 | AS76: Número de estrategias de comunicaciones implementadas y mantenidas para difundir y promover la oferta institucional así como de sus funciones, deberes y/u obligaciones legales dirigida a la población con enfoque diferencial. | AT76: 0 | AU76: 1 | AV76: 1 | AW76: 0.25 | AX76: 1 | AY76: 0.25 | AZ76: 1 | BA76: 0.25 | BB76: 1 | BC76: 0.25 | BD76: 1 | BE76: 1 | BF76: 1 | BG76: 1 | BH76: =IF(AV76=0," -",BD76/AV76) -> 1 | BI76: =IF(AV76=0," -",IF(BH76>100%,100%,BH76)) -> 1 | BJ76: =IF(AX76=0," -",BE76/AX76) -> 1 | BK76: =IF(AX76=0," -",IF(BJ76>100%,100%,BJ76)) -> 1 | BL76: =IF(AZ76=0," -",BF76/AZ76) -> 1 | BM76: =IF(AZ76=0," -",IF(BL76>100%,100%,BL76)) -> 1 | BN76: =IF(BB76=0," -",BG76/BB76) -> 1 | BO76: =IF(BB76=0," -",IF(BN76>100%,100%,BN76)) -> 1 | BP76: =+AVERAGE(BD76:BG76)/AU76 -> 1 | BQ76: =+IF(BP76>100%,100%,BP76) -> 1 | BR76: =+BQ76 -> 1 | BS76: 0 | BT76: 0 | BU76: 0 | BV76: - | BW76: - | BX76: 0 | BY76: 0 | BZ76: 0 | CA76: - | CB76: - | CC76: 74554 | CD76: 74554 | CE76: 0 | CF76: 1 | CG76: - | CH76: 74554 | CI76: 74554 | CJ76: 0 | CK76: 1 | CL76: - | CM76: 149108 | CN76: 149108 | CO76: 0 | CP76: 1 | CQ76: - | CR76: 16. Paz, justicia e instituciones sólidas | CS76: Fortalecimiento Institucional | CT76: Ofc. Prensa
AU77: 0 | AV77: 0 | AW77: =+AVERAGE(AW11:AW76) -> 0.1869227994 | AX77: 0 | AY77: =+AVERAGE(AY11:AY76) -> 0.3335768398 | AZ77: 0 | BA77: =+AVERAGE(BA11:BA76) -> 0.2414862915 | BB77: 0 | BC77: =+AVERAGE(BC11:BC76) -> 0.2380140693 | BI77: =+AVERAGE(BI11:BI76) -> 0.8673469388 | BK77: 0.879719457 | BM77: 0.8983050847 | BO77: 0.8874137931 | BQ77: =+AVERAGE(BQ11:BQ76) -> 0.8600445633
D78: =+RESUMEN!J18 -> 0.8031119391 | E78: GOBIERNO LEGAL Y EFECTIVO | F78: Aumentar en un 30% los ingresos provenientes del impuesto predial. | G78: 0 | H78: 0.3 | I78: =+H78-G78 -> 0.3 | J78: 0 | K78: =+J78-G78 -> 0 | M78: 0 | N78: =+M78-J78 -> 0 | P78: 0.15 | Q78: =+P78-M78 -> 0.15 | S78: 0.3 | T78: =+S78-P78 -> 0.15 | V78: 0 | W78: =+IF(V78=0,0,V78-G78) -> 0 | X78: 0.108 | Y78: =+IF(X78=0,0,X78-V78) -> 0.108 | Z78: 0.15 | AA78: =+IF(Z78=0,0,Z78-X78) -> 0.042 | AC78: =+IF(AB78=0,0,AB78-Z78) -> 0 | AD78: =+IF(K78=0," -",W78/K78) -> - | AE78: =+IF(K78=0," -",IF(AD78>100%,100%,AD78)) -> - | AF78: =+IF(N78=0," -",Y78/N78) -> - | AG78: =+IF(N78=0," -",IF(AF78>100%,100%,AF78)) -> - | AH78: =+IF(Q78=0," -",AA78/Q78) -> 0.28 | AI78: =+IF(Q78=0," -",IF(AH78>100%,100%,AH78)) -> 0.28 | AJ78: =+IF(T78=0," -",AC78/T78) -> 0 | AK78: =+IF(T78=0," -",IF(AJ78>100%,100%,AJ78)) -> 0 | AL78: =+SUM(AC78,AA78,Y78,W78)/I78 -> 0.5 | AM78: =+IF(AL78>100%,100%,IF(AL78<0%,0%,AL78)) -> 0.5 | AO78: =+RESUMEN!J19 -> 0.75 | AP78: NUEVO MODELO DE ATENCIÓN A LA CIUDADANÍA | AQ78: Formular e implementar 1 plan de la excelencia para la gestión de PQRSD en la Administración Municipal (procedimientos e infraestructura). | AR78: 2210289 | AS78: Número de planes de la excelencia formulados e implementados para la gestión de PQRSD en la Administración Municipal (procedimientos e infraestructura). | AT78: 0 | AU78: 1 | AV78: 0 | AW78: =+AV78/AU78 -> 0 | AX78: 1 | AY78: 0.33 | AZ78: 1 | BA78: 0.33 | BB78: 1 | BC78: 0.34 | BD78: 0 | BE78: 1 | BF78: 1 | BG78: 1 | BH78: - | BI78: - | BJ78: 1 | BK78: 1 | BL78: 1 | BM78: 1 | BN78: 1 | BO78: 1 | BP78: =+AVERAGE(BE78:BG78)/AU78 -> 1 | BQ78: 1 | BR78: 1 | BS78: 0 | BT78: 0 | BU78: 0 | BV78: =IF(BS78=0," -",BT78/BS78) -> - | BW78: =IF(BU78=0," -",IF(BT78=0,100%,BU78/BT78)) -> - | BX78: 287480 | BY78: 247987 | BZ78: 0 | CA78: =IF(BX78=0," -",BY78/BX78) -> 0.8626234869 | CB78: =IF(BZ78=0," -",IF(BY78=0,100%,BZ78/BY78)) -> - | CC78: 72666 | CD78: 60713 | CE78: 0 | CF78: =IF(CC78=0," -",CD78/CC78) -> 0.8355076652 | CG78: =IF(CE78=0," -",IF(CD78=0,100%,CE78/CD78)) -> - | CH78: 0 | CI78: 0 | CJ78: 0 | CK78: =IF(CH78=0," -",CI78/CH78) -> - | CL78: =IF(CJ78=0," -",IF(CI78=0,100%,CJ78/CI78)) -> - | CM78: =+BS78+BX78+CC78+CH78 -> 360146 | CN78: =+BT78+BY78+CD78+CI78 -> 308700 | CO78: =+BU78+BZ78+CE78+CJ78 -> 0 | CP78: =IF(CM78=0," -",CN78/CM78) -> 0.8571523771 | CQ78: =IF(CO78=0," -",IF(CN78=0,100%,CO78/CN78)) -> - | CR78: 16. Paz, justicia e instituciones sólidas | CS78: Fortalecimiento Institucional | CT78: Sec. Administrativa
AQ79: Crear 1 cargo del nivel directivo y/o asesor para coordinar la atención a la comunidad en la administración municipal. | AR79: - | AS79: Número de cargos creados del nivel directivo y/o asesor creados para coordinar la atención a la comunidad en la administración municipal. | AT79: 0 | AU79: 1 | AV79: 0 | AW79: 0 | AX79: 1 | AY79: =+AX79/AU79 -> 1 | AZ79: 0 | BA79: =+AZ79/AU79 -> 0 | BB79: 0 | BC79: =+BB79/AU79 -> 0 | BD79: 0 | BE79: 0 | BF79: 0 | BG79: 0 | BH79: - | BI79: - | BJ79: 0 | BK79: 0 | BL79: - | BM79: - | BN79: - | BO79: - | BP79: =+SUM(BD79:BG79)/AU79 -> 0 | BQ79: 0 | BR79: 0 | BS79: 0 | BT79: 0 | BU79: 0 | BV79: - | BW79: - | BX79: 0 | BY79: 0 | BZ79: 0 | CA79: - | CB79: - | CC79: 0 | CD79: 0 | CE79: 0 | CF79: - | CG79: - | CH79: 0 | CI79: 0 | CJ79: 0 | CK79: - | CL79: - | CM79: 0 | CN79: 0 | CO79: 0 | CP79: - | CQ79: - | CR79: 16. Paz, justicia e instituciones sólidas | CS79: Fortalecimiento Institucional | CT79: Sec. Administrativa
AQ80: Implementar y mantener 1 red incluyente de asesores de la comunidad en las oficinas de la Administración Municipal. | AR80: 0 | AS80: Número de redes incluyentes de asesores de la comunidad implementadas y mantenidas en las oficinas de la Administración Municipal. | AT80: 0 | AU80: 1 | AV80: 1 | AW80: 0.25 | AX80: 1 | AY80: 0.25 | AZ80: 1 | BA80: 0.25 | BB80: 1 | BC80: 0.25 | BD80: 1 | BE80: 1 | BF80: 1 | BG80: 1 | BH80: 1 | BI80: 1 | BJ80: 1 | BK80: 1 | BL80: 1 | BM80: 1 | BN80: 1 | BO80: 1 | BP80: =+AVERAGE(BD80:BG80)/AU80 -> 1 | BQ80: 1 | BR80: 1 | BS80: 0 | BT80: 0 | BU80: 0 | BV80: - | BW80: - | BX80: 0 | BY80: 0 | BZ80: 0 | CA80: - | CB80: - | CC80: 0 | CD80: 0 | CE80: 0 | CF80: - | CG80: - | CH80: 0 | CI80: 0 | CJ80: 0 | CK80: - | CL80: - | CM80: 0 | CN80: 0 | CO80: 0 | CP80: - | CQ80: - | CR80: 16. Paz, justicia e instituciones sólidas | CS80: Fortalecimiento Institucional | CT80: Sec. Administrativa
AQ81: Crear e implementar 2 "Centros de atención municipal especializados (CAME)". | AR81: 2210302 | AS81: Número de "Centros de atención municipal especializados (CAME)" creados e implementados. | AT81: 0 | AU81: 2 | AV81: 0 | AW81: 0 | AX81: 1 | AY81: 0.5 | AZ81: 1 | BA81: 0.5 | BB81: 0 | BC81: 0 | BD81: 0 | BE81: 1 | BF81: 1 | BG81: 0 | BH81: - | BI81: - | BJ81: 1 | BK81: 1 | BL81: 1 | BM81: 1 | BN81: - | BO81: - | BP81: =+SUM(BD81:BG81)/AU81 -> 1 | BQ81: 1 | BR81: 1 | BS81: 0 | BT81: 0 | BU81: 0 | BV81: - | BW81: - | BX81: 639325 | BY81: 633955 | BZ81: 0 | CA81: 0.9916005162 | CB81: - | CC81: 652198 | CD81: 49996 | CE81: 0 | CF81: 0.07665770211 | CG81: - | CH81: 0 | CI81: 0 | CJ81: 0 | CK81: - | CL81: - | CM81: 1291523 | CN81: 683951 | CO81: 0 | CP81: 0.5295693534 | CQ81: - | CR81: 16. Paz, justicia e instituciones sólidas | CS81: Fortalecimiento Institucional | CT81: Sec. Administrativa
AO82: =+RESUMEN!J20 -> 0.8666666667 | AP82: ACCIONES CONSTITUCIONALES Y ACCIONES LEGALES: RESPUESTA Y GESTIÓN SOCIAL Y ESTRATÉGICA | AQ82: Implementar y mantener el observatorio de acciones constitucionales (derechos de petición, tutelas, acciones populares y acciones de cumplimiento). | AR82: 0 | AS82: Número de observatorios de acciones constitucionales (derechos de petición, tutelas, acciones populares y acciones de cumplimiento) implementados y mantenidos. | AT82: 0 | AU82: 1 | AV82: 1 | AW82: 0.25 | AX82: 1 | AY82: 0.25 | AZ82: 1 | BA82: 0.25 | BB82: 1 | BC82: 0.25 | BD82: 0 | BE82: 1 | BF82: 1 | BG82: 0.8 | BH82: 0 | BI82: 0 | BJ82: 1 | BK82: 1 | BL82: 1 | BM82: 1 | BN82: 0.8 | BO82: 0.8 | BP82: 0.7 | BQ82: 0.7 | BR82: 0.7 | BS82: 0 | BT82: 0 | BU82: 0 | BV82: - | BW82: - | BX82: 0 | BY82: 0 | BZ82: 0 | CA82: - | CB82: - | CC82: 48200 | CD82: 48200 | CE82: 0 | CF82: 1 | CG82: - | CH82: 40300 | CI82: 31250 | CJ82: 0 | CK82: 0.7754342432 | CL82: - | CM82: 88500 | CN82: 79450 | CO82: 0 | CP82: 0.897740113 | CQ82: - | CR82: 16. Paz, justicia e instituciones sólidas | CS82: Justicia y Seguridad | CT82: Sec. Jurídica
AQ83: Implementar y mantener 1 estrategia para la prevención del daño antijurídico. | AR83: - | AS83: Número de estrategias para la prevención del daño antijurídico implementadas y mantenidas. | AT83: 0 | AU83: 1 | AV83: 1 | AW83: 0.25 | AX83: 1 | AY83: 0.25 | AZ83: 1 | BA83: 0.25 | BB83: 1 | BC83: 0.25 | BD83: 1 | BE83: 1 | BF83: 1 | BG83: 0.8 | BH83: 1 | BI83: 1 | BJ83: 1 | BK83: 1 | BL83: 1 | BM83: 1 | BN83: 0.8 | BO83: 0.8 | BP83: 0.95 | BQ83: 0.95 | BR83: 0.95 | BS83: 0 | BT83: 0 | BU83: 0 | BV83: - | BW83: - | BX83: 0 | BY83: 0 | BZ83: 0 | CA83: - | CB83: - | CC83: 25000 | CD83: 25000 | CE83: 0 | CF83: 1 | CG83: - | CH83: 24300 | CI83: 24300 | CJ83: 0 | CK83: 1 | CL83: - | CM83: 49300 | CN83: 49300 | CO83: 0 | CP83: 1 | CQ83: - | CR83: 16. Paz, justicia e instituciones sólidas | CS83: Justicia y Seguridad | CT83: Sec. Jurídica
AQ84: Implementar y mantener 1 sistema de información misional que agilice el registro, seguimiento y control de los asuntos de la secretaría jurídica. | AR84: 0 | AS84: Número de sistemas de información misional implementados que agilice el registro, seguimiento y control de los asuntos de la secretaría jurídica. | AT84: 0 | AU84: 1 | AV84: 1 | AW84: 0.25 | AX84: 1 | AY84: 0.25 | AZ84: 1 | BA84: 0.25 | BB84: 1 | BC84: 0.25 | BD84: 1 | BE84: 1 | BF84: 1 | BG84: 0.8 | BH84: 1 | BI84: 1 | BJ84: 1 | BK84: 1 | BL84: 1 | BM84: 1 | BN84: 0.8 | BO84: 0.8 | BP84: 0.95 | BQ84: 0.95 | BR84: 0.95 | BS84: 19000 | BT84: 19000 | BU84: 0 | BV84: 1 | BW84: - | BX84: 57000 | BY84: 57000 | BZ84: 0 | CA84: 1 | CB84: - | CC84: 35171 | CD84: 35171 | CE84: 0 | CF84: 1 | CG84: - | CH84: 22000 | CI84: 12000 | CJ84: 0 | CK84: 0.5454545455 | CL84: - | CM84: 133171 | CN84: 123171 | CO84: 0 | CP84: 0.9249085762 | CQ84: - | CR84: 16. Paz, justicia e instituciones sólidas | CS84: Fortalecimiento Institucional | CT84: Sec. Jurídica
AO85: =+RESUMEN!J21 -> 0.7890222222 | AP85: ADMINISTRACIÓN ARTICULADA Y COHERENTE | AQ85: Ajustar y mantener implementado el Plan Institucional de Capacitación y Formación y el Plan de Bienestar y Estímulos. | AR85: 2210526 | AS85: Número de Planes institucionales de capacitación y formación y de bienestar y estímulos ajustados y mantenidos. | AT85: 2 | AU85: 2 | AV85: 2 | AW85: 0.25 | AX85: 2 | AY85: 0.25 | AZ85: 2 | BA85: 0.25 | BB85: 2 | BC85: 0.25 | BD85: 2 | BE85: 2 | BF85: 2 | BG85: 2 | BH85: 1 | BI85: 1 | BJ85: 1 | BK85: 1 | BL85: 1 | BM85: 1 | BN85: 1 | BO85: 1 | BP85: 1 | BQ85: 1 | BR85: 1 | BS85: 600000 | BT85: 600000 | BU85: 0 | BV85: 1 | BW85: - | BX85: 600000 | BY85: 0 | BZ85: 0 | CA85: 0 | CB85: - | CC85: 430000 | CD85: 430000 | CE85: 0 | CF85: 1 | CG85: - | CH85: 400000 | CI85: 380451 | CJ85: 0 | CK85: 0.9511275 | CL85: - | CM85: 2030000 | CN85: 1410451 | CO85: 0 | CP85: 0.6948034483 | CQ85: - | CR85: 16. Paz, justicia e instituciones sólidas | CS85: Fortalecimiento Institucional | CT85: Sec. Administrativa
AQ86: Mantener 1 sistema de gestión y control certificado. | AR86: 2210527 | AS86: Número de sistemas de gestión y control certificados mantenidos. | AT86: 1 | AU86: 1 | AV86: 1 | AW86: 0.25 | AX86: 1 | AY86: 0.25 | AZ86: 1 | BA86: 0.25 | BB86: 1 | BC86: 0.25 | BD86: 1 | BE86: 1 | BF86: 1 | BG86: 1 | BH86: 1 | BI86: 1 | BJ86: 1 | BK86: 1 | BL86: 1 | BM86: 1 | BN86: 1 | BO86: 1 | BP86: 1 | BQ86: 1 | BR86: 1 | BS86: 0 | BT86: 0 | BU86: 0 | BV86: - | BW86: - | BX86: 53052 | BY86: 49573 | BZ86: 0 | CA86: 0.9344228304 | CB86: - | CC86: 0 | CD86: 0 | CE86: 0 | CF86: - | CG86: - | CH86: 0 | CI86: 0 | CJ86: 0 | CK86: - | CL86: - | CM86: 53052 | CN86: 49573 | CO86: 0 | CP86: 0.9344228304 | CQ86: - | CR86: 16. Paz, justicia e instituciones sólidas | CS86: Fortalecimiento Institucional | CT86: Sec. Administrativa
AQ87: Realizar 3 auditorías de seguimiento por el ente certificador. | AR87: 2210527 | AS87: Número de auditorías de seguimiento por el ente certificador realizadas. | AT87: 3 | AU87: 3 | AV87: 1 | AW87: 0.3333333333 | AX87: 0 | AY87: 0 | AZ87: 1 | BA87: 0.3333333333 | BB87: 1 | BC87: 0.3333333333 | BD87: 1 | BE87: 0 | BF87: 1 | BG87: 0 | BH87: 1 | BI87: 1 | BJ87: - | BK87: - | BL87: 1 | BM87: 1 | BN87: 0 | BO87: 0 | BP87: =+SUM(BD87:BG87)/AU87 -> 0.6666666667 | BQ87: 0.6666666667 | BR87: 0.6666666667 | BS87: 200000 | BT87: 7637 | BU87: 0 | BV87: 0.038185 | BW87: - | BX87: 0 | BY87: 0 | BZ87: 0 | CA87: - | CB87: - | CC87: 11000 | CD87: 8181 | CE87: 0 | CF87: 0.7437272727 | CG87: - | CH87: 8000 | CI87: 0 | CJ87: 0 | CK87: 0 | CL87: - | CM87: 219000 | CN87: 15818 | CO87: 0 | CP87: 0.0722283105 | CQ87: - | CR87: 16. Paz, justicia e instituciones sólidas | CS87: Fortalecimiento Institucional | CT87: Sec. Administrativa
F88: Lograr una calificación de 85 en el Índice de Desempeño Integral del DNP. | G88: 75 | H88: 85 | I88: =+H88-G88 -> 10 | J88: 75 | K88: =+J88-G88 -> 0 | M88: 80 | N88: =+M88-J88 -> 5 | P88: 85 | Q88: =+P88-M88 -> 5 | S88: 85 | T88: =+S88-P88 -> 0 | V88: 71.9 | W88: =+IF(V88=0,0,V88-G88) -> -3.1 | X88: 80.7 | Y88: =+IF(X88=0,0,X88-V88) -> 8.8 | Z88: 80.7 | AA88: =+IF(Z88=0,0,Z88-X88) -> 0 | AC88: =+IF(AB88=0,0,AB88-Z88) -> 0 | AD88: =+IF(K88=0," -",W88/K88) -> - | AE88: =+IF(K88=0," -",IF(AD88>100%,100%,AD88)) -> - | AF88: =+IF(N88=0," -",Y88/N88) -> 1.76 | AG88: =+IF(N88=0," -",IF(AF88>100%,100%,AF88)) -> 1 | AH88: =+IF(Q88=0," -",AA88/Q88) -> 0 | AI88: =+IF(Q88=0," -",IF(AH88>100%,100%,AH88)) -> 0 | AJ88: =+IF(T88=0," -",AC88/T88) -> - | AK88: =+IF(T88=0," -",IF(AJ88>100%,100%,AJ88)) -> - | AL88: =+SUM(AC88,AA88,Y88,W88)/I88 -> 0.57 | AM88: =+IF(AL88>100%,100%,IF(AL88<0%,0%,AL88)) -> 0.57 | AQ88: Realizar 1 auditoría de recertificación por el ente certificador. | AR88: 2210527 | AS88: Número de auditorías de recertificación por el ente certificador realizadas. | AT88: 1 | AU88: 1 | AV88: 0 | AW88: 0 | AX88: 1 | AY88: 1 | AZ88: 0 | BA88: 0 | BB88: 0 | BC88: 0 | BD88: 0 | BE88: 1 | BF88: 0 | BG88: 0 | BH88: - | BI88: - | BJ88: 1 | BK88: 1 | BL88: - | BM88: - | BN88: - | BO88: - | BP88: 1 | BQ88: 1 | BR88: 1 | BS88: 0 | BT88: 0 | BU88: 0 | BV88: - | BW88: - | BX88: 0 | BY88: 0 | BZ88: 0 | CA88: - | CB88: - | CC88: 0 | CD88: 0 | CE88: 0 | CF88: - | CG88: - | CH88: 0 | CI88: 0 | CJ88: 0 | CK88: - | CL88: - | CM88: 0 | CN88: 0 | CO88: 0 | CP88: - | CQ88: - | CR88: 16. Paz, justicia e instituciones sólidas | CS88: Fortalecimiento Institucional | CT88: Sec. Administrativa
AQ89: Formular e implementar el Programa de Gestión Documental - PGD y el Plan Institucional de Archivos - PINAR. | AR89: 2210524 | AS89: Número de Programas de Gestión Documental y Planes Institucional de Archivos formulados e implementados. | AT89: 2 | AU89: 2 | AV89: 2 | AW89: 0.25 | AX89: 2 | AY89: 0.25 | AZ89: 2 | BA89: 0.25 | BB89: 2 | BC89: 0.25 | BD89: 2 | BE89: 2 | BF89: 2 | BG89: 2 | BH89: 1 | BI89: 1 | BJ89: 1 | BK89: 1 | BL89: 1 | BM89: 1 | BN89: 1 | BO89: 1 | BP89: 1 | BQ89: 1 | BR89: 1 | BS89: 50000 | BT89: 0 | BU89: 0 | BV89: 0 | BW89: - | BX89: 300000 | BY89: 279846 | BZ89: 0 | CA89: 0.93282 | CB89: - | CC89: 100000 | CD89: 0 | CE89: 0 | CF89: 0 | CG89: - | CH89: 42750 | CI89: 42750 | CJ89: 0 | CK89: 1 | CL89: - | CM89: 492750 | CN89: 322596 | CO89: 0 | CP89: 0.6546849315 | CQ89: - | CR89: 16. Paz, justicia e instituciones sólidas | CS89: Fortalecimiento Institucional | CT89: Sec. Administrativa
AQ90: Formular e implementar 1 estrategia de gobierno para la aplicación cabal de la ley 1474 de 2011 estatuto anti-corrupción y el CONPES 167 de 2013. | AR90: - | AS90: Número de estrategias de gobierno formuladas e implementadas para la aplicación cabal de la ley 1474 de 2011 estatuto anti-corrupción y el CONPES 167 de 2013. | AT90: 1 | AU90: 1 | AV90: 1 | AW90: 1 | AX90: 1 | AY90: 0.33 | AZ90: 1 | BA90: 0.33 | BB90: 1 | BC90: 0.34 | BD90: 1 | BE90: 1 | BF90: 1 | BG90: 1 | BH90: 1 | BI90: 1 | BJ90: 1 | BK90: 1 | BL90: 1 | BM90: 1 | BN90: 1 | BO90: 1 | BP90: =+AVERAGE(BD90:BG90)/AU90 -> 1 | BQ90: 1 | BR90: 1 | BS90: 0 | BT90: 0 | BU90: 0 | BV90: - | BW90: - | BX90: 0 | BY90: 0 | BZ90: 0 | CA90: - | CB90: - | CC90: 0 | CD90: 0 | CE90: 0 | CF90: - | CG90: - | CH90: 0 | CI90: 0 | CJ90: 0 | CK90: - | CL90: - | CM90: 0 | CN90: 0 | CO90: 0 | CP90: - | CQ90: - | CR90: 16. Paz, justicia e instituciones sólidas | CS90: Fortalecimiento Institucional | CT90: Sec. Administrativa
AQ91: Implementar y mantener el 100% de los procesos necesarios para la formulación y ejecución del Plan Anti-corrupción y Atención al Ciudadano. | AR91: - | AS91: Porcentaje de procesos necesarios implementados y mantenidos para la formulación y ejecución del Plan Anti-corrupción y Atención al Ciudadano. | AT91: 0 | AU91: 1 | AV91: 1 | AW91: 0.25 | AX91: 1 | AY91: 0.25 | AZ91: 1 | BA91: 0.25 | BB91: 1 | BC91: 0.25 | BD91: 1 | BE91: 1 | BF91: 1 | BG91: 1 | BH91: 1 | BI91: 1 | BJ91: 1 | BK91: 1 | BL91: 1 | BM91: 1 | BN91: 1 | BO91: 1 | BP91: 1 | BQ91: 1 | BR91: 1 | BS91: 0 | BT91: 0 | BU91: 0 | BV91: - | BW91: - | BX91: 0 | BY91: 0 | BZ91: 0 | CA91: - | CB91: - | CC91: 0 | CD91: 0 | CE91: 0 | CF91: - | CG91: - | CH91: 0 | CI91: 0 | CJ91: 0 | CK91: - | CL91: - | CM91: 0 | CN91: 0 | CO91: 0 | CP91: - | CQ91: - | CR91: 16. Paz, justicia e instituciones sólidas | CS91: Fortalecimiento Institucional | CT91: Sec. Administrativa
AQ92: Formular e implementar 1 plan de modernización de la planta de personal. | AR92: 2210252 | AS92: Porcentaje de avance de la formulación e implementación del plan de modernización de la planta de personal. | AT92: 0 | AU92: 1 | AV92: 0.1 | AW92: 0.1 | AX92: 0.2 | AY92: 0.2 | AZ92: 0.35 | BA92: 0.35 | BB92: 0.35 | BC92: 0.35 | BD92: 0.1 | BE92: 0.3 | BF92: 0 | BG92: 0 | BH92: 1 | BI92: 1 | BJ92: 1.5 | BK92: 1 | BL92: 0 | BM92: 0 | BN92: 0 | BO92: 0 | BP92: =+SUM(BD92:BG92)/AU92 -> 0.4 | BQ92: 0.4 | BR92: 0.4 | BS92: 325000 | BT92: 0 | BU92: 0 | BV92: 0 | BW92: - | BX92: 0 | BY92: 0 | BZ92: 0 | CA92: - | CB92: - | CC92: 0 | CD92: 0 | CE92: 0 | CF92: - | CG92: - | CH92: 0 | CI92: 0 | CJ92: 0 | CK92: - | CL92: - | CM92: 325000 | CN92: 0 | CO92: 0 | CP92: 0 | CQ92: - | CR92: 16. Paz, justicia e instituciones sólidas | CS92: Fortalecimiento Institucional | CT92: Sec. Administrativa
AQ93: Crear 1 cargo del nivel directivo y/o asesor adscrito al despacho del Alcalde encargado de la coordinación del gabinete municipal (Jefe de Gabinete). | AR93: - | AS93: Número de cargos creados adscritos al despacho del Alcalde para la coordinación del gabinete municipal (Jefe de Gabinete). | AT93: 0 | AU93: 1 | AV93: 0 | AW93: 0 | AX93: 1 | AY93: 1 | AZ93: 0 | BA93: 0 | BB93: 0 | BC93: 0 | BD93: 0 | BE93: 0 | BF93: 0 | BG93: 0 | BH93: - | BI93: - | BJ93: 0 | BK93: 0 | BL93: - | BM93: - | BN93: - | BO93: - | BP93: 0 | BQ93: 0 | BR93: 0 | BS93: 0 | BT93: 0 | BU93: 0 | BV93: - | BW93: - | BX93: 0 | BY93: 0 | BZ93: 0 | CA93: - | CB93: - | CC93: 0 | CD93: 0 | CE93: 0 | CF93: - | CG93: - | CH93: 0 | CI93: 0 | CJ93: 0 | CK93: - | CL93: - | CM93: 0 | CN93: 0 | CO93: 0 | CP93: - | CQ93: - | CR93: 16. Paz, justicia e instituciones sólidas | CS93: Fortalecimiento Institucional | CT93: Sec. Administrativa
AQ94: Formular e implementar 1 estrategia de gobierno para la aplicación cabal de la ley 1551 de 2012 por medio de la cual se dictaron normas para modernizar la organización y el funcionamiento de los municipios. | AR94: 2210301 | AS94: Número de estrategias de gobierno formuladas e implementadas para la aplicación cabal de la ley 1551 de 2012 por medio de la cual se dictaron normas para modernizar la organización y el funcionamiento de los municipios. | AT94: 0 | AU94: 1 | AV94: 1 | AW94: 0.25 | AX94: 1 | AY94: 0.25 | AZ94: 1 | BA94: 0.25 | BB94: 1 | BC94: 0.25 | BD94: 1 | BE94: 2 | BF94: 1 | BG94: 1 | BH94: 1 | BI94: 1 | BJ94: 2 | BK94: 1 | BL94: 1 | BM94: 1 | BN94: 1 | BO94: 1 | BP94: 1.25 | BQ94: 1 | BR94: 1 | BS94: 6950523 | BT94: 6653051 | BU94: 0 | BV94: 0.957201494 | BW94: - | BX94: 22431254 | BY94: 18616411 | BZ94: 0 | CA94: 0.8299317996 | CB94: - | CC94: 40410002 | CD94: 38128921 | CE94: 0 | CF94: 0.9435515742 | CG94: - | CH94: 27500000 | CI94: 21968283 | CJ94: 0 | CK94: 0.7988466545 | CL94: - | CM94: 97291779 | CN94: 85366666 | CO94: 0 | CP94: 0.8774293869 | CQ94: - | CR94: 16. Paz, justicia e instituciones sólidas | CS94: Fortalecimiento Institucional | CT94: Sec. Hacienda
AQ95: Adecuar física y tecnológicamente el archivo de planos. | AR95: 2210158 | AS95: Porcentaje de avance en la adecuación física y tecnológica del archivo de planos. | AT95: 0 | AU95: 1 | AV95: 0 | AW95: 0 | AX95: 0.4 | AY95: 0.4 | AZ95: 0 | BA95: 0 | BB95: 0.6 | BC95: 0.6 | BD95: 0 | BE95: 0.002 | BF95: 0 | BG95: 0 | BH95: - | BI95: - | BJ95: 0.005 | BK95: 0.005 | BL95: - | BM95: - | BN95: 0 | BO95: 0 | BP95: =+SUM(BD95:BG95)/AU95 -> 0.002 | BQ95: 0.002 | BR95: 0.002 | BS95: 0 | BT95: 0 | BU95: 0 | BV95: - | BW95: - | BX95: 18133 | BY95: 18133 | BZ95: 0 | CA95: 1 | CB95: - | CC95: 0 | CD95: 0 | CE95: 0 | CF95: - | CG95: - | CH95: 0 | CI95: 0 | CJ95: 0 | CK95: - | CL95: - | CM95: 18133 | CN95: 18133 | CO95: 0 | CP95: 1 | CQ95: - | CR95: 16. Paz, justicia e instituciones sólidas | CS95: Fortalecimiento Institucional | CT95: Sec. Planeación
AQ96: Celebrar 20 acuerdos populares en el territorio para comprometer acciones diversas de gobierno ante problemas comunitarios. | AR96: 2210289 2210754 | AS96: Número de acuerdos populares celebrados en el territorio para comprometer acciones diversas de gobierno ante problemas comunitarios. | AT96: 0 | AU96: 20 | AV96: 20 | AW96: 1 | AX96: 0 | AY96: 0 | AZ96: 0 | BA96: 0 | BB96: 0 | BC96: 0 | BD96: 20 | BE96: 0 | BF96: 0 | BG96: 3 | BH96: 1 | BI96: 1 | BJ96: - | BK96: - | BL96: - | BM96: - | BN96: - | BO96: - | BP96: 1.15 | BQ96: 1 | BR96: 1 | BS96: 0 | BT96: 0 | BU96: 0 | BV96: - | BW96: - | BX96: 0 | BY96: 0 | BZ96: 0 | CA96: - | CB96: - | CC96: 0 | CD96: 0 | CE96: 0 | CF96: - | CG96: - | CH96: 532000 | CI96: 456813 | CJ96: 0 | CK96: 0.8586710526 | CL96: - | CM96: 532000 | CN96: 456813 | CO96: 0 | CP96: 0.8586710526 | CQ96: - | CR96: 16. Paz, justicia e instituciones sólidas | CS96: Fortalecimiento Institucional | CT96: Sec. Desarrollo Social
AQ97: Formular e implementar 1 plan institucional en Bomberos de Bucaramanga. | AR97: 22141 22151 22161 | AS97: Número de planes institucionales integrales formulados e implementados en Bomberos de Bucaramanga. | AT97: 0 | AU97: 1 | AV97: 0 | AW97: 0 | AX97: 1 | AY97: 0.33 | AZ97: 1 | BA97: 0.33 | BB97: 1 | BC97: 0.34 | BD97: 0 | BE97: 1 | BF97: 0.3 | BG97: 1 | BH97: - | BI97: - | BJ97: 1 | BK97: 1 | BL97: 0.3 | BM97: 0.3 | BN97: 1 | BO97: 1 | BP97: =+AVERAGE(BE97:BG97)/AU97 -> 0.7666666667 | BQ97: 0.7666666667 | BR97: 0.7666666667 | BS97: 770000 | BT97: 0 | BU97: 0 | BV97: 0 | BW97: - | BX97: 1427338 | BY97: 778799 | BZ97: 618838 | CA97: 0.5456303973 | CB97: 0.7946055401 | CC97: 848875 | CD97: 44000 | CE97: 0 | CF97: 0.05183330879 | CG97: - | CH97: 295000 | CI97: 162150 | CJ97: 0 | CK97: 0.5496610169 | CL97: - | CM97: 3341213 | CN97: 984949 | CO97: 618838 | CP97: 0.294787851 | CQ97: 0.6282944599 | CR97: 16. Paz, justicia e instituciones sólidas | CS97: Fortalecimiento Institucional | CT97: Bomberos
F98: Mantener una calificación de solvente en el Índice de Desempeño Fiscal del DNP. | G98: Solvente | H98: Solvente | I98: 1 | J98: Solvente | K98: 1 | M98: Solvente | N98: 1 | P98: Solvente | Q98: 1 | S98: Solvente | T98: 1 | V98: Solvente | W98: =+IF(V98="Solvente",1,0) -> 1 | X98: Sostenible | Y98: =+IF(X98="Solvente",1,0) -> 0 | AA98: =+IF(Z98="Solvente",1,0) -> 0 | AC98: =+IF(AB98="Solvente",1,0) -> 0 | AD98: =+IF(K98=0," -",W98/K98) -> 1 | AE98: =+IF(K98=0," -",IF(AD98>100%,100%,AD98)) -> 1 | AF98: =+IF(N98=0," -",Y98/N98) -> 0 | AG98: =+IF(N98=0," -",IF(AF98>100%,100%,AF98)) -> 0 | AH98: =+IF(Q98=0," -",AA98/Q98) -> 0 | AI98: =+IF(Q98=0," -",IF(AH98>100%,100%,AH98)) -> 0 | AJ98: =+IF(T98=0," -",AC98/T98) -> 0 | AK98: =+IF(T98=0," -",IF(AJ98>100%,100%,AJ98)) -> 0 | AL98: =+SUM(AC98,AA98,Y98,W98)/I98 -> 1 | AM98: =+IF(AL98>100%,100%,IF(AL98<0%,0%,AL98)) -> 1 | AQ98: Formular e implementar 1 plan de adquisición de equipos tecnológicos. | AR98: 2210237 | AS98: Porcentaje de avance en la formulación e implementación del plan de adquisición de equipos tecnológicos. | AT98: 0 | AU98: 1 | AV98: 0 | AW98: 0 | AX98: 0.2 | AY98: 0.2 | AZ98: 0.4 | BA98: 0.4 | BB98: 0.4 | BC98: 0.4 | BD98: 0.5 | BE98: 0.2 | BF98: 0.36 | BG98: 0.232 | BH98: - | BI98: - | BJ98: 1 | BK98: 1 | BL98: 0.9 | BM98: 0.9 | BN98: 0.58 | BO98: 0.58 | BP98: =+SUM(BD98:BG98)/AU98 -> 1.292 | BQ98: 1 | BR98: 1 | BS98: 0 | BT98: 0 | BU98: 0 | BV98: - | BW98: - | BX98: 2952569 | BY98: 1683843 | BZ98: 0 | CA98: 0.5702975951 | CB98: - | CC98: 2097632 | CD98: 1336200 | CE98: 0 | CF98: 0.6370040121 | CG98: - | CH98: 750000 | CI98: 434200 | CJ98: 0 | CK98: 0.5789333333 | CL98: - | CM98: 5800201 | CN98: 3454243 | CO98: 0 | CP98: 0.5955384994 | CQ98: - | CR98: 16. Paz, justicia e instituciones sólidas | CS98: Fortalecimiento Institucional | CT98: Asesor TIC
AQ99: Formular e implementar 1 plan de fortalecimiento institucional para la Dirección de Tránsito de Bucaramanga. | AR99: O535060101 O535060102 O535060103 O535060104 | AS99: Número de planes de fortalecimiento institucional para la Dirección de tránsito de Bucaramanga formulados e implementados. | AT99: 1 | AU99: 1 | AV99: 1 | AW99: 0.25 | AX99: 1 | AY99: 0.25 | AZ99: 1 | BA99: 0.25 | BB99: 1 | BC99: 0.25 | BD99: 1 | BE99: 1 | BF99: 1 | BG99: 1 | BH99: 1 | BI99: 1 | BJ99: 1 | BK99: 1 | BL99: 1 | BM99: 1 | BN99: 1 | BO99: 1 | BP99: 1 | BQ99: 1 | BR99: 1 | BS99: 2830991 | BT99: 234557 | BU99: 0 | BV99: 0.08285331886 | BW99: - | BX99: 1125100 | BY99: 782923 | BZ99: 0 | CA99: 0.6958697005 | CB99: - | CC99: 1978825 | CD99: 1122947 | CE99: 0 | CF99: 0.5674817126 | CG99: - | CH99: 1465000 | CI99: 405555 | CJ99: 0 | CK99: 0.2768293515 | CL99: - | CM99: 7399916 | CN99: 2545982 | CO99: 0 | CP99: 0.3440555271 | CQ99: - | CR99: 16. Paz, justicia e instituciones sólidas | CS99: Fortalecimiento Institucional | CT99: Dir. Tránsito
AO100: =+RESUMEN!J22 -> 0.5878205128 | AP100: UNA CIUDAD VISIBLE QUE TOMA DECISIONES INTELIGENTES | AQ100: Mantener actualizada la base de datos del SISBEN. | AR100: 2210844 | AS100: Número de bases de datos del SISBEN actualizadas. | AT100: 1 | AU100: 1 | AV100: 1 | AW100: 0.25 | AX100: 1 | AY100: 0.25 | AZ100: 1 | BA100: 0.25 | BB100: 1 | BC100: 0.25 | BD100: 1 | BE100: 1 | BF100: 1 | BG100: 1 | BH100: 1 | BI100: 1 | BJ100: 1 | BK100: 1 | BL100: 1 | BM100: 1 | BN100: 1 | BO100: 1 | BP100: 1 | BQ100: 1 | BR100: 1 | BS100: 355000 | BT100: 269367 | BU100: 0 | BV100: 0.7587802817 | BW100: - | BX100: 214127 | BY100: 213327 | BZ100: 0 | CA100: 0.9962638995 | CB100: - | CC100: 259826.6 | CD100: 228440.333 | CE100: 0 | CF100: 0.8792030262 | CG100: - | CH100: 238629.699 | CI100: 200356.8 | CJ100: 0 | CK100: 0.8396138487 | CL100: - | CM100: 1067583.299 | CN100: 911491.133 | CO100: 0 | CP100: 0.8537892395 | CQ100: - | CR100: 16. Paz, justicia e instituciones sólidas | CS100: Salud | CT100: Sec. Planeación
AQ101: Implementar la nueva metodología SISBEN 4. | AR101: 2210844 | AS101: Número de metodologías SISBEN 4 implementadas. | AT101: 0 | AU101: 1 | AV101: 0 | AW101: 0 | AX101: 0 | AY101: 0 | AZ101: 0 | BA101: 0 | BB101: 1 | BC101: 1 | BD101: 0 | BE101: 0 | BF101: 0 | BG101: 0.4 | BH101: - | BI101: - | BJ101: - | BK101: - | BL101: - | BM101: - | BN101: 0.4 | BO101: 0.4 | BP101: =+SUM(BD101:BG101)/AU101 -> 0.4 | BQ101: 0.4 | BR101: 0.4 | BS101: 0 | BT101: 0 | BU101: 0 | BV101: - | BW101: - | BX101: 0 | BY101: 0 | BZ101: 0 | CA101: - | CB101: - | CC101: 0 | CD101: 0 | CE101: 0 | CF101: - | CG101: - | CH101: 802966.734 | CI101: 528579.628 | CJ101: 0 | CK101: 0.6582833455 | CL101: - | CM101: 802966.734 | CN101: 528579.628 | CO101: 0 | CP101: 0.6582833455 | CQ101: - | CR101: 16. Paz, justicia e instituciones sólidas | CS101: Salud | CT101: Sec. Planeación
AQ102: Readecuar 1 oficina para el SISBEN | AR102: 2210844 | AS102: Número de oficinas para el SISBEN readecuadas. | AT102: 0 | AU102: 1 | AV102: 0 | AW102: 0 | AX102: 1 | AY102: 1 | AZ102: 0 | BA102: 0 | BB102: 0 | BC102: 0 | BD102: 0 | BE102: 0 | BF102: 0 | BG102: 0.7 | BH102: - | BI102: - | BJ102: 0 | BK102: 0 | BL102: - | BM102: - | BN102: - | BO102: - | BP102: 0.7 | BQ102: 0.7 | BR102: 0.7 | BS102: 0 | BT102: 0 | BU102: 0 | BV102: - | BW102: - | BX102: 0 | BY102: 0 | BZ102: 0 | CA102: - | CB102: - | CC102: 0 | CD102: 0 | CE102: 0 | CF102: - | CG102: - | CH102: 0 | CI102: 0 | CJ102: 0 | CK102: - | CL102: - | CM102: 0 | CN102: 0 | CO102: 0 | CP102: - | CQ102: - | CR102: 16. Paz, justicia e instituciones sólidas | CS102: Fortalecimiento Institucional | CT102: Sec. Planeación
AQ103: Mantener el fortalecimiento del grupo de clasificación socioeconómico y estadístico. | AR103: 2210844 | AS103: Número de grupos de clasificación socioeconómico y estadístico fortalecidos. | AT103: 1 | AU103: 1 | AV103: 1 | AW103: 0.25 | AX103: 1 | AY103: 0.25 | AZ103: 1 | BA103: 0.25 | BB103: 1 | BC103: 0.25 | BD103: 1 | BE103: 1 | BF103: 1 | BG103: 1 | BH103: 1 | BI103: 1 | BJ103: 1 | BK103: 1 | BL103: 1 | BM103: 1 | BN103: 1 | BO103: 1 | BP103: 1 | BQ103: 1 | BR103: 1 | BS103: 0 | BT103: 0 | BU103: 0 | BV103: - | BW103: - | BX103: 176000 | BY103: 176000 | BZ103: 0 | CA103: 1 | CB103: - | CC103: 160000 | CD103: 159033 | CE103: 0 | CF103: 0.99395625 | CG103: - | CH103: 238629.699 | CI103: 200356.8 | CJ103: 0 | CK103: 0.8396138487 | CL103: - | CM103: 574629.699 | CN103: 535389.8 | CO103: 0 | CP103: 0.9317127203 | CQ103: - | CR103: 16. Paz, justicia e instituciones sólidas | CS103: Fortalecimiento Institucional | CT103: Sec. Planeación
AQ104: Mantener actualizada la base de datos de estratificación urbana y rural. | AR104: 2210833 | AS104: Número de base de datos de estratificación urbana y rural actualizada. | AT104: 1 | AU104: 1 | AV104: 1 | AW104: 0.25 | AX104: 1 | AY104: 0.25 | AZ104: 1 | BA104: 0.25 | BB104: 1 | BC104: 0.25 | BD104: 1 | BE104: 1 | BF104: 1 | BG104: 1 | BH104: 1 | BI104: 1 | BJ104: 1 | BK104: 1 | BL104: 1 | BM104: 1 | BN104: 1 | BO104: 1 | BP104: 1 | BQ104: 1 | BR104: 1 | BS104: 47245 | BT104: 25101 | BU104: 0 | BV104: 0.5312943169 | BW104: - | BX104: 495469.8841 | BY104: 273720 | BZ104: 0 | CA104: 0.5524452823 | CB104: - | CC104: 389908.668 | CD104: 76479.401 | CE104: 0 | CF104: 0.1961469628 | CG104: - | CH104: 350664.926 | CI104: 78858.755 | CJ104: 0 | CK104: 0.2248834975 | CL104: - | CM104: 1283288.478 | CN104: 454159.156 | CO104: 0 | CP104: 0.3539026211 | CQ104: - | CR104: 16. Paz, justicia e instituciones sólidas | CS104: Fortalecimiento Institucional | CT104: Sec. Planeación
AQ105: Realizar la revisión general de la estratificación urbana y rural y su respectiva socialización. | AR105: 2210833 | AS105: Número de revisiones y socializaciones generales de la estratificación urbana y rural realizadas. | AT105: 0 | AU105: 1 | AV105: 0 | AW105: 0 | AX105: 1 | AY105: 1 | AZ105: 0 | BA105: 0 | BB105: 0 | BC105: 0 | BD105: 0 | BE105: 0 | BF105: 0 | BG105: 0 | BH105: - | BI105: - | BJ105: 0 | BK105: 0 | BL105: - | BM105: - | BN105: - | BO105: - | BP105: =+SUM(BD105:BG105)/AU105 -> 0 | BQ105: 0 | BR105: 0 | BS105: 0 | BT105: 0 | BU105: 0 | BV105: - | BW105: - | BX105: 0 | BY105: 0 | BZ105: 0 | CA105: - | CB105: - | CC105: 0 | CD105: 0 | CE105: 0 | CF105: - | CG105: - | CH105: 0 | CI105: 0 | CJ105: 0 | CK105: - | CL105: - | CM105: 0 | CN105: 0 | CO105: 0 | CP105: - | CQ105: - | CR105: 16. Paz, justicia e instituciones sólidas | CS105: Fortalecimiento Institucional | CT105: Sec. Planeación
AQ106: Implementar y mantener 1 estrategia para fortalecer el observatorio metropolitano y ampliar su alcance. | AR106: 2210100 | AS106: Número de estrategias implementadas y mantenidas para fortalecer el Observatorio Metropolitano y ampliar su alcance. | AT106: 0 | AU106: 1 | AV106: 0 | AW106: 0 | AX106: 1 | AY106: 0.33 | AZ106: 1 | BA106: 0.33 | BB106: 1 | BC106: 0.34 | BD106: 0 | BE106: 0 | BF106: 1 | BG106: 1 | BH106: - | BI106: - | BJ106: 0 | BK106: 0 | BL106: 1 | BM106: 1 | BN106: 1 | BO106: 1 | BP106: =+AVERAGE(BE106:BG106)/AU106 -> 0.6666666667 | BQ106: 0.6666666667 | BR106: 0.6666666667 | BS106: 0 | BT106: 0 | BU106: 0 | BV106: - | BW106: - | BX106: 0 | BY106: 0 | BZ106: 0 | CA106: - | CB106: - | CC106: 0 | CD106: 0 | CE106: 0 | CF106: - | CG106: - | CH106: 0 | CI106: 0 | CJ106: 0 | CK106: - | CL106: - | CM106: 0 | CN106: 0 | CO106: 0 | CP106: - | CQ106: - | CR106: 16. Paz, justicia e instituciones sólidas | CS106: Fortalecimiento Institucional | CT106: Sec. Planeación
AQ107: Crear 4 rankings MI (Medición Integral) Ciudad. | AR107: - | AS107: Número de rankings MI (Medición Integral) Ciudad creados. | AT107: 0 | AU107: 4 | AV107: 0 | AW107: 0 | AX107: 0 | AY107: 0 | AZ107: 0 | BA107: 0 | BB107: 4 | BC107: 1 | BD107: 1 | BE107: 0 | BF107: 0 | BG107: 0 | BH107: - | BI107: - | BJ107: - | BK107: - | BL107: - | BM107: - | BN107: 0 | BO107: 0 | BP107: =+SUM(BD107:BG107)/AU107 -> 0.25 | BQ107: 0.25 | BR107: 0.25 | BS107: 0 | BT107: 0 | BU107: 0 | BV107: - | BW107: - | BX107: 0 | BY107: 0 | BZ107: 0 | CA107: - | CB107: - | CC107: 0 | CD107: 0 | CE107: 0 | CF107: - | CG107: - | CH107: 0 | CI107: 0 | CJ107: 0 | CK107: - | CL107: - | CM107: 0 | CN107: 0 | CO107: 0 | CP107: - | CQ107: - | CR107: 16. Paz, justicia e instituciones sólidas | CS107: Fortalecimiento Institucional | CT107: Sec. Planeación
F108: Lograr que el 60% de los ciudadanos considere como buena la gestión del Alcalde/Gobierno municipal de acuerdo a la encuesta Cómo Vamos. | G108: 0.3 | H108: 0.6 | I108: =+H108-G108 -> 0.3 | J108: 0.3 | K108: =+J108-G108 -> 0 | M108: 0.4 | N108: =+M108-J108 -> 0.1 | P108: 0.5 | Q108: =+P108-M108 -> 0.1 | S108: 0.6 | T108: =+S108-P108 -> 0.1 | V108: 0.55 | W108: =+IF(V108=0,0,V108-G108) -> 0.25 | X108: 0.61 | Y108: =+IF(X108=0,0,X108-V108) -> 0.06 | Z108: 0.57 | AA108: =+IF(Z108=0,0,Z108-X108) -> -0.04 | AC108: =+IF(AB108=0,0,AB108-Z108) -> 0 | AD108: =+IF(K108=0," -",W108/K108) -> - | AE108: =+IF(K108=0," -",IF(AD108>100%,100%,AD108)) -> - | AF108: =+IF(N108=0," -",Y108/N108) -> 0.6 | AG108: =+IF(N108=0," -",IF(AF108>100%,100%,AF108)) -> 0.6 | AH108: =+IF(Q108=0," -",AA108/Q108) -> -0.4 | AI108: =+IF(Q108=0," -",IF(AH108>100%,100%,AH108)) -> -0.4 | AJ108: =+IF(T108=0," -",AC108/T108) -> 0 | AK108: =+IF(T108=0," -",IF(AJ108>100%,100%,AJ108)) -> 0 | AL108: =+SUM(AC108,AA108,Y108,W108)/I108 -> 0.9 | AM108: =+IF(AL108>100%,100%,IF(AL108<0%,0%,AL108)) -> 0.9 | AQ108: Apoyar 4 investigaciones académicas sobre temas urbanos de Bucaramanga que contribuyan a la comprensión de un problema público y a la formulación de políticas para solucionarlo. | AR108: 2210100 | AS108: Número de investigaciones académicas apoyadas sobre temas urbanos de Bucaramanga que contribuyan a la comprensión de un problema público y a la formulación de políticas para solucionarlo. | AT108: 0 | AU108: 4 | AV108: 1 | AW108: 0.25 | AX108: 1 | AY108: 0.25 | AZ108: 0 | BA108: 0 | BB108: 2 | BC108: 0.5 | BD108: 1 | BE108: 1 | BF108: 0 | BG108: 0 | BH108: 1 | BI108: 1 | BJ108: 1 | BK108: 1 | BL108: - | BM108: - | BN108: 0 | BO108: 0 | BP108: 0.5 | BQ108: 0.5 | BR108: 0.5 | BS108: 0 | BT108: 0 | BU108: 0 | BV108: - | BW108: - | BX108: 102000 | BY108: 102000 | BZ108: 344000 | CA108: 1 | CB108: 3.37254902 | CC108: 14800 | CD108: 14800 | CE108: 0 | CF108: 1 | CG108: - | CH108: 14800 | CI108: 14800 | CJ108: 0 | CK108: 1 | CL108: - | CM108: 131600 | CN108: 131600 | CO108: 344000 | CP108: 1 | CQ108: 2.613981763 | CR108: 16. Paz, justicia e instituciones sólidas | CS108: Fortalecimiento Institucional | CT108: Sec. Planeación
AQ109: Crear y mantener 1 banco de datos y estadísticas para la gestión pública. | AR109: 0 | AS109: Número de bancos de datos y estadísticas para la gestión pública creados y mantenidos. | AT109: 0 | AU109: 1 | AV109: 0 | AW109: 0 | AX109: 1 | AY109: 0.33 | AZ109: 1 | BA109: 0.33 | BB109: 1 | BC109: 0.34 | BD109: 0 | BE109: 0.25 | BF109: 1 | BG109: 1 | BH109: - | BI109: - | BJ109: 0.25 | BK109: 0.25 | BL109: 1 | BM109: 1 | BN109: 1 | BO109: 1 | BP109: =+AVERAGE(BE109:BG109)/AU109 -> 0.75 | BQ109: 0.75 | BR109: 0.75 | BS109: 150000 | BT109: 0 | BU109: 0 | BV109: 0 | BW109: - | BX109: 85854 | BY109: 24854 | BZ109: 0 | CA109: 0.2894914622 | CB109: - | CC109: 0 | CD109: 0 | CE109: 0 | CF109: - | CG109: - | CH109: 0 | CI109: 0 | CJ109: 0 | CK109: - | CL109: - | CM109: 235854 | CN109: 24854 | CO109: 0 | CP109: 0.1053787513 | CQ109: - | CR109: 16. Paz, justicia e instituciones sólidas | CS109: Fortalecimiento Institucional | CT109: Sec. Salud y Ambiente
AQ110: Implementar y mantener 1 estrategia de comunicación y pedagógica para promover la apropiación del territorio y para fortalecer el conocimiento de la propia ciudad entre los ciudadanos. | AR110: 2.2.1.35.2 | AS110: Número de estrategias de comunicación y pedagógicas implementadas y mantenidas para promover la apropiación del territorio y para fortalecer el conocimiento de la propia ciudad entre los ciudadanos. | AT110: 0 | AU110: 1 | AV110: 1 | AW110: 0.25 | AX110: 1 | AY110: 0.25 | AZ110: 1 | BA110: 0.25 | BB110: 1 | BC110: 0.25 | BD110: 0 | BE110: 0 | BF110: 1 | BG110: 1 | BH110: 0 | BI110: 0 | BJ110: 0 | BK110: 0 | BL110: 1 | BM110: 1 | BN110: 1 | BO110: 1 | BP110: 0.5 | BQ110: 0.5 | BR110: 0.5 | BS110: 60000 | BT110: 0 | BU110: 0 | BV110: 0 | BW110: - | BX110: 0 | BY110: 0 | BZ110: 0 | CA110: - | CB110: - | CC110: 111000 | CD110: 111000 | CE110: 0 | CF110: 1 | CG110: - | CH110: 468419 | CI110: 455059 | CJ110: 0 | CK110: 0.9714785267 | CL110: - | CM110: 639419 | CN110: 566059 | CO110: 0 | CP110: 0.8852708474 | CQ110: - | CR110: 16. Paz, justicia e instituciones sólidas | CS110: Cultura | CT110: IMCT
AQ111: Implementar y mantener 1 plataforma en línea sobre temas y datos actualizados de la ciudad (historia, cultura, turismo, geografía, economía, sociales, movilidad, espacio público entre otros factores). | AR111: 2.2.1.35.3 | AS111: Número de plataformas en línea implementadas y mantenidas sobre temas y datos actualizados de la ciudad (historia, cultura, turismo, geografía, economía, sociales, movilidad, espacio público entre otros factores). | AT111: 0 | AU111: 1 | AV111: 1 | AW111: 0.25 | AX111: 1 | AY111: 0.25 | AZ111: 1 | BA111: 0.25 | BB111: 1 | BC111: 0.25 | BD111: 0 | BE111: 1 | BF111: 0.5 | BG111: 1 | BH111: 0 | BI111: 0 | BJ111: 1 | BK111: 1 | BL111: 0.5 | BM111: 0.5 | BN111: 1 | BO111: 1 | BP111: 0.625 | BQ111: 0.625 | BR111: 0.625 | BS111: 80000 | BT111: 0 | BU111: 0 | BV111: 0 | BW111: - | BX111: 35200 | BY111: 19200 | BZ111: 0 | CA111: 0.5454545455 | CB111: - | CC111: 45200 | CD111: 45200 | CE111: 0 | CF111: 1 | CG111: - | CH111: 36000 | CI111: 36000 | CJ111: 0 | CK111: 1 | CL111: - | CM111: 196400 | CN111: 100400 | CO111: 0 | CP111: 0.5112016293 | CQ111: - | CR111: 16. Paz, justicia e instituciones sólidas | CS111: Cultura | CT111: IMCT
AQ112: Crear y mantener el libro virtual o plataforma en línea de la historia de las comunas. | AR112: 2.2.1.35.4 | AS112: Número de libros virtuales o plataformas en línea creadas y mantenidas de la historia de las comunas. | AT112: 0 | AU112: 1 | AV112: 1 | AW112: 0.25 | AX112: 1 | AY112: 0.25 | AZ112: 1 | BA112: 0.25 | BB112: 1 | BC112: 0.25 | BD112: 0 | BE112: 0 | BF112: 1 | BG112: 0 | BH112: 0 | BI112: 0 | BJ112: 0 | BK112: 0 | BL112: 1 | BM112: 1 | BN112: 0 | BO112: 0 | BP112: 0.25 | BQ112: 0.25 | BR112: 0.25 | BS112: 70000 | BT112: 0 | BU112: 0 | BV112: 0 | BW112: - | BX112: 70000 | BY112: 0 | BZ112: 0 | CA112: 0 | CB112: - | CC112: 30000 | CD112: 30000 | CE112: 0 | CF112: 1 | CG112: - | CH112: 8000 | CI112: 0 | CJ112: 0 | CK112: 0 | CL112: - | CM112: 178000 | CN112: 30000 | CO112: 0 | CP112: 0.1685393258 | CQ112: - | CR112: 16. Paz, justicia e instituciones sólidas | CS112: Cultura | CT112: IMCT
AO113: =+RESUMEN!J23 -> 0.8875 | AP113: FINANZAS PÚBLICAS SOSTENIBLES Y COMPRENSIBLES PARA LA CIUDADANÍA | AQ113: Garantizar que 3 documentos financieros estén disponibles y sean de fácil acceso e interpretación. | AR113: - | AS113: Número de documentos financieros disponibles de fácil acceso e interpretación. | AT113: 0 | AU113: 3 | AV113: 3 | AW113: 0.25 | AX113: 3 | AY113: 0.25 | AZ113: 3 | BA113: 0.25 | BB113: 3 | BC113: 0.25 | BD113: 3 | BE113: 3 | BF113: 3 | BG113: 3 | BH113: 1 | BI113: 1 | BJ113: 1 | BK113: 1 | BL113: 1 | BM113: 1 | BN113: 1 | BO113: 1 | BP113: 1 | BQ113: 1 | BR113: 1 | BS113: 0 | BT113: 0 | BU113: 0 | BV113: - | BW113: - | BX113: 0 | BY113: 0 | BZ113: 0 | CA113: - | CB113: - | CC113: 0 | CD113: 0 | CE113: 0 | CF113: - | CG113: - | CH113: 0 | CI113: 0 | CJ113: 0 | CK113: - | CL113: - | CM113: 0 | CN113: 0 | CO113: 0 | CP113: - | CQ113: - | CR113: 16. Paz, justicia e instituciones sólidas | CS113: Fortalecimiento Institucional | CT113: Sec. Hacienda
AQ114: Realizar 16 videos que permitan dar a conocer de manera didáctica al ciudadano la información financiera del municipio. | AR114: - | AS114: Número de videos realizados que permitan dar a conocer de manera didáctica al ciudadano la información financiera del municipio. | AT114: 0 | AU114: 16 | AV114: 4 | AW114: 0.25 | AX114: 4 | AY114: 0.25 | AZ114: 4 | BA114: 0.25 | BB114: 4 | BC114: 0.25 | BD114: 4 | BE114: 4 | BF114: 3 | BG114: 2 | BH114: 1 | BI114: 1 | BJ114: 1 | BK114: 1 | BL114: 0.75 | BM114: 0.75 | BN114: 0.5 | BO114: 0.5 | BP114: =+SUM(BD114:BG114)/AU114 -> 0.8125 | BQ114: 0.8125 | BR114: 0.8125 | BS114: 0 | BT114: 0 | BU114: 0 | BV114: - | BW114: - | BX114: 0 | BY114: 0 | BZ114: 0 | CA114: - | CB114: - | CC114: 0 | CD114: 0 | CE114: 0 | CF114: - | CG114: - | CH114: 0 | CI114: 0 | CJ114: 0 | CK114: - | CL114: - | CM114: 0 | CN114: 0 | CO114: 0 | CP114: - | CQ114: - | CR114: 16. Paz, justicia e instituciones sólidas | CS114: Fortalecimiento Institucional | CT114: Sec. Hacienda
AQ115: Implementar y mantener la norma internacional de información financiera - NIIF. | AR115: 2210277 | AS115: Número de normas internacionales de información financiera - NIIF implementadas y mantenidas. | AT115: 0 | AU115: 1 | AV115: 1 | AW115: 0.25 | AX115: 1 | AY115: 0.25 | AZ115: 1 | BA115: 0.25 | BB115: 1 | BC115: 0.25 | BD115: 0.3 | BE115: 0.5 | BF115: 0.7 | BG115: 1 | BH115: 0.3 | BI115: 0.3 | BJ115: 0.5 | BK115: 0.5 | BL115: 0.7 | BM115: 0.7 | BN115: 1 | BO115: 1 | BP115: 0.625 | BQ115: 0.625 | BR115: 0.625 | BS115: 68500 | BT115: 59940 | BU115: 0 | BV115: 0.8750364964 | BW115: - | BX115: 269500 | BY115: 269500 | BZ115: 0 | CA115: 1 | CB115: - | CC115: 285000 | CD115: 285000 | CE115: 0 | CF115: 1 | CG115: - | CH115: 202500 | CI115: 202500 | CJ115: 0 | CK115: 1 | CL115: - | CM115: 825500 | CN115: 816940 | CO115: 0 | CP115: 0.989630527 | CQ115: - | CR115: 16. Paz, justicia e instituciones sólidas | CS115: Fortalecimiento Institucional | CT115: Sec. Hacienda
AQ116: Actualizar el estatuto tributario. | AR116: - | AS116: Número de estatutos tributarios actualizados. | AT116: 1 | AU116: 1 | AV116: 0 | AW116: 0 | AX116: 1 | AY116: 1 | AZ116: 0 | BA116: 0 | BB116: 0 | BC116: 0 | BD116: 0 | BE116: 1 | BF116: 0 | BG116: 0 | BH116: - | BI116: - | BJ116: 1 | BK116: 1 | BL116: - | BM116: - | BN116: - | BO116: - | BP116: =+SUM(BD116:BG116)/AU116 -> 1 | BQ116: 1 | BR116: 1 | BS116: 0 | BT116: 0 | BU116: 0 | BV116: - | BW116: - | BX116: 0 | BY116: 0 | BZ116: 0 | CA116: - | CB116: - | CC116: 0 | CD116: 0 | CE116: 0 | CF116: - | CG116: - | CH116: 0 | CI116: 0 | CJ116: 0 | CK116: - | CL116: - | CM116: 0 | CN116: 0 | CO116: 0 | CP116: - | CQ116: - | CR116: 16. Paz, justicia e instituciones sólidas | CS116: Fortalecimiento Institucional | CT116: Sec. Hacienda
F117: Lograr una calificación de 80 en el componente organización de la información del IGA. | G117: 53.3 | H117: 80 | I117: =+H117-G117 -> 26.7 | J117: 60 | K117: =+J117-G117 -> 6.7 | M117: 80 | N117: =+M117-J117 -> 20 | P117: 80 | Q117: =+P117-M117 -> 0 | S117: 80 | T117: =+S117-P117 -> 0 | V117: 55.8 | W117: =+IF(V117=0,0,V117-G117) -> 2.5 | X117: 70.1 | Y117: =+IF(X117=0,0,X117-V117) -> 14.3 | Z117: 70.1 | AA117: =+IF(Z117=0,0,Z117-X117) -> 0 | AC117: =+IF(AB117=0,0,AB117-Z117) -> 0 | AD117: =+IF(K117=0," -",W117/K117) -> 0.3731343284 | AE117: =+IF(K117=0," -",IF(AD117>100%,100%,AD117)) -> 0.3731343284 | AF117: =+IF(N117=0," -",Y117/N117) -> 0.715 | AG117: =+IF(N117=0," -",IF(AF117>100%,100%,AF117)) -> 0.715 | AH117: =+IF(Q117=0," -",AA117/Q117) -> - | AI117: =+IF(Q117=0," -",IF(AH117>100%,100%,AH117)) -> - | AJ117: =+IF(T117=0," -",AC117/T117) -> - | AK117: =+IF(T117=0," -",IF(AJ117>100%,100%,AJ117)) -> - | AL117: =+SUM(AC117,AA117,Y117,W117)/I117 -> 0.6292134831 | AM117: =+IF(AL117>100%,100%,IF(AL117<0%,0%,AL117)) -> 0.6292134831 | AQ117: Realizar 5 acciones tendientes al fortalecimiento de los ingresos. | AR117: 2210277 | AS117: Número de acciones realizadas tendientes al fortalecimiento de los ingresos. | AT117: 1 | AU117: 5 | AV117: 2 | AW117: 0.4 | AX117: 3 | AY117: 0.6 | AZ117: 0 | BA117: 0 | BB117: 0 | BC117: 0 | BD117: 1 | BE117: 4 | BF117: 3 | BG117: 1 | BH117: 0.5 | BI117: 0.5 | BJ117: 1.333333333 | BK117: 1 | BL117: - | BM117: - | BN117: - | BO117: - | BP117: 1.8 | BQ117: 1 | BR117: 1 | BS117: 312414 | BT117: 283034 | BU117: 0 | BV117: 0.9059581197 | BW117: - | BX117: 5331547 | BY117: 5312293 | BZ117: 0 | CA117: 0.9963886654 | CB117: - | CC117: 1515800 | CD117: 815432 | CE117: 0 | CF117: 0.5379548753 | CG117: - | CH117: 1667955 | CI117: 1434088 | CJ117: 0 | CK117: 0.8597881837 | CL117: - | CM117: 8827716 | CN117: 7844847 | CO117: 0 | CP117: 0.8886610081 | CQ117: - | CR117: 16. Paz, justicia e instituciones sólidas | CS117: Fortalecimiento Institucional | CT117: Sec. Hacienda
AO118: =+RESUMEN!J24 -> 0.6883305556 | AP118: GESTIÓN INTELIGENTE DEL PATRIMONIO INMOBILIARIO MUNICIPAL | AQ118: Realizar y mantener actualizado en línea 1 inventario del los bienes inmuebles del municipio. | AR118: - | AS118: Número de inventarios en línea de los bienes inmuebles del municipio realizados y mantenidos. | AT118: 0 | AU118: 1 | AV118: 1 | AW118: 0.25 | AX118: 1 | AY118: 0.25 | AZ118: 1 | BA118: 0.25 | BB118: 1 | BC118: 0.25 | BD118: 0.85 | BE118: 0.536 | BF118: 0.65 | BG118: 0.6773 | BH118: 0.85 | BI118: 0.85 | BJ118: 0.536 | BK118: 0.536 | BL118: 0.65 | BM118: 0.65 | BN118: 0.6773 | BO118: 0.6773 | BP118: 0.678325 | BQ118: 0.678325 | BR118: 0.678325 | BS118: 0 | BT118: 0 | BU118: 0 | BV118: - | BW118: - | BX118: 0 | BY118: 0 | BZ118: 0 | CA118: - | CB118: - | CC118: 0 | CD118: 0 | CE118: 0 | CF118: - | CG118: - | CH118: 0 | CI118: 0 | CJ118: 0 | CK118: - | CL118: - | CM118: 0 | CN118: 0 | CO118: 0 | CP118: - | CQ118: - | CR118: 16. Paz, justicia e instituciones sólidas | CS118: Equipamiento | CT118: DADEP
AQ119: Incorporar 300 predios de propiedad del municipio cuya titulación se encuentra pendiente. | AR119: - | AS119: Número de predios de propiedad del municipio cuya titulación se encuentra pendiente incorporados. | AT119: 208 | AU119: 300 | AV119: 0 | AW119: 0 | AX119: 0 | AY119: 0 | AZ119: 150 | BA119: 0.5 | BB119: 150 | BC119: 0.5 | BD119: 0 | BE119: 0 | BF119: 30 | BG119: 86 | BH119: - | BI119: - | BJ119: - | BK119: - | BL119: 0.2 | BM119: 0.2 | BN119: 0.5733333333 | BO119: 0.5733333333 | BP119: =+SUM(BD119:BG119)/AU119 -> 0.3866666667 | BQ119: 0.3866666667 | BR119: 0.3866666667 | BS119: 0 | BT119: 0 | BU119: 0 | BV119: - | BW119: - | BX119: 0 | BY119: 0 | BZ119: 0 | CA119: - | CB119: - | CC119: 0 | CD119: 0 | CE119: 0 | CF119: - | CG119: - | CH119: 0 | CI119: 0 | CJ119: 0 | CK119: - | CL119: - | CM119: 0 | CN119: 0 | CO119: 0 | CP119: - | CQ119: - | CR119: 16. Paz, justicia e instituciones sólidas | CS119: Equipamiento | CT119: DADEP
AQ120: Adquirir el 100% de los predios requeridos para la ejecución de obras de desarrollo para la ciudad. | AR120: - | AS120: Porcentaje de predios requeridos adquiridos para la ejecución de obras de desarrollo para la ciudad. | AT120: 1 | AU120: 1 | AV120: 1 | AW120: 0.25 | AX120: 1 | AY120: 0.25 | AZ120: 1 | BA120: 0.25 | BB120: 1 | BC120: 0.25 | BD120: 1 | BE120: 1 | BF120: 1 | BG120: 1 | BH120: 1 | BI120: 1 | BJ120: 1 | BK120: 1 | BL120: 1 | BM120: 1 | BN120: 1 | BO120: 1 | BP120: 1 | BQ120: 1 | BR120: 1 | BS120: 0 | BT120: 0 | BU120: 0 | BV120: - | BW120: - | BX120: 0 | BY120: 0 | BZ120: 0 | CA120: - | CB120: - | CC120: 0 | CD120: 0 | CE120: 0 | CF120: - | CG120: - | CH120: 0 | CI120: 0 | CJ120: 0 | CK120: - | CL120: - | CM120: 0 | CN120: 0 | CO120: 0 | CP120: - | CQ120: - | CR120: 9. Industria, innovación e infraestructura | CS120: Equipamiento | CT120: Sec. Infraestructura
AO121: =+RESUMEN!J25 -> 0.8888888889 | AP121: INSPECCIONES Y COMISARÍAS QUE FUNCIONAN | AQ121: Sistematizar el 100% de los procesos que adelantan las inspecciones de policía. | AR121: 2210289 | AS121: Porcentaje de avance en la sistematización de los procesos que adelantan las inspecciones de policía. | AT121: 0 | AU121: 1 | AV121: 0 | AW121: 0 | AX121: 0.7 | AY121: 0.7 | AZ121: 0.3 | BA121: 0.3 | BB121: 0 | BC121: 0 | BD121: 0 | BE121: 0.6 | BF121: 1 | BG121: 1 | BH121: - | BI121: - | BJ121: 0.8571428571 | BK121: 0.8571428571 | BL121: 3.333333333 | BM121: 1 | BN121: - | BO121: - | BP121: =+SUM(BD121:BG121)/AU121 -> 2.6 | BQ121: 1 | BR121: 1 | BS121: 225205 | BT121: 0 | BU121: 0 | BV121: 0 | BW121: - | BX121: 113830 | BY121: 41930 | BZ121: 0 | CA121: 0.3683563208 | CB121: - | CC121: 85333 | CD121: 85333 | CE121: 0 | CF121: 1 | CG121: - | CH121: 35000 | CI121: 35000 | CJ121: 0 | CK121: 1 | CL121: - | CM121: 459368 | CN121: 162263 | CO121: 0 | CP121: 0.3532309608 | CQ121: - | CR121: 16. Paz, justicia e instituciones sólidas | CS121: Justicia y Seguridad | CT121: Sec. Interior
AQ122: Descongestionar 9.000 procesos de las inspecciones iniciados antes del 2012 y que impiden la buena atención al ciudadano. | AR122: 2210264 | AS122: Número de procesos descongestionados de las inspecciones iniciados antes del 2012 y que impiden la buena atención al ciudadano. | AT122: 0 | AU122: 9000 | AV122: 3000 | AW122: 0.3333333333 | AX122: 2000 | AY122: 0.2222222222 | AZ122: 2000 | BA122: 0.2222222222 | BB122: 2000 | BC122: 0.2222222222 | BD122: 4077 | BE122: 4626 | BF122: 2107 | BG122: 2968 | BH122: 1.359 | BI122: 1 | BJ122: 2.313 | BK122: 1 | BL122: 1.0535 | BM122: 1 | BN122: 1.484 | BO122: 1 | BP122: 1.530888889 | BQ122: 1 | BR122: 1 | BS122: 256848 | BT122: 256633 | BU122: 0 | BV122: 0.999162929 | BW122: - | BX122: 201502 | BY122: 200670 | BZ122: 0 | CA122: 0.9958710087 | CB122: - | CC122: 316733 | CD122: 316733 | CE122: 0 | CF122: 1 | CG122: - | CH122: 228817 | CI122: 228817 | CJ122: 0 | CK122: 1 | CL122: - | CM122: 1003900 | CN122: 1002853 | CO122: 0 | CP122: 0.9989570674 | CQ122: - | CR122: 16. Paz, justicia e instituciones sólidas | CS122: Justicia y Seguridad | CT122: Sec. Interior
AQ123: Formular e implementar 1 plan de descongestión y gestión. | AR123: 2210264 | AS123: Número de planes de descongestión y gestión formulados e implementados. | AT123: 1 | AU123: 1 | AV123: 1 | AW123: 0.25 | AX123: 1 | AY123: 0.25 | AZ123: 1 | BA123: 0.25 | BB123: 1 | BC123: 0.25 | BD123: 1 | BE123: 1 | BF123: 1 | BG123: 1 | BH123: 1 | BI123: 1 | BJ123: 1 | BK123: 1 | BL123: 1 | BM123: 1 | BN123: 1 | BO123: 1 | BP123: 1 | BQ123: 1 | BR123: 1 | BS123: 0 | BT123: 0 | BU123: 0 | BV123: - | BW123: - | BX123: 522302 | BY123: 521470 | BZ123: 0 | CA123: 0.9984070519 | CB123: - | CC123: 266600 | CD123: 266600 | CE123: 0 | CF123: 1 | CG123: - | CH123: 143267 | CI123: 142867 | CJ123: 0 | CK123: 0.9972080102 | CL123: - | CM123: 932169 | CN123: 930937 | CO123: 0 | CP123: 0.9986783512 | CQ123: - | CR123: 16. Paz, justicia e instituciones sólidas | CS123: Justicia y Seguridad | CT123: Sec. Interior
AQ124: Formular e implementar 1 estrategia robusta de transparencia en las inspecciones. | AR124: 2210264 | AS124: Número de estrategias robustas de transparencia en las inspecciones formulados e implementados. | AT124: 0 | AU124: 1 | AV124: 1 | AW124: 0.25 | AX124: 1 | AY124: 0.25 | AZ124: 1 | BA124: 0.25 | BB124: 1 | BC124: 0.25 | BD124: 1 | BE124: 1 | BF124: 1 | BG124: 1 | BH124: 1 | BI124: 1 | BJ124: 1 | BK124: 1 | BL124: 1 | BM124: 1 | BN124: 1 | BO124: 1 | BP124: 1 | BQ124: 1 | BR124: 1 | BS124: 0 | BT124: 0 | BU124: 0 | BV124: - | BW124: - | BX124: 0 | BY124: 0 | BZ124: 0 | CA124: - | CB124: - | CC124: 400390 | CD124: 400390 | CE124: 0 | CF124: 1 | CG124: - | CH124: 49000 | CI124: 49000 | CJ124: 0 | CK124: 1 | CL124: - | CM124: 449390 | CN124: 449390 | CO124: 0 | CP124: 1 | CQ124: - | CR124: 16. Paz, justicia e instituciones sólidas | CS124: Justicia y Seguridad | CT124: Sec. Interior
AQ125: Crear 4 cargos supernumerarios para la descongestión de las inspecciones municipales de policía. | AR125: - | AS125: Número de cargos supernumerarios creados para la descongestión de las inspecciones municipales de policía. | AT125: 0 | AU125: 4 | AV125: 0 | AW125: 0 | AX125: 4 | AY125: 1 | AZ125: 0 | BA125: 0 | BB125: 0 | BC125: 0 | BD125: 0 | BE125: 0 | BF125: 0 | BG125: 0 | BH125: - | BI125: - | BJ125: 0 | BK125: 0 | BL125: - | BM125: - | BN125: - | BO125: - | BP125: =+SUM(BD125:BG125)/AU125 -> 0 | BQ125: 0 | BR125: 0 | BS125: 0 | BT125: 0 | BU125: 0 | BV125: - | BW125: - | BX125: 0 | BY125: 0 | BZ125: 0 | CA125: - | CB125: - | CC125: 0 | CD125: 0 | CE125: 0 | CF125: - | CG125: - | CH125: 0 | CI125: 0 | CJ125: 0 | CK125: - | CL125: - | CM125: 0 | CN125: 0 | CO125: 0 | CP125: - | CQ125: - | CR125: 16. Paz, justicia e instituciones sólidas | CS125: Justicia y Seguridad | CT125: Sec. Interior
F126: Lograr la probabilidad del 75% de cumplir la función administrativa según INTEGRA. | G126: 0.6198 | H126: 0.75 | I126: =+H126-G126 -> 0.1302 | J126: 0.62 | K126: =+J126-G126 -> 0.0002 | M126: 0.65 | N126: =+M126-J126 -> 0.03 | P126: 0.7 | Q126: =+P126-M126 -> 0.05 | S126: 0.75 | T126: =+S126-P126 -> 0.05 | V126: 0.62 | W126: =+IF(V126=0,0,V126-G126) -> 0.0002 | X126: 0.62 | Y126: =+IF(X126=0,0,X126-V126) -> 0 | Z126: 0.62 | AA126: =+IF(Z126=0,0,Z126-X126) -> 0 | AC126: =+IF(AB126=0,0,AB126-Z126) -> 0 | AD126: =+IF(K126=0," -",W126/K126) -> 1 | AE126: =+IF(K126=0," -",IF(AD126>100%,100%,AD126)) -> 1 | AF126: =+IF(N126=0," -",Y126/N126) -> 0 | AG126: =+IF(N126=0," -",IF(AF126>100%,100%,AF126)) -> 0 | AH126: =+IF(Q126=0," -",AA126/Q126) -> 0 | AI126: =+IF(Q126=0," -",IF(AH126>100%,100%,AH126)) -> 0 | AJ126: =+IF(T126=0," -",AC126/T126) -> 0 | AK126: =+IF(T126=0," -",IF(AJ126>100%,100%,AJ126)) -> 0 | AL126: =+SUM(AC126,AA126,Y126,W126)/I126 -> 0.00153609831 | AM126: =+IF(AL126>100%,100%,IF(AL126<0%,0%,AL126)) -> 0.00153609831 | AQ126: Mejorar y equipar las 2 sedes de comisaría de familia (Norte y Joya). | AR126: 2210264 | AS126: Número de sedes de comisarías de familia (Norte y Joya) mejoradas y equipadas. | AT126: 2 | AU126: 2 | AV126: 0 | AW126: 0 | AX126: 0 | AY126: 0 | AZ126: 2 | BA126: 1 | BB126: 0 | BC126: 0 | BD126: 0 | BE126: 0 | BF126: 2 | BG126: 2 | BH126: - | BI126: - | BJ126: - | BK126: - | BL126: 1 | BM126: 1 | BN126: - | BO126: - | BP126: 2 | BQ126: 1 | BR126: 1 | BS126: 0 | BT126: 0 | BU126: 0 | BV126: - | BW126: - | BX126: 0 | BY126: 0 | BZ126: 0 | CA126: - | CB126: - | CC126: 150083 | CD126: 149566 | CE126: 0 | CF126: 0.9965552394 | CG126: - | CH126: 100000 | CI126: 100000 | CJ126: 0 | CK126: 1 | CL126: - | CM126: 250083 | CN126: 249566 | CO126: 0 | CP126: 0.9979326863 | CQ126: - | CR126: 16. Paz, justicia e instituciones sólidas | CS126: Justicia y Seguridad | CT126: Sec. Interior
AQ127: Adecuar y equipar las 2 sedes nuevas de comisaría de familia (Oriente y Sur). | AR127: 2210264 | AS127: Número de sedes nuevas de comisarías de familias (Oriente y Sur) adecuadas y equipadas. | AT127: 0 | AU127: 2 | AV127: 0 | AW127: 0 | AX127: 0 | AY127: 0 | AZ127: 0 | BA127: 0 | BB127: 2 | BC127: 1 | BD127: 0 | BE127: 0 | BF127: 1 | BG127: 1 | BH127: - | BI127: - | BJ127: - | BK127: - | BL127: - | BM127: - | BN127: 0.5 | BO127: 0.5 | BP127: 1 | BQ127: 1 | BR127: 1 | BS127: 0 | BT127: 0 | BU127: 0 | BV127: - | BW127: - | BX127: 0 | BY127: 0 | BZ127: 0 | CA127: - | CB127: - | CC127: 0 | CD127: 0 | CE127: 0 | CF127: - | CG127: - | CH127: 45000 | CI127: 45000 | CJ127: 0 | CK127: 1 | CL127: - | CM127: 45000 | CN127: 45000 | CO127: 0 | CP127: 1 | CQ127: - | CR127: 16. Paz, justicia e instituciones sólidas | CS127: Justicia y Seguridad | CT127: Sec. Interior
AQ128: Digitalizar y sistematizar el 100% el procedimiento del funcionamiento de las comisarías de familia. | AR128: 2210289 | AS128: Porcentaje de procedimientos de las comisarías de familia digitalizados y sistematizados, | AT128: 0 | AU128: 1 | AV128: 0 | AW128: 0 | AX128: 1 | AY128: 1 | AZ128: 0 | BA128: 0 | BB128: 0 | BC128: 0 | BD128: 0 | BE128: 0.7 | BF128: 1 | BG128: 1 | BH128: - | BI128: - | BJ128: 0.7 | BK128: 0.7 | BL128: - | BM128: - | BN128: - | BO128: - | BP128: 2.7 | BQ128: 1 | BR128: 1 | BS128: 91425 | BT128: 0 | BU128: 0 | BV128: 0 | BW128: - | BX128: 17970 | BY128: 17970 | BZ128: 0 | CA128: 1 | CB128: - | CC128: 0 | CD128: 0 | CE128: 0 | CF128: - | CG128: - | CH128: 66980 | CI128: 66980 | CJ128: 0 | CK128: 1 | CL128: - | CM128: 176375 | CN128: 84950 | CO128: 0 | CP128: 0.481644224 | CQ128: - | CR128: 16. Paz, justicia e instituciones sólidas | CS128: Justicia y Seguridad | CT128: Sec. Interior
AQ129: Implementar y mantener 1 plan de mejoramiento en las comisarías de familia. | AR129: 2210289 | AS129: Número de planes de mejoramiento de las comisarías de familia implementadas y mantenidas. | AT129: 1 | AU129: 1 | AV129: 0 | AW129: 0 | AX129: 1 | AY129: 0.33 | AZ129: 1 | BA129: 0.33 | BB129: 1 | BC129: 0.34 | BD129: 0.5 | BE129: 1 | BF129: 1 | BG129: 1 | BH129: - | BI129: - | BJ129: 1 | BK129: 1 | BL129: 1 | BM129: 1 | BN129: 1 | BO129: 1 | BP129: =+AVERAGE(BE129:BG129)/AU129 -> 1 | BQ129: 1 | BR129: 1 | BS129: 98000 | BT129: 0 | BU129: 0 | BV129: 0 | BW129: - | BX129: 179502 | BY129: 178670 | BZ129: 0 | CA129: 0.9953649542 | CB129: - | CC129: 37333 | CD129: 37333 | CE129: 0 | CF129: 1 | CG129: - | CH129: 35000 | CI129: 35000 | CJ129: 0 | CK129: 1 | CL129: - | CM129: 349835 | CN129: 251003 | CO129: 0 | CP129: 0.7174896737 | CQ129: - | CR129: 16. Paz, justicia e instituciones sólidas | CS129: Justicia y Seguridad | CT129: Sec. Interior
AO130: =+RESUMEN!J26 -> 0.9666666667 | AP130: CULTURA DE LA LEGALIDAD Y LA ÉTICA PÚBLICA | AQ130: Realizar 8 capacitaciones dirigidas a servidores públicos en lo atinente al régimen disciplinario de los servidores públicos. | AR130: - | AS130: Número de capacitaciones realizadas dirigidas a servidores públicos en lo atinente al régimen disciplinario de los servidores públicos. | AT130: 8 | AU130: 8 | AV130: 2 | AW130: 0.25 | AX130: 2 | AY130: 0.25 | AZ130: 2 | BA130: 0.25 | BB130: 2 | BC130: 0.25 | BD130: 3 | BE130: 3 | BF130: 12 | BG130: 30 | BH130: 1.5 | BI130: 1 | BJ130: 1.5 | BK130: 1 | BL130: 6 | BM130: 1 | BN130: 15 | BO130: 1 | BP130: =+SUM(BD130:BG130)/AU130 -> 6 | BQ130: 1 | BR130: 1 | BS130: 0 | BT130: 0 | BU130: 0 | BV130: - | BW130: - | BX130: 0 | BY130: 0 | BZ130: 0 | CA130: - | CB130: - | CC130: 0 | CD130: 0 | CE130: 0 | CF130: - | CG130: - | CH130: 0 | CI130: 0 | CJ130: 0 | CK130: - | CL130: - | CM130: 0 | CN130: 0 | CO130: 0 | CP130: - | CQ130: - | CR130: 16. Paz, justicia e instituciones sólidas | CS130: Justicia y Seguridad | CT130: Ofc. Control Interno Disciplinario
AQ131: Crear y mantener 1 base de datos que permita tener acceso ágil a la información de procesos que se adelantan. | AR131: - | AS131: Número de bases de datos creadas y mantenidas que permitan tener acceso ágil a la información de procesos que se adelantan. | AT131: 0 | AU131: 1 | AV131: 1 | AW131: 0.25 | AX131: 1 | AY131: 0.25 | AZ131: 1 | BA131: 0.25 | BB131: 1 | BC131: 0.25 | BD131: 1 | BE131: 1 | BF131: 1 | BG131: 1 | BH131: 1 | BI131: 1 | BJ131: 1 | BK131: 1 | BL131: 1 | BM131: 1 | BN131: 1 | BO131: 1 | BP131: 1 | BQ131: 1 | BR131: 1 | BS131: 0 | BT131: 0 | BU131: 0 | BV131: - | BW131: - | BX131: 0 | BY131: 0 | BZ131: 0 | CA131: - | CB131: - | CC131: 0 | CD131: 0 | CE131: 0 | CF131: - | CG131: - | CH131: 0 | CI131: 0 | CJ131: 0 | CK131: - | CL131: - | CM131: 0 | CN131: 0 | CO131: 0 | CP131: - | CQ131: - | CR131: 16. Paz, justicia e instituciones sólidas | CS131: Justicia y Seguridad | CT131: Ofc. Control Interno Disciplinario
AQ132: Mantener el seguimiento, asesoría y evaluación a los 19 procesos de la Administración Central. | AR132: - | AS132: Número de procesos de la Administración Central con seguimiento, asesoría y evaluación mantenidos. | AT132: 19 | AU132: 19 | AV132: 19 | AW132: 0.25 | AX132: 19 | AY132: 0.25 | AZ132: 19 | BA132: 0.25 | BB132: 19 | BC132: 0.25 | BD132: 19 | BE132: 19 | BF132: 30 | BG132: 19 | BH132: 1 | BI132: 1 | BJ132: 1 | BK132: 1 | BL132: 1.578947368 | BM132: 1 | BN132: 1 | BO132: 1 | BP132: =+AVERAGE(BI132,BK132,BM132,BO132) -> 1 | BQ132: 1 | BR132: 1 | BS132: 0 | BT132: 0 | BU132: 0 | BV132: - | BW132: - | BX132: 0 | BY132: 0 | BZ132: 0 | CA132: - | CB132: - | CC132: 0 | CD132: 0 | CE132: 0 | CF132: - | CG132: - | CH132: 0 | CI132: 0 | CJ132: 0 | CK132: - | CL132: - | CM132: 0 | CN132: 0 | CO132: 0 | CP132: - | CQ132: - | CR132: 16. Paz, justicia e instituciones sólidas | CS132: Justicia y Seguridad | CT132: Ofc. Control Interno
AQ133: Implementar y mantener 1 estrategia de gobierno para la promoción y adopción de la Cultura de la Legalidad y la Integridad para Colombia CLIC entre los servidores públicos y la ciudadanía. | AR133: - | AS133: Número de estrategias de gobierno implementadas y mantenidas para la promoción y adopción de la Cultura de la Legalidad y la Integridad para Colombia CLIC entre los servidores públicos y la ciudadanía. | AT133: 0 | AU133: 1 | AV133: 1 | AW133: 0.25 | AX133: 1 | AY133: 0.25 | AZ133: 1 | BA133: 0.25 | BB133: 1 | BC133: 0.25 | BD133: 0.7 | BE133: 1 | BF133: 1 | BG133: 0.7 | BH133: 0.7 | BI133: 0.7 | BJ133: 1 | BK133: 1 | BL133: 1 | BM133: 1 | BN133: 0.7 | BO133: 0.7 | BP133: 0.85 | BQ133: 0.85 | BR133: 0.85 | BS133: 0 | BT133: 0 | BU133: 0 | BV133: - | BW133: - | BX133: 0 | BY133: 0 | BZ133: 0 | CA133: - | CB133: - | CC133: 0 | CD133: 0 | CE133: 0 | CF133: - | CG133: - | CH133: 0 | CI133: 0 | CJ133: 0 | CK133: - | CL133: - | CM133: 0 | CN133: 0 | CO133: 0 | CP133: - | CQ133: - | CR133: 16. Paz, justicia e instituciones sólidas | CS133: Justicia y Seguridad | CT133: Sec. Jurídica
AQ134: Realizar 8 capacitaciones en materia de contratación estatal dirigida a servidores públicos. | AR134: 0 | AS134: Número de capacitaciones realizadas en materia de contratación estatal dirigida a servidores públicos. | AT134: 0 | AU134: 8 | AV134: 2 | AW134: 0.25 | AX134: 2 | AY134: 0.25 | AZ134: 2 | BA134: 0.25 | BB134: 2 | BC134: 0.25 | BD134: 7 | BE134: 6 | BF134: 2 | BG134: 2 | BH134: 3.5 | BI134: 1 | BJ134: 3 | BK134: 1 | BL134: 1 | BM134: 1 | BN134: 1 | BO134: 1 | BP134: =+SUM(BD134:BG134)/AU134 -> 2.125 | BQ134: 1 | BR134: 1 | BS134: 0 | BT134: 0 | BU134: 11400 | BV134: - | BW134: 1 | BX134: 29750 | BY134: 23500 | BZ134: 0 | CA134: 0.7899159664 | CB134: - | CC134: 17903 | CD134: 17902.6 | CE134: 0 | CF134: 0.9999776574 | CG134: - | CH134: 0 | CI134: 0 | CJ134: 0 | CK134: - | CL134: - | CM134: 47653 | CN134: 41402.6 | CO134: 11400 | CP134: 0.8688351206 | CQ134: 0.2753450266 | CR134: 16. Paz, justicia e instituciones sólidas | CS134: Justicia y Seguridad | CT134: Sec. Jurídica
AQ135: Implementar y mantener 1 estrategia de comunicaciones pedagógica para socializar y fortalecer el sentido de la ética en la gestión pública entre las diversas dependencias. | AR135: - | AS135: Número de estrategias de comunicaciones pedagógicas implementadas y mantenidas para socializar y fortalecer el sentido de la ética en la gestión pública entre las diversas dependencias. | AT135: 0 | AU135: 1 | AV135: 1 | AW135: 0.25 | AX135: 1 | AY135: 0.25 | AZ135: 1 | BA135: 0.25 | BB135: 1 | BC135: 0.25 | BD135: 1 | BE135: 1 | BF135: 1 | BG135: 0.8 | BH135: 1 | BI135: 1 | BJ135: 1 | BK135: 1 | BL135: 1 | BM135: 1 | BN135: 0.8 | BO135: 0.8 | BP135: 0.95 | BQ135: 0.95 | BR135: 0.95 | BS135: 0 | BT135: 0 | BU135: 0 | BV135: - | BW135: - | BX135: 56320 | BY135: 56320 | BZ135: 0 | CA135: 1 | CB135: - | CC135: 0 | CD135: 0 | CE135: 0 | CF135: - | CG135: - | CH135: 0 | CI135: 0 | CJ135: 0 | CK135: - | CL135: - | CM135: 56320 | CN135: 56320 | CO135: 0 | CP135: 1 | CQ135: - | CR135: 16. Paz, justicia e instituciones sólidas | CS135: Justicia y Seguridad | CT135: Sec. Jurídica
AU136: 0 | AV136: 0 | AW136: =+AVERAGE(AW78:AW135) -> 0.183908046 | AX136: 0 | AY136: =+AVERAGE(AY78:AY135) -> 0.3500383142 | AZ136: 0 | BA136: 0.221302682 | BB136: 0 | BC136: 0.2619923372 | BI136: =+AVERAGE(BI78:BI135) -> 0.8430555556 | BK136: 0.7813361345 | BM136: 0.9069767442 | BO136: 0.7806807407 | BQ136: =+AVERAGE(BQ78:BQ135) -> 0.7824050287
D137: =+RESUMEN!J27 -> 0.8295486111 | E137: GOBIERNO MUNICIPAL EN LÍNEA | F137: Alcanzar un 85% de nivel de satisfacción en trámites electrónicos. | G137: 0.5 | H137: 0.85 | I137: =+H137-G137 -> 0.35 | J137: 0.5 | K137: =+J137-G137 -> 0 | M137: 0.65 | N137: =+M137-J137 -> 0.15 | P137: 0.75 | Q137: =+P137-M137 -> 0.1 | S137: 0.85 | T137: =+S137-P137 -> 0.1 | V137: 0.55 | W137: =+IF(V137=0,0,V137-G137) -> 0.05 | X137: 0.6 | Y137: =+IF(X137=0,0,X137-V137) -> 0.05 | Z137: 0.85 | AA137: =+IF(Z137=0,0,Z137-X137) -> 0.25 | AC137: =+IF(AB137=0,0,AB137-Z137) -> 0 | AD137: =+IF(K137=0," -",W137/K137) -> - | AE137: =+IF(K137=0," -",IF(AD137>100%,100%,AD137)) -> - | AF137: =+IF(N137=0," -",Y137/N137) -> 0.3333333333 | AG137: =+IF(N137=0," -",IF(AF137>100%,100%,AF137)) -> 0.3333333333 | AH137: =+IF(Q137=0," -",AA137/Q137) -> 2.5 | AI137: =+IF(Q137=0," -",IF(AH137>100%,100%,AH137)) -> 1 | AJ137: =+IF(T137=0," -",AC137/T137) -> 0 | AK137: =+IF(T137=0," -",IF(AJ137>100%,100%,AJ137)) -> 0 | AL137: =+SUM(AC137,AA137,Y137,W137)/I137 -> 1 | AM137: =+IF(AL137>100%,100%,IF(AL137<0%,0%,AL137)) -> 1 | AO137: =+RESUMEN!J28 -> 0.81625 | AP137: CIUDAD MODELO EN GOBIERNO EN LÍNEA | AQ137: Lograr y mantener el 100% de la implementación del componente TIC servicios. | AR137: 2210237 | AS137: Porcentaje de avance de la implementación del componente TIC servicios. | AT137: 0.745 | AU137: 1 | AV137: 0.3 | AW137: 0.25 | AX137: 0.2 | AY137: 0.25 | AZ137: 0.15 | BA137: 0.25 | BB137: 0.35 | BC137: 0.25 | BD137: 0.31 | BE137: 0.13 | BF137: 0.125 | BG137: 0.15 | BH137: 1.033333333 | BI137: 1 | BJ137: 0.65 | BK137: 0.65 | BL137: 0.8333333333 | BM137: 0.8333333333 | BN137: 0.4285714286 | BO137: 0.4285714286 | BP137: =+SUM(BD137:BG137)/AU137 -> 0.715 | BQ137: 0.715 | BR137: 0.715 | BS137: 0 | BT137: 0 | BU137: 0 | BV137: - | BW137: - | BX137: 65000 | BY137: 0 | BZ137: 0 | CA137: 0 | CB137: - | CC137: 0 | CD137: 0 | CE137: 0 | CF137: - | CG137: - | CH137: 0 | CI137: 0 | CJ137: 0 | CK137: - | CL137: - | CM137: 65000 | CN137: 0 | CO137: 0 | CP137: 0 | CQ137: - | CR137: 16. Paz, justicia e instituciones sólidas | CS137: Fortalecimiento insitucional | CT137: Asesor TIC
AQ138: Lograr y mantener el 100% de la implementación del componente TIC gobierno abierto. | AR138: 2210237 | AS138: Porcentaje de avance de la implementación del componente TIC gobierno abierto. | AT138: 0.44 | AU138: 1 | AV138: 0.3 | AW138: 0.25 | AX138: 0.2 | AY138: 0.25 | AZ138: 0.3 | BA138: 0.25 | BB138: 0.2 | BC138: 0.25 | BD138: 0.29 | BE138: 0 | BF138: 0.3 | BG138: 0.16 | BH138: 0.9666666667 | BI138: 0.9666666667 | BJ138: 0 | BK138: 0 | BL138: 1 | BM138: 1 | BN138: 0.8 | BO138: 0.8 | BP138: =+SUM(BD138:BG138)/AU138 -> 0.75 | BQ138: 0.75 | BR138: 0.75 | BS138: 0 | BT138: 0 | BU138: 0 | BV138: - | BW138: - | BX138: 35000 | BY138: 0 | BZ138: 0 | CA138: 0 | CB138: - | CC138: 0 | CD138: 0 | CE138: 0 | CF138: - | CG138: - | CH138: 0 | CI138: 0 | CJ138: 0 | CK138: - | CL138: - | CM138: 35000 | CN138: 0 | CO138: 0 | CP138: 0 | CQ138: - | CR138: 16. Paz, justicia e instituciones sólidas | CS138: Fortalecimiento insitucional | CT138: Asesor TIC
AQ139: Lograr y mantener el 100% de la implementación del componente TIC gestión. | AR139: 2210237 | AS139: Porcentaje de avance de la implementación del componente TIC gestión. | AT139: 0.43 | AU139: 1 | AV139: 0.3 | AW139: 0.25 | AX139: 0.2 | AY139: 0.25 | AZ139: 0.2 | BA139: 0.25 | BB139: 0.3 | BC139: 0.25 | BD139: 0.37 | BE139: 0.13 | BF139: 0.15 | BG139: 0.16 | BH139: 1.233333333 | BI139: 1 | BJ139: 0.65 | BK139: 0.65 | BL139: 0.75 | BM139: 0.75 | BN139: 0.5333333333 | BO139: 0.5333333333 | BP139: =+SUM(BD139:BG139)/AU139 -> 0.81 | BQ139: 0.81 | BR139: 0.81 | BS139: 0 | BT139: 0 | BU139: 0 | BV139: - | BW139: - | BX139: 0 | BY139: 0 | BZ139: 0 | CA139: - | CB139: - | CC139: 0 | CD139: 0 | CE139: 0 | CF139: - | CG139: - | CH139: 0 | CI139: 0 | CJ139: 0 | CK139: - | CL139: - | CM139: 0 | CN139: 0 | CO139: 0 | CP139: - | CQ139: - | CR139: 16. Paz, justicia e instituciones sólidas | CS139: Fortalecimiento insitucional | CT139: Asesor TIC
AQ140: Lograr y mantener el 100% de la implementación del componente seguridad de la información y protección de datos. | AR140: 2210237 | AS140: Porcentaje de avance de la implementación del componente seguridad de la información y protección de datos. | AT140: 0.15 | AU140: 1 | AV140: 0.3 | AW140: 0.25 | AX140: 0.2 | AY140: 0.25 | AZ140: 0.3 | BA140: 0.25 | BB140: 0.2 | BC140: 0.25 | BD140: 0.3 | BE140: 0.25 | BF140: 0.3 | BG140: 0.14 | BH140: =IF(AV140=0," -",BD140/AV140) -> 1 | BI140: =IF(AV140=0," -",IF(BH140>100%,100%,BH140)) -> 1 | BJ140: =IF(AX140=0," -",BE140/AX140) -> 1.25 | BK140: =IF(AX140=0," -",IF(BJ140>100%,100%,BJ140)) -> 1 | BL140: =IF(AZ140=0," -",BF140/AZ140) -> 1 | BM140: =IF(AZ140=0," -",IF(BL140>100%,100%,BL140)) -> 1 | BN140: =IF(BB140=0," -",BG140/BB140) -> 0.7 | BO140: =IF(BB140=0," -",IF(BN140>100%,100%,BN140)) -> 0.7 | BP140: 0.99 | BQ140: =+IF(BP140>100%,100%,BP140) -> 0.99 | BR140: =+BQ140 -> 0.99 | BS140: 0 | BT140: 0 | BU140: 0 | BV140: - | BW140: - | BX140: 0 | BY140: 0 | BZ140: 0 | CA140: - | CB140: - | CC140: 0 | CD140: 0 | CE140: 0 | CF140: - | CG140: - | CH140: 0 | CI140: 0 | CJ140: 0 | CK140: - | CL140: - | CM140: 0 | CN140: 0 | CO140: 0 | CP140: - | CQ140: - | CR140: 16. Paz, justicia e instituciones sólidas | CS140: Fortalecimiento insitucional | CT140: Asesor TIC
AO141: =+RESUMEN!J29 -> 0.8 | AP141: VIVE DIGITAL PARA LAS CIUDADANAS Y CIUDADANOS | AQ141: Adecuar y mantener en funcionamiento los 8 puntos VIVE DIGITAL. | AR141: - | AS141: Número de puntos VIVE DIGITAL adecuados y mantenidos en funcionamiento. | AT141: 8 | AU141: 8 | AV141: 8 | AW141: 0.25 | AX141: 8 | AY141: 0.25 | AZ141: 8 | BA141: 0.25 | BB141: 8 | BC141: 0.25 | BD141: 8 | BE141: 8 | BF141: 8 | BG141: 8 | BH141: 1 | BI141: 1 | BJ141: 1 | BK141: 1 | BL141: 1 | BM141: 1 | BN141: 1 | BO141: 1 | BP141: =+AVERAGE(BD141:BG141)/AU141 -> 1 | BQ141: 1 | BR141: 1 | BS141: 0 | BT141: 0 | BU141: 0 | BV141: =IF(BS141=0," -",BT141/BS141) -> - | BW141: =IF(BU141=0," -",IF(BT141=0,100%,BU141/BT141)) -> - | BX141: 0 | BY141: 0 | BZ141: 0 | CA141: =IF(BX141=0," -",BY141/BX141) -> - | CB141: =IF(BZ141=0," -",IF(BY141=0,100%,BZ141/BY141)) -> - | CC141: 0 | CD141: 0 | CE141: 0 | CF141: =IF(CC141=0," -",CD141/CC141) -> - | CG141: =IF(CE141=0," -",IF(CD141=0,100%,CE141/CD141)) -> - | CH141: 0 | CI141: 0 | CJ141: 0 | CK141: =IF(CH141=0," -",CI141/CH141) -> - | CL141: =IF(CJ141=0," -",IF(CI141=0,100%,CJ141/CI141)) -> - | CM141: =+BS141+BX141+CC141+CH141 -> 0 | CN141: =+BT141+BY141+CD141+CI141 -> 0 | CO141: =+BU141+BZ141+CE141+CJ141 -> 0 | CP141: =IF(CM141=0," -",CN141/CM141) -> - | CQ141: =IF(CO141=0," -",IF(CN141=0,100%,CO141/CN141)) -> - | CR141: 9. Industria, innovación e infraestructura | CS141: Fortalecimiento insitucional | CT141: Asesor TIC
F142: Lograr que 10.000 ciudadanos usen datos públicos y participen por redes electrónicas. | G142: 0 | H142: 10000 | I142: =+H142-G142 -> 10000 | J142: 2500 | K142: =+J142-G142 -> 2500 | M142: 5000 | N142: =+M142-K142 -> 2500 | P142: 7500 | Q142: =+P142-M142 -> 2500 | S142: 10000 | T142: =+S142-P142 -> 2500 | V142: 7896 | W142: =+IF(V142=0,0,V142-G142) -> 7896 | X142: 8411 | Y142: =+IF(X142=0,0,X142-V142) -> 515 | Z142: 8612 | AA142: =+IF(Z142=0,0,Z142-X142) -> 201 | AC142: =+IF(AB142=0,0,AB142-Z142) -> 0 | AD142: =+IF(K142=0," -",W142/K142) -> 3.1584 | AE142: =+IF(K142=0," -",IF(AD142>100%,100%,AD142)) -> 1 | AF142: =+IF(N142=0," -",Y142/N142) -> 0.206 | AG142: =+IF(N142=0," -",IF(AF142>100%,100%,AF142)) -> 0.206 | AH142: =+IF(Q142=0," -",AA142/Q142) -> 0.0804 | AI142: =+IF(Q142=0," -",IF(AH142>100%,100%,AH142)) -> 0.0804 | AJ142: =+IF(T142=0," -",AC142/T142) -> 0 | AK142: =+IF(T142=0," -",IF(AJ142>100%,100%,AJ142)) -> 0 | AL142: =+SUM(AC142,AA142,Y142,W142)/I142 -> 0.8612 | AM142: =+IF(AL142>100%,100%,IF(AL142<0%,0%,AL142)) -> 0.8612 | AQ142: Mantener en funcionamiento el VIVE LAB. | AR142: - | AS142: Número de VIVE LABS mantenidos en funcionamiento. | AT142: 1 | AU142: 1 | AV142: 1 | AW142: 0.25 | AX142: 1 | AY142: 0.25 | AZ142: 1 | BA142: 0.25 | BB142: 1 | BC142: 0.25 | BD142: 1 | BE142: 1 | BF142: 1 | BG142: 1 | BH142: 1 | BI142: 1 | BJ142: 1 | BK142: 1 | BL142: 1 | BM142: 1 | BN142: 1 | BO142: 1 | BP142: 1 | BQ142: 1 | BR142: 1 | BS142: 0 | BT142: 0 | BU142: 0 | BV142: - | BW142: - | BX142: 0 | BY142: 0 | BZ142: 0 | CA142: - | CB142: - | CC142: 0 | CD142: 0 | CE142: 0 | CF142: - | CG142: - | CH142: 0 | CI142: 0 | CJ142: 0 | CK142: - | CL142: - | CM142: 0 | CN142: 0 | CO142: 0 | CP142: - | CQ142: - | CR142: 16. Paz, justicia e instituciones sólidas | CS142: Fortalecimiento insitucional | CT142: Asesor TIC
AQ143: Capacitar 5.000 ciudadanos en los puntos VIVE DIGITAL y VIVE LAB. | AR143: - | AS143: Número de ciudadanos capacitados en los puntos VIVE DIGITAL y VIVE LAB. | AT143: 0 | AU143: 5000 | AV143: 250 | AW143: =+AV143/AU143 -> 0.05 | AX143: 1550 | AY143: =+AX143/AU143 -> 0.31 | AZ143: 1600 | BA143: =+AZ143/AU143 -> 0.32 | BB143: 1600 | BC143: =+BB143/AU143 -> 0.32 | BD143: 702 | BE143: 8618 | BF143: 13444 | BG143: 11823 | BH143: 2.808 | BI143: 1 | BJ143: 5.56 | BK143: 1 | BL143: 8.4025 | BM143: 1 | BN143: 7.389375 | BO143: 1 | BP143: =+SUM(BD143:BG143)/AU143 -> 6.9174 | BQ143: 1 | BR143: 1 | BS143: 0 | BT143: 0 | BU143: 0 | BV143: - | BW143: - | BX143: 0 | BY143: 0 | BZ143: 0 | CA143: - | CB143: - | CC143: 0 | CD143: 0 | CE143: 0 | CF143: - | CG143: - | CH143: 0 | CI143: 0 | CJ143: 0 | CK143: - | CL143: - | CM143: 0 | CN143: 0 | CO143: 0 | CP143: - | CQ143: - | CR143: 16. Paz, justicia e instituciones sólidas | CS143: Fortalecimiento insitucional | CT143: Asesor TIC
AQ144: Atender 30.000 ciudadanos en los puntos VIVE DIGITAL y VIVE LAB. | AR144: - | AS144: Número de ciudadanos atendidos en los puntos VIVE DIGITAL y VIVE LAB. | AT144: 0 | AU144: 30000 | AV144: 3750 | AW144: 0.125 | AX144: 8750 | AY144: 0.2916666667 | AZ144: 8750 | BA144: 0.2916666667 | BB144: 8750 | BC144: 0.2916666667 | BD144: 29973 | BE144: 90155 | BF144: 95359 | BG144: 78394 | BH144: 7.9928 | BI144: 1 | BJ144: 10.30342857 | BK144: 1 | BL144: 10.89817143 | BM144: 1 | BN144: 8.959314286 | BO144: 1 | BP144: 9.796033333 | BQ144: 1 | BR144: 1 | BS144: 0 | BT144: 0 | BU144: 0 | BV144: - | BW144: - | BX144: 0 | BY144: 0 | BZ144: 0 | CA144: - | CB144: - | CC144: 0 | CD144: 0 | CE144: 0 | CF144: - | CG144: - | CH144: 0 | CI144: 0 | CJ144: 0 | CK144: - | CL144: - | CM144: 0 | CN144: 0 | CO144: 0 | CP144: - | CQ144: - | CR144: 16. Paz, justicia e instituciones sólidas | CS144: Fortalecimiento insitucional | CT144: Asesor TIC
AQ145: Construir y mantener 1 punto VIVE DIGITAL. | AR145: 2210198 | AS145: Número de puntos vive DIGITAL construidos y mantenidos. | AT145: 8 | AU145: 1 | AV145: 0 | AW145: 0.25 | AX145: 0 | AY145: 0.25 | AZ145: 1 | BA145: 0.25 | BB145: 1 | BC145: 0.25 | BD145: 0 | BE145: 0 | BF145: 0 | BG145: 0 | BH145: - | BI145: - | BJ145: - | BK145: - | BL145: 0 | BM145: 0 | BN145: 0 | BO145: 0 | BP145: 0 | BQ145: 0 | BR145: 0 | BS145: 0 | BT145: 0 | BU145: 0 | BV145: - | BW145: - | BX145: 0 | BY145: 0 | BZ145: 0 | CA145: - | CB145: - | CC145: 0 | CD145: 0 | CE145: 0 | CF145: - | CG145: - | CH145: 0 | CI145: 0 | CJ145: 0 | CK145: - | CL145: - | CM145: 0 | CN145: 0 | CO145: 0 | CP145: - | CQ145: - | CR145: 9. Industria, innovación e infraestructura | CS145: Promoción del Desarrollo | CT145: Sec. Infraestructura
AO146: =+RESUMEN!J30 -> 0.8875 | AP146: GESTIÓN Y MEJORAMIENTO DE LOS SISTEMAS DE INFORMACIÓN | AQ146: Crear y/o documentar 4 sistemas de información pertenecientes al Core de la Alcaldía. | AR146: 0 | AS146: Número de sistemas de información creados y/o documentados pertenecientes al Core de la Alcaldía. | AT146: 1 | AU146: 4 | AV146: 0 | AW146: 0 | AX146: 2 | AY146: 0.5 | AZ146: 1 | BA146: 0.25 | BB146: 1 | BC146: 0.25 | BD146: 0.3 | BE146: 0.8 | BF146: 1 | BG146: 1 | BH146: - | BI146: - | BJ146: 0.4 | BK146: 0.4 | BL146: 1 | BM146: 1 | BN146: 1 | BO146: 1 | BP146: =+SUM(BD146:BG146)/AU146 -> 0.775 | BQ146: 0.775 | BR146: 0.775 | BS146: 0 | BT146: 0 | BU146: 0 | BV146: - | BW146: - | BX146: 0 | BY146: 0 | BZ146: 0 | CA146: - | CB146: - | CC146: 0 | CD146: 0 | CE146: 0 | CF146: - | CG146: - | CH146: 0 | CI146: 0 | CJ146: 0 | CK146: - | CL146: - | CM146: 0 | CN146: 0 | CO146: 0 | CP146: - | CQ146: - | CR146: 16. Paz, justicia e instituciones sólidas | CS146: Fortalecimiento insitucional | CT146: Asesor TIC
F147: Lograr una calificación de 90 en el Índice de Gobierno Abierto - IGA. | G147: 77 | H147: 90 | I147: =+H147-G147 -> 13 | J147: 80 | K147: =+J147-G147 -> 3 | M147: 85 | N147: =+M147-J147 -> 5 | P147: 90 | Q147: =+P147-M147 -> 5 | S147: 90 | T147: =+S147-P147 -> 0 | V147: 71.8 | W147: =+IF(V147=0,0,V147-G147) -> -5.2 | X147: 65.9 | Y147: =+IF(X147=0,0,X147-V147) -> -5.9 | Z147: 65.9 | AA147: =+IF(Z147=0,0,Z147-X147) -> 0 | AC147: =+IF(AB147=0,0,AB147-Z147) -> 0 | AD147: =+IF(K147=0," -",W147/K147) -> -1.733333333 | AE147: =+IF(K147=0," -",IF(AD147>100%,100%,AD147)) -> -1.733333333 | AF147: =+IF(N147=0," -",Y147/N147) -> -1.18 | AG147: =+IF(N147=0," -",IF(AF147>100%,100%,AF147)) -> -1.18 | AH147: =+IF(Q147=0," -",AA147/Q147) -> 0 | AI147: =+IF(Q147=0," -",IF(AH147>100%,100%,AH147)) -> 0 | AJ147: =+IF(T147=0," -",AC147/T147) -> - | AK147: =+IF(T147=0," -",IF(AJ147>100%,100%,AJ147)) -> - | AL147: =+SUM(AC147,AA147,Y147,W147)/I147 -> -0.8538461538 | AM147: =+IF(AL147>100%,100%,IF(AL147<0%,0%,AL147)) -> 0 | AQ147: Implementar 1 ambiente de desarrollo y prueba para los sistemas de información de la Alcaldía. | AR147: 0 | AS147: Porcentaje de avance en la implementación del ambiente de desarrollo y prueba para los sistemas de información de la Alcaldía. | AT147: 0 | AU147: 1 | AV147: 0 | AW147: 0 | AX147: 0 | AY147: 0 | AZ147: 0.5 | BA147: 0.5 | BB147: 0.5 | BC147: 0.5 | BD147: 0 | BE147: 0 | BF147: 1 | BG147: 0.5 | BH147: - | BI147: - | BJ147: - | BK147: - | BL147: 2 | BM147: 1 | BN147: 1 | BO147: 1 | BP147: 1.5 | BQ147: 1 | BR147: 1 | BS147: 0 | BT147: 0 | BU147: 0 | BV147: - | BW147: - | BX147: 0 | BY147: 0 | BZ147: 0 | CA147: - | CB147: - | CC147: 0 | CD147: 0 | CE147: 0 | CF147: - | CG147: - | CH147: 0 | CI147: 0 | CJ147: 0 | CK147: - | CL147: - | CM147: 0 | CN147: 0 | CO147: 0 | CP147: - | CQ147: - | CR147: 16. Paz, justicia e instituciones sólidas | CS147: Fortalecimiento insitucional | CT147: Asesor TIC
AO148: =+RESUMEN!J31 -> 0.8144444444 | AP148: TECNOLOGÍA PARA LA INTERACCIÓN CIUDADANA | AQ148: Mantener actualizados 10 grupos de contenidos de información pública en el portal web. | AR148: 0 | AS148: Número de grupos de contenidos de información pública en el portal web mantenidos. | AT148: 10 | AU148: 10 | AV148: 10 | AW148: 0.25 | AX148: 10 | AY148: 0.25 | AZ148: 10 | BA148: 0.25 | BB148: 10 | BC148: 0.25 | BD148: 10 | BE148: 10 | BF148: 10 | BG148: 10 | BH148: 1 | BI148: 1 | BJ148: 1 | BK148: 1 | BL148: 1 | BM148: 1 | BN148: 1 | BO148: 1 | BP148: 1 | BQ148: 1 | BR148: 1 | BS148: 0 | BT148: 0 | BU148: 0 | BV148: - | BW148: - | BX148: 0 | BY148: 0 | BZ148: 0 | CA148: - | CB148: - | CC148: 0 | CD148: 0 | CE148: 0 | CF148: - | CG148: - | CH148: 0 | CI148: 0 | CJ148: 0 | CK148: - | CL148: - | CM148: 0 | CN148: 0 | CO148: 0 | CP148: - | CQ148: - | CR148: 16. Paz, justicia e instituciones sólidas | CS148: Fortalecimiento insitucional | CT148: Asesor TIC
AQ149: Formular y mantener 2 planes de implementación de Gobierno en Línea de los Institutos Descentralizados y las Instituciones Educativas Oficiales. | AR149: 0 | AS149: Número de planes de implementación de Gobierno en Línea formulados e implementados de los institutos descentralizados y las Instituciones Educativas Oficiales. | AT149: 0 | AU149: 2 | AV149: 0 | AW149: 0 | AX149: 2 | AY149: 0.33 | AZ149: 2 | BA149: 0.33 | BB149: 2 | BC149: 0.34 | BD149: 0 | BE149: 0.96 | BF149: 0.7 | BG149: 1 | BH149: - | BI149: - | BJ149: 0.48 | BK149: 0.48 | BL149: 0.35 | BM149: 0.35 | BN149: 0.5 | BO149: 0.5 | BP149: =+AVERAGE(BE149:BG149)/AU149 -> 0.4433333333 | BQ149: 0.4433333333 | BR149: 0.4433333333 | BS149: 0 | BT149: 0 | BU149: 0 | BV149: - | BW149: - | BX149: 0 | BY149: 0 | BZ149: 0 | CA149: - | CB149: - | CC149: 0 | CD149: 0 | CE149: 0 | CF149: - | CG149: - | CH149: 0 | CI149: 0 | CJ149: 0 | CK149: - | CL149: - | CM149: 0 | CN149: 0 | CO149: 0 | CP149: - | CQ149: - | CR149: 16. Paz, justicia e instituciones sólidas | CS149: Fortalecimiento insitucional | CT149: Asesor TIC
AQ150: Rediseñar la web de portales web. | AR150: - | AS150: Número de portales web rediseñadas. | AT150: 0 | AU150: 1 | AV150: 1 | AW150: 1 | AX150: 0 | AY150: 0 | AZ150: 0 | BA150: 0 | BB150: 0 | BC150: 0 | BD150: 1 | BE150: 0 | BF150: 0 | BG150: 0 | BH150: 1 | BI150: 1 | BJ150: - | BK150: - | BL150: - | BM150: - | BN150: - | BO150: - | BP150: =+SUM(BD150:BG150)/AU150 -> 1 | BQ150: 1 | BR150: 1 | BS150: 0 | BT150: 0 | BU150: 0 | BV150: - | BW150: - | BX150: 0 | BY150: 0 | BZ150: 0 | CA150: - | CB150: - | CC150: 0 | CD150: 0 | CE150: 0 | CF150: - | CG150: - | CH150: 0 | CI150: 0 | CJ150: 0 | CK150: - | CL150: - | CM150: 0 | CN150: 0 | CO150: 0 | CP150: - | CQ150: - | CR150: 16. Paz, justicia e instituciones sólidas | CS150: Promoción del Desarrollo | CT150: Asesor TIC
AU151: 0 | AV151: 0 | AW151: =+AVERAGE(AW137:AW150) -> 0.2267857143 | AX151: 0 | AY151: =+AVERAGE(AY137:AY150) -> 0.2451190476 | AZ151: 0 | BA151: 0.2636904762 | BB151: 0 | BC151: 0.2644047619 | BI151: =+AVERAGE(BI137:BI150) -> 0.9966666667 | BK151: 0.7436363636 | BM151: 0.841025641 | BO151: 0.7663003663 | BQ151: =+AVERAGE(BQ137:BQ150) -> 0.8202380952
D152: =+RESUMEN!J32 -> 0.7859872222 | E152: GOBERNANZA URBANA | F152: Disminuir a 1.400 número de quejas presentadas por las obras que se ejecutan. | G152: 1536 | H152: 1400 | I152: =+H152-G152 -> -136 | J152: 1526 | K152: =+J152-G152 -> -10 | M152: 1500 | N152: =+M152-J152 -> -26 | P152: 1450 | Q152: =+P152-M152 -> -50 | S152: 1400 | T152: =+S152-P152 -> -50 | V152: 2705 | W152: =+IF(V152=0,0,V152-G152) -> 1169 | X152: 3553 | Y152: =+IF(X152=0,0,X152-V152) -> 848 | Z152: 3682 | AA152: =+IF(Z152=0,0,Z152-X152) -> 129 | AC152: =+IF(AB152=0,0,AB152-Z152) -> 0 | AD152: =+IF(K152=0," -",W152/K152) -> -116.9 | AE152: =+IF(K152=0," -",IF(AD152>100%,100%,AD152)) -> -116.9 | AF152: =+IF(N152=0," -",Y152/N152) -> -32.61538462 | AG152: =+IF(N152=0," -",IF(AF152>100%,100%,AF152)) -> -32.61538462 | AH152: =+IF(Q152=0," -",AA152/Q152) -> -2.58 | AI152: =+IF(Q152=0," -",IF(AH152>100%,100%,AH152)) -> -2.58 | AJ152: =+IF(T152=0," -",AC152/T152) -> 0 | AK152: =+IF(T152=0," -",IF(AJ152>100%,100%,AJ152)) -> 0 | AL152: =+SUM(AC152,AA152,Y152,W152)/I152 -> -15.77941176 | AM152: =+IF(AL152>100%,100%,IF(AL152<0%,0%,AL152)) -> 0 | AO152: =+RESUMEN!J33 -> 0.8077138889 | AP152: ORDENAMIENTO TERRITORIAL EN MARHA | AQ152: Realizar visita de control de obra al 100% de las obras licenciadas por los curadores urbanos. | AR152: 2210987 | AS152: Porcentaje de la obras licenciadas por los curadores urbanos con control de obra. | AT152: 0.9 | AU152: 1 | AV152: 1 | AW152: 0.25 | AX152: 1 | AY152: 0.25 | AZ152: 1 | BA152: 0.25 | BB152: 1 | BC152: 0.25 | BD152: 0.85 | BE152: 0.14 | BF152: 0.15 | BG152: 0.8577 | BH152: 0.85 | BI152: 0.85 | BJ152: 0.14 | BK152: 0.14 | BL152: 0.15 | BM152: 0.15 | BN152: 0.8577 | BO152: 0.8577 | BP152: 0.499425 | BQ152: 0.499425 | BR152: 0.499425 | BS152: 740333 | BT152: 222835 | BU152: 0 | BV152: 0.3009929316 | BW152: - | BX152: 0 | BY152: 0 | BZ152: 0 | CA152: - | CB152: - | CC152: 124855 | CD152: 124855 | CE152: 0 | CF152: 1 | CG152: - | CH152: 137000 | CI152: 137000 | CJ152: 0 | CK152: 1 | CL152: - | CM152: 1002188 | CN152: 484690 | CO152: 0 | CP152: 0.4836318136 | CQ152: - | CR152: 16. Paz, justicia e instituciones sólidas | CS152: Fortalecimiento insitucional | CT152: Sec. Planeación
AQ153: Realizar visita de control de obra al 100% de las obras sin licencia. | AR153: 2210987 2210158 | AS153: Porcentaje de obras sin licencia con visita de control de obra. | AT153: 0.7 | AU153: 1 | AV153: 1 | AW153: 0.25 | AX153: 1 | AY153: 0.25 | AZ153: 1 | BA153: 0.25 | BB153: 1 | BC153: 0.25 | BD153: 0.9 | BE153: 0.93 | BF153: 0.7 | BG153: 0.8 | BH153: 0.9 | BI153: 0.9 | BJ153: 0.93 | BK153: 0.93 | BL153: 0.7 | BM153: 0.7 | BN153: 0.8 | BO153: 0.8 | BP153: 0.8325 | BQ153: 0.8325 | BR153: 0.8325 | BS153: 740333 | BT153: 222835 | BU153: 0 | BV153: 0.3009929316 | BW153: - | BX153: 462325 | BY153: 442180 | BZ153: 0 | CA153: 0.9564267561 | CB153: - | CC153: 124854 | CD153: 124854 | CE153: 0 | CF153: 1 | CG153: - | CH153: 136000 | CI153: 136000 | CJ153: 0 | CK153: 1 | CL153: - | CM153: 1463512 | CN153: 925869 | CO153: 0 | CP153: 0.6326350587 | CQ153: - | CR153: 16. Paz, justicia e instituciones sólidas | CS153: Fortalecimiento insitucional | CT153: Sec. Planeación
AQ154: Realizar visita de control de obra al 100% de las obras que presenten queja o solicitud. | AR154: 2210987 2210158 | AS154: Porcentaje de obras con visita de control de obra por queja o solicitud. | AT154: 0.7 | AU154: 1 | AV154: 1 | AW154: 0.25 | AX154: 1 | AY154: 0.25 | AZ154: 1 | BA154: 0.25 | BB154: 1 | BC154: 0.25 | BD154: 0.95 | BE154: 0.93 | BF154: 0.92 | BG154: 0.95 | BH154: 0.95 | BI154: 0.95 | BJ154: 0.93 | BK154: 0.93 | BL154: 0.92 | BM154: 0.92 | BN154: 0.95 | BO154: 0.95 | BP154: 0.9375 | BQ154: 0.9375 | BR154: 0.9375 | BS154: 740333 | BT154: 222835 | BU154: 0 | BV154: 0.3009929316 | BW154: - | BX154: 462325 | BY154: 442180 | BZ154: 0 | CA154: 0.9564267561 | CB154: - | CC154: 124854 | CD154: 124854 | CE154: 0 | CF154: 1 | CG154: - | CH154: 137000 | CI154: 137000 | CJ154: 0 | CK154: 1 | CL154: - | CM154: 1464512 | CN154: 926869 | CO154: 0 | CP154: 0.6328859033 | CQ154: - | CR154: 16. Paz, justicia e instituciones sólidas | CS154: Fortalecimiento insitucional | CT154: Sec. Planeación
AQ155: Elaborar 1 documento guía para la aplicación de los elementos relevantes del POT. | AR155: 2210906 | AS155: Número de documentos guías elaborados para la aplicación de los elementos relevantes del POT. | AT155: 0 | AU155: 1 | AV155: 0 | AW155: 0 | AX155: 1 | AY155: 1 | AZ155: 0 | BA155: 0 | BB155: 0 | BC155: 0 | BD155: 0 | BE155: 1 | BF155: 0 | BG155: 0 | BH155: - | BI155: - | BJ155: 1 | BK155: 1 | BL155: - | BM155: - | BN155: - | BO155: - | BP155: =+SUM(BD155:BG155)/AU155 -> 1 | BQ155: 1 | BR155: 1 | BS155: 0 | BT155: 0 | BU155: 0 | BV155: - | BW155: - | BX155: 0 | BY155: 0 | BZ155: 0 | CA155: - | CB155: - | CC155: 0 | CD155: 0 | CE155: 0 | CF155: - | CG155: - | CH155: 0 | CI155: 0 | CJ155: 0 | CK155: - | CL155: - | CM155: 0 | CN155: 0 | CO155: 0 | CP155: - | CQ155: - | CR155: 16. Paz, justicia e instituciones sólidas | CS155: Promoción del Desarrollo | CT155: Sec. Planeación
AQ156: Desarrollar el plug-in para el POT on-line. | AR156: 2210158 | AS156: Número de plugs-in para el POT on-line desarrollados. | AT156: 0 | AU156: 1 | AV156: 1 | AW156: 1 | AX156: 0 | AY156: 0 | AZ156: 0 | BA156: 0 | BB156: 0 | BC156: 0 | BD156: 1 | BE156: 1 | BF156: 0 | BG156: 0 | BH156: 1 | BI156: 1 | BJ156: - | BK156: - | BL156: - | BM156: - | BN156: - | BO156: - | BP156: 2 | BQ156: 1 | BR156: 1 | BS156: 0 | BT156: 0 | BU156: 0 | BV156: - | BW156: - | BX156: 44000 | BY156: 44000 | BZ156: 0 | CA156: 1 | CB156: - | CC156: 0 | CD156: 0 | CE156: 0 | CF156: - | CG156: - | CH156: 0 | CI156: 0 | CJ156: 0 | CK156: - | CL156: - | CM156: 44000 | CN156: 44000 | CO156: 0 | CP156: 1 | CQ156: - | CR156: 16. Paz, justicia e instituciones sólidas | CS156: Promoción del Desarrollo | CT156: Sec. Planeación
AQ157: Realizar 1 estudio para aplicar la plusvalía en el municipio. | AR157: 2210158 | AS157: Porcentaje de avance en la realización del estudio para aplicar la plusvalía en el municipio. | AT157: 0 | AU157: 1 | AV157: 0 | AW157: 0 | AX157: 1 | AY157: 1 | AZ157: 0 | BA157: 0 | BB157: 0 | BC157: 0 | BD157: 0 | BE157: 0.8 | BF157: 0.08 | BG157: 0.12 | BH157: - | BI157: - | BJ157: 0.8 | BK157: 0.8 | BL157: - | BM157: - | BN157: - | BO157: - | BP157: 1 | BQ157: 1 | BR157: 1 | BS157: 0 | BT157: 0 | BU157: 0 | BV157: - | BW157: - | BX157: 62000 | BY157: 61999 | BZ157: 0 | CA157: 0.999983871 | CB157: - | CC157: 0 | CD157: 0 | CE157: 0 | CF157: - | CG157: - | CH157: 0 | CI157: 0 | CJ157: 0 | CK157: - | CL157: - | CM157: 62000 | CN157: 61999 | CO157: 0 | CP157: 0.999983871 | CQ157: - | CR157: 16. Paz, justicia e instituciones sólidas | CS157: Promoción del Desarrollo | CT157: Sec. Planeación
F158: Lograr 10.000 M2 de espacio público efectivo por aportes de deberes urbanísticos. | G158: 0 | H158: 10000 | I158: =+H158-G158 -> 10000 | J158: 2500 | K158: =+J158-G158 -> 2500 | M158: 5000 | N158: =+M158-J158 -> 2500 | P158: 7500 | Q158: =+P158-M158 -> 2500 | S158: 10000 | T158: =+S158-P158 -> 2500 | V158: 8510 | W158: =+IF(V158=0,0,V158-G158) -> 8510 | X158: 2800 | Y158: =+IF(X158=0,0,X158-V158) -> -5710 | Z158: 4219 | AA158: =+IF(Z158=0,0,Z158-X158) -> 1419 | AC158: =+IF(AB158=0,0,AB158-Z158) -> 0 | AD158: =+IF(K158=0," -",W158/K158) -> 3.404 | AE158: =+IF(K158=0," -",IF(AD158>100%,100%,AD158)) -> 1 | AF158: =+IF(N158=0," -",Y158/N158) -> -2.284 | AG158: =+IF(N158=0," -",IF(AF158>100%,100%,AF158)) -> -2.284 | AH158: =+IF(Q158=0," -",AA158/Q158) -> 0.5676 | AI158: =+IF(Q158=0," -",IF(AH158>100%,100%,AH158)) -> 0.5676 | AJ158: =+IF(T158=0," -",AC158/T158) -> 0 | AK158: =+IF(T158=0," -",IF(AJ158>100%,100%,AJ158)) -> 0 | AL158: =+SUM(AC158,AA158,Y158,W158)/I158 -> 0.4219 | AM158: =+IF(AL158>100%,100%,IF(AL158<0%,0%,AL158)) -> 0.4219 | AQ158: Realizar 1 estudios de estructuración zonal. | AR158: 2210158 | AS158: Porcentaje de avance en la realización del estudio de estructuración zonal. | AT158: 0 | AU158: 1 | AV158: 0 | AW158: 0 | AX158: 0.6 | AY158: 0.6 | AZ158: 0.4 | BA158: 0.4 | BB158: 0 | BC158: 0 | BD158: 0 | BE158: 0.6 | BF158: 0.4 | BG158: 0 | BH158: - | BI158: - | BJ158: 1 | BK158: 1 | BL158: 1 | BM158: 1 | BN158: - | BO158: - | BP158: 1 | BQ158: 1 | BR158: 1 | BS158: 0 | BT158: 0 | BU158: 0 | BV158: - | BW158: - | BX158: 0 | BY158: 0 | BZ158: 0 | CA158: - | CB158: - | CC158: 141000 | CD158: 141000 | CE158: 0 | CF158: 1 | CG158: - | CH158: 145525 | CI158: 137600 | CJ158: 0 | CK158: 0.9455420031 | CL158: - | CM158: 286525 | CN158: 278600 | CO158: 0 | CP158: 0.9723409825 | CQ158: - | CR158: 16. Paz, justicia e instituciones sólidas | CS158: Promoción del Desarrollo | CT158: Sec. Planeación
AQ159: Mantener actualizado el expediente municipal. | AR159: 2210906 | AS159: Número de expedientes municipales actualizados. | AT159: 1 | AU159: 1 | AV159: 1 | AW159: 0.25 | AX159: 1 | AY159: 0.25 | AZ159: 1 | BA159: 0.25 | BB159: 1 | BC159: 0.25 | BD159: 1 | BE159: 1 | BF159: 1 | BG159: 1 | BH159: 1 | BI159: 1 | BJ159: 1 | BK159: 1 | BL159: 1 | BM159: 1 | BN159: 1 | BO159: 1 | BP159: 1 | BQ159: 1 | BR159: 1 | BS159: 32500 | BT159: 32500 | BU159: 0 | BV159: 1 | BW159: - | BX159: 241000 | BY159: 241000 | BZ159: 0 | CA159: 1 | CB159: - | CC159: 150422.318 | CD159: 150422.318 | CE159: 0 | CF159: 1 | CG159: - | CH159: 145525 | CI159: 137600 | CJ159: 0 | CK159: 0.9455420031 | CL159: - | CM159: 569447.318 | CN159: 561522.318 | CO159: 0 | CP159: 0.9860829971 | CQ159: - | CR159: 16. Paz, justicia e instituciones sólidas | CS159: Promoción del Desarrollo | CT159: Sec. Planeación
AQ160: Actualizar la lista indicativa de Bienes de Interés Cultural - BIC. | AR160: - | AS160: Número de listas indicativas de bienes de interés cultural actualizadas. | AT160: 1 | AU160: 1 | AV160: 0 | AW160: 0 | AX160: 0 | AY160: 0 | AZ160: 0 | BA160: 0 | BB160: 1 | BC160: 1 | BD160: 0 | BE160: 0 | BF160: 0 | BG160: 0 | BH160: - | BI160: - | BJ160: - | BK160: - | BL160: - | BM160: - | BN160: 0 | BO160: 0 | BP160: =+SUM(BD160:BG160)/AU160 -> 0 | BQ160: 0 | BR160: 0 | BS160: 0 | BT160: 0 | BU160: 0 | BV160: - | BW160: - | BX160: 0 | BY160: 0 | BZ160: 0 | CA160: - | CB160: - | CC160: 0 | CD160: 0 | CE160: 0 | CF160: - | CG160: - | CH160: 0 | CI160: 0 | CJ160: 0 | CK160: - | CL160: - | CM160: 0 | CN160: 0 | CO160: 0 | CP160: - | CQ160: - | CR160: 16. Paz, justicia e instituciones sólidas | CS160: Promoción del Desarrollo | CT160: Sec. Planeación
AO161: =+RESUMEN!J34 -> 1 | AP161: DISEÑO URBANO INTELIGENTE Y SUSTENTABLE | AQ161: Conformar y mantener el equipo de diseño del taller de arquitectura. | AR161: 2210269 | AS161: Número de equipos de diseño del taller de arquitectura conformados y mantenidos. | AT161: 0 | AU161: 1 | AV161: 1 | AW161: 0.25 | AX161: 1 | AY161: 0.25 | AZ161: 1 | BA161: 0.25 | BB161: 1 | BC161: 0.25 | BD161: 1 | BE161: 1 | BF161: 1 | BG161: 1 | BH161: 1 | BI161: 1 | BJ161: 1 | BK161: 1 | BL161: 1 | BM161: 1 | BN161: 1 | BO161: 1 | BP161: 1 | BQ161: 1 | BR161: 1 | BS161: 1000000 | BT161: 241300 | BU161: 0 | BV161: 0.2413 | BW161: - | BX161: 700156 | BY161: 670807 | BZ161: 0 | CA161: 0.9580821988 | CB161: - | CC161: 461880 | CD161: 461880 | CE161: 0 | CF161: 1 | CG161: - | CH161: 800000 | CI161: 800000 | CJ161: 0 | CK161: 1 | CL161: - | CM161: 2962036 | CN161: 2173987 | CO161: 0 | CP161: 0.7339502288 | CQ161: - | CR161: 16. Paz, justicia e instituciones sólidas | CS161: Promoción del Desarrollo | CT161: Sec. Infraestructura
AQ162: Realizar 150 propuestas para proyectos básicos que contengan los lineamientos de diseño urbano. | AR162: 2210905 | AS162: Número de propuestas para proyectos básicos realizados que contengan los lineamientos de diseño urbano. | AT162: 0 | AU162: 150 | AV162: 15 | AW162: 0.1 | AX162: 60 | AY162: 0.4 | AZ162: 50 | BA162: 0.3333333333 | BB162: 25 | BC162: 0.1666666667 | BD162: 15 | BE162: 35 | BF162: 93 | BG162: 52 | BH162: 1 | BI162: 1 | BJ162: 0.5833333333 | BK162: 0.5833333333 | BL162: 1.86 | BM162: 1 | BN162: 2.08 | BO162: 1 | BP162: =+SUM(BD162:BG162)/AU162 -> 1.3 | BQ162: 1 | BR162: 1 | BS162: 0 | BT162: 0 | BU162: 0 | BV162: - | BW162: - | BX162: 0 | BY162: 0 | BZ162: 0 | CA162: - | CB162: - | CC162: 0 | CD162: 0 | CE162: 0 | CF162: - | CG162: - | CH162: 0 | CI162: 0 | CJ162: 0 | CK162: - | CL162: - | CM162: 0 | CN162: 0 | CO162: 0 | CP162: - | CQ162: - | CR162: 11. Ciudades y comunidades sostenibles | CS162: Promoción del Desarrollo | CT162: Sec. Infraestructura
AO163: =+RESUMEN!J35 -> 0.835 | AP163: UNA CIUDAD QUE HACE Y EJECUTA PLANES | AQ163: Estructurar 1 Plan Integral Zonal - PIZ. | AR163: 2210158 | AS163: Porcentaje de avance de la estructuración del Plan Integral Zonal - PIZ. | AT163: 0 | AU163: 1 | AV163: 0 | AW163: 0 | AX163: 1 | AY163: 1 | AZ163: 0 | BA163: 0 | BB163: 0 | BC163: 0 | BD163: 0 | BE163: 0.9 | BF163: 0.1 | BG163: 0 | BH163: - | BI163: - | BJ163: 0.9 | BK163: 0.9 | BL163: - | BM163: - | BN163: - | BO163: - | BP163: 1 | BQ163: 1 | BR163: 1 | BS163: 0 | BT163: 0 | BU163: 0 | BV163: - | BW163: - | BX163: 1035842 | BY163: 1035842 | BZ163: 259672 | CA163: 1 | CB163: 0.2506868808 | CC163: 0 | CD163: 0 | CE163: 0 | CF163: - | CG163: - | CH163: 0 | CI163: 0 | CJ163: 0 | CK163: - | CL163: - | CM163: 1035842 | CN163: 1035842 | CO163: 259672 | CP163: 1 | CQ163: 0.2506868808 | CR163: 11. Ciudades y comunidades sostenibles | CS163: Promoción del Desarrollo | CT163: Sec. Planeación
F164: Lograr la evaluación del 100% del modelo territorial planteado en el Plan de Ordenamiento Territorial - POT. | G164: 0.3 | H164: 1 | I164: =+H164-G164 -> 0.7 | J164: 0.3 | K164: =+J164-G164 -> 0 | M164: 0.6 | N164: =+M164-J164 -> 0.3 | P164: 0.9 | Q164: =+P164-M164 -> 0.3 | S164: 1 | T164: =+S164-P164 -> 0.1 | V164: 0.9 | W164: =+IF(V164=0,0,V164-G164) -> 0.6 | X164: 0.75 | Y164: =+IF(X164=0,0,X164-V164) -> -0.15 | Z164: 0.75 | AA164: =+IF(Z164=0,0,Z164-X164) -> 0 | AC164: =+IF(AB164=0,0,AB164-Z164) -> 0 | AD164: =+IF(K164=0," -",W164/K164) -> - | AE164: =+IF(K164=0," -",IF(AD164>100%,100%,AD164)) -> - | AF164: =+IF(N164=0," -",Y164/N164) -> -0.5 | AG164: =+IF(N164=0," -",IF(AF164>100%,100%,AF164)) -> -0.5 | AH164: =+IF(Q164=0," -",AA164/Q164) -> 0 | AI164: =+IF(Q164=0," -",IF(AH164>100%,100%,AH164)) -> 0 | AJ164: =+IF(T164=0," -",AC164/T164) -> 0 | AK164: =+IF(T164=0," -",IF(AJ164>100%,100%,AJ164)) -> 0 | AL164: =+SUM(AC164,AA164,Y164,W164)/I164 -> 0.6428571429 | AM164: =+IF(AL164>100%,100%,IF(AL164<0%,0%,AL164)) -> 0.6428571429 | AQ164: Ejecutar 1 Plan Integral Zonal. | AR164: 2210158 | AS164: Porcentaje de avance en la ejecución del Plan Integral Zonal - PIZ. | AT164: 0 | AU164: 1 | AV164: 0 | AW164: 0 | AX164: 0 | AY164: 0 | AZ164: 0.1 | BA164: 0.1 | BB164: 0.9 | BC164: 0.9 | BD164: 0 | BE164: 0 | BF164: 0.03 | BG164: 0.3 | BH164: - | BI164: - | BJ164: - | BK164: - | BL164: 0.3 | BM164: 0.3 | BN164: 0.3333333333 | BO164: 0.3333333333 | BP164: 0.33 | BQ164: 0.33 | BR164: 0.33 | BS164: 0 | BT164: 0 | BU164: 0 | BV164: - | BW164: - | BX164: 0 | BY164: 0 | BZ164: 0 | CA164: - | CB164: - | CC164: 0 | CD164: 0 | CE164: 0 | CF164: - | CG164: - | CH164: 0 | CI164: 0 | CJ164: 0 | CK164: - | CL164: - | CM164: 0 | CN164: 0 | CO164: 0 | CP164: - | CQ164: - | CR164: 11. Ciudades y comunidades sostenibles | CS164: Promoción del Desarrollo | CT164: Sec. Planeación
AQ165: Realizar 1 estudio que contenga los lineamientos y directrices generales del gran bosque de los cerros orientales de escala metropolitana. | AR165: 2210270 | AS165: Porcentaje de avance de la realización del estudio que contenga los lineamientos y directrices generales del gran bosque de los cerros orientales de escala metropolitana. | AT165: 0 | AU165: 1 | AV165: 0 | AW165: 0 | AX165: 1 | AY165: 1 | AZ165: 0 | BA165: 0 | BB165: 0 | BC165: 0 | BD165: 0 | BE165: 1 | BF165: 0 | BG165: 0 | BH165: - | BI165: - | BJ165: 1 | BK165: 1 | BL165: - | BM165: - | BN165: - | BO165: - | BP165: 1 | BQ165: 1 | BR165: 1 | BS165: 0 | BT165: 0 | BU165: 0 | BV165: - | BW165: - | BX165: 0 | BY165: 0 | BZ165: 0 | CA165: - | CB165: - | CC165: 0 | CD165: 0 | CE165: 0 | CF165: - | CG165: - | CH165: 0 | CI165: 0 | CJ165: 0 | CK165: - | CL165: - | CM165: 0 | CN165: 0 | CO165: 0 | CP165: - | CQ165: - | CR165: 11. Ciudades y comunidades sostenibles | CS165: Equipamiento | CT165: Sec. Infraestructura
AQ166: Formular el Plan Maestro de Espacio Público. | AR166: 2210158 | AS166: Porcentaje de avance de la formulación del Plan Maestro de Espacio Público. | AT166: 0 | AU166: 1 | AV166: 0 | AW166: 0 | AX166: 1 | AY166: 1 | AZ166: 0 | BA166: 0 | BB166: 0 | BC166: 0 | BD166: 0 | BE166: 0.95 | BF166: 0.05 | BG166: 0 | BH166: - | BI166: - | BJ166: 0.95 | BK166: 0.95 | BL166: - | BM166: - | BN166: - | BO166: - | BP166: 1 | BQ166: 1 | BR166: 1 | BS166: 0 | BT166: 0 | BU166: 0 | BV166: - | BW166: - | BX166: 1014000 | BY166: 1014000 | BZ166: 243800 | CA166: 1 | CB166: 0.240433925 | CC166: 0 | CD166: 0 | CE166: 0 | CF166: - | CG166: - | CH166: 0 | CI166: 0 | CJ166: 0 | CK166: - | CL166: - | CM166: 1014000 | CN166: 1014000 | CO166: 243800 | CP166: 1 | CQ166: 0.240433925 | CR166: 11. Ciudades y comunidades sostenibles | CS166: Promoción del Desarrollo | CT166: Sec. Planeación
AQ167: Realizar el 100% de los diseños, estudios, consultorías e interventorías para ejecutar los proyectos y las obras del Plan de Desarrollo 2016 - 2019 y otros planes de ciudad. | AR167: 2210271 | AS167: Porcentaje de diseños, estudios, consultorías e interventorias realizadas para para ejecutar los proyectos y las obras del Plan de Desarrollo 2016 - 2019 y otros planes de ciudad. | AT167: 1 | AU167: 1 | AV167: 1 | AW167: 0.25 | AX167: 1 | AY167: 0.25 | AZ167: 1 | BA167: 0.25 | BB167: 1 | BC167: 0.25 | BD167: 1 | BE167: 1 | BF167: 1 | BG167: 1 | BH167: 1 | BI167: 1 | BJ167: 1 | BK167: 1 | BL167: 1 | BM167: 1 | BN167: 1 | BO167: 1 | BP167: 1 | BQ167: 1 | BR167: 1 | BS167: 385956 | BT167: 302350 | BU167: 0 | BV167: 0.7833794526 | BW167: - | BX167: 3874264 | BY167: 3859550 | BZ167: 0 | CA167: 0.9962021174 | CB167: - | CC167: 2472944 | CD167: 2275146 | CE167: 0 | CF167: 0.9200151722 | CG167: - | CH167: 1352183 | CI167: 1352183 | CJ167: 0 | CK167: 1 | CL167: - | CM167: 8085347 | CN167: 7789229 | CO167: 0 | CP167: 0.9633759689 | CQ167: - | CR167: 16. Paz, justicia e instituciones sólidas | CS167: Promoción del Desarrollo | CT167: Sec. Infraestructura
AQ168: Ajustar el Plan Local de Seguridad Vial. | AR168: - | AS168: Número de ajustes al Plan Local de Seguridad Vial realizados. | AT168: 1 | AU168: 1 | AV168: 1 | AW168: 1 | AX168: 0 | AY168: 0 | AZ168: 0 | BA168: 0 | BB168: 0 | BC168: 0 | BD168: 1 | BE168: 0 | BF168: - | BG168: 0 | BH168: 1 | BI168: 1 | BJ168: - | BK168: - | BL168: - | BM168: - | BN168: - | BO168: - | BP168: =+SUM(BD168:BG168)/AU168 -> 1 | BQ168: 1 | BR168: 1 | BS168: 0 | BT168: 0 | BU168: 0 | BV168: - | BW168: - | BX168: 0 | BY168: 0 | BZ168: 0 | CA168: - | CB168: - | CC168: 0 | CD168: 0 | CE168: 0 | CF168: - | CG168: - | CH168: 0 | CI168: 0 | CJ168: 0 | CK168: - | CL168: - | CM168: 0 | CN168: 0 | CO168: 0 | CP168: - | CQ168: - | CR168: 11. Ciudades y comunidades sostenibles | CS168: Promoción del Desarrollo | CT168: Dir. Tránsito
AQ169: Formular e implementar el Plan Estratégico de Seguridad Vial en METROLÍNEA. | AR169: 21032501 | AS169: Número de Planes Estratégicos de Seguridad Vial en METROLÍNEA formulados e implementados. | AT169: 0.01 | AU169: 1 | AV169: 1 | AW169: 0.25 | AX169: 1 | AY169: 0.25 | AZ169: 1 | BA169: 0.25 | BB169: 1 | BC169: 0.25 | BD169: 0.4 | BE169: 1 | BF169: 1 | BG169: 0 | BH169: 0.4 | BI169: 0.4 | BJ169: 1 | BK169: 1 | BL169: 1 | BM169: 1 | BN169: 0 | BO169: 0 | BP169: 0.6 | BQ169: 0.6 | BR169: 0.6 | BS169: 0 | BT169: 0 | BU169: 0 | BV169: - | BW169: - | BX169: 0 | BY169: 0 | BZ169: 0 | CA169: - | CB169: - | CC169: 0 | CD169: 0 | CE169: 0 | CF169: - | CG169: - | CH169: 50000 | CI169: 0 | CJ169: 0 | CK169: 0 | CL169: - | CM169: 50000 | CN169: 0 | CO169: 0 | CP169: 0 | CQ169: - | CR169: 11. Ciudades y comunidades sostenibles | CS169: Transporte | CT169: METROLÍNEA
F170: Construir 20 obras de infraestructura de espacio público ideadas por el taller de arquitectura. | G170: 0 | H170: 20 | I170: =+H170-G170 -> 20 | J170: 2 | K170: =+J170-G170 -> 2 | M170: 8 | N170: =+M170-J170 -> 6 | P170: 14 | Q170: =+P170-M170 -> 6 | S170: 20 | T170: =+S170-P170 -> 6 | V170: 3 | W170: =+IF(V170=0,0,V170-G170) -> 3 | X170: 11 | Y170: =+IF(X170=0,0,X170-V170) -> 8 | Z170: 31 | AA170: =+IF(Z170=0,0,Z170-X170) -> 20 | AC170: =+IF(AB170=0,0,AB170-Z170) -> 0 | AD170: =+IF(K170=0," -",W170/K170) -> 1.5 | AE170: =+IF(K170=0," -",IF(AD170>100%,100%,AD170)) -> 1 | AF170: =+IF(N170=0," -",Y170/N170) -> 1.333333333 | AG170: =+IF(N170=0," -",IF(AF170>100%,100%,AF170)) -> 1 | AH170: =+IF(Q170=0," -",AA170/Q170) -> 3.333333333 | AI170: =+IF(Q170=0," -",IF(AH170>100%,100%,AH170)) -> 1 | AJ170: =+IF(T170=0," -",AC170/T170) -> 0 | AK170: =+IF(T170=0," -",IF(AJ170>100%,100%,AJ170)) -> 0 | AL170: =+SUM(AC170,AA170,Y170,W170)/I170 -> 1.55 | AM170: =+IF(AL170>100%,100%,IF(AL170<0%,0%,AL170)) -> 1 | AQ170: Apoyar el proceso de formulación y ejecución del Plan Maestro Santander Life en coordinación con el Área Metropolitana de Bucaramanga. | AR170: 0542900401 | AS170: Número de Planes Maestros Santander Life apoyados en su proceso de formulación y ejecución en coordinación con el Área Metropolitana de Bucaramanga. | AT170: 0 | AU170: 1 | AV170: 1 | AW170: 0.25 | AX170: 1 | AY170: 0.25 | AZ170: 1 | BA170: 0.25 | BB170: 1 | BC170: 0.25 | BD170: 1 | BE170: 1 | BF170: 1 | BG170: 0 | BH170: 1 | BI170: 1 | BJ170: 1 | BK170: 1 | BL170: 1 | BM170: 1 | BN170: 0 | BO170: 0 | BP170: 0.75 | BQ170: 0.75 | BR170: 0.75 | BS170: 0 | BT170: 0 | BU170: 0 | BV170: - | BW170: - | BX170: 0 | BY170: 0 | BZ170: 0 | CA170: - | CB170: - | CC170: 0 | CD170: 0 | CE170: 0 | CF170: - | CG170: - | CH170: 0 | CI170: 0 | CJ170: 0 | CK170: - | CL170: - | CM170: 0 | CN170: 0 | CO170: 0 | CP170: - | CQ170: - | CR170: 11. Ciudades y comunidades sostenibles | CS170: Promoción del Desarrollo | CT170: IMEBU
AO171: =+RESUMEN!J36 -> 0.7966666667 | AP171: TERRITORIOS VULNERABLES, TERRITORIOS VISIBLES | AQ171: Elaborar 1 documento guía que contenga la norma, lineamientos y procesos para la legalización de asentamientos. | AR171: 2210159 | AS171: Porcentaje de avance en la elaboración del documento guía que contenga la norma, lineamientos y procesos para la legalización de asentamientos. | AT171: 0 | AU171: 1 | AV171: 0.1 | AW171: 0.1 | AX171: 0.9 | AY171: 0.9 | AZ171: 0 | BA171: 0 | BB171: 0 | BC171: 0 | BD171: 0.15 | BE171: 0.5 | BF171: 0.35 | BG171: 0 | BH171: 1.5 | BI171: 1 | BJ171: 0.5555555556 | BK171: 0.5555555556 | BL171: - | BM171: - | BN171: - | BO171: - | BP171: =+SUM(BD171:BG171)/AU171 -> 1 | BQ171: 1 | BR171: 1 | BS171: 36750 | BT171: 36750 | BU171: 0 | BV171: 1 | BW171: - | BX171: 0 | BY171: 0 | BZ171: 0 | CA171: - | CB171: - | CC171: 238400 | CD171: 238400 | CE171: 0 | CF171: 1 | CG171: - | CH171: 127494.444 | CI171: 127494.444 | CJ171: 0 | CK171: 1 | CL171: - | CM171: 402644.444 | CN171: 402644.444 | CO171: 0 | CP171: 1 | CQ171: - | CR171: 11. Ciudades y comunidades sostenibles | CS171: Promoción del Desarrollo | CT171: Sec. Planeación
AQ172: Elaborar 1 documento guía que contenga el proceso para obtener la titularidad del predio en barrios legalizados. | AR172: 2210159 | AS172: Porcentaje de avance en la elaboración del documento guía que contenga el proceso para obtener la titularidad del predio en barrios legalizados. | AT172: 0 | AU172: 1 | AV172: 0.1 | AW172: 0.1 | AX172: 0.9 | AY172: 0.9 | AZ172: 0 | BA172: 0 | BB172: 0 | BC172: 0 | BD172: 0.15 | BE172: 0.5 | BF172: 0.35 | BG172: 0 | BH172: 1.5 | BI172: 1 | BJ172: 0.5555555556 | BK172: 0.5555555556 | BL172: - | BM172: - | BN172: - | BO172: - | BP172: 1 | BQ172: 1 | BR172: 1 | BS172: 0 | BT172: 0 | BU172: 0 | BV172: - | BW172: - | BX172: 0 | BY172: 0 | BZ172: 0 | CA172: - | CB172: - | CC172: 238400 | CD172: 238400 | CE172: 0 | CF172: 1 | CG172: - | CH172: 127494.444 | CI172: 127494.444 | CJ172: 0 | CK172: 1 | CL172: - | CM172: 365894.444 | CN172: 365894.444 | CO172: 0 | CP172: 1 | CQ172: - | CR172: 11. Ciudades y comunidades sostenibles | CS172: Promoción del Desarrollo | CT172: Sec. Planeación
AQ173: Revisar y asignar las nomenclaturas de 10 barrios legalizados. | AR173: 2210159 | AS173: Número de barrios legalizados con la revisión y asignación de nomenclaturas. | AT173: 0 | AU173: 10 | AV173: 1 | AW173: 0.1 | AX173: 3 | AY173: 0.3 | AZ173: 4 | BA173: 0.4 | BB173: 2 | BC173: 0.2 | BD173: 0.5 | BE173: 5 | BF173: 6 | BG173: 3 | BH173: 0.5 | BI173: 0.5 | BJ173: 1.666666667 | BK173: 1 | BL173: 1.5 | BM173: 1 | BN173: 1.5 | BO173: 1 | BP173: 1.45 | BQ173: 1 | BR173: 1 | BS173: 0 | BT173: 0 | BU173: 0 | BV173: - | BW173: - | BX173: 0 | BY173: 0 | BZ173: 0 | CA173: - | CB173: - | CC173: 0 | CD173: 0 | CE173: 0 | CF173: - | CG173: - | CH173: 127494.444 | CI173: 127494.444 | CJ173: 0 | CK173: 1 | CL173: - | CM173: 127494.444 | CN173: 127494.444 | CO173: 0 | CP173: 1 | CQ173: - | CR173: 11. Ciudades y comunidades sostenibles | CS173: Promoción del Desarrollo | CT173: Sec. Planeación
AQ174: Implementar y mantener 1 capítulo especial dentro del observatorio metropolitano para estudiar los territorios vulnerables y generar información sobre sus condiciones y problemáticas. | AR174: - | AS174: Número de capítulos especiales implementados y mantenidos dentro del observatorio metropolitano para estudiar los territorios vulnerables y generar información sobre sus condiciones y problemáticas. | AT174: 0 | AU174: 1 | AV174: 0 | AW174: 0 | AX174: 1 | AY174: 0.33 | AZ174: 1 | BA174: 0.33 | BB174: 1 | BC174: 0.34 | BD174: 0 | BE174: 0 | BF174: 1 | BG174: 0 | BH174: - | BI174: - | BJ174: 0 | BK174: 0 | BL174: 1 | BM174: 1 | BN174: 0 | BO174: 0 | BP174: =+AVERAGE(BE174:BG174)/AU174 -> 0.3333333333 | BQ174: 0.3333333333 | BR174: 0.3333333333 | BS174: 0 | BT174: 0 | BU174: 0 | BV174: - | BW174: - | BX174: 0 | BY174: 0 | BZ174: 0 | CA174: - | CB174: - | CC174: 0 | CD174: 0 | CE174: 0 | CF174: - | CG174: - | CH174: 0 | CI174: 0 | CJ174: 0 | CK174: - | CL174: - | CM174: 0 | CN174: 0 | CO174: 0 | CP174: - | CQ174: - | CR174: 11. Ciudades y comunidades sostenibles | CS174: Atención a grupos vulnerables - Promoción Social | CT174: Sec. Planeación
AQ175: Realizar 20 audiencias con representantes de las fuerzas vivas de la ciudad, la comunidad afectada y los medios de comunicación para dar a conocer y discutir la realidad de los territorios vulnerables. | AR175: - | AS175: Número de audiencias realizadas con representantes de las fuerzas vivas de la ciudad, la comunidad afectada y los medios de comunicación para dar a conocer y discutir la realidad de los territorios vulnerables. | AT175: 0 | AU175: 20 | AV175: 0 | AW175: 0 | AX175: 7 | AY175: 0.35 | AZ175: 7 | BA175: 0.35 | BB175: 6 | BC175: 0.3 | BD175: 0 | BE175: 8 | BF175: 2 | BG175: 3 | BH175: - | BI175: - | BJ175: 1.142857143 | BK175: 1 | BL175: 0.2857142857 | BM175: 0.2857142857 | BN175: 0.5 | BO175: 0.5 | BP175: =+SUM(BD175:BG175)/AU175 -> 0.65 | BQ175: 0.65 | BR175: 0.65 | BS175: 0 | BT175: 0 | BU175: 0 | BV175: - | BW175: - | BX175: 0 | BY175: 0 | BZ175: 0 | CA175: - | CB175: - | CC175: 0 | CD175: 0 | CE175: 0 | CF175: - | CG175: - | CH175: 0 | CI175: 0 | CJ175: 0 | CK175: - | CL175: - | CM175: 0 | CN175: 0 | CO175: 0 | CP175: - | CQ175: - | CR175: 16. Paz, justicia e instituciones sólidas | CS175: Atención a grupos vulnerables - Promoción Social | CT175: Sec. Planeación
F176: Construir 10 obras o proyectos de infraestructura pública en territorios limítrofes concertados con el Área. | G176: 0 | H176: 10 | I176: =+H176-G176 -> 10 | J176: 1 | K176: =+J176-G176 -> 1 | M176: 4 | N176: =+M176-J176 -> 3 | P176: 7 | Q176: =+P176-M176 -> 3 | S176: 10 | T176: =+S176-P176 -> 3 | V176: 0 | W176: =+IF(V176=0,0,V176-G176) -> 0 | X176: 2 | Y176: =+IF(X176=0,0,X176-V176) -> 2 | Z176: 3 | AA176: =+IF(Z176=0,0,Z176-X176) -> 1 | AC176: =+IF(AB176=0,0,AB176-Z176) -> 0 | AD176: =+IF(K176=0," -",W176/K176) -> 0 | AE176: =+IF(K176=0," -",IF(AD176>100%,100%,AD176)) -> 0 | AF176: =+IF(N176=0," -",Y176/N176) -> 0.6666666667 | AG176: =+IF(N176=0," -",IF(AF176>100%,100%,AF176)) -> 0.6666666667 | AH176: =+IF(Q176=0," -",AA176/Q176) -> 0.3333333333 | AI176: =+IF(Q176=0," -",IF(AH176>100%,100%,AH176)) -> 0.3333333333 | AJ176: =+IF(T176=0," -",AC176/T176) -> 0 | AK176: =+IF(T176=0," -",IF(AJ176>100%,100%,AJ176)) -> 0 | AL176: =+SUM(AC176,AA176,Y176,W176)/I176 -> 0.3 | AM176: =+IF(AL176>100%,100%,IF(AL176<0%,0%,AL176)) -> 0.3 | AO176: =+RESUMEN!J37 -> 0.4905555556 | AP176: TERRITORIOS METROPOLITANOS, PLANES CONJUNTOS | AQ176: Realizar el Plan Maestro Conjunto para el desarrollo del Valle del Río de Oro en coordinación con el Área Metropolitana de Bucaramanga y el municipio de Girón. | AR176: - | AS176: Número de Planes Maestros Conjuntos realizados para el desarrollo del Valle del Río de Oro en coordinación con el Área Metropolitana de Bucaramanga y el municipio de Girón. | AT176: 0 | AU176: 1 | AV176: 0 | AW176: 0 | AX176: 0 | AY176: 0 | AZ176: 0 | BA176: 0 | BB176: 1 | BC176: 1 | BD176: 0 | BE176: 0 | BF176: 0 | BG176: 0 | BH176: - | BI176: - | BJ176: - | BK176: - | BL176: - | BM176: - | BN176: 0 | BO176: 0 | BP176: 0 | BQ176: 0 | BR176: 0 | BS176: 0 | BT176: 0 | BU176: 0 | BV176: - | BW176: - | BX176: 0 | BY176: 0 | BZ176: 0 | CA176: - | CB176: - | CC176: 0 | CD176: 0 | CE176: 0 | CF176: - | CG176: - | CH176: 0 | CI176: 0 | CJ176: 0 | CK176: - | CL176: - | CM176: 0 | CN176: 0 | CO176: 0 | CP176: - | CQ176: - | CR176: 11. Ciudades y comunidades sostenibles | CS176: Ambiental | CT176: Sec. Planeación
AQ177: Formular 1 plan de acción conjunto para el desarrollo y el mejoramiento de la infraestructura pública en el sur de Bucaramanga, norte de Floridablanca en coordinación con el Área Metropolitana y la Alcaldía de dicho municipio. | AR177: 0 | AS177: Número de planes de acción formulados para el desarrollo y el mejoramiento de la infraestructura pública en el sur de Bucaramanga, norte de Floridablanca en coordinación con el Área Metropolitana y la Alcaldía de dicho municipio. | AT177: 0 | AU177: 1 | AV177: 0 | AW177: 0 | AX177: 1 | AY177: 1 | AZ177: 0 | BA177: 0 | BB177: 0 | BC177: 0 | BD177: 0.25 | BE177: 0.8 | BF177: 0.93 | BG177: 0 | BH177: - | BI177: - | BJ177: 0.8 | BK177: 0.8 | BL177: - | BM177: - | BN177: - | BO177: - | BP177: 1.98 | BQ177: 1 | BR177: 1 | BS177: 505440 | BT177: 505440 | BU177: 0 | BV177: 1 | BW177: - | BX177: 505440 | BY177: 505440 | BZ177: 0 | CA177: 1 | CB177: - | CC177: 505440 | CD177: 505440 | CE177: 0 | CF177: 1 | CG177: - | CH177: 0 | CI177: 0 | CJ177: 0 | CK177: - | CL177: - | CM177: 1516320 | CN177: 1516320 | CO177: 0 | CP177: 1 | CQ177: - | CR177: 11. Ciudades y comunidades sostenibles | CS177: Equipamiento | CT177: AMB
AQ178: Implementar y mantener 1 estrategia de mejoramiento del ornato en sectores limítrofes con los municipios de Girón y Floridablanca en coordinación con el Área Metropolitana de Bucaramanga. | AR178: - | AS178: Número de estrategias de mejoramiento del ornato implementadas y mantenidas en sectores limítrofes con los municipios de Girón y Floridablanca en coordinación con el Área Metropolitana de Bucaramanga. | AT178: 0 | AU178: 1 | AV178: 0 | AW178: 0 | AX178: 1 | AY178: 0.33 | AZ178: 1 | BA178: 0.33 | BB178: 1 | BC178: 0.34 | BD178: 0.25 | BE178: 0.8 | BF178: 0.93 | BG178: 0.2 | BH178: - | BI178: - | BJ178: 0.8 | BK178: 0.8 | BL178: 0.93 | BM178: 0.93 | BN178: 0.2 | BO178: 0.2 | BP178: =+AVERAGE(BE178:BG178)/AU178 -> 0.6433333333 | BQ178: 0.6433333333 | BR178: 0.6433333333 | BS178: 505440 | BT178: 505440 | BU178: 0 | BV178: 1 | BW178: - | BX178: 505440 | BY178: 505440 | BZ178: 0 | CA178: 1 | CB178: - | CC178: 505440 | CD178: 505440 | CE178: 0 | CF178: 1 | CG178: - | CH178: 0 | CI178: 0 | CJ178: 0 | CK178: - | CL178: - | CM178: 1516320 | CN178: 1516320 | CO178: 0 | CP178: 1 | CQ178: - | CR178: 11. Ciudades y comunidades sostenibles | CS178: Promoción del Desarrollo | CT178: AMB
AQ179: Crear y mantener 1 centro de estudios urbanos y territoriales en el Área Metropolitana de Bucaramanga. | AR179: - | AS179: Número de centros de estudios urbanos y territoriales creados y mantenidos en el Área Metropolitana de Bucaramanga. | AT179: 0 | AU179: 1 | AV179: 0 | AW179: 0 | AX179: 1 | AY179: 0.33 | AZ179: 1 | BA179: 0.33 | BB179: 1 | BC179: 0.34 | BD179: 0 | BE179: 0 | BF179: 0.7 | BG179: 0.2 | BH179: - | BI179: - | BJ179: 0 | BK179: 0 | BL179: 0.7 | BM179: 0.7 | BN179: 0.2 | BO179: 0.2 | BP179: =+AVERAGE(BE179:BG179)/AU179 -> 0.3 | BQ179: 0.3 | BR179: 0.3 | BS179: 0 | BT179: 0 | BU179: 0 | BV179: - | BW179: - | BX179: 0 | BY179: 0 | BZ179: 0 | CA179: - | CB179: - | CC179: 500000 | CD179: 500000 | CE179: 0 | CF179: 1 | CG179: - | CH179: 0 | CI179: 0 | CJ179: 0 | CK179: - | CL179: - | CM179: 500000 | CN179: 500000 | CO179: 0 | CP179: 1 | CQ179: - | CR179: 11. Ciudades y comunidades sostenibles | CS179: Promoción del Desarrollo | CT179: AMB
AQ180: Generar 8 espacios de encuentro entre gabinetes para el diálogo y coordinación institucional con el gobierno del municipio de Girón. | AR180: - | AS180: Número de espacios de encuentro generados entre gabinetes para el diálogo y coordinación institucional con el gobierno del municipio de Girón. | AT180: 0 | AU180: 8 | AV180: 0 | AW180: 0 | AX180: 2 | AY180: 0.25 | AZ180: 3 | BA180: 0.375 | BB180: 3 | BC180: 0.375 | BD180: 0 | BE180: 2 | BF180: 2 | BG180: 0 | BH180: - | BI180: - | BJ180: 1 | BK180: 1 | BL180: 0.6666666667 | BM180: 0.6666666667 | BN180: 0 | BO180: 0 | BP180: =+SUM(BD180:BG180)/AU180 -> 0.5 | BQ180: 0.5 | BR180: 0.5 | BS180: 0 | BT180: 0 | BU180: 0 | BV180: - | BW180: - | BX180: 5000 | BY180: 5000 | BZ180: 0 | CA180: 1 | CB180: - | CC180: 0 | CD180: 0 | CE180: 0 | CF180: - | CG180: - | CH180: 0 | CI180: 0 | CJ180: 0 | CK180: - | CL180: - | CM180: 5000 | CN180: 5000 | CO180: 0 | CP180: 1 | CQ180: - | CR180: 16. Paz, justicia e instituciones sólidas | CS180: Fortalecimiento insitucional | CT180: AMB
AQ181: Generar 8 espacios de encuentro entre gabinetes para el diálogo y coordinación institucional con el gobierno del municipio de Floridablanca. | AR181: - | AS181: Número de espacios de encuentro generados entre gabinetes para el diálogo y coordinación institucional con el gobierno del municipio de Floridablanca. | AT181: 0 | AU181: 8 | AV181: 0 | AW181: 0 | AX181: 2 | AY181: 0.25 | AZ181: 3 | BA181: 0.375 | BB181: 3 | BC181: 0.375 | BD181: 0 | BE181: 2 | BF181: 2 | BG181: 0 | BH181: - | BI181: - | BJ181: 1 | BK181: 1 | BL181: 0.6666666667 | BM181: 0.6666666667 | BN181: 0 | BO181: 0 | BP181: 0.5 | BQ181: 0.5 | BR181: 0.5 | BS181: 0 | BT181: 0 | BU181: 0 | BV181: - | BW181: - | BX181: 5000 | BY181: 5000 | BZ181: 0 | CA181: 1 | CB181: - | CC181: 0 | CD181: 0 | CE181: 0 | CF181: - | CG181: - | CH181: 0 | CI181: 0 | CJ181: 0 | CK181: - | CL181: - | CM181: 5000 | CN181: 5000 | CO181: 0 | CP181: 1 | CQ181: - | CR181: 16. Paz, justicia e instituciones sólidas | CS181: Fortalecimiento insitucional | CT181: AMB
AW182: =+AVERAGE(AW152:AW181) -> 0.1466666667 | AY182: =+AVERAGE(AY152:AY181) -> 0.4313333333 | BA182: 0.1774444444 | BC182: 0.2445555556 | BI182: =+AVERAGE(BI152:BI181) -> 0.9 | BK182: 0.7977777778 | BM182: 0.7955026455 | BO182: 0.4653175439 | BQ182: =+AVERAGE(BQ152:BQ181) -> 0.7625363889
BD186: 2016 | BE186: 2017 | BF186: 2018 | BG186: 2019 | BH186: CA
AZ187: Administrativa | BD187: =+AVERAGE(BI30:BI31,BI67:BI68,BI75,BI78:BI81,BI85:BI93) -> 1 | BE187: =+AVERAGE(BK30:BK31,BK67:BK68,BK75,BK78:BK81,BK85:BK93) -> 0.7058823529 | BF187: =+AVERAGE(BM30:BM31,BM67:BM68,BM75,BM78:BM81,BM85:BM93) -> 0.9090909091 | BG187: =+AVERAGE(BO30:BO31,BO67:BO68,BO75,BO78:BO81,BO85:BO93) -> 0.8 | BH187: =+AVERAGE(BQ30:BQ31,BQ67:BQ68,BQ75,BQ78:BQ81,BQ85:BQ93) -> 0.6703703704
AZ188: AMB | BD188: =+AVERAGE(BI57:BI60,BI177:BI181) ->  | BE188: =+AVERAGE(BK57:BK60,BK177:BK181) -> 0.7166666667 | BF188: =+AVERAGE(BM57:BM60,BM177:BM181) -> 0.6204166667 | BG188: =+AVERAGE(BO57:BO60,BO177:BO181) -> 0.425 | BH188: =+AVERAGE(BQ57:BQ60,BQ177:BQ181) -> 0.6075925926
AZ189: Bomberos | BD189: =+BI97 -> - | BE189: =+BK97 -> 1 | BF189: =+BM97 -> 0.3 | BG189: =+BO97 -> 1 | BH189: =+BQ97 -> 0.7666666667
AZ190: Control Interno | BD190: =+BI132 -> 1 | BE190: =+BK132 -> 1 | BF190: =+BM132 -> 1 | BG190: =+BO132 -> 1 | BH190: =+BQ132 -> 1
AZ191: Control Interno Disciplinario | BD191: =+AVERAGE(BI130:BI131) -> 1 | BE191: =+AVERAGE(BK130:BK131) -> 1 | BF191: =+AVERAGE(BM130:BM131) -> 1 | BG191: =+AVERAGE(BO130:BO131) -> 1 | BH191: =+AVERAGE(BQ130:BQ131) -> 1
AZ192: DADEP | BD192: =+AVERAGE(BI118:BI119) -> 0.85 | BE192: =+AVERAGE(BK118:BK119) -> 0.536 | BF192: =+AVERAGE(BM118:BM119) -> 0.425 | BG192: =+AVERAGE(BO118:BO119) -> 0.6253166667 | BH192: =+AVERAGE(BQ118:BQ119) -> 0.5324958333
AZ193: Desarrollo Social | BD193: =+AVERAGE(BI12,BI18,BI25:BI29,BI35:BI43,BI96) -> 0.6923076923 | BE193: =+AVERAGE(BK12,BK18,BK25:BK29,BK35:BK43,BK96) -> 0.85125 | BF193: =+AVERAGE(BM12,BM18,BM25:BM29,BM35:BM43,BM96) -> 0.7333333333 | BG193: =+AVERAGE(BO12,BO18,BO25:BO29,BO35:BO43,BO96) -> 0.975 | BH193: =+AVERAGE(BQ12,BQ18,BQ25:BQ29,BQ35:BQ43,BQ96) -> 0.8569117647
AZ194: Educación | BD194: =+BI13 -> 1 | BE194: =+BK13 -> 1 | BF194: =+BM13 -> 1 | BG194: =+BO13 -> 0.7 | BH194: =+BQ13 -> 0.9428571429
AZ195: Hacienda | BD195: =+AVERAGE(BI16,BI55,BI94,BI113:BI117) -> 0.8285714286 | BE195: =+AVERAGE(BK16,BK55,BK94,BK113:BK117) -> 0.9375 | BF195: =+AVERAGE(BM16,BM55,BM94,BM113:BM117) -> 0.9083333333 | BG195: =+AVERAGE(BO16,BO55,BO94,BO113:BO117) -> 0.7166666667 | BH195: =+AVERAGE(BQ16,BQ55,BQ94,BQ113:BQ117) -> 0.8899553571
AZ196: IMCT | BD196: =+AVERAGE(BI56,BI110:BI112) -> 0 | BE196: =+AVERAGE(BK56,BK110:BK112) -> 0.5 | BF196: =+AVERAGE(BM56,BM110:BM112) -> 0.875 | BG196: =+AVERAGE(BO56,BO110:BO112) -> 0.5 | BH196: =+AVERAGE(BQ56,BQ110:BQ112) -> 0.46875
AZ197: IMEBU | BD197: =+BI170 -> 1 | BE197: =+BK170 -> 1 | BF197: =+BM170 -> 1 | BG197: =+BO170 -> 0 | BH197: =+BQ170 -> 0.75
AZ198: Infraestructura | BD198: =+AVERAGE(BI19,BI45,BI120,BI145,BI167) -> 0.6666666667 | BE198: =+AVERAGE(BK19,BK45,BK120,BK145,BK167) -> 0.8529411765 | BF198: =+AVERAGE(BM19,BM45,BM120,BM145,BM167) -> 0.75 | BG198: =+AVERAGE(BO19,BO45,BO120,BO145,BO167) -> 0.75 | BH198: =+AVERAGE(BQ19,BQ45,BQ120,BQ145,BQ167) -> 0.7205882353
AZ199: Interior | BD199: =+AVERAGE(BI11,BI32,BI121:BI129) -> 0.95 | BE199: =+AVERAGE(BK11,BK32,BK121:BK129) -> 0.8396825397 | BF199: =+AVERAGE(BM11,BM32,BM121:BM129) -> 1 | BG199: =+AVERAGE(BO11,BO32,BO121:BO129) -> 0.9285714286 | BH199: =+AVERAGE(BQ11,BQ32,BQ121:BQ129) -> 0.9090909091
AZ200: Jurídica | BD200: =+AVERAGE(BI62:BI66,BI82:BI84,BI133:BI135) -> 0.845 | BE200: =+AVERAGE(BK62:BK66,BK82:BK84,BK133:BK135) -> 1 | BF200: =+AVERAGE(BM62:BM66,BM82:BM84,BM133:BM135) -> 1 | BG200: =+AVERAGE(BO62:BO66,BO82:BO84,BO133:BO135) -> 0.805 | BH200: =+AVERAGE(BQ62:BQ66,BQ82:BQ84,BQ133:BQ135) -> 0.9181818182
AZ201: Metrolínea | BD201: =+BI169 -> 0.4 | BE201: =+BK169 -> 1 | BF201: =+BM169 -> 1 | BG201: =+BO169 -> 0 | BH201: =+BQ169 -> 0.6
AZ202: Planeación | BD202: =+AVERAGE(BI17,BI44,BI71,BI95,BI100:BI108,BI152:BI166,BI171:BI176) -> 0.9529411765 | BE202: =+AVERAGE(BK17,BK44,BK71,BK95,BK100:BK108,BK152:BK166,BK171:BK176) -> 0.726765873 | BF202: =+AVERAGE(BM17,BM44,BM71,BM95,BM100:BM108,BM152:BM166,BM171:BM176) -> 0.8530952381 | BG202: =+AVERAGE(BO17,BO44,BO71,BO95,BO100:BO108,BO152:BO166,BO171:BO176) -> 0.6235231884 | BH202: =+AVERAGE(BQ17,BQ44,BQ71,BQ95,BQ100:BQ108,BQ152:BQ166,BQ171:BQ176) -> 0.7346007353
AZ203: Prensa | BD203: =+AVERAGE(BI20:BI24,BI61,BI76) -> 1 | BE203: =+AVERAGE(BK20:BK24,BK61,BK76) -> 1 | BF203: =+AVERAGE(BM20:BM24,BM61,BM76) -> 1 | BG203: =+AVERAGE(BO20:BO24,BO61,BO76) -> 1 | BH203: =+AVERAGE(BQ20:BQ24,BQ61,BQ76) -> 1
AZ204: Salud y Ambiente | BD204: =+BI109 -> - | BE204: =+BK109 -> 0.25 | BF204: =+BM109 -> 1 | BG204: =+BO109 -> 1 | BH204: =+BQ109 -> 0.75
AZ205: Sistemas | BD205: =+AVERAGE(BI33:BI34,BI46,BI48:BI70,BI72:BI74,BI98,BI137:BI144,BI146:BI150) -> 0.9572222222 | BE205: =+AVERAGE(BK33:BK34,BK46,BK48:BK70,BK72:BK74,BK98,BK137:BK144,BK146:BK150) -> 0.85825 | BF205: =+AVERAGE(BM33:BM34,BM46,BM48:BM70,BM72:BM74,BM98,BM137:BM144,BM146:BM150) -> 0.9208333333 | BG205: =+AVERAGE(BO33:BO34,BO46,BO48:BO70,BO72:BO74,BO98,BO137:BO144,BO146:BO150) -> 0.854797619 | BH205: =+AVERAGE(BQ33:BQ34,BQ46,BQ48:BQ70,BQ72:BQ74,BQ98,BQ137:BQ144,BQ146:BQ150) -> 0.8782668882
AZ206: Tránsito | BD206: =+AVERAGE(BI99,BI168) -> 1 | BE206: =+AVERAGE(BK99,BK168) -> 1 | BF206: =+AVERAGE(BM99,BM168) -> 1 | BG206: =+AVERAGE(BO99,BO168) -> 1 | BH206: =+AVERAGE(BQ99,BQ168) -> 1
AZ207: UTSP | BD207: =+BI47 -> 1 | BE207: =+BK47 -> 1 | BF207: =+BM47 -> 1 | BG207: =+BO47 -> 0.67 | BH207: =+BQ47 -> 0.9175

Sheet LÍNEA 2
B3: ALCALDÍA DE BUCARAMANGA
B4: PLAN DE DESARROLLO 2016 - 2019 "GOBIERNO DE LAS CIUDADANAS Y LOS CIUDADANOS"
B5: LÍNEA ESTRATÉGICA 2: INCLUSIÓN SOCIAL
B8: POND | C8: LÍNEA ESTRATÉGICA | D8: POND | E8: COMPONENTE | F8: META DE RESULTADO | G8: LÍNEA BASE | H8: RESULTADO CUATRIENIO | J8: META POR VIGENCIA | V8: LOGRO POR VIGENCIA | AD8: PORCENTAJE DE CUMPLIMIENTO | AO8: POND | AP8: PROGRAMA | AQ8: META DE PRODUCTO | AR8: RUBRO PPTAL | AS8: INDICADOR DE PRODUCTO | BD8: LOGRO POR VIGENCIA | BH8: PORCENTAJE DE CUMPLIMIENTO | BS8: RECURSOS POR FUENTE DE FINANCIACIÓN PARA CADA VIGENCIA (Cifras en Miles de Pesos) | CR8: ODS | CS8: SECTOR
BS9: 2016 | BX9: 2017 | CC9: 2018 | CH9: 2019 | CM9: 2016 - 2019
J10: 2016 | M10: 2017 | P10: 2018 | S10: 2019 | V10: 2016 | X10: 2017 | Z10: 2018 | AB10: 2019 | AD10: 2016 | AF10: 2017 | AH10: 2018 | AJ10: 2019 | AL10: 2016 - 2019 | AS10: NOMBRE INDICADOR | AT10: LÍNEA BASE | AU10: ESPERADO CUATRIENIO | AV10: 2016 | AX10: 2017 | AZ10: 2018 | BB10: 2019 | BD10: 2016 | BE10: 2017 | BF10: 2018 | BG10: 2019 | BH10: 2016 | BJ10: 2017 | BL10: 2018 | BN10: 2019 | BP10: 2016 - 2019 | BS10: RECURSOS PROGRAMADOS | BT10: RECURSOS EJECUTADOS | BU10: RECURSOS GESTIONADOS | BV10: PORCENTAJE EJECUCIÓN | BW10: NIVEL DE GESTIÓN | BX10: RECURSOS PROGRAMADOS | BY10: RECURSOS EJECUTADOS | BZ10: RECURSOS GESTIONADOS | CA10: PORCENTAJE EJECUCIÓN | CB10: NIVEL DE GESTIÓN | CC10: RECURSOS PROGRAMADOS | CD10: RECURSOS EJECUTADOS | CE10: RECURSOS GESTIONADOS | CF10: PORCENTAJE EJECUCIÓN | CG10: NIVEL DE GESTIÓN | CH10: RECURSOS PROGRAMADOS | CI10: RECURSOS EJECUTADOS | CJ10: RECURSOS GESTIONADOS | CK10: PORCENTAJE EJECUCIÓN | CL10: NIVEL DE GESTIÓN | CM10: RECURSOS PROGRAMADOS | CN10: RECURSOS EJECUTADOS | CO10: RECURSOS GESTIONADOS | CP10: PORCENTAJE EJECUCIÓN | CQ10: NIVEL DE GESTIÓN | CT10: RESPONSABLE
B11: =+RESUMEN!J38 -> 0.8091251804 | C11: 2 - INCLUSIÓN SOCIAL | D11: =+RESUMEN!J39 -> 0.8214795918 | E11: ATENCIÓN PRIORITARIA Y FOCALIZADA A GRUPOS DE POBLACIÓN VULNERABLE | F11: Disminuir a 1,2% el índice de pobreza extrema. | G11: 0.013 | H11: 0.012 | I11: =+H11-G11 -> -0.001 | J11: 0.013 | K11: =+J11-G11 -> 0 | M11: 0.013 | N11: =+M11-J11 -> 0 | P11: 0.013 | Q11: =+P11-M11 -> 0 | S11: 0.012 | T11: =+S11-P11 -> -0.001 | V11: 0.012 | W11: =+IF(V11=0,0,V11-G11) -> -0.001 | X11: 0.014 | Y11: =+IF(X11=0,0,X11-V11) -> 0.002 | Z11: 0.016 | AA11: =+IF(Z11=0,0,Z11-X11) -> 0.002 | AC11: =+IF(AB11=0,0,AB11-Z11) -> 0 | AD11: =+IF(K11=0," -",W11/K11) -> - | AE11: =+IF(K11=0," -",IF(AD11>100%,100%,AD11)) -> - | AF11: =+IF(N11=0," -",Y11/N11) -> - | AG11: =+IF(N11=0," -",IF(AF11>100%,100%,AF11)) -> - | AH11: =+IF(Q11=0," -",AA11/Q11) -> - | AI11: =+IF(Q11=0," -",IF(AH11>100%,100%,AH11)) -> - | AJ11: =+IF(T11=0," -",AC11/T11) -> 0 | AK11: =+IF(T11=0," -",IF(AJ11>100%,100%,AJ11)) -> 0 | AL11: =+SUM(AC11,AA11,Y11,W11)/I11 -> -3 | AM11: =+IF(AL11>100%,100%,IF(AL11<0%,0%,AL11)) -> 0 | AO11: =+RESUMEN!J40 -> 0.9791666667 | AP11: HABITANTE DE CALLE | AQ11: Realizar 16 brigadas extramurales de atención al habitante de calle. | AR11: 2210713 | AS11: Número de brigadas extramurales de atención al habitante de calle realizadas. | AT11: 9 | AU11: 16 | AV11: 4 | AW11: =+AV11/AU11 -> 0.25 | AX11: 4 | AY11: =+AX11/AU11 -> 0.25 | AZ11: 4 | BA11: =+AZ11/AU11 -> 0.25 | BB11: 4 | BC11: =+BB11/AU11 -> 0.25 | BD11: 8 | BE11: 4 | BF11: 4 | BG11: 3 | BH11: =IF(AV11=0," -",BD11/AV11) -> 2 | BI11: =IF(AV11=0," -",IF(BH11>100%,100%,BH11)) -> 1 | BJ11: =IF(AX11=0," -",BE11/AX11) -> 1 | BK11: =IF(AX11=0," -",IF(BJ11>100%,100%,BJ11)) -> 1 | BL11: =IF(AZ11=0," -",BF11/AZ11) -> 1 | BM11: =IF(AZ11=0," -",IF(BL11>100%,100%,BL11)) -> 1 | BN11: =IF(BB11=0," -",BG11/BB11) -> 0.75 | BO11: =IF(BB11=0," -",IF(BN11>100%,100%,BN11)) -> 0.75 | BP11: =+SUM(BD11:BG11)/AU11 -> 1.1875 | BQ11: =+IF(BP11>100%,100%,BP11) -> 1 | BR11: =+BQ11 -> 1 | BS11: 188000 | BT11: 18535 | BU11: 0 | BV11: =IF(BS11=0," -",BT11/BS11) -> 0.09859042553 | BW11: =IF(BU11=0," -",IF(BT11=0,100%,BU11/BT11)) -> - | BX11: 0 | BY11: 0 | BZ11: 0 | CA11: =IF(BX11=0," -",BY11/BX11) -> - | CB11: =IF(BZ11=0," -",IF(BY11=0,100%,BZ11/BY11)) -> - | CC11: 118520 | CD11: 118520 | CE11: 33480 | CF11: =IF(CC11=0," -",CD11/CC11) -> 1 | CG11: =IF(CE11=0," -",IF(CD11=0,100%,CE11/CD11)) -> 0.282483969 | CH11: 0 | CI11: 0 | CJ11: 0 | CK11: =IF(CH11=0," -",CI11/CH11) -> - | CL11: =IF(CJ11=0," -",IF(CI11=0,100%,CJ11/CI11)) -> - | CM11: =+BS11+BX11+CC11+CH11 -> 306520 | CN11: 137055 | CO11: 33480 | CP11: =IF(CM11=0," -",CN11/CM11) -> 0.4471323242 | CQ11: =IF(CO11=0," -",IF(CN11=0,100%,CO11/CN11)) -> 0.2442814928 | CR11: 2. Hambre cero | CS11: Atención a grupos vulnerables - Promoción Social | CT11: Sec. Desarrollo Social
AQ12: Mantener 500 cupos de servicios integrales intramurales y/o extramurales para habitantes de calle. | AR12: 2210713 | AS12: Número de cupos de servicios integrales intramurales y/o extramurales mantenidos para habitantes de calle. | AT12: 321 | AU12: 500 | AV12: 500 | AW12: 0.25 | AX12: 500 | AY12: 0.25 | AZ12: 500 | BA12: 0.25 | BB12: 500 | BC12: 0.25 | BD12: 5346 | BE12: 272 | BF12: 145 | BG12: 284 | BH12: =IF(AV12=0," -",BD12/AV12) -> 10.692 | BI12: =IF(AV12=0," -",IF(BH12>100%,100%,BH12)) -> 1 | BJ12: =IF(AX12=0," -",BE12/AX12) -> 0.544 | BK12: =IF(AX12=0," -",IF(BJ12>100%,100%,BJ12)) -> 0.544 | BL12: =IF(AZ12=0," -",BF12/AZ12) -> 0.29 | BM12: =IF(AZ12=0," -",IF(BL12>100%,100%,BL12)) -> 0.29 | BN12: =IF(BB12=0," -",BG12/BB12) -> 0.568 | BO12: =IF(BB12=0," -",IF(BN12>100%,100%,BN12)) -> 0.568 | BP12: =+AVERAGE(BD12:BG12)/AU12 -> 3.0235 | BQ12: =+IF(BP12>100%,100%,BP12) -> 1 | BR12: =+BQ12 -> 1 | BS12: 433000 | BT12: 350000 | BU12: 0 | BV12: =IF(BS12=0," -",BT12/BS12) -> 0.8083140878 | BW12: =IF(BU12=0," -",IF(BT12=0,100%,BU12/BT12)) -> - | BX12: 889885 | BY12: 882733 | BZ12: 0 | CA12: =IF(BX12=0," -",BY12/BX12) -> 0.9919630065 | CB12: =IF(BZ12=0," -",IF(BY12=0,100%,BZ12/BY12)) -> - | CC12: 1261022 | CD12: 1257220 | CE12: 374406 | CF12: =IF(CC12=0," -",CD12/CC12) -> 0.9969849852 | CG12: =IF(CE12=0," -",IF(CD12=0,100%,CE12/CD12)) -> 0.2978046802 | CH12: 1018450 | CI12: 930200 | CJ12: 274714 | CK12: =IF(CH12=0," -",CI12/CH12) -> 0.9133487162 | CL12: =IF(CJ12=0," -",IF(CI12=0,100%,CJ12/CI12)) -> 0.2953278865 | CM12: 3602357 | CN12: 3420153 | CO12: 649120 | CP12: =IF(CM12=0," -",CN12/CM12) -> 0.949420893 | CQ12: =IF(CO12=0," -",IF(CN12=0,100%,CO12/CN12)) -> 0.1897926789 | CR12: 2. Hambre cero | CS12: Atención a grupos vulnerables - Promoción Social | CT12: Sec. Desarrollo Social
AQ13: Brindar asistencia exequial al 100% de los habitantes de calle que se encuentran dentro del censo. | AR13: 2210092 | AS13: Porcentaje de habitantes de calle con asistencia exequial que se encuentran dentro del censo. | AT13: 0.41 | AU13: 1 | AV13: 1 | AW13: 0.25 | AX13: 1 | AY13: 0.25 | AZ13: 1 | BA13: 0.25 | BB13: 1 | BC13: 0.25 | BD13: 0.5 | BE13: 1 | BF13: 1 | BG13: 1 | BH13: 0.5 | BI13: 0.5 | BJ13: 1 | BK13: 1 | BL13: 1 | BM13: 1 | BN13: 1 | BO13: 1 | BP13: 0.875 | BQ13: 0.875 | BR13: 0.875 | BS13: 26000 | BT13: 7500 | BU13: 0 | BV13: =IF(BS13=0," -",BT13/BS13) -> 0.2884615385 | BW13: =IF(BU13=0," -",IF(BT13=0,100%,BU13/BT13)) -> - | BX13: 48000 | BY13: 48000 | BZ13: 0 | CA13: =IF(BX13=0," -",BY13/BX13) -> 1 | CB13: =IF(BZ13=0," -",IF(BY13=0,100%,BZ13/BY13)) -> - | CC13: 94000 | CD13: 92900 | CE13: 0 | CF13: =IF(CC13=0," -",CD13/CC13) -> 0.9882978723 | CG13: =IF(CE13=0," -",IF(CD13=0,100%,CE13/CD13)) -> - | CH13: 60000 | CI13: 60000 | CJ13: 0 | CK13: =IF(CH13=0," -",CI13/CH13) -> 1 | CL13: =IF(CJ13=0," -",IF(CI13=0,100%,CJ13/CI13)) -> - | CM13: =+BS13+BX13+CC13+CH13 -> 228000 | CN13: =+BT13+BY13+CD13+CI13 -> 208400 | CO13: =+BU13+BZ13+CE13+CJ13 -> 0 | CP13: =IF(CM13=0," -",CN13/CM13) -> 0.9140350877 | CQ13: =IF(CO13=0," -",IF(CN13=0,100%,CO13/CN13)) -> - | CR13: 2. Hambre cero | CS13: Atención a grupos vulnerables - Promoción Social | CT13: Sec. Desarrollo Social
AQ14: Implementar y mantener 1 estrategia en salud, alimentación y aseo para el habitante de calle. | AR14: 2210713 | AS14: Número de estrategias en salud, alimentación y aseo, implementadas y mantenidas para el habitante de calle. | AT14: 1 | AU14: 1 | AV14: 1 | AW14: 0.25 | AX14: 1 | AY14: 0.25 | AZ14: 1 | BA14: 0.25 | BB14: 1 | BC14: 0.25 | BD14: 1 | BE14: 1 | BF14: 1 | BG14: 1 | BH14: 1 | BI14: 1 | BJ14: 1 | BK14: 1 | BL14: 1 | BM14: 1 | BN14: 1 | BO14: 1 | BP14: 1 | BQ14: 1 | BR14: 1 | BS14: 149000 | BT14: 133715 | BU14: 0 | BV14: 0.8974161074 | BW14: - | BX14: 88525 | BY14: 88525 | BZ14: 0 | CA14: 1 | CB14: - | CC14: 90000 | CD14: 90000 | CE14: 38571 | CF14: 1 | CG14: 0.4285666667 | CH14: 120000 | CI14: 99400 | CJ14: 28886 | CK14: 0.8283333333 | CL14: 0.2906036217 | CM14: 447525 | CN14: 411640 | CO14: 67457 | CP14: 0.9198145355 | CQ14: 0.1638737732 | CR14: 2. Hambre cero | CS14: Atención a grupos vulnerables - Promoción Social | CT14: Sec. Desarrollo Social
AQ15: Fortalecer la estrategia para la caracterización, atención y seguimiento de la situación de los habitantes de calle. | AR15: 2210713 | AS15: Número de estrategias fortalecidas para la caracterización, atención y seguimiento de la situación de los habitantes de calle. | AT15: 1 | AU15: 1 | AV15: 1 | AW15: 0.25 | AX15: 1 | AY15: 0.25 | AZ15: 1 | BA15: 0.25 | BB15: 1 | BC15: 0.25 | BD15: 1 | BE15: 1 | BF15: 1 | BG15: 1 | BH15: 1 | BI15: 1 | BJ15: 1 | BK15: 1 | BL15: 1 | BM15: 1 | BN15: 1 | BO15: 1 | BP15: 1 | BQ15: 1 | BR15: 1 | BS15: 80000 | BT15: 77900 | BU15: 0 | BV15: 0.97375 | BW15: - | BX15: 40350 | BY15: 40350 | BZ15: 0 | CA15: 1 | CB15: - | CC15: 34200 | CD15: 34200 | CE15: 0 | CF15: 1 | CG15: - | CH15: 65000 | CI15: 65000 | CJ15: 0 | CK15: 1 | CL15: - | CM15: 219550 | CN15: 217450 | CO15: 0 | CP15: 0.9904349806 | CQ15: - | CR15: 2. Hambre cero | CS15: Atención a grupos vulnerables - Promoción Social | CT15: Sec. Desarrollo Social
AQ16: Mantener 1 programa de plan retorno para habitante de calle. | AR16: 2210713 | AS16: Número de programas de plan retorno mantenidos para habitante de calle. | AT16: 1 | AU16: 1 | AV16: 1 | AW16: 0.25 | AX16: 1 | AY16: 0.25 | AZ16: 1 | BA16: 0.25 | BB16: 1 | BC16: 0.25 | BD16: 1 | BE16: 1 | BF16: 1 | BG16: 1 | BH16: 1 | BI16: 1 | BJ16: 1 | BK16: 1 | BL16: 1 | BM16: 1 | BN16: 1 | BO16: 1 | BP16: 1 | BQ16: 1 | BR16: 1 | BS16: 20000 | BT16: 15000 | BU16: 0 | BV16: 0.75 | BW16: - | BX16: 20000 | BY16: 20000 | BZ16: 0 | CA16: 1 | CB16: - | CC16: 60000 | CD16: 60000 | CE16: 25714 | CF16: 1 | CG16: 0.4285666667 | CH16: 25000 | CI16: 5000 | CJ16: 2143 | CK16: 0.2 | CL16: 0.4286 | CM16: 125000 | CN16: 100000 | CO16: 27857 | CP16: 0.8 | CQ16: 0.27857 | CR16: 2. Hambre cero | CS16: Atención a grupos vulnerables - Promoción Social | CT16: Sec. Desarrollo Social
AO17: =+RESUMEN!J41 -> 0.7979443027 | AP17: POBLACIÓN CON DISCAPACIDAD | AQ17: Garantizar y mantener 200 cupos de atención integral en procesos de habilitación y rehabilitación a niñas, niños y adolescentes con discapacidad en extrema vulnerabilidad. | AR17: 2210709 | AS17: Número de cupos de atención integral garantizados en procesos de habilitación y rehabilitación a niñas, niños y adolescentes con discapacidad en extrema vulnerabilidad. | AT17: 0 | AU17: 200 | AV17: 200 | AW17: 0.25 | AX17: 200 | AY17: 0.25 | AZ17: 200 | BA17: 0.25 | BB17: 200 | BC17: 0.25 | BD17: 186 | BE17: 200 | BF17: 203 | BG17: 228 | BH17: 0.93 | BI17: 0.93 | BJ17: 1 | BK17: 1 | BL17: 1.015 | BM17: 1 | BN17: 1.14 | BO17: 1 | BP17: 1.02125 | BQ17: 1 | BR17: 1 | BS17: 516700 | BT17: 273200 | BU17: 46400 | BV17: 0.5287400813 | BW17: 0.1698389458 | BX17: 549000 | BY17: 543500 | BZ17: 0 | CA17: 0.9899817851 | CB17: - | CC17: 767553 | CD17: 761267 | CE17: 232163 | CF17: 0.9918103375 | CG17: 0.3049692158 | CH17: 661492 | CI17: 658200 | CJ17: 178800 | CK17: 0.9950233714 | CL17: 0.2716499544 | CM17: 2494745 | CN17: 2236167 | CO17: 457363 | CP17: 0.8963509297 | CQ17: 0.2045298942 | CR17: 10. Reducción de las desigualdades | CS17: Atención a grupos vulnerables - Promoción Social | CT17: Sec. Desarrollo Social
AQ18: Garantizar 210 cupos en programas de rehabilitación integral a personas adultas en extrema vulnerabilidad con discapacidad, física, visual, auditiva, cognitiva, psicosocial y múltiple. | AR18: 2210709 | AS18: Número de cupos garantizados en programas de rehabilitación integral a personas adultas en extrema vulnerabilidad con discapacidad, física, visual, auditiva, cognitiva, psicosocial y múltiple. | AT18: 6 | AU18: 210 | AV18: 210 | AW18: 0.25 | AX18: 210 | AY18: 0.25 | AZ18: 210 | BA18: 0.25 | BB18: 210 | BC18: 0.25 | BD18: 0 | BE18: 0 | BF18: 81 | BG18: 63 | BH18: 0 | BI18: 0 | BJ18: 0 | BK18: 0 | BL18: 0.3857142857 | BM18: 0.3857142857 | BN18: 0.3 | BO18: 0.3 | BP18: 0.1714285714 | BQ18: 0.1714285714 | BR18: 0.1714285714 | BS18: 70000 | BT18: 0 | BU18: 0 | BV18: 0 | BW18: - | BX18: 0 | BY18: 0 | BZ18: 0 | CA18: - | CB18: - | CC18: 0 | CD18: 0 | CE18: 0 | CF18: - | CG18: - | CH18: 0 | CI18: 0 | CJ18: 0 | CK18: - | CL18: - | CM18: 70000 | CN18: 0 | CO18: 0 | CP18: 0 | CQ18: - | CR18: 10. Reducción de las desigualdades | CS18: Atención a grupos vulnerables - Promoción Social | CT18: Sec. Desarrollo Social
AQ19: Crear y mantener 1 unidad generadora de datos que realice el registro de localización y caracterización de las personas con discapacidad. | AR19: 2210709 | AS19: Número de unidades generadoras de datos que realice el registro de localización y caracterización de las personas con discapacidad creados y mantenidos. | AT19: 1 | AU19: 1 | AV19: 1 | AW19: 0.25 | AX19: 1 | AY19: 0.25 | AZ19: 1 | BA19: 0.25 | BB19: 1 | BC19: 0.25 | BD19: 1 | BE19: 1 | BF19: 1 | BG19: 1 | BH19: 1 | BI19: 1 | BJ19: 1 | BK19: 1 | BL19: 1 | BM19: 1 | BN19: 1 | BO19: 1 | BP19: 1 | BQ19: 1 | BR19: 1 | BS19: 51900 | BT19: 51900 | BU19: 0 | BV19: 1 | BW19: - | BX19: 68250 | BY19: 68250 | BZ19: 31500 | CA19: 1 | CB19: 0.4615384615 | CC19: 0 | CD19: 0 | CE19: 0 | CF19: - | CG19: - | CH19: 30000 | CI19: 30000 | CJ19: 0 | CK19: 1 | CL19: - | CM19: 150150 | CN19: 150150 | CO19: 31500 | CP19: 1 | CQ19: 0.2097902098 | CR19: 10. Reducción de las desigualdades | CS19: Atención a grupos vulnerables - Promoción Social | CT19: Sec. Desarrollo Social
AQ20: Implementar y mantener la estrategia de rehabilitación basada en la comunidad en las instituciones que ofrecen los servicios de habilitación y rehabilitación a través del Comité Local de RBC. | AR20: - | AS20: Número de estrategias de rehabilitación basada en la comunidad en las instituciones que ofrecen los servicios de habilitación y rehabilitación a través del Comité Local de RBC implementadas y mantenidas. | AT20: 0 | AU20: 1 | AV20: 0 | AW20: 0 | AX20: 1 | AY20: 0.33 | AZ20: 1 | BA20: 0.33 | BB20: 1 | BC20: 0.34 | BD20: 0 | BE20: 0 | BF20: 1 | BG20: 1 | BH20: - | BI20: - | BJ20: 0 | BK20: 0 | BL20: 1 | BM20: 1 | BN20: 1 | BO20: 1 | BP20: =+AVERAGE(BE20:BG20)/AU20 -> 0.6666666667 | BQ20: 0.6666666667 | BR20: 0.6666666667 | BS20: 0 | BT20: 0 | BU20: 0 | BV20: - | BW20: - | BX20: 0 | BY20: 0 | BZ20: 0 | CA20: - | CB20: - | CC20: 86750 | CD20: 86750 | CE20: 17143 | CF20: 1 | CG20: 0.1976138329 | CH20: 50000 | CI20: 50000 | CJ20: 21429 | CK20: 1 | CL20: 0.42858 | CM20: 136750 | CN20: 136750 | CO20: 38572 | CP20: 1 | CQ20: 0.2820621572 | CR20: 10. Reducción de las desigualdades | CS20: Atención a grupos vulnerables - Promoción Social | CT20: Sec. Desarrollo Social
AQ21: Mantener el banco de ayudas técnicas, tecnológicas e informáticas BATI. | AR21: 2210709 | AS21: Número de bancos de ayudas técnicas, tecnológicas e informáticas BATI mantenidos. | AT21: 1 | AU21: 1 | AV21: 1 | AW21: 0.25 | AX21: 1 | AY21: 0.25 | AZ21: 1 | BA21: 0.25 | BB21: 1 | BC21: 0.25 | BD21: 1 | BE21: 1 | BF21: 1 | BG21: 1 | BH21: 1 | BI21: 1 | BJ21: 1 | BK21: 1 | BL21: 1 | BM21: 1 | BN21: 1 | BO21: 1 | BP21: 1 | BQ21: 1 | BR21: 1 | BS21: 284400 | BT21: 51900 | BU21: 0 | BV21: 0.1824894515 | BW21: - | BX21: 123500 | BY21: 123020 | BZ21: 0 | CA21: 0.9961133603 | CB21: - | CC21: 128590 | CD21: 128590 | CE21: 0 | CF21: 1 | CG21: - | CH21: 66042 | CI21: 0 | CJ21: 0 | CK21: 0 | CL21: - | CM21: 602532 | CN21: 303510 | CO21: 0 | CP21: 0.5037242835 | CQ21: - | CR21: 10. Reducción de las desigualdades | CS21: Atención a grupos vulnerables - Promoción Social | CT21: Sec. Desarrollo Social
AQ22: Implementar y mantener 1 programa de orientación ocupacional y proyecto de vida a personas con discapacidad física, auditiva, visual, cognitiva, psicosocial y múltiple. | AR22: 2210709 | AS22: Número de programas de orientación ocupacional y proyecto de vida implementadas y mantenidas a personas con discapacidad física, auditiva, visual, cognitiva, psicosocial y múltiple. | AT22: 0 | AU22: 1 | AV22: 1 | AW22: 0.25 | AX22: 1 | AY22: 0.25 | AZ22: 1 | BA22: 0.25 | BB22: 1 | BC22: 0.25 | BD22: 1 | BE22: 1 | BF22: 1 | BG22: 1 | BH22: 1 | BI22: 1 | BJ22: 1 | BK22: 1 | BL22: 1 | BM22: 1 | BN22: 1 | BO22: 1 | BP22: 1 | BQ22: 1 | BR22: 1 | BS22: 70000 | BT22: 70000 | BU22: 14000 | BV22: 1 | BW22: 0.2 | BX22: 126750 | BY22: 126750 | BZ22: 0 | CA22: 1 | CB22: - | CC22: 241800 | CD22: 241800 | CE22: 51429 | CF22: 1 | CG22: 0.2126923077 | CH22: 160000 | CI22: 160000 | CJ22: 68571 | CK22: 1 | CL22: 0.42856875 | CM22: 598550 | CN22: 598550 | CO22: 134000 | CP22: 1 | CQ22: 0.223874363 | CR22: 10. Reducción de las desigualdades | CS22: Atención a grupos vulnerables - Promoción Social | CT22: Sec. Desarrollo Social
AQ23: Mantener 1 intérprete de lengua de señas colombiana que garantice a la población con discapacidad auditiva el acceso a la información, las comunicaciones y los servicios que ofrece la administración municipal. | AR23: 2210709 | AS23: Número de intérpretes de lengua de señas colombianas mantenidas que garantice a la población con discapacidad auditiva el acceso a la información, las comunicaciones y los servicios que ofrece la administración municipal. | AT23: 0 | AU23: 1 | AV23: 1 | AW23: 0.25 | AX23: 1 | AY23: 0.25 | AZ23: 1 | BA23: 0.25 | BB23: 1 | BC23: 0.25 | BD23: 1 | BE23: 1 | BF23: 1 | BG23: 1 | BH23: 1 | BI23: 1 | BJ23: 1 | BK23: 1 | BL23: 1 | BM23: 1 | BN23: 1 | BO23: 1 | BP23: 1 | BQ23: 1 | BR23: 1 | BS23: 0 | BT23: 0 | BU23: 0 | BV23: - | BW23: - | BX23: 15750 | BY23: 15750 | BZ23: 0 | CA23: 1 | CB23: - | CC23: 0 | CD23: 0 | CE23: 0 | CF23: - | CG23: - | CH23: 0 | CI23: 0 | CJ23: 0 | CK23: - | CL23: - | CM23: 15750 | CN23: 15750 | CO23: 0 | CP23: 1 | CQ23: - | CR23: 10. Reducción de las desigualdades | CS23: Atención a grupos vulnerables - Promoción Social | CT23: Sec. Desarrollo Social
AQ24: Realizar 4 conmemoraciones del día nacional de las personas con discapacidad. | AR24: 2210709 | AS24: Número de conmemoraciones del día nacional de las personas con discapacidad realizados. | AT24: 4 | AU24: 4 | AV24: 1 | AW24: =+AV24/AU24 -> 0.25 | AX24: 1 | AY24: =+AX24/AU24 -> 0.25 | AZ24: 1 | BA24: =+AZ24/AU24 -> 0.25 | BB24: 1 | BC24: =+BB24/AU24 -> 0.25 | BD24: 0 | BE24: 1 | BF24: 1 | BG24: 1 | BH24: 0 | BI24: 0 | BJ24: 1 | BK24: 1 | BL24: 1 | BM24: 1 | BN24: 1 | BO24: 1 | BP24: =+SUM(BD24:BG24)/AU24 -> 0.75 | BQ24: 0.75 | BR24: 0.75 | BS24: 12000 | BT24: 0 | BU24: 0 | BV24: 0 | BW24: - | BX24: 0 | BY24: 0 | BZ24: 0 | CA24: - | CB24: - | CC24: 10000 | CD24: 10000 | CE24: 0 | CF24: 1 | CG24: - | CH24: 15000 | CI24: 10000 | CJ24: 4286 | CK24: 0.6666666667 | CL24: 0.4286 | CM24: 37000 | CN24: 20000 | CO24: 4286 | CP24: 0.5405405405 | CQ24: 0.2143 | CR24: 10. Reducción de las desigualdades | CS24: Atención a grupos vulnerables - Promoción Social | CT24: Sec. Desarrollo Social
AQ25: Brindar 24.000 entradas a personas con discapacidad a espacios de recreación, deporte y cultura. | AR25: - | AS25: Número de entradas brindadas a personas con discapacidad espacios de recreación, deporte y cultura. | AT25: 8666 | AU25: 24000 | AV25: 6000 | AW25: 0.25 | AX25: 6000 | AY25: 0.25 | AZ25: 6000 | BA25: 0.25 | BB25: 6000 | BC25: 0.25 | BD25: 10000 | BE25: 6000 | BF25: 9784 | BG25: 9276 | BH25: 1.666666667 | BI25: 1 | BJ25: 1 | BK25: 1 | BL25: 1.630666667 | BM25: 1 | BN25: 1.546 | BO25: 1 | BP25: =+SUM(BD25:BG25)/AU25 -> 1.460833333 | BQ25: 1 | BR25: 1 | BS25: 50000 | BT25: 50000 | BU25: 15000 | BV25: 1 | BW25: 0.3 | BX25: 30000 | BY25: 30000 | BZ25: 0 | CA25: 1 | CB25: - | CC25: 49996 | CD25: 49996 | CE25: 21427 | CF25: 1 | CG25: 0.4285742859 | CH25: 50000 | CI25: 49998 | CJ25: 21428 | CK25: 0.99996 | CL25: 0.4285771431 | CM25: 179996 | CN25: 179994 | CO25: 57855 | CP25: 0.9999888886 | CQ25: 0.3214273809 | CR25: 10. Reducción de las desigualdades | CS25: Atención a grupos vulnerables - Promoción Social | CT25: Sec. Desarrollo Social
AQ26: Mantener a 400 niñas, niños y adolescentes con discapacidad cognitiva, visual, física, auditiva y múltiple, que no se encuentran incluidos en instituciones educativas oficiales con atención integral en habilitación y rehabilitación. | AR26: - | AS26: Número de niñas, niños y adolescentes con discapacidad cognitiva, visual, física, auditiva y múltiple que no se encuentran incluidos en instituciones educativas oficiales con atención integral en habilitación y rehabilitación. | AT26: 1500 | AU26: 400 | AV26: 400 | AW26: 0.25 | AX26: 400 | AY26: 0.25 | AZ26: 400 | BA26: 0.25 | BB26: 400 | BC26: 0.25 | BD26: 186 | BE26: 139 | BF26: 139 | BG26: 161 | BH26: 0.465 | BI26: 0.465 | BJ26: 0.3475 | BK26: 0.3475 | BL26: 0.3475 | BM26: 0.3475 | BN26: 0.4025 | BO26: 0.4025 | BP26: 0.390625 | BQ26: 0.390625 | BR26: 0.390625 | BS26: 0 | BT26: 0 | BU26: 0 | BV26: - | BW26: - | BX26: 0 | BY26: 0 | BZ26: 0 | CA26: - | CB26: - | CC26: 0 | CD26: 0 | CE26: 0 | CF26: - | CG26: - | CH26: 32000 | CI26: 32000 | CJ26: 0 | CK26: 1 | CL26: - | CM26: 32000 | CN26: 32000 | CO26: 0 | CP26: 1 | CQ26: - | CR26: 10. Reducción de las desigualdades | CS26: Atención a grupos vulnerables - Promoción Social | CT26: Sec. Desarrollo Social
AQ27: Mantener 11 personas como apoyos de modelo lingüístico e intérpretes de lengua de señas colombiana en instituciones educativas oficiales para la atención de niñas, niños y adolescentes con discapacidad auditiva. | AR27: 2210709 | AS27: Número de personas como apoyo de modelo lingüístico e intérpretes de lengua de señas colombiana en instituciones educativas oficiales mantenidos para la atención de niñas, niños y adolescentes con discapacidad auditiva. | AT27: 11 | AU27: 11 | AV27: 11 | AW27: 0.25 | AX27: 11 | AY27: 0.25 | AZ27: 11 | BA27: 0.25 | BB27: 11 | BC27: 0.25 | BD27: 11 | BE27: 11 | BF27: 11 | BG27: 11 | BH27: 1 | BI27: 1 | BJ27: 1 | BK27: 1 | BL27: 1 | BM27: 1 | BN27: 1 | BO27: 1 | BP27: 1 | BQ27: 1 | BR27: 1 | BS27: 102500 | BT27: 88833 | BU27: 0 | BV27: 0.8666634146 | BW27: - | BX27: 135000 | BY27: 135000 | BZ27: 0 | CA27: 1 | CB27: - | CC27: 0 | CD27: 0 | CE27: 0 | CF27: - | CG27: - | CH27: 0 | CI27: 0 | CJ27: 0 | CK27: - | CL27: - | CM27: 237500 | CN27: 223833 | CO27: 0 | CP27: 0.9424547368 | CQ27: - | CR27: 10. Reducción de las desigualdades | CS27: Atención a grupos vulnerables - Promoción Social | CT27: Sec. Desarrollo Social
AQ28: Mantener la atención a 300 niñas, niños y adolescentes en condición de discapacidad auditiva mediante los apoyos del modelo lingüísticos e intérpretes en lenguas de señas Colombiana. | AR28: - | AS28: Número de niñas, niños y adolescentes en condición de discapacidad auditiva mantenidos mediante los apoyos del modelo lingüísticos e intérpretes en lenguas de señas Colombiana. | AT28: 300 | AU28: 300 | AV28: 300 | AW28: 0.25 | AX28: 300 | AY28: 0.25 | AZ28: 300 | BA28: 0.25 | BB28: 300 | BC28: 0.25 | BD28: 62 | BE28: 62 | BF28: 56 | BG28: 51 | BH28: 0.2066666667 | BI28: 0.2066666667 | BJ28: 0.2066666667 | BK28: 0.2066666667 | BL28: 0.1866666667 | BM28: 0.1866666667 | BN28: 0.17 | BO28: 0.17 | BP28: 0.1925 | BQ28: 0.1925 | BR28: 0.1925 | BS28: 0 | BT28: 0 | BU28: 0 | BV28: - | BW28: - | BX28: 0 | BY28: 0 | BZ28: 0 | CA28: - | CB28: - | CC28: 0 | CD28: 0 | CE28: 0 | CF28: - | CG28: - | CH28: 0 | CI28: 0 | CJ28: 0 | CK28: - | CL28: - | CM28: 0 | CN28: 0 | CO28: 0 | CP28: - | CQ28: - | CR28: 10. Reducción de las desigualdades | CS28: Atención a grupos vulnerables - Promoción Social | CT28: Sec. Desarrollo Social
AQ29: Mantener el Plan Municipal de Discapacidad. | AR29: 2210273 | AS29: Número de Planes Municipales de Discapacidad mantenidos. | AT29: 1 | AU29: 1 | AV29: 1 | AW29: 0.25 | AX29: 1 | AY29: 0.25 | AZ29: 1 | BA29: 0.25 | BB29: 1 | BC29: 0.25 | BD29: 1 | BE29: 1 | BF29: 1 | BG29: 1 | BH29: 1 | BI29: 1 | BJ29: 1 | BK29: 1 | BL29: 1 | BM29: 1 | BN29: 1 | BO29: 1 | BP29: 1 | BQ29: 1 | BR29: 1 | BS29: 168750 | BT29: 93986 | BU29: 0 | BV29: 0.5569540741 | BW29: - | BX29: 168750 | BY29: 138750 | BZ29: 0 | CA29: 0.8222222222 | CB29: - | CC29: 133297 | CD29: 103167 | CE29: 0 | CF29: 0.773963405 | CG29: - | CH29: 128950 | CI29: 102000 | CJ29: 0 | CK29: 0.7910042652 | CL29: - | CM29: 599747 | CN29: 437903 | CO29: 0 | CP29: 0.7301462117 | CQ29: - | CR29: 10. Reducción de las desigualdades | CS29: Atención a grupos vulnerables - Promoción Social | CT29: Sec. Salud y Ambiente
F30: Disminuir a 0,397 el coeficiente de Gini. | G30: 0.407 | H30: 0.397 | I30: =+H30-G30 -> -0.01 | J30: 0.407 | K30: =+J30-G30 -> 0 | M30: 0.407 | N30: =+M30-J30 -> 0 | P30: 0.403 | Q30: =+P30-M30 -> -0.004 | S30: 0.397 | T30: =+S30-P30 -> -0.006 | V30: 0.399 | W30: =+IF(V30=0,0,V30-G30) -> -0.008 | X30: 0.406 | Y30: =+IF(X30=0,0,X30-V30) -> 0.007 | Z30: 0.432 | AA30: =+IF(Z30=0,0,Z30-X30) -> 0.026 | AC30: =+IF(AB30=0,0,AB30-Z30) -> 0 | AD30: =+IF(K30=0," -",W30/K30) -> - | AE30: =+IF(K30=0," -",IF(AD30>100%,100%,AD30)) -> - | AF30: =+IF(N30=0," -",Y30/N30) -> - | AG30: =+IF(N30=0," -",IF(AF30>100%,100%,AF30)) -> - | AH30: =+IF(Q30=0," -",AA30/Q30) -> -6.5 | AI30: =+IF(Q30=0," -",IF(AH30>100%,100%,AH30)) -> -6.5 | AJ30: =+IF(T30=0," -",AC30/T30) -> 0 | AK30: =+IF(T30=0," -",IF(AJ30>100%,100%,AJ30)) -> 0 | AL30: =+SUM(AC30,AA30,Y30,W30)/I30 -> -2.5 | AM30: =+IF(AL30>100%,100%,IF(AL30<0%,0%,AL30)) -> 0 | AQ30: Desarrollar 4 eventos deportivos y recreativos dirigido a población con discapacidad. | AR30: 2.4.1.2.1.1 | AS30: Número de eventos deportivos y recreativos desarrollados dirigidos a población con discapacidad. | AT30: 4 | AU30: 4 | AV30: 1 | AW30: 0.25 | AX30: 1 | AY30: 0.25 | AZ30: 1 | BA30: 0.25 | BB30: 1 | BC30: 0.25 | BD30: 1 | BE30: 1 | BF30: 1 | BG30: 1 | BH30: 1 | BI30: 1 | BJ30: 1 | BK30: 1 | BL30: 1 | BM30: 1 | BN30: 1 | BO30: 1 | BP30: =+SUM(BD30:BG30)/AU30 -> 1 | BQ30: 1 | BR30: 1 | BS30: 35000 | BT30: 34000 | BU30: 0 | BV30: 0.9714285714 | BW30: - | BX30: 104500 | BY30: 104500 | BZ30: 0 | CA30: 1 | CB30: - | CC30: 109201 | CD30: 92797 | CE30: 0 | CF30: 0.8497815954 | CG30: - | CH30: 75000 | CI30: 38494 | CJ30: 0 | CK30: 0.5132533333 | CL30: - | CM30: 323701 | CN30: 269791 | CO30: 0 | CP30: 0.833457419 | CQ30: - | CR30: 10. Reducción de las desigualdades | CS30: Deporte y recreación | CT30: INDERBU
AO31: =+RESUMEN!J42 -> 0.775 | AP31: MINORÍAS ÉTNICAS | AQ31: Implementar y mantener 1 sistema de orientación, capacitación, apoyo y asesoría con enfoque diferencial para minorías étnicas. | AR31: - | AS31: Número de sistemas de orientación, capacitación, apoyo y asesoría implementados con enfoque diferencial para minorías étnicas. | AT31: 0 | AU31: 1 | AV31: 1 | AW31: 0.25 | AX31: 1 | AY31: 0.25 | AZ31: 1 | BA31: 0.25 | BB31: 1 | BC31: 0.25 | BD31: 1 | BE31: 1 | BF31: 0.6 | BG31: 0.6 | BH31: 1 | BI31: 1 | BJ31: 1 | BK31: 1 | BL31: 0.6 | BM31: 0.6 | BN31: 0.6 | BO31: 0.6 | BP31: 0.8 | BQ31: 0.8 | BR31: 0.8 | BS31: 0 | BT31: 0 | BU31: 0 | BV31: - | BW31: - | BX31: 0 | BY31: 0 | BZ31: 0 | CA31: - | CB31: - | CC31: 0 | CD31: 0 | CE31: 0 | CF31: - | CG31: - | CH31: 0 | CI31: 0 | CJ31: 0 | CK31: - | CL31: - | CM31: 0 | CN31: 0 | CO31: 0 | CP31: - | CQ31: - | CR31: 10. Reducción de las desigualdades | CS31: Atención a grupos vulnerables - Promoción Social | CT31: Sec. Desarrollo Social
AQ32: Apoyar 4 campañas de sensibilización social contra la discriminación étnica. | AR32: 0 | AS32: Número de campañas de sensibilización social contra la discriminación étnica apoyadas. | AT32: 0 | AU32: 4 | AV32: 1 | AW32: 0.25 | AX32: 1 | AY32: 0.25 | AZ32: 1 | BA32: 0.25 | BB32: 1 | BC32: 0.25 | BD32: 0 | BE32: 1 | BF32: 1 | BG32: 1 | BH32: 0 | BI32: 0 | BJ32: 1 | BK32: 1 | BL32: 1 | BM32: 1 | BN32: 1 | BO32: 1 | BP32: =+SUM(BD32:BG32)/AU32 -> 0.75 | BQ32: 0.75 | BR32: 0.75 | BS32: 0 | BT32: 0 | BU32: 0 | BV32: - | BW32: - | BX32: 0 | BY32: 0 | BZ32: 0 | CA32: - | CB32: - | CC32: 0 | CD32: 0 | CE32: 0 | CF32: - | CG32: - | CH32: 0 | CI32: 0 | CJ32: 0 | CK32: - | CL32: - | CM32: 0 | CN32: 0 | CO32: 0 | CP32: - | CQ32: - | CR32: 10. Reducción de las desigualdades | CS32: Atención a grupos vulnerables - Promoción Social | CT32: Sec. Desarrollo Social
AO33: =+RESUMEN!J43 -> 0.7666666667 | AP33: COMUNIDADES LGTBI | AQ33: Desarrollar 4 campañas de sensibilización social contra la discriminación social y para la prevención de infecciones de transmisión sexual. | AR33: 2210247 | AS33: Número de campañas de sensibilización social desarrolladas contra la discriminación social y para la prevención de infecciones de transmisión sexual. | AT33: 1 | AU33: 4 | AV33: 1 | AW33: 0.25 | AX33: 1 | AY33: 0.25 | AZ33: 1 | BA33: 0.25 | BB33: 1 | BC33: 0.25 | BD33: 1 | BE33: 1 | BF33: 1 | BG33: 1 | BH33: 1 | BI33: 1 | BJ33: 1 | BK33: 1 | BL33: 1 | BM33: 1 | BN33: 1 | BO33: 1 | BP33: =+SUM(BD33:BG33)/AU33 -> 1 | BQ33: 1 | BR33: 1 | BS33: 5000 | BT33: 3265 | BU33: 0 | BV33: 0.653 | BW33: - | BX33: 50000 | BY33: 50000 | BZ33: 0 | CA33: 1 | CB33: - | CC33: 50000 | CD33: 50000 | CE33: 0 | CF33: 1 | CG33: - | CH33: 50000 | CI33: 50000 | CJ33: 0 | CK33: 1 | CL33: - | CM33: 155000 | CN33: 153265 | CO33: 0 | CP33: 0.9888064516 | CQ33: - | CR33: 10. Reducción de las desigualdades | CS33: Atención a grupos vulnerables - Promoción Social | CT33: Sec. Salud y Ambiente
AQ34: Realizar 4 mesas de trabajo con comunidades LGTBI para determinar el diagnóstico poblacional. | AR34: 0 | AS34: Número de mesas de trabajo realizadas con comunidades LGTBI para determinar el diagnóstico poblacional. | AT34: 2 | AU34: 4 | AV34: 1 | AW34: 0.25 | AX34: 1 | AY34: 0.25 | AZ34: 1 | BA34: 0.25 | BB34: 1 | BC34: 0.25 | BD34: 1 | BE34: 3 | BF34: 3 | BG34: 2 | BH34: 1 | BI34: 1 | BJ34: 3 | BK34: 1 | BL34: 3 | BM34: 1 | BN34: 2 | BO34: 1 | BP34: =+SUM(BD34:BG34)/AU34 -> 2.25 | BQ34: 1 | BR34: 1 | BS34: 0 | BT34: 0 | BU34: 0 | BV34: - | BW34: - | BX34: 0 | BY34: 0 | BZ34: 0 | CA34: - | CB34: - | CC34: 0 | CD34: 0 | CE34: 0 | CF34: - | CG34: - | CH34: 0 | CI34: 0 | CJ34: 0 | CK34: - | CL34: - | CM34: 0 | CN34: 0 | CO34: 0 | CP34: - | CQ34: - | CR34: 10. Reducción de las desigualdades | CS34: Atención a grupos vulnerables - Promoción Social | CT34: Sec. Desarrollo Social
AQ35: Formular e implementar 1 Política Pública para las comunidades LGTBI. | AR35: - | AS35: Número de Políticas Públicas formuladas e implementadas para las comunidades LGTBI. | AT35: 0 | AU35: 1 | AV35: 0 | AW35: 0 | AX35: 1 | AY35: 0.33 | AZ35: 1 | BA35: 0.33 | BB35: 1 | BC35: 0.34 | BD35: 0 | BE35: 0.2 | BF35: 0.5 | BG35: 0.2 | BH35: - | BI35: - | BJ35: 0.2 | BK35: 0.2 | BL35: 0.5 | BM35: 0.5 | BN35: 0.2 | BO35: 0.2 | BP35: =+AVERAGE(BE35:BG35)/AU35 -> 0.3 | BQ35: 0.3 | BR35: 0.3 | BS35: 0 | BT35: 0 | BU35: 0 | BV35: - | BW35: - | BX35: 0 | BY35: 0 | BZ35: 0 | CA35: - | CB35: - | CC35: 0 | CD35: 0 | CE35: 0 | CF35: - | CG35: - | CH35: 0 | CI35: 0 | CJ35: 0 | CK35: - | CL35: - | CM35: 0 | CN35: 0 | CO35: 0 | CP35: - | CQ35: - | CR35: 10. Reducción de las desigualdades | CS35: Atención a grupos vulnerables - Promoción Social | CT35: Sec. Desarrollo Social
AO36: =+RESUMEN!J44 -> 0.8333333333 | AP36: PREVENCIÓN Y ATENCIÓN A POBLACIÓN EN CONDICIÓN DE ADICCIÓN A SUSTANCIAS PSICOACTIVAS | AQ36: Realizar 4 campaña de prevención del consumo de sustancias psicoactivas con énfasis en población escolar. | AR36: 2210262 | AS36: Número de campañas de prevención del consumo de sustancias psicoactivas con énfasis en población escolar realizadas. | AT36: 0 | AU36: 4 | AV36: 1 | AW36: 0.25 | AX36: 1 | AY36: 0.25 | AZ36: 1 | BA36: 0.25 | BB36: 1 | BC36: 0.25 | BD36: 0 | BE36: 1 | BF36: 1 | BG36: 1 | BH36: 0 | BI36: 0 | BJ36: 1 | BK36: 1 | BL36: 1 | BM36: 1 | BN36: 1 | BO36: 1 | BP36: =+SUM(BD36:BG36)/AU36 -> 0.75 | BQ36: 0.75 | BR36: 0.75 | BS36: 40000 | BT36: 0 | BU36: 0 | BV36: 0 | BW36: - | BX36: 59539 | BY36: 53385 | BZ36: 0 | CA36: 0.8966391777 | CB36: - | CC36: 43609 | CD36: 42800 | CE36: 0 | CF36: 0.9814487835 | CG36: - | CH36: 0 | CI36: 0 | CJ36: 0 | CK36: - | CL36: - | CM36: 143148 | CN36: 96185 | CO36: 0 | CP36: 0.6719269567 | CQ36: - | CR36: 3. Salud y bienestar | CS36: Atención a grupos vulnerables - Promoción Social | CT36: Sec. Desarrollo Social
AQ37: Implementar y mantener 1 estrategia basada en grupos de apoyo de pares en los colegios para acompañar a los jóvenes en condición de adicción a sustancias psicoactivas. | AR37: 2210262 | AS37: Número de estrategias basadas en grupos de apoyo de pares implementadas y mantenidas en los colegios para acompañar a los jóvenes en condición de adicción a sustancias psicoactivas. | AT37: 0 | AU37: 1 | AV37: 1 | AW37: 0.25 | AX37: 1 | AY37: 0.25 | AZ37: 1 | BA37: 0.25 | BB37: 1 | BC37: 0.25 | BD37: 0 | BE37: 1 | BF37: 1 | BG37: 1 | BH37: 0 | BI37: 0 | BJ37: 1 | BK37: 1 | BL37: 1 | BM37: 1 | BN37: 1 | BO37: 1 | BP37: 0.75 | BQ37: 0.75 | BR37: 0.75 | BS37: 30000 | BT37: 0 | BU37: 0 | BV37: 0 | BW37: - | BX37: 0 | BY37: 0 | BZ37: 0 | CA37: - | CB37: - | CC37: 30000 | CD37: 30000 | CE37: 0 | CF37: 1 | CG37: - | CH37: 0 | CI37: 0 | CJ37: 0 | CK37: - | CL37: - | CM37: 60000 | CN37: 30000 | CO37: 0 | CP37: 0.5 | CQ37: - | CR37: 3. Salud y bienestar | CS37: Atención a grupos vulnerables - Promoción Social | CT37: Sec. Desarrollo Social
AQ38: Implementar y mantener 1 programa de atención inicial virtual y/o presencial con apoyo terapéutico para la población en condición de adicción a sustancias psicoactivas. | AR38: 2210262 | AS38: Número de programas de atención inicial virtual y/o presencial con apoyo terapéutico implementadas y mantenidas para la población en condición de adicción a sustancias psicoactivas. | AT38: 0 | AU38: 1 | AV38: 0 | AW38: 0 | AX38: 1 | AY38: 0.33 | AZ38: 1 | BA38: 0.33 | BB38: 1 | BC38: 0.34 | BD38: 0 | BE38: 1 | BF38: 1 | BG38: 1 | BH38: - | BI38: - | BJ38: 1 | BK38: 1 | BL38: 1 | BM38: 1 | BN38: 1 | BO38: 1 | BP38: =+AVERAGE(BE38:BG38)/AU38 -> 1 | BQ38: 1 | BR38: 1 | BS38: 15000 | BT38: 0 | BU38: 0 | BV38: 0 | BW38: - | BX38: 0 | BY38: 0 | BZ38: 0 | CA38: - | CB38: - | CC38: 0 | CD38: 0 | CE38: 0 | CF38: - | CG38: - | CH38: 0 | CI38: 0 | CJ38: 0 | CK38: - | CL38: - | CM38: 15000 | CN38: 0 | CO38: 0 | CP38: 0 | CQ38: - | CR38: 3. Salud y bienestar | CS38: Atención a grupos vulnerables - Promoción Social | CT38: Sec. Desarrollo Social
AO39: =+RESUMEN!J45 -> 0.5 | AP39: TRABAJADORAS Y TRABAJADORES SEXUALES | AQ39: Realizar 7 jornadas de promoción de la salud, prevención de infecciones de transmisión sexual en trabajadoras y trabajadores sexuales. | AR39: 2210263 | AS39: Número de jornadas de promoción de la salud, prevención de infecciones de transmisión sexual realizadas en trabajadoras y trabajadores sexuales. | AT39: 0 | AU39: 7 | AV39: 1 | AW39: 0.1428571429 | AX39: 2 | AY39: 0.2857142857 | AZ39: 2 | BA39: 0.2857142857 | BB39: 2 | BC39: 0.2857142857 | BD39: 0 | BE39: 2 | BF39: 5 | BG39: 2 | BH39: 0 | BI39: 0 | BJ39: 1 | BK39: 1 | BL39: 2.5 | BM39: 1 | BN39: 1 | BO39: 1 | BP39: =+SUM(BD39:BG39)/AU39 -> 1.285714286 | BQ39: 1 | BR39: 1 | BS39: 10000 | BT39: 0 | BU39: 0 | BV39: 0 | BW39: - | BX39: 0 | BY39: 0 | BZ39: 0 | CA39: - | CB39: - | CC39: 0 | CD39: 0 | CE39: 0 | CF39: - | CG39: - | CH39: 0 | CI39: 0 | CJ39: 0 | CK39: - | CL39: - | CM39: 10000 | CN39: 0 | CO39: 0 | CP39: 0 | CQ39: - | CR39: 10. Reducción de las desigualdades | CS39: Atención a grupos vulnerables - Promoción Social | CT39: Sec. Desarrollo Social
AQ40: Realizar 1 censo de la población trabajadora sexual. | AR40: 2210263 | AS40: Número de censos de la población trabajadora sexual realizados. | AT40: 0 | AU40: 1 | AV40: 0 | AW40: 0 | AX40: 1 | AY40: 1 | AZ40: 0 | BA40: 0 | BB40: 0 | BC40: 0 | BD40: 0 | BE40: 0 | BF40: 0 | BG40: 0 | BH40: - | BI40: - | BJ40: 0 | BK40: 0 | BL40: - | BM40: - | BN40: - | BO40: - | BP40: =+SUM(BD40:BG40)/AU40 -> 0 | BQ40: 0 | BR40: 0 | BS40: 20000 | BT40: 0 | BU40: 0 | BV40: 0 | BW40: - | BX40: 0 | BY40: 0 | BZ40: 0 | CA40: - | CB40: - | CC40: 0 | CD40: 0 | CE40: 0 | CF40: - | CG40: - | CH40: 0 | CI40: 0 | CJ40: 0 | CK40: - | CL40: - | CM40: 20000 | CN40: 0 | CO40: 0 | CP40: 0 | CQ40: - | CR40: 10. Reducción de las desigualdades | CS40: Atención a grupos vulnerables - Promoción Social | CT40: Sec. Desarrollo Social
AQ41: Implementar y mantener la ruta de atención a la población trabajadora sexual. | AR41: - | AS41: Número de rutas de atención a la población trabajadora sexual implementadas y mantenidas. | AT41: 0 | AU41: 1 | AV41: 0 | AW41: 0 | AX41: 1 | AY41: 0.33 | AZ41: 1 | BA41: 0.33 | BB41: 1 | BC41: 0.34 | BD41: 0 | BE41: 1 | BF41: 1 | BG41: 1 | BH41: - | BI41: - | BJ41: 1 | BK41: 1 | BL41: 1 | BM41: 1 | BN41: 1 | BO41: 1 | BP41: =+AVERAGE(BE41:BG41)/AU41 -> 1 | BQ41: 1 | BR41: 1 | BS41: 0 | BT41: 0 | BU41: 0 | BV41: - | BW41: - | BX41: 0 | BY41: 0 | BZ41: 0 | CA41: - | CB41: - | CC41: 0 | CD41: 0 | CE41: 0 | CF41: - | CG41: - | CH41: 0 | CI41: 0 | CJ41: 0 | CK41: - | CL41: - | CM41: 0 | CN41: 0 | CO41: 0 | CP41: - | CQ41: - | CR41: 10. Reducción de las desigualdades | CS41: Atención a grupos vulnerables - Promoción Social | CT41: Sec. Desarrollo Social
AQ42: Formular e implementar la Política Pública para la población trabajadora sexual. | AR42: - | AS42: Número de Políticas Públicas para la población trabajadora sexual formuladas e implementadas. | AT42: 0 | AU42: 1 | AV42: 0 | AW42: 0 | AX42: 1 | AY42: 0.33 | AZ42: 1 | BA42: 0.33 | BB42: 1 | BC42: 0.34 | BD42: 0 | BE42: 0 | BF42: 0 | BG42: 0 | BH42: - | BI42: - | BJ42: 0 | BK42: 0 | BL42: 0 | BM42: 0 | BN42: 0 | BO42: 0 | BP42: =+AVERAGE(BE42:BG42)/AU42 -> 0 | BQ42: 0 | BR42: 0 | BS42: 0 | BT42: 0 | BU42: 0 | BV42: - | BW42: - | BX42: 0 | BY42: 0 | BZ42: 0 | CA42: - | CB42: - | CC42: 0 | CD42: 0 | CE42: 0 | CF42: - | CG42: - | CH42: 0 | CI42: 0 | CJ42: 0 | CK42: - | CL42: - | CM42: 0 | CN42: 0 | CO42: 0 | CP42: - | CQ42: - | CR42: 10. Reducción de las desigualdades | CS42: Atención a grupos vulnerables - Promoción Social | CT42: Sec. Desarrollo Social
AO43: =+RESUMEN!J46 -> 0.8712053571 | AP43: VÍCTIMAS DEL CONFLICTO INTERNO ARMADO | AQ43: Mantener la ruta de seguridad para prevenir riesgos y proteger a víctimas del conflicto interno armado. | AR43: 2210979 | AS43: Número de rutas de seguridad para prevenir riesgos y proteger a víctimas del conflicto interno armado. | AT43: 1 | AU43: 1 | AV43: 1 | AW43: 0.25 | AX43: 1 | AY43: 0.25 | AZ43: 1 | BA43: 0.25 | BB43: 1 | BC43: 0.25 | BD43: 1 | BE43: 1 | BF43: 1 | BG43: 1 | BH43: 1 | BI43: 1 | BJ43: 1 | BK43: 1 | BL43: 1 | BM43: 1 | BN43: 1 | BO43: 1 | BP43: 1 | BQ43: 1 | BR43: 1 | BS43: 130000 | BT43: 130000 | BU43: 0 | BV43: 1 | BW43: - | BX43: 58500 | BY43: 0 | BZ43: 0 | CA43: 0 | CB43: - | CC43: 40000 | CD43: 7155 | CE43: 0 | CF43: 0.178875 | CG43: - | CH43: 10000 | CI43: 3961 | CJ43: 0 | CK43: 0.3961 | CL43: - | CM43: 238500 | CN43: 141116 | CO43: 0 | CP43: 0.5916813417 | CQ43: - | CR43: 10. Reducción de las desigualdades | CS43: Atención a grupos vulnerables - Promoción Social | CT43: Sec. Interior
AQ44: Mantener actualizado el PAT, mapa de riesgos, plan de prevención y protección y el plan de contingencia. | AR44: 2210979 | AS44: Número de PAT, mapa de riesgos, plan de prevención y protección y el plan de contingencia mantenidos actualizados. | AT44: 4 | AU44: 4 | AV44: 4 | AW44: 0.25 | AX44: 4 | AY44: 0.25 | AZ44: 4 | BA44: 0.25 | BB44: 4 | BC44: 0.25 | BD44: 3 | BE44: 4 | BF44: 4 | BG44: 1 | BH44: 0.75 | BI44: 0.75 | BJ44: 1 | BK44: 1 | BL44: 1 | BM44: 1 | BN44: 0.25 | BO44: 0.25 | BP44: 0.75 | BQ44: 0.75 | BR44: 0.75 | BS44: 270000 | BT44: 166350 | BU44: 0 | BV44: 0.6161111111 | BW44: - | BX44: 0 | BY44: 0 | BZ44: 0 | CA44: - | CB44: - | CC44: 0 | CD44: 0 | CE44: 0 | CF44: - | CG44: - | CH44: 17000 | CI44: 17000 | CJ44: 0 | CK44: 1 | CL44: - | CM44: 287000 | CN44: 183350 | CO44: 0 | CP44: 0.6388501742 | CQ44: - | CR44: 10. Reducción de las desigualdades | CS44: Atención a grupos vulnerables - Promoción Social | CT44: Sec. Interior
AQ45: Realizar y mantener actualizada la caracterización de las víctimas. | AR45: 2210979 | AS45: Número de caracterizaciones de las víctimas realizadas y mantenidas actualizadas. | AT45: 1 | AU45: 1 | AV45: 1 | AW45: 0.25 | AX45: 1 | AY45: 0.25 | AZ45: 1 | BA45: 0.25 | BB45: 1 | BC45: 0.25 | BD45: 1 | BE45: 1 | BF45: 1 | BG45: 1 | BH45: 1 | BI45: 1 | BJ45: 1 | BK45: 1 | BL45: 1 | BM45: 1 | BN45: 1 | BO45: 1 | BP45: 1 | BQ45: 1 | BR45: 1 | BS45: 0 | BT45: 0 | BU45: 0 | BV45: - | BW45: - | BX45: 73000 | BY45: 0 | BZ45: 0 | CA45: 0 | CB45: - | CC45: 123600 | CD45: 50133 | CE45: 0 | CF45: 0.4056067961 | CG45: - | CH45: 47000 | CI45: 47000 | CJ45: 0 | CK45: 1 | CL45: - | CM45: 243600 | CN45: 97133 | CO45: 0 | CP45: 0.3987397373 | CQ45: - | CR45: 10. Reducción de las desigualdades | CS45: Atención a grupos vulnerables - Promoción Social | CT45: Sec. Interior
AQ46: Mantener el fortalecimiento a la mesa de participación de víctimas. | AR46: 2210979 | AS46: Número de mesas de participación a víctimas con el fortalecimiento mantenido. | AT46: 1 | AU46: 1 | AV46: 1 | AW46: 0.25 | AX46: 1 | AY46: 0.25 | AZ46: 1 | BA46: 0.25 | BB46: 1 | BC46: 0.25 | BD46: 1 | BE46: 1 | BF46: 1 | BG46: 1 | BH46: 1 | BI46: 1 | BJ46: 1 | BK46: 1 | BL46: 1 | BM46: 1 | BN46: 1 | BO46: 1 | BP46: 1 | BQ46: 1 | BR46: 1 | BS46: 100000 | BT46: 3994 | BU46: 0 | BV46: 0.03994 | BW46: - | BX46: 50000 | BY46: 12799 | BZ46: 0 | CA46: 0.25598 | CB46: - | CC46: 85000 | CD46: 83667 | CE46: 0 | CF46: 0.9843176471 | CG46: - | CH46: 100000 | CI46: 77894 | CJ46: 0 | CK46: 0.77894 | CL46: - | CM46: 335000 | CN46: 178354 | CO46: 0 | CP46: 0.5324 | CQ46: - | CR46: 10. Reducción de las desigualdades | CS46: Atención a grupos vulnerables - Promoción Social | CT46: Sec. Interior
AQ47: Mantener la ayuda humanitaria de urgencia y en transición incluyendo asistencia exequial al 100% de la población víctima del conflicto interno armado según requisitos de ley. | AR47: 2210979 | AS47: Porcentaje de población víctima del conflicto interno armado que cumpla con los requisitos de ley con ayuda humanitaria de urgencia y en transición incluyendo asistencia exequial garantizada. | AT47: 1 | AU47: 1 | AV47: 1 | AW47: 0.25 | AX47: 1 | AY47: 0.25 | AZ47: 1 | BA47: 0.25 | BB47: 1 | BC47: 0.25 | BD47: 1 | BE47: 1 | BF47: 1 | BG47: 1 | BH47: 1 | BI47: 1 | BJ47: 1 | BK47: 1 | BL47: 1 | BM47: 1 | BN47: 1 | BO47: 1 | BP47: 1 | BQ47: 1 | BR47: 1 | BS47: 570000 | BT47: 352788 | BU47: 0 | BV47: 0.6189263158 | BW47: - | BX47: 285500 | BY47: 280878 | BZ47: 0 | CA47: 0.9838108581 | CB47: - | CC47: 310000 | CD47: 304782 | CE47: 0 | CF47: 0.9831677419 | CG47: - | CH47: 330000 | CI47: 227566 | CJ47: 0 | CK47: 0.6895939394 | CL47: - | CM47: 1495500 | CN47: 1166014 | CO47: 0 | CP47: 0.7796817118 | CQ47: - | CR47: 10. Reducción de las desigualdades | CS47: Atención a grupos vulnerables - Promoción Social | CT47: Sec. Interior
F48: Mantener al 100% la cobertura en salud a la población víctima del conflicto interno armado. | G48: 1 | H48: 1 | I48: =+H48 -> 1 | J48: 1 | K48: =+J48 -> 1 | M48: 1 | N48: =+M48 -> 1 | P48: 1 | Q48: =+P48 -> 1 | S48: 1 | T48: =+S48 -> 1 | V48: 0.997 | W48: =+V48 -> 0.997 | X48: 0.997 | Y48: =+X48 -> 0.997 | Z48: 0.997 | AA48: =+Z48 -> 0.997 | AC48: =+AB48 -> 0 | AD48: =+IF(K48=0," -",W48/K48) -> 0.997 | AE48: =+IF(K48=0," -",IF(AD48>100%,100%,AD48)) -> 0.997 | AF48: =+IF(N48=0," -",Y48/N48) -> 0.997 | AG48: =+IF(N48=0," -",IF(AF48>100%,100%,AF48)) -> 0.997 | AH48: =+IF(Q48=0," -",AA48/Q48) -> 0.997 | AI48: =+IF(Q48=0," -",IF(AH48>100%,100%,AH48)) -> 0.997 | AJ48: =+IF(T48=0," -",AC48/T48) -> 0 | AK48: =+IF(T48=0," -",IF(AJ48>100%,100%,AJ48)) -> 0 | AL48: =+AVERAGE(W48,Y48,AA48,AC48) -> 0.74775 | AM48: =+IF(AL48>100%,100%,IF(AL48<0%,0%,AL48)) -> 0.74775 | AQ48: Mantener el 100% de los procesos de retorno y reubicación a la población víctima del conflicto interno armado que se presente. | AR48: 2210979 | AS48: Porcentaje de procesos de retorno y reubicación a la población víctima del conflicto interno armado mantenidos. | AT48: 1 | AU48: 1 | AV48: 1 | AW48: 0.25 | AX48: 1 | AY48: 0.25 | AZ48: 1 | BA48: 0.25 | BB48: 1 | BC48: 0.25 | BD48: 0 | BE48: 1 | BF48: 1 | BG48: 0.5 | BH48: 0 | BI48: 0 | BJ48: 1 | BK48: 1 | BL48: 1 | BM48: 1 | BN48: 0.5 | BO48: 0.5 | BP48: 0.625 | BQ48: 0.625 | BR48: 0.625 | BS48: 0 | BT48: 0 | BU48: 0 | BV48: - | BW48: - | BX48: 187530 | BY48: 0 | BZ48: 0 | CA48: 0 | CB48: - | CC48: 475220 | CD48: 138475 | CE48: 0 | CF48: 0.2913913556 | CG48: - | CH48: 433022 | CI48: 350000 | CJ48: 0 | CK48: 0.8082730208 | CL48: - | CM48: 1095772 | CN48: 488475 | CO48: 0 | CP48: 0.4457816042 | CQ48: - | CR48: 10. Reducción de las desigualdades | CS48: Atención a grupos vulnerables - Promoción Social | CT48: Sec. Interior
AQ49: Apoyar 7 iniciativas encaminadas a generar garantías de no repetición y reparación simbólica a víctimas del conflicto interno armado. | AR49: 2210979 | AS49: Número de iniciativas encaminadas a generar garantías de no repetición y reparación simbólica a víctimas del conflicto interno armado apoyados. | AT49: 0 | AU49: 7 | AV49: 0 | AW49: 0 | AX49: 3 | AY49: 0.4285714286 | AZ49: 2 | BA49: 0.2857142857 | BB49: 2 | BC49: 0.2857142857 | BD49: 0 | BE49: 2 | BF49: 2 | BG49: 1 | BH49: - | BI49: - | BJ49: 0.6666666667 | BK49: 0.6666666667 | BL49: 1 | BM49: 1 | BN49: 0.5 | BO49: 0.5 | BP49: =+SUM(BD49:BG49)/AU49 -> 0.7142857143 | BQ49: 0.7142857143 | BR49: 0.7142857143 | BS49: 0 | BT49: 0 | BU49: 0 | BV49: - | BW49: - | BX49: 40000 | BY49: 0 | BZ49: 0 | CA49: 0 | CB49: - | CC49: 50000 | CD49: 0 | CE49: 0 | CF49: 0 | CG49: - | CH49: 40000 | CI49: 40000 | CJ49: 0 | CK49: 1 | CL49: - | CM49: 130000 | CN49: 40000 | CO49: 0 | CP49: 0.3076923077 | CQ49: - | CR49: 10. Reducción de las desigualdades | CS49: Atención a grupos vulnerables - Promoción Social | CT49: Sec. Interior
AQ50: Conmemorar el día de memoria y de solidaridad con las víctimas del conflicto interno armado. | AR50: 2210979 | AS50: Número de días de memoria y de solidaridad con las víctimas del conflicto interno armado conmemorados. | AT50: 4 | AU50: 1 | AV50: 1 | AW50: 0.25 | AX50: 1 | AY50: 0.25 | AZ50: 1 | BA50: 0.25 | BB50: 1 | BC50: 0.25 | BD50: 1 | BE50: 3 | BF50: 3 | BG50: 2 | BH50: 1 | BI50: 1 | BJ50: 3 | BK50: 1 | BL50: 3 | BM50: 1 | BN50: 2 | BO50: 1 | BP50: 2.25 | BQ50: 1 | BR50: 1 | BS50: 0 | BT50: 0 | BU50: 1500 | BV50: - | BW50: 1 | BX50: 30000 | BY50: 30000 | BZ50: 0 | CA50: 1 | CB50: - | CC50: 40000 | CD50: 39917 | CE50: 0 | CF50: 0.997925 | CG50: - | CH50: 40000 | CI50: 26183 | CJ50: 0 | CK50: 0.654575 | CL50: - | CM50: 110000 | CN50: 96100 | CO50: 1500 | CP50: 0.8736363636 | CQ50: 0.01560874089 | CR50: 10. Reducción de las desigualdades | CS50: Atención a grupos vulnerables - Promoción Social | CT50: Sec. Interior
AQ51: Mantener el apoyo logístico para la realización del comité territorial de justicia transicional con sus mesas temáticas. | AR51: 2210979 | AS51: Número de apoyo logístico mantenidos para la realización del comité territorial de justicia transicional con sus mesas temáticas. | AT51: 1 | AU51: 1 | AV51: 0 | AW51: 0 | AX51: 1 | AY51: 0.33 | AZ51: 1 | BA51: 0.33 | BB51: 1 | BC51: 0.34 | BD51: 0 | BE51: 1 | BF51: 1 | BG51: 1 | BH51: - | BI51: - | BJ51: 1 | BK51: 1 | BL51: 1 | BM51: 1 | BN51: 1 | BO51: 1 | BP51: =+AVERAGE(BE51:BG51)/AU51 -> 1 | BQ51: 1 | BR51: 1 | BS51: 20000 | BT51: 0 | BU51: 0 | BV51: 0 | BW51: - | BX51: 34717 | BY51: 31863 | BZ51: 0 | CA51: 0.917792436 | CB51: - | CC51: 10000 | CD51: 10000 | CE51: 0 | CF51: 1 | CG51: - | CH51: 10000 | CI51: 10000 | CJ51: 0 | CK51: 1 | CL51: - | CM51: 74717 | CN51: 51863 | CO51: 0 | CP51: 0.6941258348 | CQ51: - | CR51: 10. Reducción de las desigualdades | CS51: Atención a grupos vulnerables - Promoción Social | CT51: Sec. Interior
AQ52: Mantener y mejorar el Centro de Atención Integral para las Víctimas del conflicto interno. | AR52: 2210979 | AS52: Número de Centros de Atención Integral para las Víctimas del conflicto interno mantenidos y mejorados. | AT52: 1 | AU52: 1 | AV52: 1 | AW52: 0.25 | AX52: 1 | AY52: 0.25 | AZ52: 1 | BA52: 0.25 | BB52: 1 | BC52: 0.25 | BD52: 1 | BE52: 1 | BF52: 1 | BG52: 1 | BH52: 1 | BI52: 1 | BJ52: 1 | BK52: 1 | BL52: 1 | BM52: 1 | BN52: 1 | BO52: 1 | BP52: 1 | BQ52: 1 | BR52: 1 | BS52: 5000 | BT52: 0 | BU52: 0 | BV52: 0 | BW52: - | BX52: 365264 | BY52: 361536 | BZ52: 0 | CA52: 0.9897936835 | CB52: - | CC52: 251400 | CD52: 221800 | CE52: 0 | CF52: 0.8822593477 | CG52: - | CH52: 251000 | CI52: 246502 | CJ52: 0 | CK52: 0.9820796813 | CL52: - | CM52: 872664 | CN52: 829838 | CO52: 0 | CP52: 0.9509249837 | CQ52: - | CR52: 10. Reducción de las desigualdades | CS52: Atención a grupos vulnerables - Promoción Social | CT52: Sec. Interior
AQ53: Crear, dotar y mantener 1 Oficina para la Paz. | AR53: 2210979 | AS53: Número de oficinas para la Paz creada, dotadas y mantenidas. | AT53: 0 | AU53: 1 | AV53: 0 | AW53: 0 | AX53: 1 | AY53: 0.33 | AZ53: 1 | BA53: 0.33 | BB53: 1 | BC53: 0.34 | BD53: 0 | BE53: 0.2 | BF53: 0 | BG53: 0.5 | BH53: - | BI53: - | BJ53: 0.2 | BK53: 0.2 | BL53: 0 | BM53: 0 | BN53: 0.5 | BO53: 0.5 | BP53: =+AVERAGE(BE53:BG53)/AU53 -> 0.2333333333 | BQ53: 0.2333333333 | BR53: 0.2333333333 | BS53: 0 | BT53: 0 | BU53: 0 | BV53: - | BW53: - | BX53: 0 | BY53: 0 | BZ53: 0 | CA53: - | CB53: - | CC53: 0 | CD53: 0 | CE53: 0 | CF53: - | CG53: - | CH53: 0 | CI53: 0 | CJ53: 0 | CK53: - | CL53: - | CM53: 0 | CN53: 0 | CO53: 0 | CP53: - | CQ53: - | CR53: 10. Reducción de las desigualdades | CS53: Atención a grupos vulnerables - Promoción Social | CT53: Sec. Interior
AQ54: Realizar 1 actividad enfocada a la participación de las organizaciones sociales de víctimas en torno a la agenda de paz y la reparación integral. | AR54: 2210979 | AS54: Número de actividades enfocadas a la organización y participación de las organizaciones sociales de víctimas realizadas en torno a la agenda de paz y la reparación integral. | AT54: 0 | AU54: 1 | AV54: 0 | AW54: 0 | AX54: 1 | AY54: 1 | AZ54: 0 | BA54: 0 | BB54: 0 | BC54: 0 | BD54: 0 | BE54: 0 | BF54: 1 | BG54: 0 | BH54: - | BI54: - | BJ54: 0 | BK54: 0 | BL54: - | BM54: - | BN54: - | BO54: - | BP54: =+SUM(BD54:BG54)/AU54 -> 1 | BQ54: 1 | BR54: 1 | BS54: 0 | BT54: 0 | BU54: 0 | BV54: - | BW54: - | BX54: 50000 | BY54: 0 | BZ54: 0 | CA54: 0 | CB54: - | CC54: 10000 | CD54: 9886 | CE54: 0 | CF54: 0.9886 | CG54: - | CH54: 10000 | CI54: 10000 | CJ54: 0 | CK54: 1 | CL54: - | CM54: 70000 | CN54: 19886 | CO54: 0 | CP54: 0.2840857143 | CQ54: - | CR54: 10. Reducción de las desigualdades | CS54: Atención a grupos vulnerables - Promoción Social | CT54: Sec. Interior
AQ55: Realizar 6 encuentros para la participación de mujeres víctimas del conflicto interno armado como sujetos de derechos en entornos familiares y escenarios de decisión. | AR55: 0 | AS55: Número de encuentros realizados para la participación de mujeres víctimas del conflicto interno armado como sujetos de derechos en entornos familiares y escenarios de decisión. | AT55: 0 | AU55: 6 | AV55: 0 | AW55: 0 | AX55: 2 | AY55: 0.3333333333 | AZ55: 2 | BA55: 0.3333333333 | BB55: 2 | BC55: 0.3333333333 | BD55: 0 | BE55: 1 | BF55: 1 | BG55: 2 | BH55: - | BI55: - | BJ55: 0.5 | BK55: 0.5 | BL55: 0.5 | BM55: 0.5 | BN55: 1 | BO55: 1 | BP55: =+SUM(BD55:BG55)/AU55 -> 0.6666666667 | BQ55: 0.6666666667 | BR55: 0.6666666667 | BS55: 0 | BT55: 0 | BU55: 0 | BV55: - | BW55: - | BX55: 0 | BY55: 0 | BZ55: 0 | CA55: - | CB55: - | CC55: 0 | CD55: 0 | CE55: 0 | CF55: - | CG55: - | CH55: 0 | CI55: 0 | CJ55: 0 | CK55: - | CL55: - | CM55: 0 | CN55: 0 | CO55: 0 | CP55: - | CQ55: - | CR55: 10. Reducción de las desigualdades | CS55: Atención a grupos vulnerables - Promoción Social | CT55: Sec. Desarrollo Social
AQ56: Formular e implementar el Plan de acción intersectorial de entornos saludables PAIE con población víctima del conflicto interno armado. | AR56: 2210917 2210244 | AS56: Número de Planes de acción intersectoriales de entornos saludables PAIE formulados e implementados con población víctima del conflicto interno armado. | AT56: 1 | AU56: 1 | AV56: 1 | AW56: 0.25 | AX56: 1 | AY56: 0.25 | AZ56: 1 | BA56: 0.25 | BB56: 1 | BC56: 0.25 | BD56: 0.8 | BE56: 1 | BF56: 1 | BG56: 1 | BH56: 0.8 | BI56: 0.8 | BJ56: 1 | BK56: 1 | BL56: 1 | BM56: 1 | BN56: 1 | BO56: 1 | BP56: 0.95 | BQ56: 0.95 | BR56: 0.95 | BS56: 363230 | BT56: 254380 | BU56: 0 | BV56: 0.7003276161 | BW56: - | BX56: 427306 | BY56: 410566 | BZ56: 0 | CA56: 0.9608243273 | CB56: - | CC56: 433766 | CD56: 419866 | CE56: 0 | CF56: 0.9679550726 | CG56: - | CH56: 437500 | CI56: 423000 | CJ56: 0 | CK56: 0.9668571429 | CL56: - | CM56: 1661802 | CN56: 1507812 | CO56: 0 | CP56: 0.9073355309 | CQ56: - | CR56: 10. Reducción de las desigualdades | CS56: Atención a grupos vulnerables - Promoción Social | CT56: Sec. Salud y Ambiente
AQ57: Desarrollar 4 eventos deportivos y recreativos dirigidos a la población víctimas del conflicto interno armado. | AR57: 2.4.1.2.3.1 | AS57: Número de eventos deportivos y recreativos desarrollados dirigidos a la población víctimas del conflicto interno armado. | AT57: 4 | AU57: 4 | AV57: 1 | AW57: 0.25 | AX57: 1 | AY57: 0.25 | AZ57: 1 | BA57: 0.25 | BB57: 1 | BC57: 0.25 | BD57: 1 | BE57: 1 | BF57: 1 | BG57: 1 | BH57: 1 | BI57: 1 | BJ57: 1 | BK57: 1 | BL57: 1 | BM57: 1 | BN57: 1 | BO57: 1 | BP57: =+SUM(BD57:BG57)/AU57 -> 1 | BQ57: 1 | BR57: 1 | BS57: 0 | BT57: 0 | BU57: 0 | BV57: - | BW57: - | BX57: 46350 | BY57: 42164 | BZ57: 0 | CA57: 0.9096871629 | CB57: - | CC57: 32760 | CD57: 32539 | CE57: 0 | CF57: 0.9932539683 | CG57: - | CH57: 30000 | CI57: 29925 | CJ57: 0 | CK57: 0.9975 | CL57: - | CM57: 109110 | CN57: 104628 | CO57: 0 | CP57: 0.9589221886 | CQ57: - | CR57: 10. Reducción de las desigualdades | CS57: Deporte y recreación | CT57: INDERBU
AQ58: Apoyar 7 proyectos productivos para generación de ingresos en población víctimas del conflicto interno armado. | AR58: 0 | AS58: Número de proyectos productivos para generación de ingresos en población víctimas del conflicto interno armado apoyados. | AT58: 0 | AU58: 7 | AV58: 0 | AW58: 0 | AX58: 1 | AY58: 0.1428571429 | AZ58: 0 | BA58: 0 | BB58: 6 | BC58: 0.8571428571 | BD58: 0 | BE58: 1 | BF58: 26 | BG58: 0 | BH58: - | BI58: - | BJ58: 1 | BK58: 1 | BL58: - | BM58: - | BN58: 0 | BO58: 0 | BP58: =+SUM(BD58:BG58)/AU58 -> 3.857142857 | BQ58: 1 | BR58: 1 | BS58: 0 | BT58: 0 | BU58: 0 | BV58: - | BW58: - | BX58: 36886 | BY58: 36750 | BZ58: 187520 | CA58: 0.9963129643 | CB58: 5.102585034 | CC58: 0 | CD58: 0 | CE58: 0 | CF58: - | CG58: - | CH58: 0 | CI58: 0 | CJ58: 0 | CK58: - | CL58: - | CM58: 36886 | CN58: 36750 | CO58: 187520 | CP58: 0.9963129643 | CQ58: 5.102585034 | CR58: 10. Reducción de las desigualdades | CS58: Atención a grupos vulnerables - Promoción Social | CT58: IMEBU
AO59: =+RESUMEN!J47 -> 1 | AP59: POBLACIÓN EN PROCESO DE REINTEGRACIÓN | AQ59: Mantener 1 programa de temas de emprendimiento a personas en proceso de reintegración. | AR59: 0 | AS59: Número de programas mantenidos en temas de emprendimiento a personas en procesos de reintegración. | AT59: 1 | AU59: 1 | AV59: 1 | AW59: 0.25 | AX59: 1 | AY59: 0.25 | AZ59: 1 | BA59: 0.25 | BB59: 1 | BC59: 0.25 | BD59: 1 | BE59: 1 | BF59: 1 | BG59: 1 | BH59: 1 | BI59: 1 | BJ59: 1 | BK59: 1 | BL59: 1 | BM59: 1 | BN59: 1 | BO59: 1 | BP59: 1 | BQ59: 1 | BR59: 1 | BS59: 0 | BT59: 0 | BU59: 0 | BV59: - | BW59: - | BX59: 0 | BY59: 0 | BZ59: 0 | CA59: - | CB59: - | CC59: 0 | CD59: 0 | CE59: 0 | CF59: - | CG59: - | CH59: 0 | CI59: 0 | CJ59: 0 | CK59: - | CL59: - | CM59: 0 | CN59: 0 | CO59: 0 | CP59: - | CQ59: - | CR59: 10. Reducción de las desigualdades | CS59: Atención a grupos vulnerables - Promoción Social | CT59: Sec. Interior
AQ60: Implementar y mantener 1 estrategia de apoyo a las iniciativas y programas de la Agencia Colombiana para la Reintegración - ACR. | AR60: 0 | AS60: Número de estrategias de apoyo a las iniciativas y programas de la Agencia Colombiana para la Reintegración - ACR implementadas y mantenidas. | AT60: 1 | AU60: 1 | AV60: 0 | AW60: 0 | AX60: 1 | AY60: 0.33 | AZ60: 1 | BA60: 0.33 | BB60: 1 | BC60: 0.34 | BD60: 0 | BE60: 1 | BF60: 1 | BG60: 1 | BH60: - | BI60: - | BJ60: 1 | BK60: 1 | BL60: 1 | BM60: 1 | BN60: 1 | BO60: 1 | BP60: =+AVERAGE(BE60:BG60)/AU60 -> 1 | BQ60: 1 | BR60: 1 | BS60: 0 | BT60: 0 | BU60: 0 | BV60: - | BW60: - | BX60: 0 | BY60: 0 | BZ60: 0 | CA60: - | CB60: - | CC60: 0 | CD60: 0 | CE60: 0 | CF60: - | CG60: - | CH60: 0 | CI60: 0 | CJ60: 0 | CK60: - | CL60: - | CM60: 0 | CN60: 0 | CO60: 0 | CP60: - | CQ60: - | CR60: 10. Reducción de las desigualdades | CS60: Atención a grupos vulnerables - Promoción Social | CT60: Sec. Interior
AQ61: Implementar y mantener 1 estrategia para la inclusión laboral de actores del conflicto. | AR61: - | AS61: Número de estrategias implementadas y mantenidas para la inclusión laboral de actores del conflicto. | AT61: 0 | AU61: 1 | AV61: 0 | AW61: 0 | AX61: 1 | AY61: 0.33 | AZ61: 1 | BA61: 0.33 | BB61: 1 | BC61: 0.34 | BD61: 0 | BE61: 1 | BF61: 1 | BG61: 1 | BH61: - | BI61: - | BJ61: 1 | BK61: 1 | BL61: 1 | BM61: 1 | BN61: 1 | BO61: 1 | BP61: =+AVERAGE(BE61:BG61)/AU61 -> 1 | BQ61: 1 | BR61: 1 | BS61: 0 | BT61: 0 | BU61: 0 | BV61: - | BW61: - | BX61: 0 | BY61: 0 | BZ61: 0 | CA61: - | CB61: - | CC61: 0 | CD61: 0 | CE61: 0 | CF61: - | CG61: - | CH61: 0 | CI61: 0 | CJ61: 0 | CK61: - | CL61: - | CM61: 0 | CN61: 0 | CO61: 0 | CP61: - | CQ61: - | CR61: 10. Reducción de las desigualdades | CS61: Atención a grupos vulnerables - Promoción Social | CT61: IMEBU
AO62: =+RESUMEN!J48 -> 0.87 | AP62: POBLACIÓN CARCELARIA Y POSPENADOS | AQ62: Mantener el apoyo dotacional a los 2 centros de reclusión. | AR62: 2210813 | AS62: Número de centros de reclusión con apoyo dotacional mantenido. | AT62: 2 | AU62: 2 | AV62: 2 | AW62: 0.25 | AX62: 2 | AY62: 0.25 | AZ62: 2 | BA62: 0.25 | BB62: 2 | BC62: 0.25 | BD62: 1 | BE62: 2 | BF62: 1 | BG62: 1 | BH62: 0.5 | BI62: 0.5 | BJ62: 1 | BK62: 1 | BL62: 0.5 | BM62: 0.5 | BN62: 0.5 | BO62: 0.5 | BP62: 0.625 | BQ62: 0.625 | BR62: 0.625 | BS62: 100000 | BT62: 27000 | BU62: 0 | BV62: 0.27 | BW62: - | BX62: 99730 | BY62: 58927 | BZ62: 0 | CA62: 0.5908653364 | CB62: - | CC62: 0 | CD62: 0 | CE62: 10000 | CF62: - | CG62: 1 | CH62: 0 | CI62: 0 | CJ62: 12000 | CK62: - | CL62: 1 | CM62: 199730 | CN62: 85927 | CO62: 22000 | CP62: 0.4302157913 | CQ62: 0.2560312824 | CR62: 10. Reducción de las desigualdades | CS62: Centros de Reclusión | CT62: Sec. Desarrollo Social
AQ63: Implementar y mantener 1 estrategia basadas en valores para apoyar a la población carcelaria en el proceso de resocialización social y familiar. | AR63: 2210813 | AS63: Número de estrategias basadas en valores implementadas y mantenidas para apoyar a la población carcelaria en el proceso de resocialización social y familiar. | AT63: 0 | AU63: 1 | AV63: 1 | AW63: 0.25 | AX63: 1 | AY63: 0.25 | AZ63: 1 | BA63: 0.25 | BB63: 1 | BC63: 0.25 | BD63: 1 | BE63: 0.9 | BF63: 1 | BG63: 0.5 | BH63: 1 | BI63: 1 | BJ63: 0.9 | BK63: 0.9 | BL63: 1 | BM63: 1 | BN63: 0.5 | BO63: 0.5 | BP63: =+AVERAGE(BD63:BG63)/AU63 -> 0.85 | BQ63: 0.85 | BR63: 0.85 | BS63: 65000 | BT63: 65000 | BU63: 0 | BV63: 1 | BW63: - | BX63: 0 | BY63: 0 | BZ63: 0 | CA63: - | CB63: - | CC63: 29996 | CD63: 29996 | CE63: 14855 | CF63: 1 | CG63: 0.4952326977 | CH63: 30000 | CI63: 29995 | CJ63: 12855 | CK63: 0.9998333333 | CL63: 0.4285714286 | CM63: 124996 | CN63: 124991 | CO63: 27710 | CP63: 0.9999599987 | CQ63: 0.2216959621 | CR63: 10. Reducción de las desigualdades | CS63: Centros de Reclusión | CT63: Sec. Desarrollo Social
AQ64: Realizar 3 brigadas de ayuda humanitaria dirigida a la población carcelaria en los diferentes centros de reclusión. | AR64: 2210813 | AS64: Número de brigadas de ayuda humanitaria realizadas dirigidas a la población carcelaria en los diferentes centros de reclusión. | AT64: 1 | AU64: 3 | AV64: 0 | AW64: 0 | AX64: 1 | AY64: 0.3333333333 | AZ64: 1 | BA64: 0.3333333333 | BB64: 1 | BC64: 0.3333333333 | BD64: 0 | BE64: 2 | BF64: 4 | BG64: 1 | BH64: - | BI64: - | BJ64: 2 | BK64: 1 | BL64: 4 | BM64: 1 | BN64: 1 | BO64: 1 | BP64: =+SUM(BD64:BG64)/AU64 -> 2.333333333 | BQ64: 1 | BR64: 1 | BS64: 60000 | BT64: 0 | BU64: 0 | BV64: 0 | BW64: - | BX64: 0 | BY64: 0 | BZ64: 73104 | CA64: - | CB64: 1 | CC64: 176000 | CD64: 175567 | CE64: 0 | CF64: 0.9975397727 | CG64: - | CH64: 25000 | CI64: 25000 | CJ64: 0 | CK64: 1 | CL64: - | CM64: 261000 | CN64: 200567 | CO64: 73104 | CP64: 0.7684559387 | CQ64: 0.3644866803 | CR64: 10. Reducción de las desigualdades | CS64: Centros de Reclusión | CT64: Sec. Interior
AQ65: Implementar y mantener 1 estrategia de apoyo a la generación de ingresos para pospenados. | AR65: 2210813 | AS65: Número de estrategias de apoyo a la generación de ingresos para pospenados implementadas y mantenidas. | AT65: 0 | AU65: 1 | AV65: 0 | AW65: 0 | AX65: 1 | AY65: 0.33 | AZ65: 1 | BA65: 0.33 | BB65: 1 | BC65: 0.34 | BD65: 0 | BE65: 1 | BF65: 1 | BG65: 1 | BH65: - | BI65: - | BJ65: 1 | BK65: 1 | BL65: 1 | BM65: 1 | BN65: 1 | BO65: 1 | BP65: =+AVERAGE(BE65:BG65)/AU65 -> 1 | BQ65: 1 | BR65: 1 | BS65: 40000 | BT65: 0 | BU65: 0 | BV65: 0 | BW65: - | BX65: 120000 | BY65: 27833 | BZ65: 0 | CA65: 0.2319416667 | CB65: - | CC65: 52900 | CD65: 52333 | CE65: 0 | CF65: 0.9892816635 | CG65: - | CH65: 175000 | CI65: 40000 | CJ65: 0 | CK65: 0.2285714286 | CL65: - | CM65: 387900 | CN65: 120166 | CO65: 0 | CP65: 0.3097860273 | CQ65: - | CR65: 10. Reducción de las desigualdades | CS65: Centros de Reclusión | CT65: Sec. Interior
AQ66: Desarrollar 8 eventos deportivos y recreativos dirigidos a la población carcelaria. | AR66: 2.4.1.2.2.1 | AS66: Número de eventos deportivos y recreativos desarrollados dirigidos a la población carcelaria. | AT66: 8 | AU66: 8 | AV66: 2 | AW66: 0.25 | AX66: 2 | AY66: 0.25 | AZ66: 2 | BA66: 0.25 | BB66: 2 | BC66: 0.25 | BD66: 2 | BE66: 2 | BF66: 2 | BG66: 1 | BH66: 1 | BI66: 1 | BJ66: 1 | BK66: 1 | BL66: 1 | BM66: 1 | BN66: 0.5 | BO66: 0.5 | BP66: =+SUM(BD66:BG66)/AU66 -> 0.875 | BQ66: 0.875 | BR66: 0.875 | BS66: 22000 | BT66: 22000 | BU66: 0 | BV66: 1 | BW66: - | BX66: 49890 | BY66: 48223 | BZ66: 0 | CA66: 0.9665864903 | CB66: - | CC66: 45864 | CD66: 45002 | CE66: 0 | CF66: 0.9812053026 | CG66: - | CH66: 20000 | CI66: 9624 | CJ66: 0 | CK66: 0.4812 | CL66: - | CM66: 137754 | CN66: 124849 | CO66: 0 | CP66: 0.9063185098 | CQ66: - | CR66: 10. Reducción de las desigualdades | CS66: Deporte y recreación | CT66: INDERBU
BC67: =+AVERAGE(BC11:BC66) -> 0.2722363946 | BI67: =+AVERAGE(BI11:BI66) -> 0.7537916667 | BK67: 0.831514881 | BM67: 0.8737713387 | BO67: 0.8192685185 | BQ67: =+AVERAGE(BQ11:BQ66) -> 0.8336697491
D68: =+RESUMEN!J49 -> 0.8103993045 | E68: LOS CAMINOS DE LA VIDA | F68: Mantener por debajo de 10 la tasa de mortalidad en niñas y niños menores de 5 años. | G68: 10.5 | H68: 10 | I68: =+H68-G68 -> -0.5 | J68: 10 | K68: =+J68-G68 -> -0.5 | M68: 10 | N68: =+M68-J68 -> 0 | P68: 10 | Q68: =+P68-M68 -> 0 | S68: 10 | T68: =+S68-P68 -> 0 | V68: 3.8 | W68: =+V68 -> 3.8 | X68: 6.2 | Y68: =+X68 -> 6.2 | Z68: 7.3 | AA68: =+Z68 -> 7.3 | AC68: =+AB68 -> 0 | AE68: =+AD68 -> 0 | AG68: =+AF68 -> 0 | AI68: =+AH68 -> 0 | AK68: =+AJ68 -> 0 | AM68: =+AL68 -> 0 | AO68: =+RESUMEN!J49+RESUMEN!J50 -> 1.660399304 | AP68: INICIO FELIZ (PRIMERA INFANCIA) | AQ68: Fortalecer 1.500 padres, madres y otros cuidadores en capacidades para la crianza, la construcción de vínculos afectivos y su ejercicio de corresponsabilidad. | AR68: 2210707 | AS68: Número de padres, madres y otros cuidadores fortalecidos en capacidades para la crianza, la construcción de vínculos afectivos y su ejercicio de corresponsabilidad. | AT68: 600 | AU68: 1500 | AV68: 300 | AW68: 0.2 | AX68: 400 | AY68: 0.2666666667 | AZ68: 400 | BA68: 0.2666666667 | BB68: 400 | BC68: 0.2666666667 | BD68: 1300 | BE68: 2000 | BF68: 2603 | BG68: 400 | BH68: 4.333333333 | BI68: 1 | BJ68: 5 | BK68: 1 | BL68: 6.5075 | BM68: 1 | BN68: 1 | BO68: 1 | BP68: =+SUM(BD68:BG68)/AU68 -> 4.202 | BQ68: 1 | BR68: 1 | BS68: 273000 | BT68: 113249 | BU68: 0 | BV68: 0.4148315018 | BW68: - | BX68: 195306 | BY68: 169306 | BZ68: 0 | CA68: 0.8668755696 | CB68: - | CC68: 618249 | CD68: 584185 | CE68: 86640 | CF68: 0.9449024584 | CG68: 0.1483091829 | CH68: 662100 | CI68: 661938 | CJ68: 254973 | CK68: 0.999755324 | CL68: 0.3851916645 | CM68: 1748655 | CN68: 1528678 | CO68: 341613 | CP68: 0.8742021725 | CQ68: 0.22346956 | CR68: 1. Fin de la pobreza | CS68: Atención a grupos vulnerables - Promoción Social | CT68: Sec. Desarrollo Social
AQ69: Realizar el acompañamiento al 30% de las adolescentes gestantes y madres adolescentes. | AR69: 2210707 2210205 | AS69: Porcentaje de las adolescentes gestantes y madres adolescentes con acompañamiento. | AT69: 0.3 | AU69: 0.3 | AV69: 0.3 | AW69: 0.25 | AX69: 0.3 | AY69: 0.25 | AZ69: 0.3 | BA69: 0.25 | BB69: 0.3 | BC69: 0.25 | BD69: 0.05 | BE69: 1 | BF69: 0.064 | BG69: 0.25 | BH69: 0.1666666667 | BI69: 0.1666666667 | BJ69: 3.333333333 | BK69: 1 | BL69: 0.2133333333 | BM69: 0.2133333333 | BN69: 0.8333333333 | BO69: 0.8333333333 | BP69: 1.136666667 | BQ69: 1 | BR69: 1 | BS69: 85000 | BT69: 0 | BU69: 0 | BV69: 0 | BW69: - | BX69: 111250 | BY69: 111250 | BZ69: 0 | CA69: 1 | CB69: - | CC69: 12000 | CD69: 12000 | CE69: 0 | CF69: 1 | CG69: - | CH69: 0 | CI69: 0 | CJ69: 0 | CK69: - | CL69: - | CM69: 208250 | CN69: 123250 | CO69: 0 | CP69: 0.5918367347 | CQ69: - | CR69: 1. Fin de la pobreza | CS69: Atención a grupos vulnerables - Promoción Social | CT69: Sec. Desarrollo Social
AQ70: Brindar atención psicosocial especializada al 100% de las familias en condiciones de vulnerabilidad con niñas y niños con enfermedades crónicas y terminales que lo requieran. | AR70: 2210707 | AS70: Porcentaje de familias en condiciones de vulnerabilidad con niñas y niños con enfermedades crónicas y terminales con atención psicosocial especializada de acuerdo a lo requerido. | AT70: 1 | AU70: 1 | AV70: 1 | AW70: 0.25 | AX70: 1 | AY70: 0.25 | AZ70: 1 | BA70: 0.25 | BB70: 1 | BC70: 0.25 | BD70: 1 | BE70: 1 | BF70: 1 | BG70: 1 | BH70: 1 | BI70: 1 | BJ70: 1 | BK70: 1 | BL70: 1 | BM70: 1 | BN70: 1 | BO70: 1 | BP70: 1 | BQ70: 1 | BR70: 1 | BS70: 90000 | BT70: 50000 | BU70: 0 | BV70: 0.5555555556 | BW70: - | BX70: 215797 | BY70: 122000 | BZ70: 0 | CA70: 0.5653461355 | CB70: - | CC70: 80000 | CD70: 80000 | CE70: 0 | CF70: 1 | CG70: - | CH70: 0 | CI70: 0 | CJ70: 0 | CK70: - | CL70: - | CM70: 385797 | CN70: 252000 | CO70: 0 | CP70: 0.6531932597 | CQ70: - | CR70: 1. Fin de la pobreza | CS70: Atención a grupos vulnerables - Promoción Social | CT70: Sec. Desarrollo Social
AQ71: Realizar 4 jornadas de conmemoración del día de la niñez | AR71: 2210707 | AS71: Número de jornadas de conmemoración del día de la niñez realizadas. | AT71: 4 | AU71: 4 | AV71: 1 | AW71: 0.25 | AX71: 1 | AY71: 0.25 | AZ71: 1 | BA71: 0.25 | BB71: 1 | BC71: 0.25 | BD71: 1 | BE71: 1 | BF71: 1 | BG71: 1 | BH71: 1 | BI71: 1 | BJ71: 1 | BK71: 1 | BL71: 1 | BM71: 1 | BN71: 1 | BO71: 1 | BP71: =+SUM(BD71:BG71)/AU71 -> 1 | BQ71: 1 | BR71: 1 | BS71: 66000 | BT71: 66000 | BU71: 0 | BV71: 1 | BW71: - | BX71: 266753 | BY71: 266753 | BZ71: 0 | CA71: 1 | CB71: - | CC71: 289750 | CD71: 289738 | CE71: 100309 | CF71: 0.999958585 | CG71: 0.3462058826 | CH71: 340000 | CI71: 339998 | CJ71: 145713 | CK71: 0.9999941176 | CL71: 0.4285701681 | CM71: 962503 | CN71: 962489 | CO71: 246022 | CP71: 0.9999854546 | CQ71: 0.255610194 | CR71: 1. Fin de la pobreza | CS71: Atención a grupos vulnerables - Promoción Social | CT71: Sec. Desarrollo Social
AQ72: Realizar 8 jornadas "Mi nombre - mi ciudadanía" para la garantía del derecho a la identidad en alianza con la Registraduría. | AR72: 2210707 | AS72: Número de jornadas "Mi nombre - mi ciudadanía" realizadas para la garantía del derecho a la identidad en alianza con la Registraduría. | AT72: 4 | AU72: 8 | AV72: 1 | AW72: 0.125 | AX72: 2 | AY72: 0.25 | AZ72: 2 | BA72: 0.25 | BB72: 3 | BC72: 0.375 | BD72: 0 | BE72: 3 | BF72: 2 | BG72: 2 | BH72: 0 | BI72: 0 | BJ72: 1.5 | BK72: 1 | BL72: 1 | BM72: 1 | BN72: 0.6666666667 | BO72: 0.6666666667 | BP72: =+SUM(BD72:BG72)/AU72 -> 0.875 | BQ72: 0.875 | BR72: 0.875 | BS72: 10000 | BT72: 0 | BU72: 0 | BV72: 0 | BW72: - | BX72: 3000 | BY72: 2995 | BZ72: 0 | CA72: 0.9983333333 | CB72: - | CC72: 5000 | CD72: 5000 | CE72: 0 | CF72: 1 | CG72: - | CH72: 0 | CI72: 0 | CJ72: 0 | CK72: - | CL72: - | CM72: 18000 | CN72: 7995 | CO72: 0 | CP72: 0.4441666667 | CQ72: - | CR72: 1. Fin de la pobreza | CS72: Atención a grupos vulnerables - Promoción Social | CT72: Sec. Desarrollo Social
AQ73: Realizar 4 dotaciones de material pedagógico, didáctico y lúdico a programas y/o centros de atención de primera infancia. | AR73: 2210707 2210205 | AS73: Número de dotaciones de material pedagógica, didáctico y lúdico realizados a programas y/o centros de atención de primera infancia. | AT73: 0 | AU73: 4 | AV73: 1 | AW73: 0.25 | AX73: 1 | AY73: 0.25 | AZ73: 1 | BA73: 0.25 | BB73: 1 | BC73: 0.25 | BD73: 1 | BE73: 1 | BF73: 3 | BG73: 1 | BH73: 1 | BI73: 1 | BJ73: 1 | BK73: 1 | BL73: 3 | BM73: 1 | BN73: 1 | BO73: 1 | BP73: =+SUM(BD73:BG73)/AU73 -> 1.5 | BQ73: 1 | BR73: 1 | BS73: 267337 | BT73: 267337 | BU73: 0 | BV73: 1 | BW73: - | BX73: 1224442 | BY73: 1031128 | BZ73: 0 | CA73: 0.8421207374 | CB73: - | CC73: 563708 | CD73: 521726 | CE73: 0 | CF73: 0.9255252719 | CG73: - | CH73: 586583 | CI73: 48827 | CJ73: 0 | CK73: 0.08323971203 | CL73: - | CM73: 2642070 | CN73: 1869018 | CO73: 0 | CP73: 0.7074066925 | CQ73: - | CR73: 1. Fin de la pobreza | CS73: Atención a grupos vulnerables - Promoción Social | CT73: Sec. Desarrollo Social
AQ74: Activar las rutas de atención para garantizar la inclusión social del 100% niñas y niños en situación de vulnerabilidad y/o riesgo con enfoque diferencial (discapacidad, víctimas, minorías étnicas, afrodescendientes). | AR74: 2210707 2210205 | AS74: Porcentaje de niñas y niños en situación de vulnerabilidad y/o riesgo con enfoque diferencial (discapacidad, víctimas, minorías étnicas, afrodescendientes) con rutas de atención activadas. | AT74: 0 | AU74: 1 | AV74: 1 | AW74: 0.25 | AX74: 1 | AY74: 0.25 | AZ74: 1 | BA74: 0.25 | BB74: 1 | BC74: 0.25 | BD74: 0.5 | BE74: 1 | BF74: 1 | BG74: 1 | BH74: 0.5 | BI74: 0.5 | BJ74: 1 | BK74: 1 | BL74: 1 | BM74: 1 | BN74: 1 | BO74: 1 | BP74: 0.875 | BQ74: 0.875 | BR74: 0.875 | BS74: 232166 | BT74: 232166 | BU74: 0 | BV74: 1 | BW74: - | BX74: 85900 | BY74: 85900 | BZ74: 0 | CA74: 1 | CB74: - | CC74: 67000 | CD74: 66069 | CE74: 0 | CF74: 0.9861044776 | CG74: - | CH74: 80000 | CI74: 79647 | CJ74: 34134 | CK74: 0.9955875 | CL74: 0.4285660477 | CM74: 465066 | CN74: 463782 | CO74: 34134 | CP74: 0.9972391015 | CQ74: 0.07359923412 | CR74: 1. Fin de la pobreza | CS74: Atención a grupos vulnerables - Promoción Social | CT74: Sec. Desarrollo Social
F75: Mantener por debajo de 10 la tasa de mortalidad en niñas y niños menores de 1 años. | G75: 10.3 | H75: 10 | I75: =+H75-G75 -> -0.3 | J75: 10 | K75: =+J75-G75 -> -0.3 | M75: 10 | N75: =+M75-J75 -> 0 | P75: 10 | Q75: =+P75-M75 -> 0 | S75: 10 | T75: =+S75-P75 -> 0 | V75: 9.2 | W75: =+V75 -> 9.2 | X75: 6.3 | Z75: 5.7 | AC75: =+AB75 -> 0 | AE75: =+AD75 -> 0 | AG75: =+AF75 -> 0 | AI75: =+AH75 -> 0 | AK75: =+AJ75 -> 0 | AM75: =+AL75 -> 0 | AQ75: Implementar y mantener 1 centro de atención integral nocturno "Casa búho" para niñas y niños de 0 a 5 años. | AR75: 2210707 | AS75: Número de centros de atención integral nocturno "Casa búho" implementadas y mantenidas para niñas y niños de 0 a 5 años. | AT75: 0 | AU75: 1 | AV75: 0 | AW75: 0 | AX75: 1 | AY75: 0.33 | AZ75: 1 | BA75: 0.33 | BB75: 1 | BC75: 0.34 | BD75: 0 | BE75: 0 | BF75: 0 | BG75: 0 | BH75: - | BI75: - | BJ75: 0 | BK75: 0 | BL75: 0 | BM75: 0 | BN75: 0 | BO75: 0 | BP75: =+AVERAGE(BE75:BG75)/AU75 -> 0 | BQ75: 0 | BR75: 0 | BS75: 200000 | BT75: 0 | BU75: 0 | BV75: 0 | BW75: - | BX75: 176040 | BY75: 0 | BZ75: 0 | CA75: 0 | CB75: - | CC75: 0 | CD75: 0 | CE75: 0 | CF75: - | CG75: - | CH75: 0 | CI75: 0 | CJ75: 0 | CK75: - | CL75: - | CM75: 376040 | CN75: 0 | CO75: 0 | CP75: 0 | CQ75: - | CR75: 1. Fin de la pobreza | CS75: Atención a grupos vulnerables - Promoción Social | CT75: Sec. Desarrollo Social
AQ76: Actualizar la política pública de primera infancia, infancia, adolescencia y fortalecimiento familiar. | AR76: 2210707 | AS76: Número de políticas públicas de primera infancia, infancia, adolescencia y fortalecimiento familiar actualizadas. | AT76: 1 | AU76: 1 | AV76: 0 | AW76: 0 | AX76: 1 | AY76: 1 | AZ76: 0 | BA76: 0 | BB76: 0 | BC76: 0 | BD76: 0 | BE76: 0.5 | BF76: 0.9 | BG76: 0.4 | BH76: =IF(AV76=0," -",BD76/AV76) -> - | BI76: =IF(AV76=0," -",IF(BH76>100%,100%,BH76)) -> - | BJ76: =IF(AX76=0," -",BE76/AX76) -> 0.5 | BK76: =IF(AX76=0," -",IF(BJ76>100%,100%,BJ76)) -> 0.5 | BL76: =IF(AZ76=0," -",BF76/AZ76) -> - | BM76: =IF(AZ76=0," -",IF(BL76>100%,100%,BL76)) -> - | BN76: =IF(BB76=0," -",BG76/BB76) -> - | BO76: =IF(BB76=0," -",IF(BN76>100%,100%,BN76)) -> - | BP76: =+SUM(BD76:BG76)/AU76 -> 1.8 | BQ76: =+IF(BP76>100%,100%,BP76) -> 1 | BR76: =+BQ76 -> 1 | BS76: 8000 | BT76: 0 | BU76: 0 | BV76: 0 | BW76: - | BX76: 10000 | BY76: 4000 | BZ76: 0 | CA76: 0.4 | CB76: - | CC76: 17400 | CD76: 17400 | CE76: 0 | CF76: 1 | CG76: - | CH76: 0 | CI76: 0 | CJ76: 0 | CK76: - | CL76: - | CM76: 35400 | CN76: 21400 | CO76: 0 | CP76: 0.604519774 | CQ76: - | CR76: 1. Fin de la pobreza | CS76: Atención a grupos vulnerables - Promoción Social | CT76: Sec. Desarrollo Social
AQ77: Mantener el servicio exequial a niñas y niños de familias con extrema vulnerabilidad que así lo requieran. | AR77: 2210869 | AS77: Número de servicios exequiales a niñas y niños de familias con extrema vulnerabilidad mantenidos de acuerdo a lo requerido. | AT77: 1 | AU77: 1 | AV77: 1 | AW77: 0.25 | AX77: 1 | AY77: 0.25 | AZ77: 1 | BA77: 0.25 | BB77: 1 | BC77: 0.25 | BD77: 0 | BE77: 1 | BF77: 1 | BG77: 1 | BH77: 0 | BI77: 0 | BJ77: 1 | BK77: 1 | BL77: 1 | BM77: 1 | BN77: 1 | BO77: 1 | BP77: =+AVERAGE(BD77:BG77)/AU77 -> 0.75 | BQ77: 0.75 | BR77: 0.75 | BS77: 20000 | BT77: 0 | BU77: 0 | BV77: =IF(BS77=0," -",BT77/BS77) -> 0 | BW77: =IF(BU77=0," -",IF(BT77=0,100%,BU77/BT77)) -> - | BX77: 30000 | BY77: 30000 | BZ77: 0 | CA77: =IF(BX77=0," -",BY77/BX77) -> 1 | CB77: =IF(BZ77=0," -",IF(BY77=0,100%,BZ77/BY77)) -> - | CC77: 20000 | CD77: 20000 | CE77: 0 | CF77: =IF(CC77=0," -",CD77/CC77) -> 1 | CG77: =IF(CE77=0," -",IF(CD77=0,100%,CE77/CD77)) -> - | CH77: 10000 | CI77: 10000 | CJ77: 0 | CK77: =IF(CH77=0," -",CI77/CH77) -> 1 | CL77: =IF(CJ77=0," -",IF(CI77=0,100%,CJ77/CI77)) -> - | CM77: =+BS77+BX77+CC77+CH77 -> 80000 | CN77: =+BT77+BY77+CD77+CI77 -> 60000 | CO77: =+BU77+BZ77+CE77+CJ77 -> 0 | CP77: =IF(CM77=0," -",CN77/CM77) -> 0.75 | CQ77: =IF(CO77=0," -",IF(CN77=0,100%,CO77/CN77)) -> - | CR77: 1. Fin de la pobreza | CS77: Atención a grupos vulnerables - Promoción Social | CT77: Sec. Desarrollo Social
AQ78: Implementar y mantener la estrategia "Mil días de vida" en IPS de atención materno infantil. | AR78: 2210994 | AS78: Número de estrategias "Mil días de vida" implementadas y mantenidas en IPS de atención materno infantil. | AT78: 0 | AU78: 1 | AV78: 0 | AW78: 0 | AX78: 1 | AY78: 0.33 | AZ78: 1 | BA78: 0.33 | BB78: 1 | BC78: 0.34 | BD78: 0 | BE78: 1 | BF78: 0.1 | BG78: 0.1 | BH78: - | BI78: - | BJ78: 1 | BK78: 1 | BL78: 0.1 | BM78: 0.1 | BN78: 0.1 | BO78: 0.1 | BP78: =+AVERAGE(BE78:BG78)/AU78 -> 0.4 | BQ78: 0.4 | BR78: 0.4 | BS78: 6700 | BT78: 0 | BU78: 0 | BV78: 0 | BW78: - | BX78: 1081086 | BY78: 1081086 | BZ78: 0 | CA78: 1 | CB78: - | CC78: 779855 | CD78: 0 | CE78: 0 | CF78: 0 | CG78: - | CH78: 536984 | CI78: 0 | CJ78: 0 | CK78: 0 | CL78: - | CM78: 2404625 | CN78: 1081086 | CO78: 0 | CP78: 0.4495861101 | CQ78: - | CR78: 3. Salud y bienestar | CS78: Atención a grupos vulnerables - Promoción Social | CT78: Sec. Salud y Ambiente
AQ79: Implementar y mantener 5 salas ERA en IPS públicas. | AR79: 2210994 | AS79: Número de salas ERA implementadas y mantenidas en IPS públicas. | AT79: 0 | AU79: 5 | AV79: 5 | AW79: 0.25 | AX79: 5 | AY79: 0.25 | AZ79: 5 | BA79: 0.25 | BB79: 5 | BC79: 0.25 | BD79: 3 | BE79: 5 | BF79: 6 | BG79: 6 | BH79: 0.6 | BI79: 0.6 | BJ79: 1 | BK79: 1 | BL79: 1.2 | BM79: 1 | BN79: 1.2 | BO79: 1 | BP79: 1 | BQ79: 1 | BR79: 1 | BS79: 6400 | BT79: 1988 | BU79: 0 | BV79: 0.310625 | BW79: - | BX79: 10414 | BY79: 9386 | BZ79: 0 | CA79: 0.9012867294 | CB79: - | CC79: 12728 | CD79: 11679 | CE79: 0 | CF79: 0.917583281 | CG79: - | CH79: 12750 | CI79: 11571 | CJ79: 0 | CK79: 0.9075294118 | CL79: - | CM79: 42292 | CN79: 34624 | CO79: 0 | CP79: 0.8186891138 | CQ79: - | CR79: 3. Salud y bienestar | CS79: Atención a grupos vulnerables - Promoción Social | CT79: Sec. Salud y Ambiente
AQ80: Mantener al 100% de los casos por desnutrición en la niñez unidad de análisis. | AR80: 2210994 | AS80: Porcentaje de casos por desnutrición en la niñez con unidad de análisis. | AT80: 0 | AU80: 1 | AV80: 1 | AW80: 0.25 | AX80: 1 | AY80: 0.25 | AZ80: 1 | BA80: 0.25 | BB80: 1 | BC80: 0.25 | BD80: 1 | BE80: 1 | BF80: 1 | BG80: 1 | BH80: 1 | BI80: 1 | BJ80: 1 | BK80: 1 | BL80: 1 | BM80: 1 | BN80: 1 | BO80: 1 | BP80: 1 | BQ80: 1 | BR80: 1 | BS80: 1742 | BT80: 1742 | BU80: 0 | BV80: 1 | BW80: - | BX80: 10414 | BY80: 9386 | BZ80: 0 | CA80: 0.9012867294 | CB80: - | CC80: 17387 | CD80: 15137 | CE80: 0 | CF80: 0.8705929718 | CG80: - | CH80: 18350 | CI80: 16371 | CJ80: 0 | CK80: 0.8921525886 | CL80: - | CM80: 47893 | CN80: 42636 | CO80: 0 | CP80: 0.890234481 | CQ80: - | CR80: 3. Salud y bienestar | CS80: Atención a grupos vulnerables - Promoción Social | CT80: Sec. Salud y Ambiente
AQ81: Mantener la estrategia AIEPI e IAMI en las IPS materno infantil. | AR81: 2210994 | AS81: Número de estrategias AIEPI e IAMI mantenidas en las IPS materno infantil. | AT81: 1 | AU81: 1 | AV81: 1 | AW81: 0.25 | AX81: 1 | AY81: 0.25 | AZ81: 1 | BA81: 0.25 | BB81: 1 | BC81: 0.25 | BD81: 1 | BE81: 1 | BF81: 1 | BG81: 1 | BH81: 1 | BI81: 1 | BJ81: 1 | BK81: 1 | BL81: 1 | BM81: 1 | BN81: 1 | BO81: 1 | BP81: 1 | BQ81: 1 | BR81: 1 | BS81: 151884 | BT81: 127876 | BU81: 0 | BV81: 0.8419320007 | BW81: - | BX81: 264786 | BY81: 109643 | BZ81: 0 | CA81: 0.4140815602 | CB81: - | CC81: 277184 | CD81: 170698 | CE81: 0 | CF81: 0.6158291965 | CG81: - | CH81: 128650 | CI81: 122141 | CJ81: 0 | CK81: 0.9494053634 | CL81: - | CM81: 822504 | CN81: 530358 | CO81: 0 | CP81: 0.6448090222 | CQ81: - | CR81: 3. Salud y bienestar | CS81: Atención a grupos vulnerables - Promoción Social | CT81: Sec. Salud y Ambiente
F82: Lograr y mantener el 100% de la población pobre de niñas y niños afiliados al régimen subsidiado. | G82: 0.98 | H82: 1 | I82: =+H82-G82 -> 0.02 | J82: 1 | K82: =+J82 -> 1 | M82: 1 | N82: =+M82 -> 1 | P82: 1 | Q82: =+P82 -> 1 | S82: 1 | T82: =+S82 -> 1 | V82: 0.997 | W82: =+V82 -> 0.997 | X82: 0.997 | Y82: =+X82 -> 0.997 | Z82: 0.997 | AA82: =+Z82 -> 0.997 | AC82: =+AB82 -> 0 | AD82: =+IF(K82=0," -",W82/K82) -> 0.997 | AE82: =+IF(K82=0," -",IF(AD82>100%,100%,AD82)) -> 0.997 | AF82: =+IF(N82=0," -",Y82/N82) -> 0.997 | AG82: =+IF(N82=0," -",IF(AF82>100%,100%,AF82)) -> 0.997 | AH82: =+IF(Q82=0," -",AA82/Q82) -> 0.997 | AI82: =+IF(Q82=0," -",IF(AH82>100%,100%,AH82)) -> 0.997 | AJ82: =+IF(T82=0," -",AC82/T82) -> 0 | AK82: =+IF(T82=0," -",IF(AJ82>100%,100%,AJ82)) -> 0 | AL82: =+AVERAGE(W82,Y82,AA82,AC82) -> 0.74775 | AM82: =+IF(AL82>100%,100%,IF(AL82<0%,0%,AL82)) -> 0.74775 | AO82: =+RESUMEN!J51 -> 0.91395367 | AP82: JUGANDO Y APRENDIENDO (INFANCIA) | AQ82: Realizar 8 jornadas de promoción de los derechos de niñas, niños y adolescentes. | AR82: 0 | AS82: Número de jornadas de promoción de los derechos de niñas y niños y adolescentes realizados. | AT82: 1 | AU82: 8 | AV82: 2 | AW82: =+AV82/AU82 -> 0.25 | AX82: 2 | AY82: =+AX82/AU82 -> 0.25 | AZ82: 2 | BA82: =+AZ82/AU82 -> 0.25 | BB82: 2 | BC82: =+BB82/AU82 -> 0.25 | BD82: 1 | BE82: 3 | BF82: 25 | BG82: 1 | BH82: 0.5 | BI82: 0.5 | BJ82: 1.5 | BK82: 1 | BL82: 12.5 | BM82: 1 | BN82: 0.5 | BO82: 0.5 | BP82: =+SUM(BD82:BG82)/AU82 -> 3.75 | BQ82: 1 | BR82: 1 | BS82: 20000 | BT82: 0 | BU82: 0 | BV82: 0 | BW82: - | BX82: 10000 | BY82: 7334 | BZ82: 0 | CA82: 0.7334 | CB82: - | CC82: 45117 | CD82: 45117 | CE82: 0 | CF82: 1 | CG82: - | CH82: 50000 | CI82: 50000 | CJ82: 21429 | CK82: 1 | CL82: 0.42858 | CM82: 125117 | CN82: 102451 | CO82: 21429 | CP82: 0.8188415643 | CQ82: 0.2091634049 | CR82: 1. Fin de la pobreza | CS82: Atención a grupos vulnerables - Promoción Social | CT82: Sec. Desarrollo Social
AQ83: Brindar a 4.000 niñas y niños de 6 a 11 años programas para potenciar el desarrollo del aprendizaje, juego, desarrollo psicomotor, la creatividad y las habilidades relacionales. | AR83: 2210255 | AS83: Número de niñas y niños de 6 a 11 años beneficiados con programas para potenciar el desarrollo del aprendizaje, juego, desarrollo psicomotor, la creatividad y las habilidades relacionales. | AT83: 2400 | AU83: 4000 | AV83: 1000 | AW83: 0.25 | AX83: 1000 | AY83: 0.25 | AZ83: 1000 | BA83: 0.25 | BB83: 1000 | BC83: 0.25 | BD83: 1745 | BE83: 2061 | BF83: 1891 | BG83: 1974 | BH83: 1.745 | BI83: 1 | BJ83: 2.061 | BK83: 1 | BL83: 1.891 | BM83: 1 | BN83: 1.974 | BO83: 1 | BP83: =+SUM(BD83:BG83)/AU83 -> 1.91775 | BQ83: 1 | BR83: 1 | BS83: 100000 | BT83: 250000 | BU83: 0 | BV83: 2.5 | BW83: - | BX83: 711251 | BY83: 708207 | BZ83: 0 | CA83: 0.9957202169 | CB83: - | CC83: 889115 | CD83: 782488 | CE83: 0 | CF83: 0.8800751309 | CG83: - | CH83: 780000 | CI83: 747500 | CJ83: 300000 | CK83: 0.9583333333 | CL83: 0.4013377926 | CM83: 2480366 | CN83: 2488195 | CO83: 300000 | CP83: 1.003156389 | CQ83: 0.1205693284 | CR83: 1. Fin de la pobreza | CS83: Atención a grupos vulnerables - Promoción Social | CT83: Sec. Desarrollo Social
AQ84: Promover la participación y movilización social de 4.000 niñas, niños y adolescentes dentro de la vida comunitaria. | AR84: 2210255 | AS84: Número de niñas, niños y adolescentes con participación y movilización promovidas dentro de la vida comunitaria. | AT84: 2400 | AU84: 4000 | AV84: 600 | AW84: 0.15 | AX84: 1000 | AY84: 0.25 | AZ84: 1200 | BA84: 0.3 | BB84: 1200 | BC84: 0.3 | BD84: 71 | BE84: 1000 | BF84: 1000 | BG84: 780 | BH84: 0.1183333333 | BI84: 0.1183333333 | BJ84: 1 | BK84: 1 | BL84: 0.8333333333 | BM84: 0.8333333333 | BN84: 0.65 | BO84: 0.65 | BP84: =+SUM(BD84:BG84)/AU84 -> 0.71275 | BQ84: 0.71275 | BR84: 0.71275 | BS84: 100000 | BT84: 0 | BU84: 0 | BV84: 0 | BW84: - | BX84: 156000 | BY84: 156000 | BZ84: 0 | CA84: 1 | CB84: - | CC84: 94000 | CD84: 94000 | CE84: 0 | CF84: 1 | CG84: - | CH84: 0 | CI84: 0 | CJ84: 0 | CK84: - | CL84: - | CM84: 350000 | CN84: 250000 | CO84: 0 | CP84: 0.7142857143 | CQ84: - | CR84: 1. Fin de la pobreza | CS84: Atención a grupos vulnerables - Promoción Social | CT84: Sec. Desarrollo Social
AQ85: Mantener 1 estrategia de prevención del maltrato infantil, violencia sexual y violencia intrafamiliar. | AR85: 2210155 | AS85: Número de estrategias de prevención del maltrato infantil, violencia sexual y violencia intrafamiliar implementadas y mantenidas. | AT85: 1 | AU85: 1 | AV85: 1 | AW85: 0.25 | AX85: 1 | AY85: 0.25 | AZ85: 1 | BA85: 0.25 | BB85: 1 | BC85: 0.25 | BD85: 1 | BE85: 1 | BF85: 1 | BG85: 1 | BH85: 1 | BI85: 1 | BJ85: 1 | BK85: 1 | BL85: 1 | BM85: 1 | BN85: 1 | BO85: 1 | BP85: 1 | BQ85: 1 | BR85: 1 | BS85: 200000 | BT85: 50000 | BU85: 0 | BV85: 0.25 | BW85: - | BX85: 80000 | BY85: 79260 | BZ85: 0 | CA85: 0.99075 | CB85: - | CC85: 91221 | CD85: 91221 | CE85: 0 | CF85: 1 | CG85: - | CH85: 75000 | CI85: 75000 | CJ85: 15000 | CK85: 1 | CL85: 0.2 | CM85: 446221 | CN85: 295481 | CO85: 15000 | CP85: 0.6621853297 | CQ85: 0.05076468538 | CR85: 1. Fin de la pobreza | CS85: Atención a grupos vulnerables - Promoción Social | CT85: Sec. Desarrollo Social
AQ86: Mantener actualizada y validada la base de datos de identificación de niñas y niños en situación o riesgo de trabajo infantil de acuerdo con los lineamientos de política nacional de erradicación del trabajo infantil. | AR86: 2210155 | AS86: Número de bases de datos de identificación de niñas y niños en situación o riesgo de trabajo infantil mantenidos actualizados de acuerdo con los lineamientos de política nacional de erradicación del trabajo infantil. | AT86: 1 | AU86: 1 | AV86: 1 | AW86: 0.25 | AX86: 1 | AY86: 0.25 | AZ86: 1 | BA86: 0.25 | BB86: 1 | BC86: 0.25 | BD86: 1 | BE86: 1 | BF86: 1 | BG86: 1 | BH86: 1 | BI86: 1 | BJ86: 1 | BK86: 1 | BL86: 1 | BM86: 1 | BN86: 1 | BO86: 1 | BP86: 1 | BQ86: 1 | BR86: 1 | BS86: 100000 | BT86: 34500 | BU86: 0 | BV86: 0.345 | BW86: - | BX86: 58000 | BY86: 58000 | BZ86: 0 | CA86: 1 | CB86: - | CC86: 14000 | CD86: 14000 | CE86: 0 | CF86: 1 | CG86: - | CH86: 55000 | CI86: 55000 | CJ86: 15000 | CK86: 1 | CL86: 0.2727272727 | CM86: 227000 | CN86: 161500 | CO86: 15000 | CP86: 0.7114537445 | CQ86: 0.09287925697 | CR86: 1. Fin de la pobreza | CS86: Atención a grupos vulnerables - Promoción Social | CT86: Sec. Desarrollo Social
AQ87: Mantener 1 estrategia comunitaria y familiar para la erradicación de trabajo infantil en niñas, niños y adolescentes caracterizados. | AR87: 2210292 | AS87: Número de estrategias comunitarias y familiares mantenidas para la erradicación de trabajo infantil en niñas, niños y adolescentes caracterizados. | AT87: 1 | AU87: 1 | AV87: 1 | AW87: 0.25 | AX87: 1 | AY87: 0.25 | AZ87: 1 | BA87: 0.25 | BB87: 1 | BC87: 0.25 | BD87: 1 | BE87: 1 | BF87: 1 | BG87: 1 | BH87: 1 | BI87: 1 | BJ87: 1 | BK87: 1 | BL87: 1 | BM87: 1 | BN87: 1 | BO87: 1 | BP87: 1 | BQ87: 1 | BR87: 1 | BS87: 150000 | BT87: 120000 | BU87: 500 | BV87: 0.8 | BW87: 0.004166666667 | BX87: 100000 | BY87: 91962 | BZ87: 0 | CA87: 0.91962 | CB87: - | CC87: 103233 | CD87: 103233 | CE87: 0 | CF87: 1 | CG87: - | CH87: 0 | CI87: 0 | CJ87: 0 | CK87: - | CL87: - | CM87: 353233 | CN87: 315195 | CO87: 500 | CP87: 0.8923147045 | CQ87: 0.00158631958 | CR87: 1. Fin de la pobreza | CS87: Atención a grupos vulnerables - Promoción Social | CT87: Sec. Desarrollo Social
F88: Mantener por debajo de 28 la razón de mortalidad materna por 1.000 nacidos vivos por causas directas e indirectas. | G88: 28 | H88: 28 | I88: -0.1 | J88: 28 | K88: =+J88-G88 -> 0 | M88: 28 | N88: =+M88-J88 -> 0 | P88: 28 | Q88: =+P88-M88 -> 0 | S88: 28 | T88: =+S88-P88 -> 0 | V88: 43 | W88: =+V88 -> 43 | X88: 43 | Y88: =+X88 -> 43 | Z88: 42 | AA88: =+Z88 -> 42 | AC88: =+AB88 -> 0 | AE88: =+AD88 -> 0 | AG88: =+AF88 -> 0 | AI88: =+AH88 -> 0 | AK88: =+AJ88 -> 0 | AM88: =+AL88 -> 0 | AQ88: Mantener atención integral a 33 niños en la modalidad de semi-internado (refugio social). | AR88: 2210255 | AS88: Número de niños mantenidos con atención integral en la modalidad de semi-internado (refugio social). | AT88: 33 | AU88: 33 | AV88: 33 | AW88: 0.25 | AX88: 33 | AY88: 0.25 | AZ88: 33 | BA88: 0.25 | BB88: 33 | BC88: 0.25 | BD88: 18 | BE88: 33 | BF88: 26 | BG88: 26 | BH88: 0.5454545455 | BI88: 0.5454545455 | BJ88: 1 | BK88: 1 | BL88: 0.7878787879 | BM88: 0.7878787879 | BN88: 0.7878787879 | BO88: 0.7878787879 | BP88: 0.7803030303 | BQ88: 0.7803030303 | BR88: 0.7803030303 | BS88: 120000 | BT88: 60000 | BU88: 0 | BV88: 0.5 | BW88: - | BX88: 95000 | BY88: 95000 | BZ88: 0 | CA88: 1 | CB88: - | CC88: 123973 | CD88: 122156 | CE88: 42417 | CF88: 0.9853435829 | CG88: 0.3472363208 | CH88: 100000 | CI88: 99995 | CJ88: 42855 | CK88: 0.99995 | CL88: 0.4285714286 | CM88: 438973 | CN88: 377151 | CO88: 85272 | CP88: 0.8591667369 | CQ88: 0.2260951184 | CR88: 1. Fin de la pobreza | CS88: Atención a grupos vulnerables - Promoción Social | CT88: Sec. Desarrollo Social
AQ89: Brindar y atender a 75.000 niñas, niños y adolescentes con acceso gratuito en espacios de recreación y cultura. | AR89: 2210255 | AS89: Número de niñas, niños y adolescentes con acceso gratuito en espacios de recreación y cultura mantenidos. | AT89: 32427 | AU89: 75000 | AV89: 75000 | AW89: 0.25 | AX89: 75000 | AY89: 0.25 | AZ89: 75000 | BA89: 0.25 | BB89: 75000 | BC89: 0.25 | BD89: 31000 | BE89: 65000 | BF89: 67945 | BG89: 55814 | BH89: 0.4133333333 | BI89: 0.4133333333 | BJ89: 0.8666666667 | BK89: 0.8666666667 | BL89: 0.9059333333 | BM89: 0.9059333333 | BN89: 0.7441866667 | BO89: 0.7441866667 | BP89: 0.73253 | BQ89: 0.73253 | BR89: 0.73253 | BS89: 155000 | BT89: 155000 | BU89: 46500 | BV89: 1 | BW89: 0.3 | BX89: 1072522 | BY89: 1072522 | BZ89: 0 | CA89: 1 | CB89: - | CC89: 850560 | CD89: 850560 | CE89: 297842 | CF89: 1 | CG89: 0.3501716516 | CH89: 510000 | CI89: 509683 | CJ89: 197142 | CK89: 0.9993784314 | CL89: 0.3867933598 | CM89: 2588082 | CN89: 2587765 | CO89: 541484 | CP89: 0.9998775155 | CQ89: 0.2092477485 | CR89: 1. Fin de la pobreza | CS89: Atención a grupos vulnerables - Promoción Social | CT89: Sec. Desarrollo Social
AQ90: Realizar 4 jornadas de promoción de los derechos humanos para prevenir la violencia contra niñas y niños. | AR90: - | AS90: Número de jornadas de promoción de los derechos humanos para prevenir la violencia contra niñas y niños realizadas. | AT90: 4 | AU90: 4 | AV90: 0 | AW90: 0 | AX90: 1 | AY90: 0.25 | AZ90: 1 | BA90: 0.25 | BB90: 2 | BC90: 0.5 | BD90: 0 | BE90: 1 | BF90: 2 | BG90: 4 | BH90: - | BI90: - | BJ90: 1 | BK90: 1 | BL90: 2 | BM90: 1 | BN90: 2 | BO90: 1 | BP90: =+SUM(BD90:BG90)/AU90 -> 1.75 | BQ90: 1 | BR90: 1 | BS90: 0 | BT90: 0 | BU90: 0 | BV90: - | BW90: - | BX90: 0 | BY90: 0 | BZ90: 0 | CA90: - | CB90: - | CC90: 0 | CD90: 0 | CE90: 100 | CF90: - | CG90: 1 | CH90: 0 | CI90: 0 | CJ90: 0 | CK90: - | CL90: - | CM90: 0 | CN90: 0 | CO90: 100 | CP90: - | CQ90: 1 | CR90: 16. Paz, justicia e instituciones sólidas | CS90: Atención a grupos vulnerables - Promoción Social | CT90: Sec. Interior
AO91: =+RESUMEN!J52 -> 0.8583333333 | AP91: CRECIENDO Y CONSTRUYENDO (ADOLESCENCIA) | AQ91: Implementar y mantener 1 estrategia para la promoción de habilidades para la vida en el marco de la estrategia de atención integral a niños, niñas y adolescentes con énfasis en prevención de embarazo en adolescentes. | AR91: 2210260 | AS91: Número de estrategias implementadas y mantenidas para la promoción de habilidades para la vida en el marco de la estrategia de atención integral a niños, niñas y adolescentes con énfasis en prevención de embarazo en adolescentes. | AT91: 0 | AU91: 1 | AV91: 1 | AW91: 0.25 | AX91: 1 | AY91: 0.25 | AZ91: 1 | BA91: 0.25 | BB91: 1 | BC91: 0.25 | BD91: 1 | BE91: 1 | BF91: 1 | BG91: 1 | BH91: 1 | BI91: 1 | BJ91: 1 | BK91: 1 | BL91: 1 | BM91: 1 | BN91: 1 | BO91: 1 | BP91: 1 | BQ91: 1 | BR91: 1 | BS91: 93500 | BT91: 86000 | BU91: 0 | BV91: 0.9197860963 | BW91: - | BX91: 80000 | BY91: 73900 | BZ91: 0 | CA91: 0.92375 | CB91: - | CC91: 216419 | CD91: 204834 | CE91: 0 | CF91: 0.9464695798 | CG91: - | CH91: 41000 | CI91: 40000 | CJ91: 0 | CK91: 0.9756097561 | CL91: - | CM91: 430919 | CN91: 404734 | CO91: 0 | CP91: 0.9392345197 | CQ91: - | CR91: 16. Paz, justicia e instituciones sólidas | CS91: Atención a grupos vulnerables - Promoción Social | CT91: Sec. Desarrollo Social
AQ92: Implementar y mantener la estrategia "Trayectos y proyectos" para potenciar capacidades, proyectos de vida, emprendimientos juveniles. | AR92: 2210260 | AS92: Número de estrategias "Trayectos y proyectos" implementadas y mantenidas para potenciar capacidades, proyectos de vida, emprendimientos juveniles. | AT92: 0 | AU92: 1 | AV92: 1 | AW92: 0.25 | AX92: 1 | AY92: 0.25 | AZ92: 1 | BA92: 0.25 | BB92: 1 | BC92: 0.25 | BD92: 1 | BE92: 1 | BF92: 1 | BG92: 1 | BH92: 1 | BI92: 1 | BJ92: 1 | BK92: 1 | BL92: 1 | BM92: 1 | BN92: 1 | BO92: 1 | BP92: 1 | BQ92: 1 | BR92: 1 | BS92: 207000 | BT92: 207000 | BU92: 0 | BV92: 1 | BW92: - | BX92: 637436 | BY92: 626847 | BZ92: 0 | CA92: 0.9833881362 | CB92: - | CC92: 682796 | CD92: 610232 | CE92: 0 | CF92: 0.8937252122 | CG92: - | CH92: 420449 | CI92: 417995 | CJ92: 171427 | CK92: 0.9941633825 | CL92: 0.4101173459 | CM92: 1947681 | CN92: 1862074 | CO92: 171427 | CP92: 0.9560467037 | CQ92: 0.09206239924 | CR92: 16. Paz, justicia e instituciones sólidas | CS92: Atención a grupos vulnerables - Promoción Social | CT92: Sec. Desarrollo Social
AQ93: Implementar y mantener la estrategia "Me protejo, me protegen" rutas de acompañamiento y protección integral para adolescentes ante inobservancia, amenaza o vulneración de derechos. | AR93: 2210260 | AS93: Número de estrategias "Me protejo, me protegen" rutas de acompañamiento y protección integral implementadas y mantenidas para adolescentes ante inobservancia, amenaza o vulneración de derechos. | AT93: 1 | AU93: 1 | AV93: 1 | AW93: 0.25 | AX93: 1 | AY93: 0.25 | AZ93: 1 | BA93: 0.25 | BB93: 1 | BC93: 0.25 | BD93: 1 | BE93: 1 | BF93: 1 | BG93: 1 | BH93: 1 | BI93: 1 | BJ93: 1 | BK93: 1 | BL93: 1 | BM93: 1 | BN93: 1 | BO93: 1 | BP93: 1 | BQ93: 1 | BR93: 1 | BS93: 151000 | BT93: 151000 | BU93: 0 | BV93: 1 | BW93: - | BX93: 100000 | BY93: 96500 | BZ93: 0 | CA93: 0.965 | CB93: - | CC93: 234974 | CD93: 234974 | CE93: 0 | CF93: 1 | CG93: - | CH93: 143300 | CI93: 142853 | CJ93: 43009 | CK93: 0.9968806699 | CL93: 0.3010717311 | CM93: 629274 | CN93: 625327 | CO93: 43009 | CP93: 0.9937276925 | CQ93: 0.06877841513 | CR93: 16. Paz, justicia e instituciones sólidas | CS93: Atención a grupos vulnerables - Promoción Social | CT93: Sec. Desarrollo Social
F94: Aumentar al 98% la cobertura útil de vacunación. | G94: 0.95 | H94: 0.98 | I94: =+H94-G94 -> 0.03 | J94: 0.98 | K94: =+J94-G94 -> 0.03 | M94: 0.98 | N94: =+M94-J94 -> 0 | P94: 0.98 | Q94: =+P94-M94 -> 0 | S94: 0.98 | T94: =+S94-P94 -> 0 | V94: 0.903 | W94: =+IF(V94=0,0,V94-G94) -> -0.047 | X94: 0.84 | Y94: =+IF(X94=0,0,X94-V94) -> -0.063 | Z94: 0.836 | AA94: =+IF(Z94=0,0,Z94-X94) -> -0.004 | AC94: =+IF(AB94=0,0,AB94-Z94) -> 0 | AD94: =+IF(K94=0," -",W94/K94) -> -1.566666667 | AE94: =+IF(K94=0," -",IF(AD94>100%,100%,AD94)) -> -1.566666667 | AF94: =+IF(N94=0," -",Y94/N94) -> - | AG94: =+IF(N94=0," -",IF(AF94>100%,100%,AF94)) -> - | AH94: =+IF(Q94=0," -",AA94/Q94) -> - | AI94: =+IF(Q94=0," -",IF(AH94>100%,100%,AH94)) -> - | AJ94: =+IF(T94=0," -",AC94/T94) -> - | AK94: =+IF(T94=0," -",IF(AJ94>100%,100%,AJ94)) -> - | AL94: =+SUM(AC94,AA94,Y94,W94)/I94 -> -3.8 | AM94: =+IF(AL94>100%,100%,IF(AL94<0%,0%,AL94)) -> 0 | AQ94: Mantener la atención integral al 100% de los menores infractores (SRPA). | AR94: 2210675 | AS94: Porcentaje de menores infractores con atención integral mantenida. | AT94: 1 | AU94: 1 | AV94: 1 | AW94: 0.25 | AX94: 1 | AY94: 0.25 | AZ94: 1 | BA94: 0.25 | BB94: 1 | BC94: 0.25 | BD94: 1 | BE94: 1 | BF94: 1 | BG94: 1 | BH94: 1 | BI94: 1 | BJ94: 1 | BK94: 1 | BL94: 1 | BM94: 1 | BN94: 1 | BO94: 1 | BP94: 1 | BQ94: 1 | BR94: 1 | BS94: 526944 | BT94: 526944 | BU94: 47060 | BV94: 1 | BW94: 0.08930740268 | BX94: 1372976 | BY94: 1372976 | BZ94: 76152 | CA94: 1 | CB94: 0.05546491709 | CC94: 1563230 | CD94: 1074070 | CE94: 0 | CF94: 0.6870837945 | CG94: - | CH94: 1331210 | CI94: 1331210 | CJ94: 0 | CK94: 1 | CL94: - | CM94: 4794360 | CN94: 4305200 | CO94: 123212 | CP94: 0.8979717835 | CQ94: 0.02861934405 | CR94: 16. Paz, justicia e instituciones sólidas | CS94: Atención a grupos vulnerables - Promoción Social | CT94: Sec. Interior
AQ95: Incluir al 100% de los jóvenes infractores del SRPA en la estrategia de justicia juvenil restaurativa. | AR95: 2210675 | AS95: Porcentaje de jóvenes infractores incluidos a la justicia juvenil restaurativa. | AT95: 1 | AU95: 1 | AV95: 1 | AW95: 0.25 | AX95: 1 | AY95: 0.25 | AZ95: 1 | BA95: 0.25 | BB95: 1 | BC95: 0.25 | BD95: 1 | BE95: 1 | BF95: 1 | BG95: 1 | BH95: 1 | BI95: 1 | BJ95: 1 | BK95: 1 | BL95: 1 | BM95: 1 | BN95: 1 | BO95: 1 | BP95: 1 | BQ95: 1 | BR95: 1 | BS95: 0 | BT95: 0 | BU95: 0 | BV95: - | BW95: - | BX95: 0 | BY95: 0 | BZ95: 0 | CA95: - | CB95: - | CC95: 0 | CD95: 0 | CE95: 0 | CF95: - | CG95: - | CH95: 237716 | CI95: 237716 | CJ95: 0 | CK95: 1 | CL95: - | CM95: 237716 | CN95: 237716 | CO95: 0 | CP95: 1 | CQ95: - | CR95: 16. Paz, justicia e instituciones sólidas | CS95: Atención a grupos vulnerables - Promoción Social | CT95: Sec. Interior
AQ96: Garantizar 1 hogar de paso para las niñas, niños y adolescentes en riesgo y/o vulnerabilidad. | AR96: 2210268 | AS96: Número de hogares de paso para las niñas, niños y adolescentes en riesgo garantizado. | AT96: 1 | AU96: 1 | AV96: 1 | AW96: 0.25 | AX96: 1 | AY96: 0.25 | AZ96: 1 | BA96: 0.25 | BB96: 1 | BC96: 0.25 | BD96: 0 | BE96: 0 | BF96: 1 | BG96: 1 | BH96: 0 | BI96: 0 | BJ96: 0 | BK96: 0 | BL96: 1 | BM96: 1 | BN96: 1 | BO96: 1 | BP96: 0.5 | BQ96: 0.5 | BR96: 0.5 | BS96: 80000 | BT96: 0 | BU96: 0 | BV96: 0 | BW96: - | BX96: 109000 | BY96: 0 | BZ96: 0 | CA96: 0 | CB96: - | CC96: 168000 | CD96: 165900 | CE96: 0 | CF96: 0.9875 | CG96: - | CH96: 338400 | CI96: 338400 | CJ96: 0 | CK96: 1 | CL96: - | CM96: 695400 | CN96: 504300 | CO96: 0 | CP96: 0.7251941329 | CQ96: - | CR96: 16. Paz, justicia e instituciones sólidas | CS96: Atención a grupos vulnerables - Promoción Social | CT96: Sec. Interior
AQ97: Realizar 1 convenio interinstitucional para la construcción y dotación de un centro de atención especializado para la atención de los adolescentes en conflicto con la ley, acorde a los requerimientos de la ley de infancia y adolescencia. | AR97: 2210675 | AS97: Número de convenios realizados para la construcción y dotación de un centro de atención especializado para la atención de los adolescentes en conflicto con la ley, acorde a los requerimientos de la ley de infancia y adolescencia. | AT97: 0 | AU97: 1 | AV97: 0 | AW97: 0.25 | AX97: 1 | AY97: 0.25 | AZ97: 0 | BA97: 0.25 | BB97: 0 | BC97: 0.25 | BD97: 0 | BE97: 1 | BF97: 1 | BG97: 0 | BH97: - | BI97: - | BJ97: 1 | BK97: 1 | BL97: - | BM97: - | BN97: - | BO97: - | BP97: 0.5 | BQ97: 0.5 | BR97: 0.5 | BS97: 0 | BT97: 0 | BU97: 0 | BV97: - | BW97: - | BX97: 110000 | BY97: 110000 | BZ97: 0 | CA97: 1 | CB97: - | CC97: 72297 | CD97: 72297 | CE97: 0 | CF97: 1 | CG97: - | CH97: 151073 | CI97: 0 | CJ97: 0 | CK97: 0 | CL97: - | CM97: 333370 | CN97: 182297 | CO97: 0 | CP97: 0.5468308486 | CQ97: - | CR97: 16. Paz, justicia e instituciones sólidas | CS97: Atención a grupos vulnerables - Promoción Social | CT97: Sec. Interior
AQ98: Implementar y mantener 1 estrategia en las instituciones educativas para el uso de internet de manera segura y responsable. | AR98: - | AS98: Número de estrategias implementadas y mantenidas en las instituciones educativas para el uso de internet de manera segura y responsable. | AT98: 0 | AU98: 1 | AV98: 0 | AW98: 0 | AX98: 1 | AY98: 0.33 | AZ98: 1 | BA98: 0.33 | BB98: 1 | BC98: 0.34 | BD98: 1 | BE98: 0.6 | BF98: 1 | BG98: 1 | BH98: - | BI98: - | BJ98: 0.6 | BK98: 0.6 | BL98: 1 | BM98: 1 | BN98: 1 | BO98: 1 | BP98: =+AVERAGE(BE98:BG98)/AU98 -> 0.8666666667 | BQ98: 0.8666666667 | BR98: 0.8666666667 | BS98: 0 | BT98: 0 | BU98: 0 | BV98: - | BW98: - | BX98: 0 | BY98: 0 | BZ98: 0 | CA98: - | CB98: - | CC98: 0 | CD98: 0 | CE98: 0 | CF98: - | CG98: - | CH98: 0 | CI98: 0 | CJ98: 0 | CK98: - | CL98: - | CM98: 0 | CN98: 0 | CO98: 0 | CP98: - | CQ98: - | CR98: 4. Educación de calidad | CS98: Educación | CT98: Sec. Educación
AO99: =+RESUMEN!J53 -> 0.7969047619 | AP99: JÓVENES VITALES | AQ99: Mantener las 6 casas de la juventud con una oferta programática del uso adecuado del tiempo libre. | AR99: 2,4,1,3,1,1 | AS99: Número de casas de la juventud mantenidas con una oferta programática del uso adecuado del tiempo libre. | AT99: 6 | AU99: 6 | AV99: 6 | AW99: 0.25 | AX99: 6 | AY99: 0.25 | AZ99: 6 | BA99: 0.25 | BB99: 6 | BC99: 0.25 | BD99: 6 | BE99: 6 | BF99: 6 | BG99: 6 | BH99: 1 | BI99: 1 | BJ99: 1 | BK99: 1 | BL99: 1 | BM99: 1 | BN99: 1 | BO99: 1 | BP99: 1 | BQ99: 1 | BR99: 1 | BS99: 85000 | BT99: 13493 | BU99: 0 | BV99: 0.1587411765 | BW99: - | BX99: 120384 | BY99: 93500 | BZ99: 0 | CA99: 0.7766812865 | CB99: - | CC99: 125800 | CD99: 122500 | CE99: 0 | CF99: 0.9737678855 | CG99: - | CH99: 126215 | CI99: 126215 | CJ99: 0 | CK99: 1 | CL99: - | CM99: 457399 | CN99: 355708 | CO99: 0 | CP99: 0.7776755087 | CQ99: - | CR99: 16. Paz, justicia e instituciones sólidas | CS99: Deporte y recreación | CT99: INDERBU
F100: Reducir por debajo del 15% la proporción de madres - niñas, adolescentes (10 a 19 años). | G100: 0.17 | H100: 0.15 | I100: =+H100-G100 -> -0.02 | J100: 0.17 | K100: =+J100-G100 -> 0 | M100: 0.17 | N100: =+M100-J100 -> 0 | P100: 0.16 | Q100: =+P100-M100 -> -0.01 | S100: 0.15 | T100: =+S100-P100 -> -0.01 | V100: 0.155 | W100: =+V100 -> 0.155 | X100: 0.152 | Y100: =+X100 -> 0.152 | Z100: 0.145 | AA100: =+Z100 -> 0.145 | AC100: =+AB100 -> 0 | AE100: =+AD100 -> 0 | AG100: =+AF100 -> 0 | AI100: =+AH100 -> 0 | AK100: =+AJ100 -> 0 | AM100: =+AL100 -> 0 | AQ100: Vincular 3.000 jóvenes en los diferentes procesos democráticos de participación ciudadana. | AR100: 2,4,1,3,1,2 | AS100: Número de jóvenes vinculados en los diferentes procesos democráticos de participación ciudadana. | AT100: 2000 | AU100: 3000 | AV100: 500 | AW100: 0.1666666667 | AX100: 1000 | AY100: 0.3333333333 | AZ100: 1000 | BA100: 0.3333333333 | BB100: 500 | BC100: 0.1666666667 | BD100: 377 | BE100: 1394 | BF100: 1331 | BG100: 702 | BH100: 0.754 | BI100: 0.754 | BJ100: 1.394 | BK100: 1 | BL100: 1.331 | BM100: 1 | BN100: 1.404 | BO100: 1 | BP100: =+SUM(BD100:BG100)/AU100 -> 1.268 | BQ100: 1 | BR100: 1 | BS100: 39000 | BT100: 0 | BU100: 0 | BV100: 0 | BW100: - | BX100: 42221 | BY100: 34515 | BZ100: 0 | CA100: 0.8174841903 | CB100: - | CC100: 61030 | CD100: 61030 | CE100: 0 | CF100: 1 | CG100: - | CH100: 66066 | CI100: 66066 | CJ100: 0 | CK100: 1 | CL100: - | CM100: 208317 | CN100: 161611 | CO100: 0 | CP100: 0.7757936222 | CQ100: - | CR100: 16. Paz, justicia e instituciones sólidas | CS100: Deporte y recreación | CT100: INDERBU
AQ101: Vincular 5.000 jóvenes en procesos de formación en diferentes competencias de inclusión laboral, social, valores humanos, ambientales y organización juvenil. | AR101: 2,4,1,3,1,3 | AS101: Número de jóvenes vinculados en procesos de formación en diferentes competencias de inclusión laboral, social, valores humanos, ambientales y organización juvenil. | AT101: 5000 | AU101: 5000 | AV101: 400 | AW101: 0.08 | AX101: 2000 | AY101: 0.4 | AZ101: 2000 | BA101: 0.4 | BB101: 600 | BC101: 0.12 | BD101: 405 | BE101: 2155 | BF101: 2015 | BG101: 730 | BH101: 1.0125 | BI101: 1 | BJ101: 1.0775 | BK101: 1 | BL101: 1.0075 | BM101: 1 | BN101: 1.216666667 | BO101: 1 | BP101: =+SUM(BD101:BG101)/AU101 -> 1.061 | BQ101: 1 | BR101: 1 | BS101: 68000 | BT101: 0 | BU101: 0 | BV101: 0 | BW101: - | BX101: 183900 | BY101: 183900 | BZ101: 0 | CA101: 1 | CB101: - | CC101: 202758 | CD101: 163764 | CE101: 0 | CF101: 0.8076820643 | CG101: - | CH101: 172622 | CI101: 135622 | CJ101: 0 | CK101: 0.7856588384 | CL101: - | CM101: 627280 | CN101: 483286 | CO101: 0 | CP101: 0.7704470093 | CQ101: - | CR101: 8. Trabajo decente y crecimiento económico | CS101: Deporte y recreación | CT101: INDERBU
AQ102: Implementar 10 procesos de comunicación estratégica mediante campañas de innovación para la promoción y prevención de flagelos juveniles. | AR102: 2,4,1,3,1,4 | AS102: Número de procesos de comunicación estratégica implementados mediante campañas de innovación para la promoción y prevención de flagelos juveniles. | AT102: 12 | AU102: 10 | AV102: 2 | AW102: 0.2 | AX102: 3 | AY102: 0.3 | AZ102: 3 | BA102: 0.3 | BB102: 2 | BC102: 0.2 | BD102: 2 | BE102: 3 | BF102: 3 | BG102: 1 | BH102: 1 | BI102: 1 | BJ102: 1 | BK102: 1 | BL102: 1 | BM102: 1 | BN102: 0.5 | BO102: 0.5 | BP102: =+SUM(BD102:BG102)/AU102 -> 0.9 | BQ102: 0.9 | BR102: 0.9 | BS102: 28000 | BT102: 7000 | BU102: 0 | BV102: 0.25 | BW102: - | BX102: 83135 | BY102: 69711 | BZ102: 0 | CA102: 0.8385276959 | CB102: - | CC102: 195835 | CD102: 171004 | CE102: 0 | CF102: 0.8732044834 | CG102: - | CH102: 180707 | CI102: 143294 | CJ102: 0 | CK102: 0.7929631946 | CL102: - | CM102: 487677 | CN102: 391009 | CO102: 0 | CP102: 0.8017786363 | CQ102: - | CR102: 16. Paz, justicia e instituciones sólidas | CS102: Deporte y recreación | CT102: INDERBU
AQ103: Reactivar y mantener el Consejo Municipal de Juventud. | AR103: - | AS103: Número de Consejos Municipales de Juventud reactivados y mantenidos. | AT103: 0 | AU103: 1 | AV103: 0 | AW103: 0.25 | AX103: 1 | AY103: 0.25 | AZ103: 1 | BA103: 0.25 | BB103: 1 | BC103: 0.25 | BD103: 0 | BE103: 0 | BF103: 0.6 | BG103: 0.1 | BH103: - | BI103: - | BJ103: 0 | BK103: 0 | BL103: 0.6 | BM103: 0.6 | BN103: 0.1 | BO103: 0.1 | BP103: =+AVERAGE(BE103:BG103)/AU103 -> 0.2333333333 | BQ103: 0.2333333333 | BR103: 0.2333333333 | BS103: 0 | BT103: 0 | BU103: 0 | BV103: - | BW103: - | BX103: 1000 | BY103: 0 | BZ103: 0 | CA103: 0 | CB103: - | CC103: 0 | CD103: 0 | CE103: 0 | CF103: - | CG103: - | CH103: 0 | CI103: 0 | CJ103: 0 | CK103: - | CL103: - | CM103: 1000 | CN103: 0 | CO103: 0 | CP103: 0 | CQ103: - | CR103: 16. Paz, justicia e instituciones sólidas | CS103: Deporte y recreación | CT103: INDERBU
